Workbook

Sheet Notes
A1: DegreeOfComplexity.xlsm
A2: Coded beginning 2013-Dec-05 by Ronald McAllister (rpmac_xltt@sprynet.com)
A4: This Workbook demonstrates an EXCEL version of the ideas presented
A5: by Oscar Cagigas in an article titled "The Degree Of Complexity"
A6: which appears in the February 2014 issue of
A7: "Technical Analysis of Stocks and Commodities" magazine.
A10: CalculationsAndCharts construction Notes:
C12: Mr. Cagigas' article investigates the beneficial and detrimental effects of increasing the complexity of a trading system model in the quest to improve the performance when back testing.
C13: He then measures the performance of the "improved" system model by checking the results of the model on out of sample data.
C15: This spreadsheet is an example of Mr. Cagigas' Donchian trading system which is the starting point of the article's complexity progression.
C17: I have included a very simplistic data fitting model using the EXCEL's built-in DATA TABLES capability to find the best Len1 and Len2 combinations for Long trades, Short trades,
C18: and Overall, which combines both types.
C20: One may simulate back testing by specifying an offset of say 900 and a points to plot of 800. Then click the "Manual Set Chart" button.
C21: When the circle cursor goes away and all of the flickering stops, scroll to the right of the chart to see the modeled results.
C22: Capture the best fit (max value) Len1 and Len2 coordinates and enter them in cells B16 and B17.
C24: Now simulate and Out Of Sample run by specifying an offset of zero. Leave points to plot at 800. Once again click the "Manual Set Chart" button.
C25: Let the flickering complete and scroll to see just how much the modeled best fit results have changed.
A27: Data for this EXCEL example:
C29: Price history for various STOCK symbols and some INDEX symbols may be available for downloaded
C30: from Yahoo Finance: http://finance.yahoo.com.
C31: If you know, or can find the appropriate Yahoo Finance symbol, you can automatically download historical
C32: price data directly into the InputPriceData Tab using the "Get Historical Data …" button.
C33: If you can not find an apropriate symbol to use with Yahoo finance, but you can find another source where you can
C34: download historical data for your tradable, then you will need to reformat that data to a CSV file in the same
C35: format as the one you get from the Yahoo Finance "Historical Prices" page when one clicks on
C36: the "Download to Spreadsheet" link at the bottom of the page. This CSV file must be sorted in Date-Descending (most recent at the top).
C37: With the CSV file in-hand you can use the "Import Data" button on the InputPriceData tab to import data from the CSV file.
A39: Development Notes:
A40: 1 | C40: This workbook contains and uses VBA macros.
A41: 2 | C41: Input Data
C42: The data in this workbook is sorted date descending (most recent date at the top). All formulas and
C43: VBA routines are built accordingly.
A44: Calculation and Chart Worksheet Usage Comments:
A45: 1 | C45: In General, Items in Bolded BLUE are items you may freely change to play what-if games.
C46: Be sure to have a backup copy of the spreadsheet before you alter anything else.
A47: 2 | C47: Several of the column formulas begin with "IF" logic that determines when there is sufficient data
C48: available for the subsequent calculations to be relevant. The cell will calculate to blank or the
C49: result of the calculation.
C50: In a couple of cases, this "IF" logic also sets starter values for subsequent smoothing calculations.
A51: 3 | C51: Data windowing can be performed by changing cell A11. Positive values logically "Pan" the
C52: data window represented by the Calculation sheet down the input sheet and back in time.
C53: This can have two side effects: First, data may fall outside of the fixed Y-axis scales and be clipped
C54: or fall well inside the Y-axis scales wasting a lot of chart vertical space. Second, you may move far
C55: enough back that you do not have sufficient data points to fill the left of the chart.
A56: 4 | C56: The VBA macros behind the SetChart button address these Data Windowing problems and also
C57: resizes and vertically aligns all charts on the work sheet to match the Price chart and then
C58: horizontally adjusts the X-axis positions of all charts on the work sheet so that the corresponding
C59: data points align vertically.
C60: The macros behind the SetChart button are sensitive to the user control values in cells A11 and
C61: A12, and also uses the computed values in cells A8, F11, and F12
A63: Related Reading:
C64: "The Original Turtle Trading Rules", written by former turtle Curtis Faith can be found in PDF form at:
C65: http://bigpicture.typepad.com/comments/files/turtlerules.pdf
C66: The Turtles trading rules use Donchian channels as a step in the process of setting entry and exit points.

Sheet InputPriceData
A1: Johnson & Johnson (JNJ) -NYSE | L1: Notes: | M1: Online Yahoo Finance Query Interfaces used in the VBA code to obtain this data:
A2: Last Trade: | B2: 2013-12-06 | C2: 93.6 | D2: N/A | E2: N/A | F2: 94.44 | G2: 200 | H2: 4:00pm | M2: A.) Price History Only: "http://ichart.finance.yahoo.com/table.csv"
A3: Request Online Yahoo History for: | M3: B.) Price History w/ imbedded divs n splits: "http://ichart.finance.yahoo.com/x"
A4: Symbol | B4: jnj | D4: Valid
A5: From | B5: 1977-01-07 | D5: Data | M5: C.) Fundamentals (in this case name and exchange):
A6: To | B6: =TODAY() -> 2013-12-09 | D6: Types | E6: =VLOOKUP(B7,D7:E10,2,FALSE) -> d | M6: "http://download.finance.yahoo.com/d/quotes.csv?"
A7: Data Type | B7: Daily | D7: Daily | E7: d | M7: For some how-to doc regarding this particular interface, including a list of the
D8: Weekly | E8: w | M8: specific fields you can include in a request to this interface see:
A9: Available Data | D9: Monthly | E9: m | M9: http://www.gummy-stuff.org/Yahoo-data.htm
A10: Bar Count: | B10: =COUNTA(B15:B64795)-1 -> 5045 | D10: Div/Split | E10: v | M10: This web site includes a downloadable working EXCEL/VBA example
A11: From: | B11: =IF(B10<=0,"",OFFSET(B15,B10,IF(HistReqDataType="v",1,0),1,1)) -> 1993-11-26 | M11: of the capabilities of this interface.
A12: To: | B12: =IF(B10<=0,"",IF(HistReqDataType="v",OFFSET(B15,2,1,1,1),OFFSET(B15,1,0,1,1))) -> 2013-12-06
B14: Raw Data Values | H14: Adjusted | I14: Adjustment | J14: Adjusted Values
A15: RelRow | B15: Date | C15: Open | D15: High | E15: Low | F15: Close | G15: Volume | H15: Adj Close | I15: Factor | J15: Open | K15: High | L15: Low | M15: Close
A16: 1 | B16: 2013-12-06 | C16: 93.6 | D16: 94.48 | E16: 93.42 | F16: 94.44 | G16: 7280400 | H16: 94.44 | I16: =H16/F16 -> 1 | J16: =ROUND($I16*C16,2) -> 93.6 | K16: =ROUND($I16*D16,2) -> 94.48 | L16: 93.42 | M16: 94.44
A17: 2 | B17: 2013-12-05 | C17: 93.42 | D17: 93.63 | E17: 92.66 | F17: 92.97 | G17: 8666200 | H17: 92.97 | I17: =H17/F17 -> 1 | J17: =ROUND($I17*C17,2) -> 93.42 | K17: =ROUND($I17*D17,2) -> 93.63 | L17: =ROUND($I17*E17,2) -> 92.66 | M17: =ROUND($I17*F17,2) -> 92.97
A18: 3 | B18: 2013-12-04 | C18: 93.76 | D18: 94.25 | E18: 93.13 | F18: 93.63 | G18: 6201800 | H18: 93.63 | I18: 1 | J18: 93.76 | K18: 94.25 | L18: 93.13 | M18: 93.63
A19: 4 | B19: 2013-12-03 | C19: 94.2 | D19: 94.56 | E19: 93.51 | F19: 93.97 | G19: 9061100 | H19: 93.97 | I19: 1 | J19: 94.2 | K19: 94.56 | L19: 93.51 | M19: 93.97
A20: 5 | B20: 2013-12-02 | C20: 94.41 | D20: 94.66 | E20: 93.97 | F20: 94.28 | G20: 5827400 | H20: 94.28 | I20: 1 | J20: 94.41 | K20: 94.66 | L20: 93.97 | M20: 94.28
A21: 6 | B21: 2013-11-29 | C21: 95.23 | D21: 95.5 | E21: 94.43 | F21: 94.66 | G21: 4106800 | H21: 94.66 | I21: 1 | J21: 95.23 | K21: 95.5 | L21: 94.43 | M21: 94.66
A22: 7 | B22: 2013-11-27 | C22: 95.34 | D22: 95.37 | E22: 94.61 | F22: 94.98 | G22: 4603800 | H22: 94.98 | I22: 1 | J22: 95.34 | K22: 95.37 | L22: 94.61 | M22: 94.98
A23: 8 | B23: 2013-11-26 | C23: 95.58 | D23: 95.87 | E23: 94.97 | F23: 95.06 | G23: 7267600 | H23: 95.06 | I23: 1 | J23: 95.58 | K23: 95.87 | L23: 94.97 | M23: 95.06
A24: 9 | B24: 2013-11-25 | C24: 95.49 | D24: 95.99 | E24: 95.08 | F24: 95.63 | G24: 6374600 | H24: 95.63 | I24: 1 | J24: 95.49 | K24: 95.99 | L24: 95.08 | M24: 95.63
A25: 10 | B25: 2013-11-22 | C25: 94.39 | D25: 95.58 | E25: 94.39 | F25: 95.25 | G25: 6462100 | H25: 95.25 | I25: 1 | J25: 94.39 | K25: 95.58 | L25: 94.39 | M25: 95.25
A26: 11 | B26: 2013-11-21 | C26: 95.46 | D26: 95.75 | E26: 95.05 | F26: 95.2 | G26: 6896200 | H26: 94.54 | I26: 0.9930672269 | J26: 94.8 | K26: 95.09 | L26: 94.39 | M26: 94.54
A27: 12 | B27: 2013-11-20 | C27: 94.94 | D27: 95.47 | E27: 94.66 | F27: 95.15 | G27: 7076500 | H27: 94.49 | I27: 0.9930635838 | J27: 94.28 | K27: 94.81 | L27: 94 | M27: 94.49
A28: 13 | B28: 2013-11-19 | C28: 94.27 | D28: 94.92 | E28: 94 | F28: 94.86 | G28: 6624200 | H28: 94.2 | I28: 0.9930423782 | J28: 93.61 | K28: 94.26 | L28: 93.35 | M28: 94.2
A29: 14 | B29: 2013-11-18 | C29: 94.36 | D29: 94.6 | E29: 94.01 | F29: 94.3 | G29: 8492000 | H29: 93.65 | I29: 0.993107105 | J29: 93.71 | K29: 93.95 | L29: 93.36 | M29: 93.65
A30: 15 | B30: 2013-11-15 | C30: 93.63 | D30: 94.4 | E30: 93.55 | F30: 94.39 | G30: 7063000 | H30: 93.74 | I30: 0.9931136773 | J30: 92.99 | K30: 93.75 | L30: 92.91 | M30: 93.74
A31: 16 | B31: 2013-11-14 | C31: 93.4 | D31: 94.14 | E31: 93.4 | F31: 93.92 | G31: 7045700 | H31: 93.27 | I31: 0.9930792164 | J31: 92.75 | K31: 93.49 | L31: 92.75 | M31: 93.27
A32: 17 | B32: 2013-11-13 | C32: 93.36 | D32: 93.45 | E32: 92.32 | F32: 93.34 | G32: 8954300 | H32: 92.69 | I32: 0.9930362117 | J32: 92.71 | K32: 92.8 | L32: 91.68 | M32: 92.69
A33: 18 | B33: 2013-11-12 | C33: 93.98 | D33: 94.09 | E33: 93 | F33: 93.56 | G33: 7639600 | H33: 92.91 | I33: 0.9930525866 | J33: 93.33 | K33: 93.44 | L33: 92.35 | M33: 92.91
A34: 19 | B34: 2013-11-11 | C34: 93.97 | D34: 94.64 | E34: 93.94 | F34: 94.29 | G34: 4723100 | H34: 93.64 | I34: 0.993106374 | J34: 93.32 | K34: 93.99 | L34: 93.29 | M34: 93.64
A35: 20 | B35: 2013-11-08 | C35: 92.63 | D35: 94.1 | E35: 92.56 | F35: 94.05 | G35: 7229500 | H35: 93.4 | I35: 0.9930887826 | J35: 91.99 | K35: 93.45 | L35: 91.92 | M35: 93.4
A36: 21 | B36: 2013-11-07 | C36: 93.19 | D36: 93.35 | E36: 92.69 | F36: 92.69 | G36: 6116900 | H36: 92.05 | I36: 0.9930952638 | J36: 92.55 | K36: 92.71 | L36: 92.05 | M36: 92.05
A37: 22 | B37: 2013-11-06 | C37: 93.03 | D37: 93.2 | E37: 92.72 | F37: 93.04 | G37: 5301300 | H37: 92.39 | I37: 0.9930137575 | J37: 92.38 | K37: 92.55 | L37: 92.07 | M37: 92.39
A38: 23 | B38: 2013-11-05 | C38: 92.54 | D38: 92.95 | E38: 92.28 | F38: 92.81 | G38: 5350600 | H38: 92.17 | I38: 0.9931041914 | J38: 91.9 | K38: 92.31 | L38: 91.64 | M38: 92.17
A39: 24 | B39: 2013-11-04 | C39: 93.46 | D39: 93.5 | E39: 92.43 | F39: 93.03 | G39: 6862500 | H39: 92.39 | I39: 0.9931204988 | J39: 92.82 | K39: 92.86 | L39: 91.79 | M39: 92.39
A40: 25 | B40: 2013-11-01 | C40: 92.38 | D40: 93.58 | E40: 92.38 | F40: 93.37 | G40: 6835900 | H40: 92.72 | I40: 0.9930384492 | J40: 91.74 | K40: 92.93 | L40: 91.74 | M40: 92.72
A41: 26 | B41: 2013-10-31 | C41: 92.85 | D41: 93.35 | E41: 92.32 | F41: 92.61 | G41: 7773900 | H41: 91.97 | I41: 0.9930892992 | J41: 92.21 | K41: 92.7 | L41: 91.68 | M41: 91.97
A42: 27 | B42: 2013-10-30 | C42: 93.27 | D42: 93.45 | E42: 92.65 | F42: 92.79 | G42: 6295400 | H42: 92.15 | I42: 0.993102705 | J42: 92.63 | K42: 92.81 | L42: 92.01 | M42: 92.15
A43: 28 | B43: 2013-10-29 | C43: 92.8 | D43: 93.18 | E43: 92.58 | F43: 93.14 | G43: 6096700 | H43: 92.49 | I43: 0.9930212583 | J43: 92.15 | K43: 92.53 | L43: 91.93 | M43: 92.49
A44: 29 | B44: 2013-10-28 | C44: 91.96 | D44: 92.8 | E44: 91.92 | F44: 92.39 | G44: 6551000 | H44: 91.75 | I44: 0.9930728434 | J44: 91.32 | K44: 92.16 | L44: 91.28 | M44: 91.75
A45: 30 | B45: 2013-10-25 | C45: 92.04 | D45: 92.27 | E45: 91.78 | F45: 92.09 | G45: 6076000 | H45: 91.45 | I45: 0.9930502769 | J45: 91.4 | K45: 91.63 | L45: 91.14 | M45: 91.45
A46: 31 | B46: 2013-10-24 | C46: 92.65 | D46: 92.99 | E46: 92.14 | F46: 92.35 | G46: 5251000 | H46: 91.71 | I46: 0.993069843 | J46: 92.01 | K46: 92.35 | L46: 91.5 | M46: 91.71
A47: 32 | B47: 2013-10-23 | C47: 92.07 | D47: 92.43 | E47: 91.52 | F47: 92.1 | G47: 6449600 | H47: 91.46 | I47: 0.9930510315 | J47: 91.43 | K47: 91.79 | L47: 90.88 | M47: 91.46
A48: 33 | B48: 2013-10-22 | C48: 91.53 | D48: 92.56 | E48: 91.5 | F48: 92.36 | G48: 9635500 | H48: 91.72 | I48: 0.9930705933 | J48: 90.9 | K48: 91.92 | L48: 90.87 | M48: 91.72
A49: 34 | B49: 2013-10-21 | C49: 91.63 | D49: 91.63 | E49: 90.77 | F49: 91.2 | G49: 6940500 | H49: 90.57 | I49: 0.9930921053 | J49: 91 | K49: 91 | L49: 90.14 | M49: 90.57
A50: 35 | B50: 2013-10-18 | C50: 91.75 | D50: 92.05 | E50: 91.14 | F50: 91.63 | G50: 9082600 | H50: 90.99 | I50: 0.993015388 | J50: 91.11 | K50: 91.41 | L50: 90.5 | M50: 90.99
A51: 36 | B51: 2013-10-17 | C51: 90.87 | D51: 92 | E51: 90.77 | F51: 91.97 | G51: 8569600 | H51: 91.33 | I51: 0.9930412091 | J51: 90.24 | K51: 91.36 | L51: 90.14 | M51: 91.33
A52: 37 | B52: 2013-10-16 | C52: 90.42 | D52: 91.17 | E52: 90.16 | F52: 91.11 | G52: 8116000 | H52: 90.48 | I52: 0.9930852815 | J52: 89.79 | K52: 90.54 | L52: 89.54 | M52: 90.48
A53: 38 | B53: 2013-10-15 | C53: 90.33 | D53: 91.46 | E53: 89.93 | F53: 89.93 | G53: 11024000 | H53: 89.31 | I53: 0.9931057489 | J53: 89.71 | K53: 90.83 | L53: 89.31 | M53: 89.31
A54: 39 | B54: 2013-10-14 | C54: 88.83 | D54: 89.89 | E54: 88.63 | F54: 89.8 | G54: 9198600 | H54: 89.18 | I54: 0.9930957684 | J54: 88.22 | K54: 89.27 | L54: 88.02 | M54: 89.18
A55: 40 | B55: 2013-10-11 | C55: 88.62 | D55: 89.48 | E55: 88.02 | F55: 89.45 | G55: 8449800 | H55: 88.83 | I55: 0.9930687535 | J55: 88.01 | K55: 88.86 | L55: 87.41 | M55: 88.83
A56: 41 | B56: 2013-10-10 | C56: 86.72 | D56: 87.78 | E56: 86.7 | F56: 87.78 | G56: 8647900 | H56: 87.17 | I56: 0.9930508088 | J56: 86.12 | K56: 87.17 | L56: 86.1 | M56: 87.17
A57: 42 | B57: 2013-10-09 | C57: 85.93 | D57: 86.23 | E57: 85.5 | F57: 85.96 | G57: 8014200 | H57: 85.36 | I57: 0.9930200093 | J57: 85.33 | K57: 85.63 | L57: 84.9 | M57: 85.36
A58: 43 | B58: 2013-10-08 | C58: 86.62 | D58: 86.74 | E58: 85.57 | F58: 85.61 | G58: 8669800 | H58: 85.02 | I58: 0.9931082817 | J58: 86.02 | K58: 86.14 | L58: 84.98 | M58: 85.02
A59: 44 | B59: 2013-10-07 | C59: 86.7 | D59: 86.98 | E59: 86.29 | F59: 86.59 | G59: 5705200 | H59: 85.99 | I59: 0.9930707934 | J59: 86.1 | K59: 86.38 | L59: 85.69 | M59: 85.99
A60: 45 | B60: 2013-10-04 | C60: 86.82 | D60: 87.42 | E60: 86.56 | F60: 87.31 | G60: 6050000 | H60: 86.7 | I60: 0.9930134005 | J60: 86.21 | K60: 86.81 | L60: 85.96 | M60: 86.7
A61: 46 | B61: 2013-10-03 | C61: 87.19 | D61: 87.4 | E61: 86.28 | F61: 86.58 | G61: 7724600 | H61: 85.98 | I61: 0.9930699931 | J61: 86.59 | K61: 86.79 | L61: 85.68 | M61: 85.98
A62: 47 | B62: 2013-10-02 | C62: 87.13 | D62: 87.29 | E62: 86.44 | F62: 87.29 | G62: 6383400 | H62: 86.68 | I62: 0.9930117997 | J62: 86.52 | K62: 86.68 | L62: 85.84 | M62: 86.68
A63: 48 | B63: 2013-10-01 | C63: 86.59 | D63: 87.49 | E63: 86.26 | F63: 87.47 | G63: 6318700 | H63: 86.86 | I63: 0.9930261804 | J63: 85.99 | K63: 86.88 | L63: 85.66 | M63: 86.86
A64: 49 | B64: 2013-09-30 | C64: 86.33 | D64: 86.95 | E64: 86.15 | F64: 86.69 | G64: 7962300 | H64: 86.09 | I64: 0.9930787865 | J64: 85.73 | K64: 86.35 | L64: 85.55 | M64: 86.09
A65: 50 | B65: 2013-09-27 | C65: 86.81 | D65: 86.94 | E65: 86.44 | F65: 86.73 | G65: 5461100 | H65: 86.13 | I65: 0.9930819786 | J65: 86.21 | K65: 86.34 | L65: 85.84 | M65: 86.13
A66: 51 | B66: 2013-09-26 | C66: 87.28 | D66: 87.7 | E66: 86.72 | F66: 87.07 | G66: 6400600 | H66: 86.47 | I66: 0.9931089928 | J66: 86.68 | K66: 87.1 | L66: 86.12 | M66: 86.47
A67: 52 | B67: 2013-09-25 | C67: 88.42 | D67: 88.47 | E67: 87.07 | F67: 87.08 | G67: 7493200 | H67: 86.48 | I67: 0.9931097841 | J67: 87.81 | K67: 87.86 | L67: 86.47 | M67: 86.48
A68: 53 | B68: 2013-09-24 | C68: 89.02 | D68: 89.2 | E68: 88.15 | F68: 88.22 | G68: 7797500 | H68: 87.61 | I68: 0.9930854681 | J68: 88.4 | K68: 88.58 | L68: 87.54 | M68: 87.61
A69: 54 | B69: 2013-09-23 | C69: 89.43 | D69: 89.75 | E69: 88.81 | F69: 89.09 | G69: 7376200 | H69: 88.47 | I69: 0.9930407453 | J69: 88.81 | K69: 89.13 | L69: 88.19 | M69: 88.47
A70: 55 | B70: 2013-09-20 | C70: 90.2 | D70: 90.72 | E70: 89.68 | F70: 89.68 | G70: 14708600 | H70: 89.06 | I70: 0.9930865299 | J70: 89.58 | K70: 90.09 | L70: 89.06 | M70: 89.06
A71: 56 | B71: 2013-09-19 | C71: 90.05 | D71: 90.2 | E71: 89.79 | F71: 90.07 | G71: 6721000 | H71: 89.45 | I71: 0.993116465 | J71: 89.43 | K71: 89.58 | L71: 89.17 | M71: 89.45
A72: 57 | B72: 2013-09-18 | C72: 88.91 | D72: 89.91 | E72: 88.3 | F72: 89.91 | G72: 10115500 | H72: 89.29 | I72: 0.9931042153 | J72: 88.3 | K72: 89.29 | L72: 87.69 | M72: 89.29
A73: 58 | B73: 2013-09-17 | C73: 89.05 | D73: 89.22 | E73: 88.58 | F73: 89.06 | G73: 6291100 | H73: 88.44 | I73: 0.9930384011 | J73: 88.43 | K73: 88.6 | L73: 87.96 | M73: 88.44
A74: 59 | B74: 2013-09-16 | C74: 89.43 | D74: 89.57 | E74: 88.83 | F74: 89.03 | G74: 7563700 | H74: 88.41 | I74: 0.9930360553 | J74: 88.81 | K74: 88.95 | L74: 88.21 | M74: 88.41
A75: 60 | B75: 2013-09-13 | C75: 89.13 | D75: 89.25 | E75: 88.2 | F75: 88.57 | G75: 7738600 | H75: 87.96 | I75: 0.9931127921 | J75: 88.52 | K75: 88.64 | L75: 87.59 | M75: 87.96
A76: 61 | B76: 2013-09-12 | C76: 89.3 | D76: 89.57 | E76: 88.88 | F76: 89.01 | G76: 7938500 | H76: 88.39 | I76: 0.9930344905 | J76: 88.68 | K76: 88.95 | L76: 88.26 | M76: 88.39
A77: 62 | B77: 2013-09-11 | C77: 88.63 | D77: 89.27 | E77: 88.14 | F77: 89.23 | G77: 8098100 | H77: 88.61 | I77: 0.9930516642 | J77: 88.01 | K77: 88.65 | L77: 87.53 | M77: 88.61
A78: 63 | B78: 2013-09-10 | C78: 88.14 | D78: 88.58 | E78: 87.85 | F78: 88.53 | G78: 8658700 | H78: 87.92 | I78: 0.9931096803 | J78: 87.53 | K78: 87.97 | L78: 87.24 | M78: 87.92
A79: 64 | B79: 2013-09-09 | C79: 87.39 | D79: 87.6 | E79: 87.01 | F79: 87.56 | G79: 6819700 | H79: 86.95 | I79: 0.9930333486 | J79: 86.78 | K79: 86.99 | L79: 86.4 | M79: 86.95
A80: 65 | B80: 2013-09-06 | C80: 87.22 | D80: 87.92 | E80: 86 | F80: 87.16 | G80: 10034900 | H80: 86.56 | I80: 0.9931161083 | J80: 86.62 | K80: 87.31 | L80: 85.41 | M80: 86.56
A81: 66 | B81: 2013-09-05 | C81: 87 | D81: 87.17 | E81: 86.62 | F81: 87.04 | G81: 5647900 | H81: 86.44 | I81: =H81/F81 -> 0.9931066176 | J81: =ROUND($I81*C81,2) -> 86.4 | K81: =ROUND($I81*D81,2) -> 86.57 | L81: =ROUND($I81*E81,2) -> 86.02 | M81: =ROUND($I81*F81,2) -> 86.44
A82: 67 | B82: 2013-09-04 | C82: 86.46 | D82: 87.25 | E82: 86.25 | F82: 86.9 | G82: 8458800 | H82: 86.3 | I82: 0.9930955121 | J82: 85.86 | K82: 86.65 | L82: 85.65 | M82: 86.3
A83: 68 | B83: 2013-09-03 | C83: 86.89 | D83: 87.3 | E83: 86.03 | F83: 86.42 | G83: 7590500 | H83: 85.82 | I83: 0.9930571627 | J83: 86.29 | K83: 86.69 | L83: 85.43 | M83: 85.82
A84: 69 | B84: 2013-08-30 | C84: 86.78 | D84: 86.78 | E84: 85.85 | F84: 86.41 | G84: 7471300 | H84: 85.81 | I84: 0.9930563592 | J84: 86.18 | K84: 86.18 | L84: 85.25 | M84: 85.81
A85: 70 | B85: 2013-08-29 | C85: 86.41 | D85: 87.14 | E85: 85.99 | F85: 86.57 | G85: 5768800 | H85: 85.97 | I85: 0.9930691926 | J85: 85.81 | K85: 86.54 | L85: 85.39 | M85: 85.97
A86: 71 | B86: 2013-08-28 | C86: 86.36 | D86: 86.91 | E86: 85.88 | F86: 86.53 | G86: 8829200 | H86: 85.93 | I86: 0.9930659887 | J86: 85.76 | K86: 86.31 | L86: 85.28 | M86: 85.93
A87: 72 | B87: 2013-08-27 | C87: 86.97 | D87: 87.08 | E87: 85.96 | F87: 86.17 | G87: 9941200 | H87: 85.57 | I87: 0.9930370198 | J87: 86.36 | K87: 86.47 | L87: 85.36 | M87: 85.57
A88: 73 | B88: 2013-08-26 | C88: 88.36 | D88: 88.48 | E88: 87.39 | F88: 87.53 | G88: 6724500 | H88: 86.92 | I88: 0.9930309608 | J88: 87.74 | K88: 87.86 | L88: 86.78 | M88: 86.92
A89: 74 | B89: 2013-08-23 | C89: 87.93 | D89: 88.44 | E89: 87.21 | F89: 88.41 | G89: 7714900 | H89: 87.8 | I89: 0.993100328 | J89: 87.32 | K89: 87.83 | L89: 86.61 | M89: 87.8
A90: 75 | B90: 2013-08-22 | C90: 88.76 | D90: 89.03 | E90: 88.12 | F90: 88.26 | G90: 7191900 | H90: 86.99 | I90: 0.9856106957 | J90: 87.48 | K90: 87.75 | L90: 86.85 | M90: 86.99
A91: 76 | B91: 2013-08-21 | C91: 89.47 | D91: 89.63 | E91: 88.68 | F91: 88.8 | G91: 7940700 | H91: 87.52 | I91: 0.9855855856 | J91: 88.18 | K91: 88.34 | L91: 87.4 | M91: 87.52
A92: 77 | B92: 2013-08-20 | C92: 90.55 | D92: 91.65 | E92: 89.73 | F92: 89.73 | G92: 8559200 | H92: 88.44 | I92: 0.9856235373 | J92: 89.25 | K92: 90.33 | L92: 88.44 | M92: 88.44
A93: 78 | B93: 2013-08-19 | C93: 89.47 | D93: 91.25 | E93: 89.35 | F93: 90.45 | G93: 8687000 | H93: 89.15 | I93: 0.9856274185 | J93: 88.18 | K93: 89.94 | L93: 88.07 | M93: 89.15
A94: 79 | B94: 2013-08-16 | C94: 89.13 | D94: 89.8 | E94: 88.77 | F94: 89.37 | G94: 14100700 | H94: 88.09 | I94: 0.9856775204 | J94: 87.85 | K94: 88.51 | L94: 87.5 | M94: 88.09
A95: 80 | B95: 2013-08-15 | C95: 90.32 | D95: 90.41 | E95: 89.09 | F95: 89.55 | G95: 12010700 | H95: 88.26 | I95: 0.9855946399 | J95: 89.02 | K95: 89.11 | L95: 87.81 | M95: 88.26
A96: 81 | B96: 2013-08-14 | C96: 92.79 | D96: 92.95 | E96: 90.51 | F96: 90.7 | G96: 12716800 | H96: 89.4 | I96: 0.9856670342 | J96: 91.46 | K96: 91.62 | L96: 89.21 | M96: 89.4
A97: 82 | B97: 2013-08-13 | C97: 91.89 | D97: 93.35 | E97: 91.76 | F97: 93.01 | G97: 10099800 | H97: 91.67 | I97: 0.985592947 | J97: 90.57 | K97: 92.01 | L97: 90.44 | M97: 91.67
A98: 83 | B98: 2013-08-12 | C98: 92.08 | D98: 92.77 | E98: 91.75 | F98: 92 | G98: 11012300 | H98: 90.68 | I98: 0.9856521739 | J98: 90.76 | K98: 91.44 | L98: 90.43 | M98: 90.68
A99: 84 | B99: 2013-08-09 | C99: 93.39 | D99: 93.39 | E99: 91.78 | F99: 92.36 | G99: 12135800 | H99: 91.03 | I99: 0.9855998268 | J99: 92.05 | K99: 92.05 | L99: 90.46 | M99: 91.03
A100: 85 | B100: 2013-08-08 | C100: 94.27 | D100: 94.37 | E100: 92.71 | F100: 93.34 | G100: 11090000 | H100: 92 | I100: 0.9856438826 | J100: 92.92 | K100: 93.02 | L100: 91.38 | M100: 92
A101: 86 | B101: 2013-08-07 | C101: 93.6 | D101: 94.03 | E101: 93.47 | F101: 93.66 | G101: 9056900 | H101: 92.32 | I101: 0.9856929319 | J101: 92.26 | K101: 92.68 | L101: 92.13 | M101: 92.32
A102: 87 | B102: 2013-08-06 | C102: 93.88 | D102: 93.94 | E102: 93.5 | F102: 93.81 | G102: 6415000 | H102: 92.46 | I102: 0.9856092101 | J102: 92.53 | K102: 92.59 | L102: 92.15 | M102: 92.46
A103: 88 | B103: 2013-08-05 | C103: 94.05 | D103: 94.3 | E103: 93.43 | F103: 93.8 | G103: 7192400 | H103: 92.45 | I103: 0.9856076759 | J103: 92.7 | K103: 92.94 | L103: 92.09 | M103: 92.45
A104: 89 | B104: 2013-08-02 | C104: 93.56 | D104: 94.39 | E104: 93.45 | F104: 94.39 | G104: 8503100 | H104: 93.03 | I104: 0.985591694 | J104: 92.21 | K104: 93.03 | L104: 92.1 | M104: 93.03
A105: 90 | B105: 2013-08-01 | C105: 94.16 | D105: 94.4 | E105: 93.7 | F105: 93.77 | G105: 11098600 | H105: 92.42 | I105: 0.9856030713 | J105: 92.8 | K105: 93.04 | L105: 92.35 | M105: 92.42
A106: 91 | B106: 2013-07-31 | C106: 93.23 | D106: 94.42 | E106: 93.19 | F106: 93.5 | G106: 11365700 | H106: 92.16 | I106: 0.9856684492 | J106: 91.89 | K106: 93.07 | L106: 91.85 | M106: 92.16
A107: 92 | B107: 2013-07-30 | C107: 93.47 | D107: 93.97 | E107: 93.02 | F107: 93.17 | G107: 8863000 | H107: 91.83 | I107: 0.9856176881 | J107: 92.13 | K107: 92.62 | L107: 91.68 | M107: 91.83
A108: 93 | B108: 2013-07-29 | C108: 92.63 | D108: 93.39 | E108: 92.61 | F108: 93.21 | G108: 7925000 | H108: 91.87 | I108: 0.9856238601 | J108: 91.3 | K108: 92.05 | L108: 91.28 | M108: 91.87
A109: 94 | B109: 2013-07-26 | C109: 92.32 | D109: 92.93 | E109: 91.65 | F109: 92.83 | G109: 8663700 | H109: 91.5 | I109: 0.9856727351 | J109: 91 | K109: 91.6 | L109: 90.34 | M109: 91.5
A110: 95 | B110: 2013-07-25 | C110: 92 | D110: 92.75 | E110: 91.75 | F110: 92.57 | G110: 7368000 | H110: 91.24 | I110: 0.9856324943 | J110: 90.68 | K110: 91.42 | L110: 90.43 | M110: 91.24
A111: 96 | B111: 2013-07-24 | C111: 92.65 | D111: 92.66 | E111: 91.75 | F111: 92.36 | G111: 6846300 | H111: 91.03 | I111: 0.9855998268 | J111: 91.32 | K111: 91.33 | L111: 90.43 | M111: 91.03
A112: 97 | B112: 2013-07-23 | C112: 92.39 | D112: 92.86 | E112: 92.11 | F112: 92.42 | G112: 8467700 | H112: 91.09 | I112: 0.9856091755 | J112: 91.06 | K112: 91.52 | L112: 90.78 | M112: 91.09
A113: 98 | B113: 2013-07-22 | C113: 92.08 | D113: 92.56 | E113: 91.61 | F113: 92.28 | G113: 9916200 | H113: 90.95 | I113: 0.9855873429 | J113: 90.75 | K113: 91.23 | L113: 90.29 | M113: 90.95
A114: 99 | B114: 2013-07-19 | C114: 90.24 | D114: 92.27 | E114: 90.05 | F114: 92.23 | G114: 12506300 | H114: 90.91 | I114: 0.985687954 | J114: 88.95 | K114: 90.95 | L114: 88.76 | M114: 90.91
A115: 100 | B115: 2013-07-18 | C115: 90.33 | D115: 90.95 | E115: 90.06 | F115: 90.17 | G115: 8329300 | H115: 88.88 | I115: 0.9856936897 | J115: 89.04 | K115: 89.65 | L115: 88.77 | M115: 88.88
A116: 101 | B116: 2013-07-17 | C116: 90.58 | D116: 90.97 | E116: 89.88 | F116: 90.13 | G116: 12832200 | H116: 88.84 | I116: 0.9856873405 | J116: 89.28 | K116: 89.67 | L116: 88.59 | M116: 88.84
A117: 102 | B117: 2013-07-16 | C117: 91.04 | D117: 91.66 | E117: 90.13 | F117: 90.4 | G117: 11409200 | H117: 89.1 | I117: 0.985619469 | J117: 89.73 | K117: 90.34 | L117: 88.83 | M117: 89.1
A118: 103 | B118: 2013-07-15 | C118: 89.91 | D118: 90.81 | E118: 89.76 | F118: 90.4 | G118: 13343200 | H118: 89.1 | I118: 0.985619469 | J118: 88.62 | K118: 89.5 | L118: 88.47 | M118: 89.1
A119: 104 | B119: 2013-07-12 | C119: 89.69 | D119: 89.99 | E119: 89.38 | F119: 89.99 | G119: 7590600 | H119: 88.7 | I119: 0.9856650739 | J119: 88.4 | K119: 88.7 | L119: 88.1 | M119: 88.7
A120: 105 | B120: 2013-07-11 | C120: 89.81 | D120: 89.93 | E120: 89 | F120: 89.67 | G120: 8941300 | H120: 88.38 | I120: 0.9856139177 | J120: 88.52 | K120: 88.64 | L120: 87.72 | M120: 88.38
A121: 106 | B121: 2013-07-10 | C121: 88.88 | D121: 89.48 | E121: 88.81 | F121: 89.24 | G121: 7067100 | H121: 87.96 | I121: 0.9856566562 | J121: 87.61 | K121: 88.2 | L121: 87.54 | M121: 87.96
A122: 107 | B122: 2013-07-09 | C122: 88.65 | D122: 89.08 | E122: 88.36 | F122: 88.88 | G122: 9348600 | H122: 87.6 | I122: 0.9855985599 | J122: 87.37 | K122: 87.8 | L122: 87.09 | M122: 87.6
A123: 108 | B123: 2013-07-08 | C123: 88.09 | D123: 88.99 | E123: 87.97 | F123: 88.59 | G123: 12051400 | H123: 87.32 | I123: 0.9856642962 | J123: 86.83 | K123: 87.71 | L123: 86.71 | M123: 87.32
A124: 109 | B124: 2013-07-05 | C124: 87.58 | D124: 87.88 | E124: 86.92 | F124: 87.87 | G124: 5403600 | H124: 86.61 | I124: 0.985660635 | J124: 86.32 | K124: 86.62 | L124: 85.67 | M124: 86.61
A125: 110 | B125: 2013-07-03 | C125: 86.54 | D125: 87.04 | E125: 86.1 | F125: 86.78 | G125: 3599900 | H125: 85.53 | I125: 0.9855957594 | J125: 85.29 | K125: 85.79 | L125: 84.86 | M125: 85.53
A126: 111 | B126: 2013-07-02 | C126: 86.65 | D126: 87.2 | E126: 86.21 | F126: 86.57 | G126: 8572100 | H126: 85.33 | I126: 0.9856763313 | J126: 85.41 | K126: 85.95 | L126: 84.98 | M126: 85.33
A127: 112 | B127: 2013-07-01 | C127: 85.72 | D127: 87.64 | E127: 85.5 | F127: 86.63 | G127: 9905200 | H127: 85.39 | I127: 0.9856862519 | J127: 84.49 | K127: 86.39 | L127: 84.28 | M127: 85.39
A128: 113 | B128: 2013-06-28 | C128: 86.72 | D128: 87.38 | E128: 85.85 | F128: 85.86 | G128: 11896300 | H128: 84.63 | I128: 0.9856743536 | J128: 85.48 | K128: 86.13 | L128: 84.62 | M128: 84.63
A129: 114 | B129: 2013-06-27 | C129: 87.53 | D129: 87.82 | E129: 86.49 | F129: 86.71 | G129: 8890300 | H129: 85.46 | I129: 0.985584131 | J129: 86.27 | K129: 86.55 | L129: 85.24 | M129: 85.46
A130: 115 | B130: 2013-06-26 | C130: 85.95 | D130: 87.32 | E130: 85.94 | F130: 86.99 | G130: 11966500 | H130: 85.74 | I130: 0.9856305322 | J130: 84.71 | K130: 86.07 | L130: 84.71 | M130: 85.74
A131: 116 | B131: 2013-06-25 | C131: 85.16 | D131: 85.59 | E131: 84.54 | F131: 85.35 | G131: 11239400 | H131: 84.12 | I131: 0.9855887522 | J131: 83.93 | K131: 84.36 | L131: 83.32 | M131: 84.12
A132: 117 | B132: 2013-06-24 | C132: 82.92 | D132: 85.31 | E132: 82.81 | F132: 84.61 | G132: 14777500 | H132: 83.4 | I132: 0.9856990899 | J132: 81.73 | K132: 84.09 | L132: 81.63 | M132: 83.4
A133: 118 | B133: 2013-06-21 | C133: 83 | D133: 84.32 | E133: 82.5 | F133: 83.2 | G133: 20715800 | H133: 82.01 | I133: 0.9856971154 | J133: 81.81 | K133: 83.11 | L133: 81.32 | M133: 82.01
A134: 119 | B134: 2013-06-20 | C134: 84.21 | D134: 84.45 | E134: 82.12 | F134: 82.62 | G134: 15172600 | H134: 81.43 | I134: 0.9855967078 | J134: 83 | K134: 83.23 | L134: 80.94 | M134: 81.43
A135: 120 | B135: 2013-06-19 | C135: 86.43 | D135: 86.5 | E135: 84.8 | F135: 84.86 | G135: 8288400 | H135: 83.64 | I135: 0.9856233797 | J135: 85.19 | K135: 85.26 | L135: 83.58 | M135: 83.64
A136: 121 | B136: 2013-06-18 | C136: 85.75 | D136: 86.44 | E136: 85.63 | F136: 86.36 | G136: 7233600 | H136: 85.12 | I136: 0.9856415007 | J136: 84.52 | K136: 85.2 | L136: 84.4 | M136: 85.12
A137: 122 | B137: 2013-06-17 | C137: 85.37 | D137: 86.4 | E137: 84.98 | F137: 85.63 | G137: 8429100 | H137: 84.4 | I137: 0.9856358753 | J137: 84.14 | K137: 85.16 | L137: 83.76 | M137: 84.4
A138: 123 | B138: 2013-06-14 | C138: 84.71 | D138: 85.48 | E138: 84.66 | F138: 84.91 | G138: 6357100 | H138: 83.69 | I138: 0.9856318455 | J138: 83.49 | K138: 84.25 | L138: 83.44 | M138: 83.69
A139: 124 | B139: 2013-06-13 | C139: 83.6 | D139: 84.96 | E139: 83.08 | F139: 84.91 | G139: 8570000 | H139: 83.69 | I139: 0.9856318455 | J139: 82.4 | K139: 83.74 | L139: 81.89 | M139: 83.69
A140: 125 | B140: 2013-06-12 | C140: 85.18 | D140: 85.5 | E140: 83.7 | F140: 83.74 | G140: 8413200 | H140: 82.54 | I140: 0.9856699307 | J140: 83.96 | K140: 84.27 | L140: 82.5 | M140: 82.54
A141: 126 | B141: 2013-06-11 | C141: 84.76 | D141: 85.02 | E141: 84.13 | F141: 84.69 | G141: 8967000 | H141: 83.47 | I141: 0.9855945212 | J141: 83.54 | K141: 83.8 | L141: 82.92 | M141: 83.47
A142: 127 | B142: 2013-06-10 | C142: 85.01 | D142: 85.71 | E142: 84.73 | F142: 85.14 | G142: 8477100 | H142: 83.92 | I142: 0.9856706601 | J142: 83.79 | K142: 84.48 | L142: 83.52 | M142: 83.92
A143: 128 | B143: 2013-06-07 | C143: 84.96 | D143: 85.18 | E143: 84.4 | F143: 84.91 | G143: 8907700 | H143: 83.69 | I143: 0.9856318455 | J143: 83.74 | K143: 83.96 | L143: 83.19 | M143: 83.69
A144: 129 | B144: 2013-06-06 | C144: 83.59 | D144: 84.46 | E144: 82.65 | F144: 84.46 | G144: 10671000 | H144: 83.25 | I144: 0.9856736917 | J144: 82.39 | K144: 83.25 | L144: 81.47 | M144: 83.25
A145: 130 | B145: 2013-06-05 | C145: 83.91 | D145: 85 | E145: 83.48 | F145: 83.68 | G145: 9839100 | H145: 82.48 | I145: =H145/F145 -> 0.9856596558 | J145: =ROUND($I145*C145,2) -> 82.71 | K145: =ROUND($I145*D145,2) -> 83.78 | L145: =ROUND($I145*E145,2) -> 82.28 | M145: =ROUND($I145*F145,2) -> 82.48
A146: 131 | B146: 2013-06-04 | C146: 84.72 | D146: 85.03 | E146: 83.56 | F146: 84.1 | G146: 9972000 | H146: 82.89 | I146: 0.9856123662 | J146: 83.5 | K146: 83.81 | L146: 82.36 | M146: 82.89
A147: 132 | B147: 2013-06-03 | C147: 84.28 | D147: 84.71 | E147: 83.37 | F147: 84.71 | G147: 11768500 | H147: 83.49 | I147: 0.9855979223 | J147: 83.07 | K147: 83.49 | L147: 82.17 | M147: 83.49
A148: 133 | B148: 2013-05-31 | C148: 85.68 | D148: 85.99 | E148: 84.18 | F148: 84.18 | G148: 13302700 | H148: 82.97 | I148: 0.9856260394 | J148: 84.45 | K148: 84.75 | L148: 82.97 | M148: 82.97
A149: 134 | B149: 2013-05-30 | C149: 85.71 | D149: 86.31 | E149: 85.68 | F149: 85.99 | G149: 7801200 | H149: 84.76 | I149: 0.9856960112 | J149: 84.48 | K149: 85.08 | L149: 84.45 | M149: 84.76
A150: 135 | B150: 2013-05-29 | C150: 87.08 | D150: 87.16 | E150: 85.14 | F150: 85.65 | G150: 11872100 | H150: 84.42 | I150: 0.9856392294 | J150: 85.83 | K150: 85.91 | L150: 83.92 | M150: 84.42
A151: 136 | B151: 2013-05-28 | C151: 87.54 | D151: 88.29 | E151: 87.27 | F151: 87.61 | G151: 8380200 | H151: 86.35 | I151: 0.9856180801 | J151: 86.28 | K151: 87.02 | L151: 86.01 | M151: 86.35
A152: 137 | B152: 2013-05-24 | C152: 86.8 | D152: 87.03 | E152: 86.49 | F152: 86.82 | G152: 10390100 | H152: 85.57 | I152: 0.9856023958 | J152: 85.55 | K152: 85.78 | L152: 85.24 | M152: 85.57
A153: 138 | B153: 2013-05-23 | C153: 87.11 | D153: 87.97 | E153: 87 | F153: 87.21 | G153: 14446900 | H153: 85.96 | I153: 0.9856667813 | J153: 85.86 | K153: 86.71 | L153: 85.75 | M153: 85.96
A154: 139 | B154: 2013-05-22 | C154: 88.7 | D154: 89.99 | E154: 88.2 | F154: 88.46 | G154: 13825900 | H154: 86.54 | I154: 0.9782952747 | J154: 86.77 | K154: 88.04 | L154: 86.29 | M154: 86.54
A155: 140 | B155: 2013-05-21 | C155: 87.94 | D155: 88.64 | E155: 87.79 | F155: 88.59 | G155: 10099600 | H155: 86.67 | I155: 0.978327125 | J155: 86.03 | K155: 86.72 | L155: 85.89 | M155: 86.67
A156: 141 | B156: 2013-05-20 | C156: 88.1 | D156: 88.2 | E156: 87.81 | F156: 88.01 | G156: 7235800 | H156: 86.1 | I156: 0.9782979207 | J156: 86.19 | K156: 86.29 | L156: 85.9 | M156: 86.1
A157: 142 | B157: 2013-05-17 | C157: 87.47 | D157: 88.2 | E157: 87.41 | F157: 88.09 | G157: 11437700 | H157: 86.18 | I157: 0.9783176297 | J157: 85.57 | K157: 86.29 | L157: 85.51 | M157: 86.18
A158: 143 | B158: 2013-05-16 | C158: 87.33 | D158: 87.77 | E158: 87.06 | F158: 87.45 | G158: 9441900 | H158: 85.55 | I158: 0.978273299 | J158: 85.43 | K158: 85.86 | L158: 85.17 | M158: 85.55
A159: 144 | B159: 2013-05-15 | C159: 86.94 | D159: 87.88 | E159: 86.94 | F159: 87.64 | G159: 13444400 | H159: 85.74 | I159: 0.9783204016 | J159: 85.06 | K159: 85.97 | L159: 85.06 | M159: 85.74
A160: 145 | B160: 2013-05-14 | C160: 85.76 | D160: 87.08 | E160: 85.76 | F160: 86.97 | G160: 10360700 | H160: 85.08 | I160: 0.9782683684 | J160: 83.9 | K160: 85.19 | L160: 83.9 | M160: 85.08
A161: 146 | B161: 2013-05-13 | C161: 85.56 | D161: 86.07 | E161: 85.44 | F161: 85.85 | G161: 6631500 | H161: 83.99 | I161: 0.978334304 | J161: 83.71 | K161: 84.21 | L161: 83.59 | M161: 83.99
A162: 147 | B162: 2013-05-10 | C162: 85.29 | D162: 85.76 | E162: 85.18 | F162: 85.76 | G162: 7594800 | H162: 83.9 | I162: 0.9783115672 | J162: 83.44 | K162: 83.9 | L162: 83.33 | M162: 83.9
A163: 148 | B163: 2013-05-09 | C163: 85.45 | D163: 85.69 | E163: 84.96 | F163: 85.15 | G163: 8342000 | H163: 83.3 | I163: 0.9782736348 | J163: 83.59 | K163: 83.83 | L163: 83.11 | M163: 83.3
A164: 149 | B164: 2013-05-08 | C164: 85.48 | D164: 85.6 | E164: 84.93 | F164: 85.46 | G164: 8044600 | H164: 83.6 | I164: 0.9782354318 | J164: 83.62 | K164: 83.74 | L164: 83.08 | M164: 83.6
A165: 150 | B165: 2013-05-07 | C165: 84.87 | D165: 85.57 | E165: 84.63 | F165: 85.53 | G165: 9061800 | H165: 83.67 | I165: 0.9782532445 | J165: 83.02 | K165: 83.71 | L165: 82.79 | M165: 83.67
A166: 151 | B166: 2013-05-06 | C166: 85.78 | D166: 85.78 | E166: 84.55 | F166: 84.68 | G166: 8815600 | H166: 82.84 | I166: 0.9782711384 | J166: 83.92 | K166: 83.92 | L166: 82.71 | M166: 82.84
A167: 152 | B167: 2013-05-03 | C167: 85.58 | D167: 85.99 | E167: 85.45 | F167: 85.75 | G167: 9213800 | H167: 83.89 | I167: 0.9783090379 | J167: 83.72 | K167: 84.12 | L167: 83.6 | M167: 83.89
A168: 153 | B168: 2013-05-02 | C168: 84.44 | D168: 85.21 | E168: 84.17 | F168: 85.16 | G168: 8668900 | H168: 83.31 | I168: 0.978276186 | J168: 82.61 | K168: 83.36 | L168: 82.34 | M168: 83.31
A169: 154 | B169: 2013-05-01 | C169: 84.5 | D169: 85.13 | E169: 83.88 | F169: 84.23 | G169: 12312100 | H169: 82.4 | I169: 0.9782737742 | J169: 82.66 | K169: 83.28 | L169: 82.06 | M169: 82.4
A170: 155 | B170: 2013-04-30 | C170: 85.39 | D170: 85.7 | E170: 84.89 | F170: 85.23 | G170: 12099600 | H170: 83.38 | I170: 0.9782940279 | J170: 83.54 | K170: 83.84 | L170: 83.05 | M170: 83.38
A171: 156 | B171: 2013-04-29 | C171: 85.02 | D171: 85.89 | E171: 84.91 | F171: 85.58 | G171: 8038000 | H171: 83.72 | I171: 0.97826595 | J171: 83.17 | K171: 84.02 | L171: 83.06 | M171: 83.72
A172: 157 | B172: 2013-04-26 | C172: 85.3 | D172: 85.49 | E172: 84.81 | F172: 85.12 | G172: 6784700 | H172: 83.27 | I172: 0.9782659774 | J172: 83.45 | K172: 83.63 | L172: 82.97 | M172: 83.27
A173: 158 | B173: 2013-04-25 | C173: 84.54 | D173: 85.44 | E173: 84.34 | F173: 85.22 | G173: 8689400 | H173: 83.37 | I173: 0.9782914809 | J173: 82.7 | K173: 83.59 | L173: 82.51 | M173: 83.37
A174: 159 | B174: 2013-04-24 | C174: 85.68 | D174: 85.74 | E174: 84.28 | F174: 84.39 | G174: 9480600 | H174: 82.56 | I174: 0.9783149662 | J174: 83.82 | K174: 83.88 | L174: 82.45 | M174: 82.56
A175: 160 | B175: 2013-04-23 | C175: 84.99 | D175: 85.68 | E175: 84 | F175: 85.45 | G175: 8982100 | H175: 83.59 | I175: 0.9782328847 | J175: 83.14 | K175: 83.81 | L175: 82.17 | M175: 83.59
A176: 161 | B176: 2013-04-22 | C176: 84.59 | D176: 84.93 | E176: 84.2 | F176: 84.83 | G176: 6989900 | H176: 82.99 | I176: 0.9783095603 | J176: 82.76 | K176: 83.09 | L176: 82.37 | M176: 82.99
A177: 162 | B177: 2013-04-19 | C177: 83.51 | D177: 84.57 | E177: 83.47 | F177: 84.49 | G177: 10787600 | H177: 82.66 | I177: 0.978340632 | J177: 81.7 | K177: 82.74 | L177: 81.66 | M177: 82.66
A178: 163 | B178: 2013-04-18 | C178: 83.96 | D178: 84.3 | E178: 83.03 | F178: 83.18 | G178: 9921500 | H178: 81.37 | I178: 0.9782399615 | J178: 82.13 | K178: 82.47 | L178: 81.22 | M178: 81.37
A179: 164 | B179: 2013-04-17 | C179: 83.36 | D179: 84.43 | E179: 83.29 | F179: 83.9 | G179: 13693300 | H179: 82.08 | I179: 0.9783075089 | J179: 81.55 | K179: 82.6 | L179: 81.48 | M179: 82.08
A180: 165 | B180: 2013-04-16 | C180: 82.33 | D180: 83.54 | E180: 82.07 | F180: 83.44 | G180: 12620000 | H180: 81.63 | I180: 0.9783077661 | J180: 80.54 | K180: 81.73 | L180: 80.29 | M180: 81.63
A181: 166 | B181: 2013-04-15 | C181: 82.72 | D181: 83.09 | E181: 81.71 | F181: 81.71 | G181: 12385800 | H181: 79.94 | I181: 0.9783380247 | J181: 80.93 | K181: 81.29 | L181: 79.94 | M181: 79.94
A182: 167 | B182: 2013-04-12 | C182: 82.25 | D182: 82.74 | E182: 82.17 | F182: 82.74 | G182: 6987000 | H182: 80.94 | I182: 0.9782451051 | J182: 80.46 | K182: 80.94 | L182: 80.38 | M182: 80.94
A183: 168 | B183: 2013-04-11 | C183: 82.14 | D183: 82.96 | E183: 82.08 | F183: 82.32 | G183: 9882700 | H183: 80.53 | I183: 0.9782555879 | J183: 80.35 | K183: 81.16 | L183: 80.3 | M183: 80.53
A184: 169 | B184: 2013-04-10 | C184: 81.83 | D184: 82.2 | E184: 81.74 | F184: 82.02 | G184: 7583200 | H184: 80.24 | I184: 0.9782979761 | J184: 80.05 | K184: 80.42 | L184: 79.97 | M184: 80.24
A185: 170 | B185: 2013-04-09 | C185: 81.26 | D185: 81.75 | E185: 81.24 | F185: 81.52 | G185: 9111000 | H185: 79.75 | I185: 0.9782875368 | J185: 79.5 | K185: 79.98 | L185: 79.48 | M185: 79.75
A186: 171 | B186: 2013-04-08 | C186: 81.27 | D186: 81.39 | E186: 80.31 | F186: 81.11 | G186: 15828500 | H186: 79.35 | I186: 0.9783010726 | J186: 79.51 | K186: 79.62 | L186: 78.57 | M186: 79.35
A187: 172 | B187: 2013-04-05 | C187: 81.79 | D187: 82.11 | E187: 81.62 | F187: 82.04 | G187: 8581400 | H187: 80.26 | I187: 0.9783032667 | J187: 80.02 | K187: 80.33 | L187: 79.85 | M187: 80.26
A188: 173 | B188: 2013-04-04 | C188: 82.2 | D188: 82.72 | E188: 81.93 | F188: 82.41 | G188: 10303000 | H188: 80.62 | I188: 0.978279335 | J188: 80.41 | K188: 80.92 | L188: 80.15 | M188: 80.62
A189: 174 | B189: 2013-04-03 | C189: 82.74 | D189: 82.95 | E189: 81.57 | F189: 82.07 | G189: 12254000 | H189: 80.29 | I189: 0.9783111978 | J189: 80.95 | K189: 81.15 | L189: 79.8 | M189: 80.29
A190: 175 | B190: 2013-04-02 | C190: 82 | D190: 82.69 | E190: 81.9 | F190: 82.69 | G190: 10342200 | H190: 80.89 | I190: 0.9782319507 | J190: 80.22 | K190: 80.89 | L190: 80.12 | M190: 80.89
A191: 176 | B191: 2013-04-01 | C191: 81.39 | D191: 81.96 | E191: 81.28 | F191: 81.93 | G191: 7376800 | H191: 80.15 | I191: 0.9782741365 | J191: 79.62 | K191: 80.18 | L191: 79.51 | M191: 80.15
A192: 177 | B192: 2013-03-28 | C192: 81.37 | D192: 81.59 | E192: 80.95 | F192: 81.53 | G192: 11332100 | H192: 79.76 | I192: 0.9782901999 | J192: 79.6 | K192: 79.82 | L192: 79.19 | M192: 79.76
A193: 178 | B193: 2013-03-27 | C193: 80.56 | D193: 81.35 | E193: 80.27 | F193: 81.27 | G193: 10703400 | H193: 79.51 | I193: 0.9783437923 | J193: 78.82 | K193: 79.59 | L193: 78.53 | M193: 79.51
A194: 179 | B194: 2013-03-26 | C194: 79.93 | D194: 80.88 | E194: 79.85 | F194: 80.85 | G194: 12682900 | H194: 79.09 | I194: 0.9782312925 | J194: 78.19 | K194: 79.12 | L194: 78.11 | M194: 79.09
A195: 180 | B195: 2013-03-25 | C195: 79.83 | D195: 79.94 | E195: 79.47 | F195: 79.68 | G195: 9616600 | H195: 77.95 | I195: 0.9782881526 | J195: 78.1 | K195: 78.2 | L195: 77.74 | M195: 77.95
A196: 181 | B196: 2013-03-22 | C196: 79.11 | D196: 79.74 | E196: 79.02 | F196: 79.74 | G196: 6873100 | H196: 78.01 | I196: 0.9783044896 | J196: 77.39 | K196: 78.01 | L196: 77.31 | M196: 78.01
A197: 182 | B197: 2013-03-21 | C197: 79.12 | D197: 79.5 | E197: 78.77 | F197: 79.01 | G197: 8436300 | H197: 77.29 | I197: 0.9782306037 | J197: 77.4 | K197: 77.77 | L197: 77.06 | M197: 77.29
A198: 183 | B198: 2013-03-20 | C198: 79.18 | D198: 79.61 | E198: 79.17 | F198: 79.45 | G198: 8000800 | H198: 77.72 | I198: 0.9782252989 | J198: 77.46 | K198: 77.88 | L198: 77.45 | M198: 77.72
A199: 184 | B199: 2013-03-19 | C199: 78.98 | D199: 79.09 | E199: 78.5 | F199: 78.86 | G199: 7095800 | H199: 77.15 | I199: 0.978316003 | J199: 77.27 | K199: 77.38 | L199: 76.8 | M199: 77.15
A200: 185 | B200: 2013-03-18 | C200: 78.72 | D200: 79.19 | E200: 78.7 | F200: 78.81 | G200: 8005400 | H200: 77.1 | I200: 0.9783022459 | J200: 77.01 | K200: 77.47 | L200: 76.99 | M200: 77.1
A201: 186 | B201: 2013-03-15 | C201: 78.62 | D201: 79.24 | E201: 78.62 | F201: 79.19 | G201: 18296500 | H201: 77.47 | I201: 0.9782800859 | J201: 76.91 | K201: 77.52 | L201: 76.91 | M201: 77.47
... 4859 more rows

Sheet CalculationsAndCharts
A1: Degree Of Complexity | X1: Long Positions Best Parm Combination
A2: =InputPriceData!A1 -> Johnson & Johnson (JNJ) -NYSE | S2: Chart Controls | V2: =MAX(X4:AB9) -> 23.64 | X2: Len1 Values
W3: =C20 -> 15.42 | X3: 20 | Y3: 25 | Z3: 30 | AA3: 35 | AB3: 40
A4: User Charting Controls | V4: Len2 Values | W4: 5 | X4: 14.18 | Y4: 16.48 | Z4: 16.2 | AA4: 15.47 | AB4: 16.78
A5: Data Control | W5: 10 | X5: 18.38 | Y5: 20.17 | Z5: 20.51 | AA5: 21.46 | AB5: 23.13
A6: =InputPriceData!$B$10 -> 5045 | B6: Available Input Data Rows | E6: Earliest: | F6: =OFFSET(InputPriceData!B15,CalculationsAndCharts!A6,0,1,1) -> 1993-11-26 | W6: 15 | X6: 11.18 | Y6: 15.42 | Z6: 16.08 | AA6: 17.29 | AB6: 19.03
B7: Use Close Adjusted: | C7: TRUE | E7: Latest: | F7: =OFFSET(InputPriceData!B15,1,0,1,1) -> 2013-12-06 | W7: 20 | X7: 11.22 | Y7: 15.64 | Z7: 16.3 | AA7: 15.75 | AB7: 17.49
A8: =MIN(A6-A11,COUNTA(B33:B9983)) -> 841 | B8: Logically Available for Calc / Plot | S8: Donchian | W8: 25 | X8: 14.37 | Y8: 17.86 | Z8: 19.42 | AA8: 19.21 | AB8: 21.82
S9: TRUE | W9: 30 | X9: 14.65 | Y9: 18.7 | Z9: 21.24 | AA9: 21.03 | AB9: 23.64
A10: Price Chart Windowing Controls | F10: Y-axis Range | S10: TRUE | X10: Short Positions Best Parm Combination
A11: 0 | B11: Input Data Offset (Pan) | E11: Max High+ | F11: =CEILING(MAX(OFFSET($E$33,0,0,$A$12,1))+2*F14,0.1) -> 100.4 | S11: TRUE | V11: =MAX(X13:AB18) -> -2.82 | X11: Len1 Values
A12: 800 | B12: Data Points to Plot (Zoom) | E12: Min Low- | F12: =FLOOR(MIN(OFFSET($F$33,0,0,$A$12,1))-2*F14,0.1) -> 47.9 | S12: TRUE | W12: =C21 -> -17.97 | X12: 20 | Y12: 25 | Z12: 30 | AA12: 35 | AB12: 40
B13: First: | C13: =OFFSET(B32,A12,0,1,1) -> 2010-10-05 | E13: White space %: | F13: 0.05 | V13: Len2 Values | W13: 5 | X13: -8.67 | Y13: -8.96 | Z13: -7.23 | AA13: -6.17 | AB13: -2.82
B14: ="Last: "&OFFSET(InputPriceData!N15,1+A11,0,1,1) -> Last: | C14: =B33 -> 2013-12-06 | E14: Allowance: | F14: =FLOOR((CEILING(MAX(OFFSET($E$33,0,0,$A$12,1)),1)-FLOOR(MIN(OFFSET($F$33,0,0,$A$12,1)),1))*F13,0.01) -> 2.2 | W14: 10 | X14: -13.5 | Y14: -13.38 | Z14: -13.71 | AA14: -12.33 | AB14: -7.03
A15: Donchian Controls: | C15: Min | D15: Max | E15: Step | W15: 15 | X15: -18.09 | Y15: -17.97 | Z15: -18.02 | AA15: -18.76 | AB15: -12.74
A16: Len1: | B16: 25 | C16: 20 | D16: 40 | E16: 5 | W16: 20 | X16: -21.54 | Y16: -20.08 | Z16: -20.02 | AA16: -20.64 | AB16: -14.34
A17: Len2: | B17: 15 | C17: 5 | D17: 30 | E17: 5 | W17: 25 | X17: -18.36 | Y17: -17.42 | Z17: -17.1 | AA17: -17.72 | AB17: -11.3
A18: ="Trading Results: "&A12&" bars." -> Trading Results: 800 bars. | D18: Please scroll to the right of the pricing chart to see a best fit model which uses the EXCEL Data Tables feature to automatically evaluate a set of Len1 and Len2 values. | W18: 30 | X18: -17.53 | Y18: -15.95 | Z18: -15.19 | AA18: -15.81 | AB18: -12.4
B19: Trades | C19: Results | X19: Overall Results Best Parameter Combination
A20: Long | B20: ='Transaction Summary'!B5 -> 15 | C20: ='Transaction Summary'!I8 -> 15.42 | V20: =MAX(X22:AB27) -> 16.1 | X20: Len1 Values
A21: Short | B21: ='Transaction Summary'!K5 -> 13 | C21: ='Transaction Summary'!R8 -> -17.97 | W21: =C22 -> -2.55 | X21: 20 | Y21: 25 | Z21: 30 | AA21: 35 | AB21: 40
A22: TOT: | B22: =B20+B21 -> 28 | C22: =C20+C21 -> -2.55 | V22: Len2 Values | W22: 5 | X22: 5.51 | Y22: 7.52 | Z22: 8.97 | AA22: 9.3 | AB22: 13.96
A23: Help! I would like to plot data | W23: 10 | X23: 4.88 | Y23: 6.79 | Z23: 6.8 | AA23: 9.13 | AB23: 16.1
A24: From | B24: 2012-09-24 | C24: =OFFSET(InputPriceData!$A$15,MATCH(B24,OFFSET(InputPriceData!B15,1,0,InputPriceData!$B$10,1),0),0,1,1)-C25 -> 251 | E24: 1 | W24: 15 | X24: -6.91 | Y24: -2.55 | Z24: -1.94 | AA24: -1.47 | AB24: 6.29
A25: To | B25: 2013-09-24 | C25: =OFFSET(InputPriceData!$A$15,MATCH(B25,OFFSET(InputPriceData!$B$15,1,0,InputPriceData!$B$10,1),0),0,1,1)-1 -> 52 | E25: =$A$12-$E$24+1 -> 800 | W25: 20 | X25: -10.32 | Y25: -4.44 | Z25: -3.72 | AA25: -4.89 | AB25: 3.15
W26: 25 | X26: -3.99 | Y26: 0.44 | Z26: 2.32 | AA26: 1.49 | AB26: 10.52
W27: 30 | X27: -2.88 | Y27: 2.75 | Z27: 6.05 | AA27: 5.22 | AB27: 11.24
H28: @ Scroll Bar => | I28: =OFFSET(A32,$E$25,0,1,1)&"(RR)" -> 800(RR) | J28: =OFFSET($B$32,E25,0,1,1) -> 2010-10-05 | K28: =TEXT(OFFSET(D32,$E$25,0,1,1),"#,##0.00")&"(o)" -> 55.59(o) | L28: =TEXT(OFFSET(E32,$E$25,0,1,1),"#,##0.00")&"(h)" -> 56.36(h) | M28: =TEXT(OFFSET(F32,$E$25,0,1,1),"#,##0.00")&"(l)" -> 55.52(l) | N28: =TEXT(OFFSET(G32,$E$25,0,1,1),"#,##0.00")&"(c)" -> 56.23(c)
AA29: Bar Background Colors
Z30: Price Cursor | AC30: Transaction Markers
A31: Rel Row | D31: Price Sources | H31: Donchian Channel Plots | L31: Long Positions | S31: Short Positions | AA31: =$F$11 -> 100.4 | AB31: =$F$11 -> 100.4 | AC31: Long | AE31: Short
B32: Date | C32: Volume | D32: Open | E32: High | F32: Low | G32: Close | H32: Buystop | I32: Sellstop | J32: Shortstop | K32: Coverstop | L32: Buystop | M32: Buy | N32: buy $ | O32: Active | P32: Sellstop | Q32: Sell | R32: Sell $ | S32: Shortstop | T32: Short | U32: Short $ | V32: Active | W32: Coverstop | X32: Cover | Y32: Cover $ | Z32: =$F$11 -> 100.4 | AA32: Long Active | AB32: Short Active | AC32: Buy | AD32: Sell | AE32: Short | AF32: Cover
A33: 1 | B33: =OFFSET(InputPriceData!B$15,CalculationsAndCharts!$A33+$A$11,0,1,1) -> 2013-12-06 | C33: =OFFSET(InputPriceData!G$15,CalculationsAndCharts!$A33+$A$11,0,1,1) -> 7280400 | D33: =OFFSET(InputPriceData!C$15,CalculationsAndCharts!$A33+$A$11,IF($C$7,7,0),1,1) -> 93.6 | E33: =OFFSET(InputPriceData!D$15,CalculationsAndCharts!$A33+$A$11,IF($C$7,7,0),1,1) -> 94.48 | F33: =OFFSET(InputPriceData!E$15,CalculationsAndCharts!$A33+$A$11,IF($C$7,7,0),1,1) -> 93.42 | G33: =OFFSET(InputPriceData!F$15,CalculationsAndCharts!$A33+$A$11,IF($C$7,7,0),1,1) -> 94.44 | H33: =IF($S$9,L33,NA()) -> 95.99 | I33: =IF($S$9,P33,NA()) -> 92.66 | J33: =IF($S$11,S33,NA()) -> 91.64 | K33: =IF($S$11,W33,NA()) -> 95.99 | L33: =IF(A33>=$A$8,E33,MAX(OFFSET($E33,1,0,$B$16,1))) -> 95.99 | M33: =AND(E33>L33,NOT(O34)) -> FALSE | N33: =IF(M33,MAX($D33,L33),NA()) ->  | O33: =OR(AND(NOT($A33>=$A$8),M33,NOT(Q33)),AND(O34,NOT(Q33))) -> TRUE | P33: =IF(A33>=$A$8,F33,MIN(OFFSET($F33,1,0,$B$17,1))) -> 92.66 | Q33: =AND(F33<P33,O34) -> FALSE | R33: =IF(Q33,MIN(D33,P33),NA()) ->  | S33: =IF(A33>=$A$8,F33,MIN(OFFSET($F33,1,0,$B$16,1))) -> 91.64 | T33: =AND(F33<S33,NOT(V34)) -> FALSE | U33: =IF(T33,MIN($D33,S33),NA()) ->  | V33: =OR(AND(NOT($A33>=$A$8),T33,NOT(X33)),AND(V34,NOT(X33))) -> FALSE | W33: =IF(A33>=$A$8,E33,MAX(OFFSET($E33,1,0,$B$17,1))) -> 95.99 | X33: =AND(E33>W33,V34) -> FALSE | Y33: =IF(X33,MAX($D33,W33),NA()) ->  | Z33: =IF($A33=$E$25,Z$32,NA()) ->  | AA33: =IF($S$10,IF($A33>$A$8,NA(),IF(O33,AA$31,NA())),NA()) -> 100.4 | AB33: =IF($S$12,IF($A33>$A$8,NA(),IF(V33,AA$31,NA())),NA()) ->  | AC33: =IF(AND($S$10,M33),N33,NA()) ->  | AD33: =IF(AND($S$10,Q33),R33,NA()) ->  | AE33: =IF(AND($S$12,T33),U33,NA()) ->  | AF33: =IF(AND($S$12,X33),Y33,NA()) -> 
A34: 2 | B34: =OFFSET(InputPriceData!B$15,CalculationsAndCharts!$A34+$A$11,0,1,1) -> 2013-12-05 | C34: =OFFSET(InputPriceData!G$15,CalculationsAndCharts!$A34+$A$11,0,1,1) -> 8666200 | D34: =OFFSET(InputPriceData!C$15,CalculationsAndCharts!$A34+$A$11,IF($C$7,7,0),1,1) -> 93.42 | E34: =OFFSET(InputPriceData!D$15,CalculationsAndCharts!$A34+$A$11,IF($C$7,7,0),1,1) -> 93.63 | F34: =OFFSET(InputPriceData!E$15,CalculationsAndCharts!$A34+$A$11,IF($C$7,7,0),1,1) -> 92.66 | G34: =OFFSET(InputPriceData!F$15,CalculationsAndCharts!$A34+$A$11,IF($C$7,7,0),1,1) -> 92.97 | H34: =IF($S$9,L34,NA()) -> 95.99 | I34: 91.68 | J34: 91.64 | K34: 95.99 | L34: 95.99 | M34: FALSE | N34: =IF(M34,MAX(D34,L34),NA()) ->  | O34: =OR(AND(NOT(A34>=$A$8),M34,NOT(Q34)),AND(O35,NOT(Q34))) -> TRUE | P34: 91.68 | Q34: FALSE | S34: 91.64 | T34: FALSE | U34: =IF(T34,MIN($D34,S34),NA()) ->  | V34: =OR(AND(NOT($A34>=$A$8),T34,NOT(X34)),AND(V35,NOT(X34))) -> FALSE | W34: 95.99 | X34: =AND(E34>W34,V35) -> FALSE | AA34: 100.4
A35: 3 | B35: =OFFSET(InputPriceData!B$15,CalculationsAndCharts!$A35+$A$11,0,1,1) -> 2013-12-04 | C35: =OFFSET(InputPriceData!G$15,CalculationsAndCharts!$A35+$A$11,0,1,1) -> 6201800 | D35: =OFFSET(InputPriceData!C$15,CalculationsAndCharts!$A35+$A$11,IF($C$7,7,0),1,1) -> 93.76 | E35: =OFFSET(InputPriceData!D$15,CalculationsAndCharts!$A35+$A$11,IF($C$7,7,0),1,1) -> 94.25 | F35: =OFFSET(InputPriceData!E$15,CalculationsAndCharts!$A35+$A$11,IF($C$7,7,0),1,1) -> 93.13 | G35: =OFFSET(InputPriceData!F$15,CalculationsAndCharts!$A35+$A$11,IF($C$7,7,0),1,1) -> 93.63 | H35: 95.99 | I35: 91.68 | J35: 91.64 | K35: 95.99 | L35: 95.99 | M35: FALSE | O35: TRUE | P35: 91.68 | Q35: FALSE | S35: 91.64 | T35: FALSE | V35: FALSE | W35: 95.99 | X35: FALSE | AA35: 100.4
A36: 4 | B36: =OFFSET(InputPriceData!B$15,CalculationsAndCharts!$A36+$A$11,0,1,1) -> 2013-12-03 | C36: =OFFSET(InputPriceData!G$15,CalculationsAndCharts!$A36+$A$11,0,1,1) -> 9061100 | D36: =OFFSET(InputPriceData!C$15,CalculationsAndCharts!$A36+$A$11,IF($C$7,7,0),1,1) -> 94.2 | E36: =OFFSET(InputPriceData!D$15,CalculationsAndCharts!$A36+$A$11,IF($C$7,7,0),1,1) -> 94.56 | F36: =OFFSET(InputPriceData!E$15,CalculationsAndCharts!$A36+$A$11,IF($C$7,7,0),1,1) -> 93.51 | G36: =OFFSET(InputPriceData!F$15,CalculationsAndCharts!$A36+$A$11,IF($C$7,7,0),1,1) -> 93.97 | H36: 95.99 | I36: 91.68 | J36: 91.28 | K36: 95.99 | L36: 95.99 | M36: FALSE | O36: TRUE | P36: 91.68 | Q36: FALSE | S36: 91.28 | T36: FALSE | V36: FALSE | W36: 95.99 | X36: FALSE | AA36: 100.4
A37: 5 | B37: =OFFSET(InputPriceData!B$15,CalculationsAndCharts!$A37+$A$11,0,1,1) -> 2013-12-02 | C37: =OFFSET(InputPriceData!G$15,CalculationsAndCharts!$A37+$A$11,0,1,1) -> 5827400 | D37: =OFFSET(InputPriceData!C$15,CalculationsAndCharts!$A37+$A$11,IF($C$7,7,0),1,1) -> 94.41 | E37: =OFFSET(InputPriceData!D$15,CalculationsAndCharts!$A37+$A$11,IF($C$7,7,0),1,1) -> 94.66 | F37: =OFFSET(InputPriceData!E$15,CalculationsAndCharts!$A37+$A$11,IF($C$7,7,0),1,1) -> 93.97 | G37: =OFFSET(InputPriceData!F$15,CalculationsAndCharts!$A37+$A$11,IF($C$7,7,0),1,1) -> 94.28 | H37: 95.99 | I37: 91.68 | J37: 91.14 | K37: 95.99 | L37: 95.99 | M37: FALSE | O37: TRUE | P37: 91.68 | Q37: FALSE | S37: 91.14 | T37: FALSE | V37: FALSE | W37: 95.99 | X37: FALSE | AA37: 100.4
A38: 6 | B38: =OFFSET(InputPriceData!B$15,CalculationsAndCharts!$A38+$A$11,0,1,1) -> 2013-11-29 | C38: =OFFSET(InputPriceData!G$15,CalculationsAndCharts!$A38+$A$11,0,1,1) -> 4106800 | D38: =OFFSET(InputPriceData!C$15,CalculationsAndCharts!$A38+$A$11,IF($C$7,7,0),1,1) -> 95.23 | E38: =OFFSET(InputPriceData!D$15,CalculationsAndCharts!$A38+$A$11,IF($C$7,7,0),1,1) -> 95.5 | F38: =OFFSET(InputPriceData!E$15,CalculationsAndCharts!$A38+$A$11,IF($C$7,7,0),1,1) -> 94.43 | G38: =OFFSET(InputPriceData!F$15,CalculationsAndCharts!$A38+$A$11,IF($C$7,7,0),1,1) -> 94.66 | H38: 95.99 | I38: 91.68 | J38: 91.14 | K38: 95.99 | L38: 95.99 | M38: FALSE | O38: TRUE | P38: 91.68 | Q38: FALSE | S38: 91.14 | T38: FALSE | V38: FALSE | W38: 95.99 | X38: FALSE | AA38: 100.4
A39: 7 | B39: =OFFSET(InputPriceData!B$15,CalculationsAndCharts!$A39+$A$11,0,1,1) -> 2013-11-27 | C39: =OFFSET(InputPriceData!G$15,CalculationsAndCharts!$A39+$A$11,0,1,1) -> 4603800 | D39: =OFFSET(InputPriceData!C$15,CalculationsAndCharts!$A39+$A$11,IF($C$7,7,0),1,1) -> 95.34 | E39: =OFFSET(InputPriceData!D$15,CalculationsAndCharts!$A39+$A$11,IF($C$7,7,0),1,1) -> 95.37 | F39: =OFFSET(InputPriceData!E$15,CalculationsAndCharts!$A39+$A$11,IF($C$7,7,0),1,1) -> 94.61 | G39: =OFFSET(InputPriceData!F$15,CalculationsAndCharts!$A39+$A$11,IF($C$7,7,0),1,1) -> 94.98 | H39: 95.99 | I39: 91.68 | J39: 90.88 | K39: 95.99 | L39: 95.99 | M39: FALSE | O39: TRUE | P39: 91.68 | Q39: FALSE | S39: 90.88 | T39: FALSE | V39: FALSE | W39: 95.99 | X39: FALSE | AA39: 100.4
A40: 8 | B40: =OFFSET(InputPriceData!B$15,CalculationsAndCharts!$A40+$A$11,0,1,1) -> 2013-11-26 | C40: =OFFSET(InputPriceData!G$15,CalculationsAndCharts!$A40+$A$11,0,1,1) -> 7267600 | D40: =OFFSET(InputPriceData!C$15,CalculationsAndCharts!$A40+$A$11,IF($C$7,7,0),1,1) -> 95.58 | E40: =OFFSET(InputPriceData!D$15,CalculationsAndCharts!$A40+$A$11,IF($C$7,7,0),1,1) -> 95.87 | F40: =OFFSET(InputPriceData!E$15,CalculationsAndCharts!$A40+$A$11,IF($C$7,7,0),1,1) -> 94.97 | G40: =OFFSET(InputPriceData!F$15,CalculationsAndCharts!$A40+$A$11,IF($C$7,7,0),1,1) -> 95.06 | H40: 95.99 | I40: 91.64 | J40: 90.87 | K40: 95.99 | L40: 95.99 | M40: FALSE | O40: TRUE | P40: 91.64 | Q40: FALSE | S40: 90.87 | T40: FALSE | V40: FALSE | W40: 95.99 | X40: FALSE | AA40: 100.4
A41: 9 | B41: =OFFSET(InputPriceData!B$15,CalculationsAndCharts!$A41+$A$11,0,1,1) -> 2013-11-25 | C41: =OFFSET(InputPriceData!G$15,CalculationsAndCharts!$A41+$A$11,0,1,1) -> 6374600 | D41: =OFFSET(InputPriceData!C$15,CalculationsAndCharts!$A41+$A$11,IF($C$7,7,0),1,1) -> 95.49 | E41: =OFFSET(InputPriceData!D$15,CalculationsAndCharts!$A41+$A$11,IF($C$7,7,0),1,1) -> 95.99 | F41: =OFFSET(InputPriceData!E$15,CalculationsAndCharts!$A41+$A$11,IF($C$7,7,0),1,1) -> 95.08 | G41: =OFFSET(InputPriceData!F$15,CalculationsAndCharts!$A41+$A$11,IF($C$7,7,0),1,1) -> 95.63 | H41: 95.58 | I41: 91.64 | J41: 90.14 | K41: 95.58 | L41: 95.58 | M41: FALSE | O41: TRUE | P41: 91.64 | Q41: FALSE | S41: 90.14 | T41: FALSE | V41: FALSE | W41: 95.58 | X41: FALSE | AA41: 100.4
A42: 10 | B42: =OFFSET(InputPriceData!B$15,CalculationsAndCharts!$A42+$A$11,0,1,1) -> 2013-11-22 | C42: =OFFSET(InputPriceData!G$15,CalculationsAndCharts!$A42+$A$11,0,1,1) -> 6462100 | D42: =OFFSET(InputPriceData!C$15,CalculationsAndCharts!$A42+$A$11,IF($C$7,7,0),1,1) -> 94.39 | E42: =OFFSET(InputPriceData!D$15,CalculationsAndCharts!$A42+$A$11,IF($C$7,7,0),1,1) -> 95.58 | F42: =OFFSET(InputPriceData!E$15,CalculationsAndCharts!$A42+$A$11,IF($C$7,7,0),1,1) -> 94.39 | G42: =OFFSET(InputPriceData!F$15,CalculationsAndCharts!$A42+$A$11,IF($C$7,7,0),1,1) -> 95.25 | H42: 95.09 | I42: 91.64 | J42: 90.14 | K42: 95.09 | L42: 95.09 | M42: FALSE | O42: TRUE | P42: 91.64 | Q42: FALSE | S42: 90.14 | T42: FALSE | V42: FALSE | W42: 95.09 | X42: FALSE | AA42: 100.4
A43: 11 | B43: =OFFSET(InputPriceData!B$15,CalculationsAndCharts!$A43+$A$11,0,1,1) -> 2013-11-21 | C43: =OFFSET(InputPriceData!G$15,CalculationsAndCharts!$A43+$A$11,0,1,1) -> 6896200 | D43: =OFFSET(InputPriceData!C$15,CalculationsAndCharts!$A43+$A$11,IF($C$7,7,0),1,1) -> 94.8 | E43: =OFFSET(InputPriceData!D$15,CalculationsAndCharts!$A43+$A$11,IF($C$7,7,0),1,1) -> 95.09 | F43: =OFFSET(InputPriceData!E$15,CalculationsAndCharts!$A43+$A$11,IF($C$7,7,0),1,1) -> 94.39 | G43: =OFFSET(InputPriceData!F$15,CalculationsAndCharts!$A43+$A$11,IF($C$7,7,0),1,1) -> 94.54 | H43: 94.81 | I43: 91.64 | J43: 90.14 | K43: 94.81 | L43: 94.81 | M43: FALSE | O43: TRUE | P43: 91.64 | Q43: FALSE | S43: 90.14 | T43: FALSE | V43: FALSE | W43: 94.81 | X43: FALSE | AA43: 100.4
A44: 12 | B44: =OFFSET(InputPriceData!B$15,CalculationsAndCharts!$A44+$A$11,0,1,1) -> 2013-11-20 | C44: =OFFSET(InputPriceData!G$15,CalculationsAndCharts!$A44+$A$11,0,1,1) -> 7076500 | D44: =OFFSET(InputPriceData!C$15,CalculationsAndCharts!$A44+$A$11,IF($C$7,7,0),1,1) -> 94.28 | E44: =OFFSET(InputPriceData!D$15,CalculationsAndCharts!$A44+$A$11,IF($C$7,7,0),1,1) -> 94.81 | F44: =OFFSET(InputPriceData!E$15,CalculationsAndCharts!$A44+$A$11,IF($C$7,7,0),1,1) -> 94 | G44: =OFFSET(InputPriceData!F$15,CalculationsAndCharts!$A44+$A$11,IF($C$7,7,0),1,1) -> 94.49 | H44: 94.26 | I44: 91.64 | J44: 89.54 | K44: 94.26 | L44: 94.26 | M44: FALSE | O44: TRUE | P44: 91.64 | Q44: FALSE | S44: 89.54 | T44: FALSE | V44: FALSE | W44: 94.26 | X44: FALSE | AA44: 100.4
A45: 13 | B45: =OFFSET(InputPriceData!B$15,CalculationsAndCharts!$A45+$A$11,0,1,1) -> 2013-11-19 | C45: =OFFSET(InputPriceData!G$15,CalculationsAndCharts!$A45+$A$11,0,1,1) -> 6624200 | D45: =OFFSET(InputPriceData!C$15,CalculationsAndCharts!$A45+$A$11,IF($C$7,7,0),1,1) -> 93.61 | E45: =OFFSET(InputPriceData!D$15,CalculationsAndCharts!$A45+$A$11,IF($C$7,7,0),1,1) -> 94.26 | F45: =OFFSET(InputPriceData!E$15,CalculationsAndCharts!$A45+$A$11,IF($C$7,7,0),1,1) -> 93.35 | G45: =OFFSET(InputPriceData!F$15,CalculationsAndCharts!$A45+$A$11,IF($C$7,7,0),1,1) -> 94.2 | H45: 93.99 | I45: 91.64 | J45: 89.31 | K45: 93.99 | L45: 93.99 | M45: FALSE | O45: TRUE | P45: 91.64 | Q45: FALSE | S45: 89.31 | T45: FALSE | V45: FALSE | W45: 93.99 | X45: FALSE | AA45: 100.4
A46: 14 | B46: =OFFSET(InputPriceData!B$15,CalculationsAndCharts!$A46+$A$11,0,1,1) -> 2013-11-18 | C46: =OFFSET(InputPriceData!G$15,CalculationsAndCharts!$A46+$A$11,0,1,1) -> 8492000 | D46: =OFFSET(InputPriceData!C$15,CalculationsAndCharts!$A46+$A$11,IF($C$7,7,0),1,1) -> 93.71 | E46: =OFFSET(InputPriceData!D$15,CalculationsAndCharts!$A46+$A$11,IF($C$7,7,0),1,1) -> 93.95 | F46: =OFFSET(InputPriceData!E$15,CalculationsAndCharts!$A46+$A$11,IF($C$7,7,0),1,1) -> 93.36 | G46: =OFFSET(InputPriceData!F$15,CalculationsAndCharts!$A46+$A$11,IF($C$7,7,0),1,1) -> 93.65 | H46: 93.99 | I46: 91.28 | J46: 88.02 | K46: 93.99 | L46: 93.99 | M46: FALSE | O46: TRUE | P46: 91.28 | Q46: FALSE | S46: 88.02 | T46: FALSE | V46: FALSE | W46: 93.99 | X46: FALSE | AA46: 100.4
A47: 15 | B47: =OFFSET(InputPriceData!B$15,CalculationsAndCharts!$A47+$A$11,0,1,1) -> 2013-11-15 | C47: =OFFSET(InputPriceData!G$15,CalculationsAndCharts!$A47+$A$11,0,1,1) -> 7063000 | D47: =OFFSET(InputPriceData!C$15,CalculationsAndCharts!$A47+$A$11,IF($C$7,7,0),1,1) -> 92.99 | E47: =OFFSET(InputPriceData!D$15,CalculationsAndCharts!$A47+$A$11,IF($C$7,7,0),1,1) -> 93.75 | F47: =OFFSET(InputPriceData!E$15,CalculationsAndCharts!$A47+$A$11,IF($C$7,7,0),1,1) -> 92.91 | G47: =OFFSET(InputPriceData!F$15,CalculationsAndCharts!$A47+$A$11,IF($C$7,7,0),1,1) -> 93.74 | H47: 93.99 | I47: 91.14 | J47: 87.41 | K47: 93.99 | L47: 93.99 | M47: FALSE | O47: TRUE | P47: 91.14 | Q47: FALSE | S47: 87.41 | T47: FALSE | V47: FALSE | W47: 93.99 | X47: FALSE | AA47: 100.4
A48: 16 | B48: =OFFSET(InputPriceData!B$15,CalculationsAndCharts!$A48+$A$11,0,1,1) -> 2013-11-14 | C48: =OFFSET(InputPriceData!G$15,CalculationsAndCharts!$A48+$A$11,0,1,1) -> 7045700 | D48: =OFFSET(InputPriceData!C$15,CalculationsAndCharts!$A48+$A$11,IF($C$7,7,0),1,1) -> 92.75 | E48: =OFFSET(InputPriceData!D$15,CalculationsAndCharts!$A48+$A$11,IF($C$7,7,0),1,1) -> 93.49 | F48: =OFFSET(InputPriceData!E$15,CalculationsAndCharts!$A48+$A$11,IF($C$7,7,0),1,1) -> 92.75 | G48: =OFFSET(InputPriceData!F$15,CalculationsAndCharts!$A48+$A$11,IF($C$7,7,0),1,1) -> 93.27 | H48: 93.99 | I48: 91.14 | J48: 86.1 | K48: 93.99 | L48: 93.99 | M48: FALSE | O48: TRUE | P48: 91.14 | Q48: FALSE | S48: 86.1 | T48: FALSE | V48: FALSE | W48: 93.99 | X48: FALSE | AA48: 100.4
A49: 17 | B49: =OFFSET(InputPriceData!B$15,CalculationsAndCharts!$A49+$A$11,0,1,1) -> 2013-11-13 | C49: =OFFSET(InputPriceData!G$15,CalculationsAndCharts!$A49+$A$11,0,1,1) -> 8954300 | D49: =OFFSET(InputPriceData!C$15,CalculationsAndCharts!$A49+$A$11,IF($C$7,7,0),1,1) -> 92.71 | E49: =OFFSET(InputPriceData!D$15,CalculationsAndCharts!$A49+$A$11,IF($C$7,7,0),1,1) -> 92.8 | F49: =OFFSET(InputPriceData!E$15,CalculationsAndCharts!$A49+$A$11,IF($C$7,7,0),1,1) -> 91.68 | G49: =OFFSET(InputPriceData!F$15,CalculationsAndCharts!$A49+$A$11,IF($C$7,7,0),1,1) -> 92.69 | H49: 93.99 | I49: 90.88 | J49: 84.9 | K49: 93.99 | L49: 93.99 | M49: FALSE | O49: TRUE | P49: 90.88 | Q49: FALSE | S49: 84.9 | T49: FALSE | V49: FALSE | W49: 93.99 | X49: FALSE | AA49: 100.4
A50: 18 | B50: =OFFSET(InputPriceData!B$15,CalculationsAndCharts!$A50+$A$11,0,1,1) -> 2013-11-12 | C50: =OFFSET(InputPriceData!G$15,CalculationsAndCharts!$A50+$A$11,0,1,1) -> 7639600 | D50: =OFFSET(InputPriceData!C$15,CalculationsAndCharts!$A50+$A$11,IF($C$7,7,0),1,1) -> 93.33 | E50: =OFFSET(InputPriceData!D$15,CalculationsAndCharts!$A50+$A$11,IF($C$7,7,0),1,1) -> 93.44 | F50: =OFFSET(InputPriceData!E$15,CalculationsAndCharts!$A50+$A$11,IF($C$7,7,0),1,1) -> 92.35 | G50: =OFFSET(InputPriceData!F$15,CalculationsAndCharts!$A50+$A$11,IF($C$7,7,0),1,1) -> 92.91 | H50: 93.99 | I50: 90.87 | J50: 84.9 | K50: 93.99 | L50: 93.99 | M50: FALSE | O50: TRUE | P50: 90.87 | Q50: FALSE | S50: 84.9 | T50: FALSE | V50: FALSE | W50: 93.99 | X50: FALSE | AA50: 100.4
A51: 19 | B51: =OFFSET(InputPriceData!B$15,CalculationsAndCharts!$A51+$A$11,0,1,1) -> 2013-11-11 | C51: =OFFSET(InputPriceData!G$15,CalculationsAndCharts!$A51+$A$11,0,1,1) -> 4723100 | D51: =OFFSET(InputPriceData!C$15,CalculationsAndCharts!$A51+$A$11,IF($C$7,7,0),1,1) -> 93.32 | E51: =OFFSET(InputPriceData!D$15,CalculationsAndCharts!$A51+$A$11,IF($C$7,7,0),1,1) -> 93.99 | F51: =OFFSET(InputPriceData!E$15,CalculationsAndCharts!$A51+$A$11,IF($C$7,7,0),1,1) -> 93.29 | G51: =OFFSET(InputPriceData!F$15,CalculationsAndCharts!$A51+$A$11,IF($C$7,7,0),1,1) -> 93.64 | H51: 93.45 | I51: 90.14 | J51: 84.9 | K51: 93.45 | L51: 93.45 | M51: FALSE | O51: TRUE | P51: 90.14 | Q51: FALSE | S51: 84.9 | T51: FALSE | V51: FALSE | W51: 93.45 | X51: FALSE | AA51: 100.4
A52: 20 | B52: =OFFSET(InputPriceData!B$15,CalculationsAndCharts!$A52+$A$11,0,1,1) -> 2013-11-08 | C52: =OFFSET(InputPriceData!G$15,CalculationsAndCharts!$A52+$A$11,0,1,1) -> 7229500 | D52: =OFFSET(InputPriceData!C$15,CalculationsAndCharts!$A52+$A$11,IF($C$7,7,0),1,1) -> 91.99 | E52: =OFFSET(InputPriceData!D$15,CalculationsAndCharts!$A52+$A$11,IF($C$7,7,0),1,1) -> 93.45 | F52: =OFFSET(InputPriceData!E$15,CalculationsAndCharts!$A52+$A$11,IF($C$7,7,0),1,1) -> 91.92 | G52: =OFFSET(InputPriceData!F$15,CalculationsAndCharts!$A52+$A$11,IF($C$7,7,0),1,1) -> 93.4 | H52: 92.93 | I52: 90.14 | J52: 84.9 | K52: 92.93 | L52: 92.93 | M52: FALSE | O52: TRUE | P52: 90.14 | Q52: FALSE | S52: 84.9 | T52: FALSE | V52: FALSE | W52: 92.93 | X52: FALSE | AA52: 100.4
A53: 21 | B53: =OFFSET(InputPriceData!B$15,CalculationsAndCharts!$A53+$A$11,0,1,1) -> 2013-11-07 | C53: =OFFSET(InputPriceData!G$15,CalculationsAndCharts!$A53+$A$11,0,1,1) -> 6116900 | D53: =OFFSET(InputPriceData!C$15,CalculationsAndCharts!$A53+$A$11,IF($C$7,7,0),1,1) -> 92.55 | E53: =OFFSET(InputPriceData!D$15,CalculationsAndCharts!$A53+$A$11,IF($C$7,7,0),1,1) -> 92.71 | F53: =OFFSET(InputPriceData!E$15,CalculationsAndCharts!$A53+$A$11,IF($C$7,7,0),1,1) -> 92.05 | G53: =OFFSET(InputPriceData!F$15,CalculationsAndCharts!$A53+$A$11,IF($C$7,7,0),1,1) -> 92.05 | H53: 92.93 | I53: 90.14 | J53: 84.9 | K53: 92.93 | L53: 92.93 | M53: FALSE | O53: TRUE | P53: 90.14 | Q53: FALSE | S53: 84.9 | T53: FALSE | V53: FALSE | W53: 92.93 | X53: FALSE | AA53: 100.4
A54: 22 | B54: =OFFSET(InputPriceData!B$15,CalculationsAndCharts!$A54+$A$11,0,1,1) -> 2013-11-06 | C54: =OFFSET(InputPriceData!G$15,CalculationsAndCharts!$A54+$A$11,0,1,1) -> 5301300 | D54: =OFFSET(InputPriceData!C$15,CalculationsAndCharts!$A54+$A$11,IF($C$7,7,0),1,1) -> 92.38 | E54: =OFFSET(InputPriceData!D$15,CalculationsAndCharts!$A54+$A$11,IF($C$7,7,0),1,1) -> 92.55 | F54: =OFFSET(InputPriceData!E$15,CalculationsAndCharts!$A54+$A$11,IF($C$7,7,0),1,1) -> 92.07 | G54: =OFFSET(InputPriceData!F$15,CalculationsAndCharts!$A54+$A$11,IF($C$7,7,0),1,1) -> 92.39 | H54: 92.93 | I54: 89.54 | J54: 84.9 | K54: 92.93 | L54: 92.93 | M54: FALSE | O54: TRUE | P54: 89.54 | Q54: FALSE | S54: 84.9 | T54: FALSE | V54: FALSE | W54: 92.93 | X54: FALSE | AA54: 100.4
A55: 23 | B55: =OFFSET(InputPriceData!B$15,CalculationsAndCharts!$A55+$A$11,0,1,1) -> 2013-11-05 | C55: =OFFSET(InputPriceData!G$15,CalculationsAndCharts!$A55+$A$11,0,1,1) -> 5350600 | D55: =OFFSET(InputPriceData!C$15,CalculationsAndCharts!$A55+$A$11,IF($C$7,7,0),1,1) -> 91.9 | E55: =OFFSET(InputPriceData!D$15,CalculationsAndCharts!$A55+$A$11,IF($C$7,7,0),1,1) -> 92.31 | F55: =OFFSET(InputPriceData!E$15,CalculationsAndCharts!$A55+$A$11,IF($C$7,7,0),1,1) -> 91.64 | G55: =OFFSET(InputPriceData!F$15,CalculationsAndCharts!$A55+$A$11,IF($C$7,7,0),1,1) -> 92.17 | H55: 92.93 | I55: 89.31 | J55: 84.9 | K55: 92.93 | L55: 92.93 | M55: FALSE | O55: TRUE | P55: 89.31 | Q55: FALSE | S55: 84.9 | T55: FALSE | V55: FALSE | W55: 92.93 | X55: FALSE | AA55: 100.4
A56: 24 | B56: =OFFSET(InputPriceData!B$15,CalculationsAndCharts!$A56+$A$11,0,1,1) -> 2013-11-04 | C56: =OFFSET(InputPriceData!G$15,CalculationsAndCharts!$A56+$A$11,0,1,1) -> 6862500 | D56: =OFFSET(InputPriceData!C$15,CalculationsAndCharts!$A56+$A$11,IF($C$7,7,0),1,1) -> 92.82 | E56: =OFFSET(InputPriceData!D$15,CalculationsAndCharts!$A56+$A$11,IF($C$7,7,0),1,1) -> 92.86 | F56: =OFFSET(InputPriceData!E$15,CalculationsAndCharts!$A56+$A$11,IF($C$7,7,0),1,1) -> 91.79 | G56: =OFFSET(InputPriceData!F$15,CalculationsAndCharts!$A56+$A$11,IF($C$7,7,0),1,1) -> 92.39 | H56: 92.93 | I56: 88.02 | J56: 84.9 | K56: 92.93 | L56: 92.93 | M56: FALSE | O56: TRUE | P56: 88.02 | Q56: FALSE | S56: 84.9 | T56: FALSE | V56: FALSE | W56: 92.93 | X56: FALSE | AA56: 100.4
A57: 25 | B57: =OFFSET(InputPriceData!B$15,CalculationsAndCharts!$A57+$A$11,0,1,1) -> 2013-11-01 | C57: =OFFSET(InputPriceData!G$15,CalculationsAndCharts!$A57+$A$11,0,1,1) -> 6835900 | D57: =OFFSET(InputPriceData!C$15,CalculationsAndCharts!$A57+$A$11,IF($C$7,7,0),1,1) -> 91.74 | E57: =OFFSET(InputPriceData!D$15,CalculationsAndCharts!$A57+$A$11,IF($C$7,7,0),1,1) -> 92.93 | F57: =OFFSET(InputPriceData!E$15,CalculationsAndCharts!$A57+$A$11,IF($C$7,7,0),1,1) -> 91.74 | G57: =OFFSET(InputPriceData!F$15,CalculationsAndCharts!$A57+$A$11,IF($C$7,7,0),1,1) -> 92.72 | H57: 92.81 | I57: 87.41 | J57: 84.9 | K57: 92.81 | L57: 92.81 | M57: FALSE | O57: TRUE | P57: 87.41 | Q57: FALSE | S57: 84.9 | T57: FALSE | V57: FALSE | W57: 92.81 | X57: FALSE | AA57: 100.4
A58: 26 | B58: =OFFSET(InputPriceData!B$15,CalculationsAndCharts!$A58+$A$11,0,1,1) -> 2013-10-31 | C58: =OFFSET(InputPriceData!G$15,CalculationsAndCharts!$A58+$A$11,0,1,1) -> 7773900 | D58: =OFFSET(InputPriceData!C$15,CalculationsAndCharts!$A58+$A$11,IF($C$7,7,0),1,1) -> 92.21 | E58: =OFFSET(InputPriceData!D$15,CalculationsAndCharts!$A58+$A$11,IF($C$7,7,0),1,1) -> 92.7 | F58: =OFFSET(InputPriceData!E$15,CalculationsAndCharts!$A58+$A$11,IF($C$7,7,0),1,1) -> 91.68 | G58: =OFFSET(InputPriceData!F$15,CalculationsAndCharts!$A58+$A$11,IF($C$7,7,0),1,1) -> 91.97 | H58: 92.81 | I58: 86.1 | J58: 84.9 | K58: 92.81 | L58: 92.81 | M58: FALSE | O58: TRUE | P58: 86.1 | Q58: FALSE | S58: 84.9 | T58: FALSE | V58: FALSE | W58: 92.81 | X58: FALSE | AA58: 100.4
A59: 27 | B59: =OFFSET(InputPriceData!B$15,CalculationsAndCharts!$A59+$A$11,0,1,1) -> 2013-10-30 | C59: =OFFSET(InputPriceData!G$15,CalculationsAndCharts!$A59+$A$11,0,1,1) -> 6295400 | D59: =OFFSET(InputPriceData!C$15,CalculationsAndCharts!$A59+$A$11,IF($C$7,7,0),1,1) -> 92.63 | E59: =OFFSET(InputPriceData!D$15,CalculationsAndCharts!$A59+$A$11,IF($C$7,7,0),1,1) -> 92.81 | F59: =OFFSET(InputPriceData!E$15,CalculationsAndCharts!$A59+$A$11,IF($C$7,7,0),1,1) -> 92.01 | G59: =OFFSET(InputPriceData!F$15,CalculationsAndCharts!$A59+$A$11,IF($C$7,7,0),1,1) -> 92.15 | H59: 92.53 | I59: 84.9 | J59: 84.9 | K59: 92.53 | L59: 92.53 | M59: FALSE | O59: TRUE | P59: 84.9 | Q59: FALSE | S59: 84.9 | T59: FALSE | V59: FALSE | W59: 92.53 | X59: FALSE | AA59: 100.4
A60: 28 | B60: =OFFSET(InputPriceData!B$15,CalculationsAndCharts!$A60+$A$11,0,1,1) -> 2013-10-29 | C60: =OFFSET(InputPriceData!G$15,CalculationsAndCharts!$A60+$A$11,0,1,1) -> 6096700 | D60: =OFFSET(InputPriceData!C$15,CalculationsAndCharts!$A60+$A$11,IF($C$7,7,0),1,1) -> 92.15 | E60: =OFFSET(InputPriceData!D$15,CalculationsAndCharts!$A60+$A$11,IF($C$7,7,0),1,1) -> 92.53 | F60: =OFFSET(InputPriceData!E$15,CalculationsAndCharts!$A60+$A$11,IF($C$7,7,0),1,1) -> 91.93 | G60: =OFFSET(InputPriceData!F$15,CalculationsAndCharts!$A60+$A$11,IF($C$7,7,0),1,1) -> 92.49 | H60: 92.35 | I60: 84.9 | J60: 84.9 | K60: 92.35 | L60: 92.35 | M60: FALSE | O60: TRUE | P60: 84.9 | Q60: FALSE | S60: 84.9 | T60: FALSE | V60: FALSE | W60: 92.35 | X60: FALSE | AA60: 100.4
A61: 29 | B61: =OFFSET(InputPriceData!B$15,CalculationsAndCharts!$A61+$A$11,0,1,1) -> 2013-10-28 | C61: =OFFSET(InputPriceData!G$15,CalculationsAndCharts!$A61+$A$11,0,1,1) -> 6551000 | D61: =OFFSET(InputPriceData!C$15,CalculationsAndCharts!$A61+$A$11,IF($C$7,7,0),1,1) -> 91.32 | E61: =OFFSET(InputPriceData!D$15,CalculationsAndCharts!$A61+$A$11,IF($C$7,7,0),1,1) -> 92.16 | F61: =OFFSET(InputPriceData!E$15,CalculationsAndCharts!$A61+$A$11,IF($C$7,7,0),1,1) -> 91.28 | G61: =OFFSET(InputPriceData!F$15,CalculationsAndCharts!$A61+$A$11,IF($C$7,7,0),1,1) -> 91.75 | H61: 92.35 | I61: 84.9 | J61: 84.9 | K61: 92.35 | L61: 92.35 | M61: FALSE | O61: TRUE | P61: 84.9 | Q61: FALSE | S61: 84.9 | T61: FALSE | V61: FALSE | W61: 92.35 | X61: FALSE | AA61: 100.4
A62: 30 | B62: =OFFSET(InputPriceData!B$15,CalculationsAndCharts!$A62+$A$11,0,1,1) -> 2013-10-25 | C62: =OFFSET(InputPriceData!G$15,CalculationsAndCharts!$A62+$A$11,0,1,1) -> 6076000 | D62: =OFFSET(InputPriceData!C$15,CalculationsAndCharts!$A62+$A$11,IF($C$7,7,0),1,1) -> 91.4 | E62: =OFFSET(InputPriceData!D$15,CalculationsAndCharts!$A62+$A$11,IF($C$7,7,0),1,1) -> 91.63 | F62: =OFFSET(InputPriceData!E$15,CalculationsAndCharts!$A62+$A$11,IF($C$7,7,0),1,1) -> 91.14 | G62: =OFFSET(InputPriceData!F$15,CalculationsAndCharts!$A62+$A$11,IF($C$7,7,0),1,1) -> 91.45 | H62: 92.35 | I62: 84.9 | J62: 84.9 | K62: 92.35 | L62: 92.35 | M62: FALSE | O62: TRUE | P62: 84.9 | Q62: FALSE | S62: 84.9 | T62: FALSE | V62: FALSE | W62: 92.35 | X62: FALSE | AA62: 100.4
A63: 31 | B63: =OFFSET(InputPriceData!B$15,CalculationsAndCharts!$A63+$A$11,0,1,1) -> 2013-10-24 | C63: =OFFSET(InputPriceData!G$15,CalculationsAndCharts!$A63+$A$11,0,1,1) -> 5251000 | D63: =OFFSET(InputPriceData!C$15,CalculationsAndCharts!$A63+$A$11,IF($C$7,7,0),1,1) -> 92.01 | E63: =OFFSET(InputPriceData!D$15,CalculationsAndCharts!$A63+$A$11,IF($C$7,7,0),1,1) -> 92.35 | F63: =OFFSET(InputPriceData!E$15,CalculationsAndCharts!$A63+$A$11,IF($C$7,7,0),1,1) -> 91.5 | G63: =OFFSET(InputPriceData!F$15,CalculationsAndCharts!$A63+$A$11,IF($C$7,7,0),1,1) -> 91.71 | H63: 91.92 | I63: 84.9 | J63: 84.9 | K63: 91.92 | L63: 91.92 | M63: FALSE | O63: TRUE | P63: 84.9 | Q63: FALSE | S63: 84.9 | T63: FALSE | V63: FALSE | W63: 91.92 | X63: FALSE | AA63: 100.4
A64: 32 | B64: =OFFSET(InputPriceData!B$15,CalculationsAndCharts!$A64+$A$11,0,1,1) -> 2013-10-23 | C64: =OFFSET(InputPriceData!G$15,CalculationsAndCharts!$A64+$A$11,0,1,1) -> 6449600 | D64: =OFFSET(InputPriceData!C$15,CalculationsAndCharts!$A64+$A$11,IF($C$7,7,0),1,1) -> 91.43 | E64: =OFFSET(InputPriceData!D$15,CalculationsAndCharts!$A64+$A$11,IF($C$7,7,0),1,1) -> 91.79 | F64: =OFFSET(InputPriceData!E$15,CalculationsAndCharts!$A64+$A$11,IF($C$7,7,0),1,1) -> 90.88 | G64: =OFFSET(InputPriceData!F$15,CalculationsAndCharts!$A64+$A$11,IF($C$7,7,0),1,1) -> 91.46 | H64: 91.92 | I64: 84.9 | J64: 84.9 | K64: 91.92 | L64: 91.92 | M64: FALSE | O64: TRUE | P64: 84.9 | Q64: FALSE | S64: 84.9 | T64: FALSE | V64: FALSE | W64: 91.92 | X64: FALSE | AA64: 100.4
A65: 33 | B65: =OFFSET(InputPriceData!B$15,CalculationsAndCharts!$A65+$A$11,0,1,1) -> 2013-10-22 | C65: =OFFSET(InputPriceData!G$15,CalculationsAndCharts!$A65+$A$11,0,1,1) -> 9635500 | D65: =OFFSET(InputPriceData!C$15,CalculationsAndCharts!$A65+$A$11,IF($C$7,7,0),1,1) -> 90.9 | E65: =OFFSET(InputPriceData!D$15,CalculationsAndCharts!$A65+$A$11,IF($C$7,7,0),1,1) -> 91.92 | F65: =OFFSET(InputPriceData!E$15,CalculationsAndCharts!$A65+$A$11,IF($C$7,7,0),1,1) -> 90.87 | G65: =OFFSET(InputPriceData!F$15,CalculationsAndCharts!$A65+$A$11,IF($C$7,7,0),1,1) -> 91.72 | H65: 91.41 | I65: 84.9 | J65: 84.9 | K65: 91.41 | L65: 91.41 | M65: FALSE | O65: TRUE | P65: 84.9 | Q65: FALSE | S65: 84.9 | T65: FALSE | V65: FALSE | W65: 91.41 | X65: FALSE | AA65: 100.4
A66: 34 | B66: =OFFSET(InputPriceData!B$15,CalculationsAndCharts!$A66+$A$11,0,1,1) -> 2013-10-21 | C66: =OFFSET(InputPriceData!G$15,CalculationsAndCharts!$A66+$A$11,0,1,1) -> 6940500 | D66: =OFFSET(InputPriceData!C$15,CalculationsAndCharts!$A66+$A$11,IF($C$7,7,0),1,1) -> 91 | E66: =OFFSET(InputPriceData!D$15,CalculationsAndCharts!$A66+$A$11,IF($C$7,7,0),1,1) -> 91 | F66: =OFFSET(InputPriceData!E$15,CalculationsAndCharts!$A66+$A$11,IF($C$7,7,0),1,1) -> 90.14 | G66: =OFFSET(InputPriceData!F$15,CalculationsAndCharts!$A66+$A$11,IF($C$7,7,0),1,1) -> 90.57 | H66: 91.41 | I66: 84.9 | J66: 84.9 | K66: 91.41 | L66: 91.41 | M66: FALSE | O66: TRUE | P66: 84.9 | Q66: FALSE | S66: 84.9 | T66: FALSE | V66: FALSE | W66: 91.41 | X66: FALSE | AA66: 100.4
A67: 35 | B67: =OFFSET(InputPriceData!B$15,CalculationsAndCharts!$A67+$A$11,0,1,1) -> 2013-10-18 | C67: =OFFSET(InputPriceData!G$15,CalculationsAndCharts!$A67+$A$11,0,1,1) -> 9082600 | D67: =OFFSET(InputPriceData!C$15,CalculationsAndCharts!$A67+$A$11,IF($C$7,7,0),1,1) -> 91.11 | E67: =OFFSET(InputPriceData!D$15,CalculationsAndCharts!$A67+$A$11,IF($C$7,7,0),1,1) -> 91.41 | F67: =OFFSET(InputPriceData!E$15,CalculationsAndCharts!$A67+$A$11,IF($C$7,7,0),1,1) -> 90.5 | G67: =OFFSET(InputPriceData!F$15,CalculationsAndCharts!$A67+$A$11,IF($C$7,7,0),1,1) -> 90.99 | H67: 91.36 | I67: 84.9 | J67: 84.9 | K67: 91.36 | L67: 91.36 | M67: FALSE | O67: TRUE | P67: 84.9 | Q67: FALSE | S67: 84.9 | T67: FALSE | V67: FALSE | W67: 91.36 | X67: FALSE | AA67: 100.4
A68: 36 | B68: =OFFSET(InputPriceData!B$15,CalculationsAndCharts!$A68+$A$11,0,1,1) -> 2013-10-17 | C68: =OFFSET(InputPriceData!G$15,CalculationsAndCharts!$A68+$A$11,0,1,1) -> 8569600 | D68: =OFFSET(InputPriceData!C$15,CalculationsAndCharts!$A68+$A$11,IF($C$7,7,0),1,1) -> 90.24 | E68: =OFFSET(InputPriceData!D$15,CalculationsAndCharts!$A68+$A$11,IF($C$7,7,0),1,1) -> 91.36 | F68: =OFFSET(InputPriceData!E$15,CalculationsAndCharts!$A68+$A$11,IF($C$7,7,0),1,1) -> 90.14 | G68: =OFFSET(InputPriceData!F$15,CalculationsAndCharts!$A68+$A$11,IF($C$7,7,0),1,1) -> 91.33 | H68: 90.83 | I68: 84.9 | J68: 84.9 | K68: 90.83 | L68: 90.83 | M68: FALSE | O68: TRUE | P68: 84.9 | Q68: FALSE | S68: 84.9 | T68: FALSE | V68: FALSE | W68: 90.83 | X68: FALSE | AA68: 100.4
A69: 37 | B69: =OFFSET(InputPriceData!B$15,CalculationsAndCharts!$A69+$A$11,0,1,1) -> 2013-10-16 | C69: =OFFSET(InputPriceData!G$15,CalculationsAndCharts!$A69+$A$11,0,1,1) -> 8116000 | D69: =OFFSET(InputPriceData!C$15,CalculationsAndCharts!$A69+$A$11,IF($C$7,7,0),1,1) -> 89.79 | E69: =OFFSET(InputPriceData!D$15,CalculationsAndCharts!$A69+$A$11,IF($C$7,7,0),1,1) -> 90.54 | F69: =OFFSET(InputPriceData!E$15,CalculationsAndCharts!$A69+$A$11,IF($C$7,7,0),1,1) -> 89.54 | G69: =OFFSET(InputPriceData!F$15,CalculationsAndCharts!$A69+$A$11,IF($C$7,7,0),1,1) -> 90.48 | H69: 90.83 | I69: 84.9 | J69: 84.9 | K69: 90.83 | L69: 90.83 | M69: FALSE | O69: TRUE | P69: 84.9 | Q69: FALSE | S69: 84.9 | T69: FALSE | V69: FALSE | W69: 90.83 | X69: FALSE | AA69: 100.4
A70: 38 | B70: =OFFSET(InputPriceData!B$15,CalculationsAndCharts!$A70+$A$11,0,1,1) -> 2013-10-15 | C70: =OFFSET(InputPriceData!G$15,CalculationsAndCharts!$A70+$A$11,0,1,1) -> 11024000 | D70: =OFFSET(InputPriceData!C$15,CalculationsAndCharts!$A70+$A$11,IF($C$7,7,0),1,1) -> 89.71 | E70: =OFFSET(InputPriceData!D$15,CalculationsAndCharts!$A70+$A$11,IF($C$7,7,0),1,1) -> 90.83 | F70: =OFFSET(InputPriceData!E$15,CalculationsAndCharts!$A70+$A$11,IF($C$7,7,0),1,1) -> 89.31 | G70: =OFFSET(InputPriceData!F$15,CalculationsAndCharts!$A70+$A$11,IF($C$7,7,0),1,1) -> 89.31 | H70: 90.09 | I70: 84.9 | J70: 84.9 | K70: 89.27 | L70: 90.09 | M70: TRUE | N70: 90.09 | O70: TRUE | P70: 84.9 | Q70: FALSE | S70: 84.9 | T70: FALSE | V70: FALSE | W70: 89.27 | X70: FALSE | AA70: 100.4 | AC70: 90.09
A71: 39 | B71: =OFFSET(InputPriceData!B$15,CalculationsAndCharts!$A71+$A$11,0,1,1) -> 2013-10-14 | C71: =OFFSET(InputPriceData!G$15,CalculationsAndCharts!$A71+$A$11,0,1,1) -> 9198600 | D71: =OFFSET(InputPriceData!C$15,CalculationsAndCharts!$A71+$A$11,IF($C$7,7,0),1,1) -> 88.22 | E71: =OFFSET(InputPriceData!D$15,CalculationsAndCharts!$A71+$A$11,IF($C$7,7,0),1,1) -> 89.27 | F71: =OFFSET(InputPriceData!E$15,CalculationsAndCharts!$A71+$A$11,IF($C$7,7,0),1,1) -> 88.02 | G71: =OFFSET(InputPriceData!F$15,CalculationsAndCharts!$A71+$A$11,IF($C$7,7,0),1,1) -> 89.18 | H71: 90.09 | I71: 84.9 | J71: 84.9 | K71: 89.13 | L71: 90.09 | M71: FALSE | O71: FALSE | P71: 84.9 | Q71: FALSE | S71: 84.9 | T71: FALSE | V71: FALSE | W71: 89.13 | X71: TRUE | Y71: 89.13 | AF71: 89.13
A72: 40 | B72: =OFFSET(InputPriceData!B$15,CalculationsAndCharts!$A72+$A$11,0,1,1) -> 2013-10-11 | C72: =OFFSET(InputPriceData!G$15,CalculationsAndCharts!$A72+$A$11,0,1,1) -> 8449800 | D72: =OFFSET(InputPriceData!C$15,CalculationsAndCharts!$A72+$A$11,IF($C$7,7,0),1,1) -> 88.01 | E72: =OFFSET(InputPriceData!D$15,CalculationsAndCharts!$A72+$A$11,IF($C$7,7,0),1,1) -> 88.86 | F72: =OFFSET(InputPriceData!E$15,CalculationsAndCharts!$A72+$A$11,IF($C$7,7,0),1,1) -> 87.41 | G72: =OFFSET(InputPriceData!F$15,CalculationsAndCharts!$A72+$A$11,IF($C$7,7,0),1,1) -> 88.83 | H72: 90.09 | I72: 84.9 | J72: 84.9 | K72: 90.09 | L72: 90.09 | M72: FALSE | O72: FALSE | P72: 84.9 | Q72: FALSE | S72: 84.9 | T72: FALSE | V72: TRUE | W72: 90.09 | X72: FALSE | AB72: 100.4
A73: 41 | B73: =OFFSET(InputPriceData!B$15,CalculationsAndCharts!$A73+$A$11,0,1,1) -> 2013-10-10 | C73: =OFFSET(InputPriceData!G$15,CalculationsAndCharts!$A73+$A$11,0,1,1) -> 8647900 | D73: =OFFSET(InputPriceData!C$15,CalculationsAndCharts!$A73+$A$11,IF($C$7,7,0),1,1) -> 86.12 | E73: =OFFSET(InputPriceData!D$15,CalculationsAndCharts!$A73+$A$11,IF($C$7,7,0),1,1) -> 87.17 | F73: =OFFSET(InputPriceData!E$15,CalculationsAndCharts!$A73+$A$11,IF($C$7,7,0),1,1) -> 86.1 | G73: =OFFSET(InputPriceData!F$15,CalculationsAndCharts!$A73+$A$11,IF($C$7,7,0),1,1) -> 87.17 | H73: 90.09 | I73: 84.9 | J73: 84.9 | K73: 90.09 | L73: 90.09 | M73: FALSE | O73: FALSE | P73: 84.9 | Q73: FALSE | S73: 84.9 | T73: FALSE | V73: TRUE | W73: 90.09 | X73: FALSE | AB73: 100.4
A74: 42 | B74: =OFFSET(InputPriceData!B$15,CalculationsAndCharts!$A74+$A$11,0,1,1) -> 2013-10-09 | C74: =OFFSET(InputPriceData!G$15,CalculationsAndCharts!$A74+$A$11,0,1,1) -> 8014200 | D74: =OFFSET(InputPriceData!C$15,CalculationsAndCharts!$A74+$A$11,IF($C$7,7,0),1,1) -> 85.33 | E74: =OFFSET(InputPriceData!D$15,CalculationsAndCharts!$A74+$A$11,IF($C$7,7,0),1,1) -> 85.63 | F74: =OFFSET(InputPriceData!E$15,CalculationsAndCharts!$A74+$A$11,IF($C$7,7,0),1,1) -> 84.9 | G74: =OFFSET(InputPriceData!F$15,CalculationsAndCharts!$A74+$A$11,IF($C$7,7,0),1,1) -> 85.36 | H74: 90.09 | I74: 84.98 | J74: 84.98 | K74: 90.09 | L74: 90.09 | M74: FALSE | O74: FALSE | P74: 84.98 | Q74: FALSE | S74: 84.98 | T74: FALSE | V74: TRUE | W74: 90.09 | X74: FALSE | AB74: 100.4
A75: 43 | B75: =OFFSET(InputPriceData!B$15,CalculationsAndCharts!$A75+$A$11,0,1,1) -> 2013-10-08 | C75: =OFFSET(InputPriceData!G$15,CalculationsAndCharts!$A75+$A$11,0,1,1) -> 8669800 | D75: =OFFSET(InputPriceData!C$15,CalculationsAndCharts!$A75+$A$11,IF($C$7,7,0),1,1) -> 86.02 | E75: =OFFSET(InputPriceData!D$15,CalculationsAndCharts!$A75+$A$11,IF($C$7,7,0),1,1) -> 86.14 | F75: =OFFSET(InputPriceData!E$15,CalculationsAndCharts!$A75+$A$11,IF($C$7,7,0),1,1) -> 84.98 | G75: =OFFSET(InputPriceData!F$15,CalculationsAndCharts!$A75+$A$11,IF($C$7,7,0),1,1) -> 85.02 | H75: 90.09 | I75: 85.55 | J75: 85.41 | K75: 90.09 | L75: 90.09 | M75: FALSE | O75: FALSE | P75: 85.55 | Q75: FALSE | S75: 85.41 | T75: TRUE | U75: 85.41 | V75: TRUE | W75: 90.09 | X75: FALSE | AB75: 100.4 | AE75: 85.41
A76: 44 | B76: =OFFSET(InputPriceData!B$15,CalculationsAndCharts!$A76+$A$11,0,1,1) -> 2013-10-07 | C76: =OFFSET(InputPriceData!G$15,CalculationsAndCharts!$A76+$A$11,0,1,1) -> 5705200 | D76: =OFFSET(InputPriceData!C$15,CalculationsAndCharts!$A76+$A$11,IF($C$7,7,0),1,1) -> 86.1 | E76: =OFFSET(InputPriceData!D$15,CalculationsAndCharts!$A76+$A$11,IF($C$7,7,0),1,1) -> 86.38 | F76: =OFFSET(InputPriceData!E$15,CalculationsAndCharts!$A76+$A$11,IF($C$7,7,0),1,1) -> 85.69 | G76: =OFFSET(InputPriceData!F$15,CalculationsAndCharts!$A76+$A$11,IF($C$7,7,0),1,1) -> 85.99 | H76: 90.09 | I76: 85.55 | J76: 85.25 | K76: 90.09 | L76: 90.09 | M76: FALSE | O76: FALSE | P76: 85.55 | Q76: FALSE | S76: 85.25 | T76: FALSE | V76: FALSE | W76: 90.09 | X76: FALSE
A77: 45 | B77: =OFFSET(InputPriceData!B$15,CalculationsAndCharts!$A77+$A$11,0,1,1) -> 2013-10-04 | C77: =OFFSET(InputPriceData!G$15,CalculationsAndCharts!$A77+$A$11,0,1,1) -> 6050000 | D77: =OFFSET(InputPriceData!C$15,CalculationsAndCharts!$A77+$A$11,IF($C$7,7,0),1,1) -> 86.21 | E77: =OFFSET(InputPriceData!D$15,CalculationsAndCharts!$A77+$A$11,IF($C$7,7,0),1,1) -> 86.81 | F77: =OFFSET(InputPriceData!E$15,CalculationsAndCharts!$A77+$A$11,IF($C$7,7,0),1,1) -> 85.96 | G77: =OFFSET(InputPriceData!F$15,CalculationsAndCharts!$A77+$A$11,IF($C$7,7,0),1,1) -> 86.7 | H77: 90.09 | I77: 85.55 | J77: 85.25 | K77: 90.09 | L77: 90.09 | M77: FALSE | O77: FALSE | P77: 85.55 | Q77: FALSE | S77: 85.25 | T77: FALSE | V77: FALSE | W77: 90.09 | X77: FALSE
A78: 46 | B78: =OFFSET(InputPriceData!B$15,CalculationsAndCharts!$A78+$A$11,0,1,1) -> 2013-10-03 | C78: =OFFSET(InputPriceData!G$15,CalculationsAndCharts!$A78+$A$11,0,1,1) -> 7724600 | D78: =OFFSET(InputPriceData!C$15,CalculationsAndCharts!$A78+$A$11,IF($C$7,7,0),1,1) -> 86.59 | E78: =OFFSET(InputPriceData!D$15,CalculationsAndCharts!$A78+$A$11,IF($C$7,7,0),1,1) -> 86.79 | F78: =OFFSET(InputPriceData!E$15,CalculationsAndCharts!$A78+$A$11,IF($C$7,7,0),1,1) -> 85.68 | G78: =OFFSET(InputPriceData!F$15,CalculationsAndCharts!$A78+$A$11,IF($C$7,7,0),1,1) -> 85.98 | H78: 90.09 | I78: 85.55 | J78: 85.25 | K78: 90.09 | L78: 90.09 | M78: FALSE | O78: FALSE | P78: 85.55 | Q78: FALSE | S78: 85.25 | T78: FALSE | V78: FALSE | W78: 90.09 | X78: FALSE
A79: 47 | B79: =OFFSET(InputPriceData!B$15,CalculationsAndCharts!$A79+$A$11,0,1,1) -> 2013-10-02 | C79: =OFFSET(InputPriceData!G$15,CalculationsAndCharts!$A79+$A$11,0,1,1) -> 6383400 | D79: =OFFSET(InputPriceData!C$15,CalculationsAndCharts!$A79+$A$11,IF($C$7,7,0),1,1) -> 86.52 | E79: =OFFSET(InputPriceData!D$15,CalculationsAndCharts!$A79+$A$11,IF($C$7,7,0),1,1) -> 86.68 | F79: =OFFSET(InputPriceData!E$15,CalculationsAndCharts!$A79+$A$11,IF($C$7,7,0),1,1) -> 85.84 | G79: =OFFSET(InputPriceData!F$15,CalculationsAndCharts!$A79+$A$11,IF($C$7,7,0),1,1) -> 86.68 | H79: 90.09 | I79: 85.55 | J79: 85.25 | K79: 90.09 | L79: 90.09 | M79: FALSE | O79: FALSE | P79: 85.55 | Q79: FALSE | S79: 85.25 | T79: FALSE | V79: FALSE | W79: 90.09 | X79: FALSE
A80: 48 | B80: =OFFSET(InputPriceData!B$15,CalculationsAndCharts!$A80+$A$11,0,1,1) -> 2013-10-01 | C80: =OFFSET(InputPriceData!G$15,CalculationsAndCharts!$A80+$A$11,0,1,1) -> 6318700 | D80: =OFFSET(InputPriceData!C$15,CalculationsAndCharts!$A80+$A$11,IF($C$7,7,0),1,1) -> 85.99 | E80: =OFFSET(InputPriceData!D$15,CalculationsAndCharts!$A80+$A$11,IF($C$7,7,0),1,1) -> 86.88 | F80: =OFFSET(InputPriceData!E$15,CalculationsAndCharts!$A80+$A$11,IF($C$7,7,0),1,1) -> 85.66 | G80: =OFFSET(InputPriceData!F$15,CalculationsAndCharts!$A80+$A$11,IF($C$7,7,0),1,1) -> 86.86 | H80: 90.09 | I80: 85.55 | J80: 85.25 | K80: 90.09 | L80: 90.09 | M80: FALSE | O80: FALSE | P80: 85.55 | Q80: FALSE | S80: 85.25 | T80: FALSE | V80: FALSE | W80: 90.09 | X80: FALSE
A81: 49 | B81: =OFFSET(InputPriceData!B$15,CalculationsAndCharts!$A81+$A$11,0,1,1) -> 2013-09-30 | C81: =OFFSET(InputPriceData!G$15,CalculationsAndCharts!$A81+$A$11,0,1,1) -> 7962300 | D81: =OFFSET(InputPriceData!C$15,CalculationsAndCharts!$A81+$A$11,IF($C$7,7,0),1,1) -> 85.73 | E81: =OFFSET(InputPriceData!D$15,CalculationsAndCharts!$A81+$A$11,IF($C$7,7,0),1,1) -> 86.35 | F81: =OFFSET(InputPriceData!E$15,CalculationsAndCharts!$A81+$A$11,IF($C$7,7,0),1,1) -> 85.55 | G81: =OFFSET(InputPriceData!F$15,CalculationsAndCharts!$A81+$A$11,IF($C$7,7,0),1,1) -> 86.09 | H81: 90.09 | I81: 85.84 | J81: 85.25 | K81: 90.09 | L81: 90.09 | M81: FALSE | O81: FALSE | P81: 85.84 | Q81: FALSE | S81: 85.25 | T81: FALSE | V81: FALSE | W81: 90.09 | X81: FALSE
A82: 50 | B82: =OFFSET(InputPriceData!B$15,CalculationsAndCharts!$A82+$A$11,0,1,1) -> 2013-09-27 | C82: =OFFSET(InputPriceData!G$15,CalculationsAndCharts!$A82+$A$11,0,1,1) -> 5461100 | D82: =OFFSET(InputPriceData!C$15,CalculationsAndCharts!$A82+$A$11,IF($C$7,7,0),1,1) -> 86.21 | E82: =OFFSET(InputPriceData!D$15,CalculationsAndCharts!$A82+$A$11,IF($C$7,7,0),1,1) -> 86.34 | F82: =OFFSET(InputPriceData!E$15,CalculationsAndCharts!$A82+$A$11,IF($C$7,7,0),1,1) -> 85.84 | G82: =OFFSET(InputPriceData!F$15,CalculationsAndCharts!$A82+$A$11,IF($C$7,7,0),1,1) -> 86.13 | H82: 90.09 | I82: 85.41 | J82: 85.25 | K82: 90.09 | L82: 90.09 | M82: FALSE | O82: FALSE | P82: 85.41 | Q82: FALSE | S82: 85.25 | T82: FALSE | V82: FALSE | W82: 90.09 | X82: FALSE
A83: 51 | B83: =OFFSET(InputPriceData!B$15,CalculationsAndCharts!$A83+$A$11,0,1,1) -> 2013-09-26 | C83: =OFFSET(InputPriceData!G$15,CalculationsAndCharts!$A83+$A$11,0,1,1) -> 6400600 | D83: =OFFSET(InputPriceData!C$15,CalculationsAndCharts!$A83+$A$11,IF($C$7,7,0),1,1) -> 86.68 | E83: =OFFSET(InputPriceData!D$15,CalculationsAndCharts!$A83+$A$11,IF($C$7,7,0),1,1) -> 87.1 | F83: =OFFSET(InputPriceData!E$15,CalculationsAndCharts!$A83+$A$11,IF($C$7,7,0),1,1) -> 86.12 | G83: =OFFSET(InputPriceData!F$15,CalculationsAndCharts!$A83+$A$11,IF($C$7,7,0),1,1) -> 86.47 | H83: 90.09 | I83: 85.41 | J83: 85.25 | K83: 90.09 | L83: 90.09 | M83: FALSE | O83: FALSE | P83: 85.41 | Q83: FALSE | S83: 85.25 | T83: FALSE | V83: FALSE | W83: 90.09 | X83: FALSE
A84: 52 | B84: =OFFSET(InputPriceData!B$15,CalculationsAndCharts!$A84+$A$11,0,1,1) -> 2013-09-25 | C84: =OFFSET(InputPriceData!G$15,CalculationsAndCharts!$A84+$A$11,0,1,1) -> 7493200 | D84: =OFFSET(InputPriceData!C$15,CalculationsAndCharts!$A84+$A$11,IF($C$7,7,0),1,1) -> 87.81 | E84: =OFFSET(InputPriceData!D$15,CalculationsAndCharts!$A84+$A$11,IF($C$7,7,0),1,1) -> 87.86 | F84: =OFFSET(InputPriceData!E$15,CalculationsAndCharts!$A84+$A$11,IF($C$7,7,0),1,1) -> 86.47 | G84: =OFFSET(InputPriceData!F$15,CalculationsAndCharts!$A84+$A$11,IF($C$7,7,0),1,1) -> 86.48 | H84: 90.33 | I84: 85.41 | J84: 85.25 | K84: 90.09 | L84: 90.33 | M84: FALSE | O84: FALSE | P84: 85.41 | Q84: FALSE | S84: 85.25 | T84: FALSE | V84: FALSE | W84: 90.09 | X84: FALSE
A85: 53 | B85: =OFFSET(InputPriceData!B$15,CalculationsAndCharts!$A85+$A$11,0,1,1) -> 2013-09-24 | C85: =OFFSET(InputPriceData!G$15,CalculationsAndCharts!$A85+$A$11,0,1,1) -> 7797500 | D85: =OFFSET(InputPriceData!C$15,CalculationsAndCharts!$A85+$A$11,IF($C$7,7,0),1,1) -> 88.4 | E85: =OFFSET(InputPriceData!D$15,CalculationsAndCharts!$A85+$A$11,IF($C$7,7,0),1,1) -> 88.58 | F85: =OFFSET(InputPriceData!E$15,CalculationsAndCharts!$A85+$A$11,IF($C$7,7,0),1,1) -> 87.54 | G85: =OFFSET(InputPriceData!F$15,CalculationsAndCharts!$A85+$A$11,IF($C$7,7,0),1,1) -> 87.61 | H85: 90.33 | I85: 85.41 | J85: 85.25 | K85: 90.09 | L85: 90.33 | M85: FALSE | O85: FALSE | P85: 85.41 | Q85: FALSE | S85: 85.25 | T85: FALSE | V85: FALSE | W85: 90.09 | X85: FALSE
A86: 54 | B86: =OFFSET(InputPriceData!B$15,CalculationsAndCharts!$A86+$A$11,0,1,1) -> 2013-09-23 | C86: =OFFSET(InputPriceData!G$15,CalculationsAndCharts!$A86+$A$11,0,1,1) -> 7376200 | D86: =OFFSET(InputPriceData!C$15,CalculationsAndCharts!$A86+$A$11,IF($C$7,7,0),1,1) -> 88.81 | E86: =OFFSET(InputPriceData!D$15,CalculationsAndCharts!$A86+$A$11,IF($C$7,7,0),1,1) -> 89.13 | F86: =OFFSET(InputPriceData!E$15,CalculationsAndCharts!$A86+$A$11,IF($C$7,7,0),1,1) -> 88.19 | G86: =OFFSET(InputPriceData!F$15,CalculationsAndCharts!$A86+$A$11,IF($C$7,7,0),1,1) -> 88.47 | H86: 90.33 | I86: 85.25 | J86: 85.25 | K86: 90.09 | L86: 90.33 | M86: FALSE | O86: FALSE | P86: 85.25 | Q86: FALSE | S86: 85.25 | T86: FALSE | V86: FALSE | W86: 90.09 | X86: FALSE
A87: 55 | B87: =OFFSET(InputPriceData!B$15,CalculationsAndCharts!$A87+$A$11,0,1,1) -> 2013-09-20 | C87: =OFFSET(InputPriceData!G$15,CalculationsAndCharts!$A87+$A$11,0,1,1) -> 14708600 | D87: =OFFSET(InputPriceData!C$15,CalculationsAndCharts!$A87+$A$11,IF($C$7,7,0),1,1) -> 89.58 | E87: =OFFSET(InputPriceData!D$15,CalculationsAndCharts!$A87+$A$11,IF($C$7,7,0),1,1) -> 90.09 | F87: =OFFSET(InputPriceData!E$15,CalculationsAndCharts!$A87+$A$11,IF($C$7,7,0),1,1) -> 89.06 | G87: =OFFSET(InputPriceData!F$15,CalculationsAndCharts!$A87+$A$11,IF($C$7,7,0),1,1) -> 89.06 | H87: 90.33 | I87: 85.25 | J87: 85.25 | K87: 89.58 | L87: 90.33 | M87: FALSE | O87: FALSE | P87: 85.25 | Q87: FALSE | S87: 85.25 | T87: FALSE | V87: FALSE | W87: 89.58 | X87: FALSE
A88: 56 | B88: =OFFSET(InputPriceData!B$15,CalculationsAndCharts!$A88+$A$11,0,1,1) -> 2013-09-19 | C88: =OFFSET(InputPriceData!G$15,CalculationsAndCharts!$A88+$A$11,0,1,1) -> 6721000 | D88: =OFFSET(InputPriceData!C$15,CalculationsAndCharts!$A88+$A$11,IF($C$7,7,0),1,1) -> 89.43 | E88: =OFFSET(InputPriceData!D$15,CalculationsAndCharts!$A88+$A$11,IF($C$7,7,0),1,1) -> 89.58 | F88: =OFFSET(InputPriceData!E$15,CalculationsAndCharts!$A88+$A$11,IF($C$7,7,0),1,1) -> 89.17 | G88: =OFFSET(InputPriceData!F$15,CalculationsAndCharts!$A88+$A$11,IF($C$7,7,0),1,1) -> 89.45 | H88: 91.62 | I88: 85.25 | J88: 85.25 | K88: 89.29 | L88: 91.62 | M88: FALSE | O88: FALSE | P88: 85.25 | Q88: FALSE | S88: 85.25 | T88: FALSE | V88: FALSE | W88: 89.29 | X88: FALSE
A89: 57 | B89: =OFFSET(InputPriceData!B$15,CalculationsAndCharts!$A89+$A$11,0,1,1) -> 2013-09-18 | C89: =OFFSET(InputPriceData!G$15,CalculationsAndCharts!$A89+$A$11,0,1,1) -> 10115500 | D89: =OFFSET(InputPriceData!C$15,CalculationsAndCharts!$A89+$A$11,IF($C$7,7,0),1,1) -> 88.3 | E89: =OFFSET(InputPriceData!D$15,CalculationsAndCharts!$A89+$A$11,IF($C$7,7,0),1,1) -> 89.29 | F89: =OFFSET(InputPriceData!E$15,CalculationsAndCharts!$A89+$A$11,IF($C$7,7,0),1,1) -> 87.69 | G89: =OFFSET(InputPriceData!F$15,CalculationsAndCharts!$A89+$A$11,IF($C$7,7,0),1,1) -> 89.29 | H89: 92.01 | I89: 85.25 | J89: 85.25 | K89: 88.95 | L89: 92.01 | M89: FALSE | O89: FALSE | P89: 85.25 | Q89: FALSE | S89: 85.25 | T89: FALSE | V89: FALSE | W89: 88.95 | X89: FALSE
A90: 58 | B90: =OFFSET(InputPriceData!B$15,CalculationsAndCharts!$A90+$A$11,0,1,1) -> 2013-09-17 | C90: =OFFSET(InputPriceData!G$15,CalculationsAndCharts!$A90+$A$11,0,1,1) -> 6291100 | D90: =OFFSET(InputPriceData!C$15,CalculationsAndCharts!$A90+$A$11,IF($C$7,7,0),1,1) -> 88.43 | E90: =OFFSET(InputPriceData!D$15,CalculationsAndCharts!$A90+$A$11,IF($C$7,7,0),1,1) -> 88.6 | F90: =OFFSET(InputPriceData!E$15,CalculationsAndCharts!$A90+$A$11,IF($C$7,7,0),1,1) -> 87.96 | G90: =OFFSET(InputPriceData!F$15,CalculationsAndCharts!$A90+$A$11,IF($C$7,7,0),1,1) -> 88.44 | H90: 92.01 | I90: 85.25 | J90: 85.25 | K90: 88.95 | L90: 92.01 | M90: FALSE | O90: FALSE | P90: 85.25 | Q90: FALSE | S90: 85.25 | T90: FALSE | V90: FALSE | W90: 88.95 | X90: FALSE
A91: 59 | B91: =OFFSET(InputPriceData!B$15,CalculationsAndCharts!$A91+$A$11,0,1,1) -> 2013-09-16 | C91: =OFFSET(InputPriceData!G$15,CalculationsAndCharts!$A91+$A$11,0,1,1) -> 7563700 | D91: =OFFSET(InputPriceData!C$15,CalculationsAndCharts!$A91+$A$11,IF($C$7,7,0),1,1) -> 88.81 | E91: =OFFSET(InputPriceData!D$15,CalculationsAndCharts!$A91+$A$11,IF($C$7,7,0),1,1) -> 88.95 | F91: =OFFSET(InputPriceData!E$15,CalculationsAndCharts!$A91+$A$11,IF($C$7,7,0),1,1) -> 88.21 | G91: =OFFSET(InputPriceData!F$15,CalculationsAndCharts!$A91+$A$11,IF($C$7,7,0),1,1) -> 88.41 | H91: 92.05 | I91: 85.25 | J91: 85.25 | K91: 88.95 | L91: 92.05 | M91: FALSE | O91: FALSE | P91: 85.25 | Q91: FALSE | S91: 85.25 | T91: FALSE | V91: FALSE | W91: 88.95 | X91: FALSE
A92: 60 | B92: =OFFSET(InputPriceData!B$15,CalculationsAndCharts!$A92+$A$11,0,1,1) -> 2013-09-13 | C92: =OFFSET(InputPriceData!G$15,CalculationsAndCharts!$A92+$A$11,0,1,1) -> 7738600 | D92: =OFFSET(InputPriceData!C$15,CalculationsAndCharts!$A92+$A$11,IF($C$7,7,0),1,1) -> 88.52 | E92: =OFFSET(InputPriceData!D$15,CalculationsAndCharts!$A92+$A$11,IF($C$7,7,0),1,1) -> 88.64 | F92: =OFFSET(InputPriceData!E$15,CalculationsAndCharts!$A92+$A$11,IF($C$7,7,0),1,1) -> 87.59 | G92: =OFFSET(InputPriceData!F$15,CalculationsAndCharts!$A92+$A$11,IF($C$7,7,0),1,1) -> 87.96 | H92: 93.02 | I92: 85.25 | J92: 85.25 | K92: 88.95 | L92: 93.02 | M92: FALSE | O92: FALSE | P92: 85.25 | Q92: FALSE | S92: 85.25 | T92: FALSE | V92: FALSE | W92: 88.95 | X92: FALSE
A93: 61 | B93: =OFFSET(InputPriceData!B$15,CalculationsAndCharts!$A93+$A$11,0,1,1) -> 2013-09-12 | C93: =OFFSET(InputPriceData!G$15,CalculationsAndCharts!$A93+$A$11,0,1,1) -> 7938500 | D93: =OFFSET(InputPriceData!C$15,CalculationsAndCharts!$A93+$A$11,IF($C$7,7,0),1,1) -> 88.68 | E93: =OFFSET(InputPriceData!D$15,CalculationsAndCharts!$A93+$A$11,IF($C$7,7,0),1,1) -> 88.95 | F93: =OFFSET(InputPriceData!E$15,CalculationsAndCharts!$A93+$A$11,IF($C$7,7,0),1,1) -> 88.26 | G93: =OFFSET(InputPriceData!F$15,CalculationsAndCharts!$A93+$A$11,IF($C$7,7,0),1,1) -> 88.39 | H93: 93.02 | I93: 85.25 | J93: 85.25 | K93: 88.65 | L93: 93.02 | M93: FALSE | O93: FALSE | P93: 85.25 | Q93: FALSE | S93: 85.25 | T93: FALSE | V93: FALSE | W93: 88.65 | X93: TRUE | Y93: 88.68 | AF93: 88.68
A94: 62 | B94: =OFFSET(InputPriceData!B$15,CalculationsAndCharts!$A94+$A$11,0,1,1) -> 2013-09-11 | C94: =OFFSET(InputPriceData!G$15,CalculationsAndCharts!$A94+$A$11,0,1,1) -> 8098100 | D94: =OFFSET(InputPriceData!C$15,CalculationsAndCharts!$A94+$A$11,IF($C$7,7,0),1,1) -> 88.01 | E94: =OFFSET(InputPriceData!D$15,CalculationsAndCharts!$A94+$A$11,IF($C$7,7,0),1,1) -> 88.65 | F94: =OFFSET(InputPriceData!E$15,CalculationsAndCharts!$A94+$A$11,IF($C$7,7,0),1,1) -> 87.53 | G94: =OFFSET(InputPriceData!F$15,CalculationsAndCharts!$A94+$A$11,IF($C$7,7,0),1,1) -> 88.61 | H94: 93.02 | I94: 85.25 | J94: 85.25 | K94: 90.33 | L94: 93.02 | M94: FALSE | O94: FALSE | P94: 85.25 | Q94: FALSE | S94: 85.25 | T94: FALSE | V94: TRUE | W94: 90.33 | X94: FALSE | AB94: 100.4
A95: 63 | B95: =OFFSET(InputPriceData!B$15,CalculationsAndCharts!$A95+$A$11,0,1,1) -> 2013-09-10 | C95: =OFFSET(InputPriceData!G$15,CalculationsAndCharts!$A95+$A$11,0,1,1) -> 8658700 | D95: =OFFSET(InputPriceData!C$15,CalculationsAndCharts!$A95+$A$11,IF($C$7,7,0),1,1) -> 87.53 | E95: =OFFSET(InputPriceData!D$15,CalculationsAndCharts!$A95+$A$11,IF($C$7,7,0),1,1) -> 87.97 | F95: =OFFSET(InputPriceData!E$15,CalculationsAndCharts!$A95+$A$11,IF($C$7,7,0),1,1) -> 87.24 | G95: =OFFSET(InputPriceData!F$15,CalculationsAndCharts!$A95+$A$11,IF($C$7,7,0),1,1) -> 87.92 | H95: 93.02 | I95: 85.25 | J95: 85.25 | K95: 90.33 | L95: 93.02 | M95: FALSE | O95: FALSE | P95: 85.25 | Q95: FALSE | S95: 85.25 | T95: FALSE | V95: TRUE | W95: 90.33 | X95: FALSE | AB95: 100.4
A96: 64 | B96: =OFFSET(InputPriceData!B$15,CalculationsAndCharts!$A96+$A$11,0,1,1) -> 2013-09-09 | C96: =OFFSET(InputPriceData!G$15,CalculationsAndCharts!$A96+$A$11,0,1,1) -> 6819700 | D96: =OFFSET(InputPriceData!C$15,CalculationsAndCharts!$A96+$A$11,IF($C$7,7,0),1,1) -> 86.78 | E96: =OFFSET(InputPriceData!D$15,CalculationsAndCharts!$A96+$A$11,IF($C$7,7,0),1,1) -> 86.99 | F96: =OFFSET(InputPriceData!E$15,CalculationsAndCharts!$A96+$A$11,IF($C$7,7,0),1,1) -> 86.4 | G96: =OFFSET(InputPriceData!F$15,CalculationsAndCharts!$A96+$A$11,IF($C$7,7,0),1,1) -> 86.95 | H96: 93.03 | I96: 85.25 | J96: 85.25 | K96: 90.33 | L96: 93.03 | M96: FALSE | O96: FALSE | P96: 85.25 | Q96: FALSE | S96: 85.25 | T96: FALSE | V96: TRUE | W96: 90.33 | X96: FALSE | AB96: 100.4
A97: 65 | B97: =OFFSET(InputPriceData!B$15,CalculationsAndCharts!$A97+$A$11,0,1,1) -> 2013-09-06 | C97: =OFFSET(InputPriceData!G$15,CalculationsAndCharts!$A97+$A$11,0,1,1) -> 10034900 | D97: =OFFSET(InputPriceData!C$15,CalculationsAndCharts!$A97+$A$11,IF($C$7,7,0),1,1) -> 86.62 | E97: =OFFSET(InputPriceData!D$15,CalculationsAndCharts!$A97+$A$11,IF($C$7,7,0),1,1) -> 87.31 | F97: =OFFSET(InputPriceData!E$15,CalculationsAndCharts!$A97+$A$11,IF($C$7,7,0),1,1) -> 85.41 | G97: =OFFSET(InputPriceData!F$15,CalculationsAndCharts!$A97+$A$11,IF($C$7,7,0),1,1) -> 86.56 | H97: 93.04 | I97: =IF($S$9,P97,NA()) -> 85.25 | J97: =IF($S$11,S97,NA()) -> 85.25 | K97: =IF($S$11,W97,NA()) -> 90.33 | L97: =IF(A97>=$A$8,E97,MAX(OFFSET($E97,1,0,$B$16,1))) -> 93.04 | M97: =AND(E97>L97,NOT(O98)) -> FALSE | N97: =IF(M97,MAX(D97,L97),NA()) ->  | O97: FALSE | P97: =IF(A97>=$A$8,F97,MIN(OFFSET($F97,1,0,$B$17,1))) -> 85.25 | Q97: =AND(F97<P97,O98) -> FALSE | R97: =IF(Q97,MIN(D97,P97),NA()) ->  | S97: =IF(A97>=$A$8,F97,MIN(OFFSET($F97,1,0,$B$16,1))) -> 85.25 | T97: =AND(F97<S97,NOT(V98)) -> FALSE | V97: TRUE | W97: =IF(A97>=$A$8,E97,MAX(OFFSET($E97,1,0,$B$17,1))) -> 90.33 | X97: FALSE | Y97: =IF(X97,MAX($D97,W97),NA()) ->  | Z97: =IF($A97=$E$25,Z$32,NA()) ->  | AA97: =IF($S$10,IF($A97>$A$8,NA(),IF(O97,AA$31,NA())),NA()) ->  | AB97: =IF($S$12,IF($A97>$A$8,NA(),IF(V97,AA$31,NA())),NA()) -> 100.4 | AC97: =IF(AND($S$10,M97),N97,NA()) ->  | AD97: =IF(AND($S$10,Q97),R97,NA()) ->  | AE97: =IF(AND($S$12,T97),U97,NA()) ->  | AF97: =IF(AND($S$12,X97),Y97,NA()) -> 
A98: 66 | B98: =OFFSET(InputPriceData!B$15,CalculationsAndCharts!$A98+$A$11,0,1,1) -> 2013-09-05 | C98: =OFFSET(InputPriceData!G$15,CalculationsAndCharts!$A98+$A$11,0,1,1) -> 5647900 | D98: =OFFSET(InputPriceData!C$15,CalculationsAndCharts!$A98+$A$11,IF($C$7,7,0),1,1) -> 86.4 | E98: =OFFSET(InputPriceData!D$15,CalculationsAndCharts!$A98+$A$11,IF($C$7,7,0),1,1) -> 86.57 | F98: =OFFSET(InputPriceData!E$15,CalculationsAndCharts!$A98+$A$11,IF($C$7,7,0),1,1) -> 86.02 | G98: =OFFSET(InputPriceData!F$15,CalculationsAndCharts!$A98+$A$11,IF($C$7,7,0),1,1) -> 86.44 | H98: =IF($S$9,L98,NA()) -> 93.07 | I98: 85.25 | J98: 85.25 | K98: 91.62 | L98: 93.07 | M98: FALSE | O98: =OR(AND(NOT(A98>=$A$8),M98,NOT(Q98)),AND(O99,NOT(Q98))) -> FALSE | P98: 85.25 | Q98: FALSE | S98: 85.25 | T98: FALSE | U98: =IF(T98,MIN($D98,S98),NA()) ->  | V98: =OR(AND(NOT($A98>=$A$8),T98,NOT(X98)),AND(V99,NOT(X98))) -> TRUE | W98: 91.62 | X98: =AND(E98>W98,V99) -> FALSE | AB98: 100.4
A99: 67 | B99: =OFFSET(InputPriceData!B$15,CalculationsAndCharts!$A99+$A$11,0,1,1) -> 2013-09-04 | C99: =OFFSET(InputPriceData!G$15,CalculationsAndCharts!$A99+$A$11,0,1,1) -> 8458800 | D99: =OFFSET(InputPriceData!C$15,CalculationsAndCharts!$A99+$A$11,IF($C$7,7,0),1,1) -> 85.86 | E99: =OFFSET(InputPriceData!D$15,CalculationsAndCharts!$A99+$A$11,IF($C$7,7,0),1,1) -> 86.65 | F99: =OFFSET(InputPriceData!E$15,CalculationsAndCharts!$A99+$A$11,IF($C$7,7,0),1,1) -> 85.65 | G99: =OFFSET(InputPriceData!F$15,CalculationsAndCharts!$A99+$A$11,IF($C$7,7,0),1,1) -> 86.3 | H99: 93.07 | I99: 85.25 | J99: 85.25 | K99: 92.01 | L99: 93.07 | M99: FALSE | O99: FALSE | P99: 85.25 | Q99: FALSE | S99: 85.25 | T99: FALSE | V99: TRUE | W99: 92.01 | X99: FALSE | AB99: 100.4
A100: 68 | B100: =OFFSET(InputPriceData!B$15,CalculationsAndCharts!$A100+$A$11,0,1,1) -> 2013-09-03 | C100: =OFFSET(InputPriceData!G$15,CalculationsAndCharts!$A100+$A$11,0,1,1) -> 7590500 | D100: =OFFSET(InputPriceData!C$15,CalculationsAndCharts!$A100+$A$11,IF($C$7,7,0),1,1) -> 86.29 | E100: =OFFSET(InputPriceData!D$15,CalculationsAndCharts!$A100+$A$11,IF($C$7,7,0),1,1) -> 86.69 | F100: =OFFSET(InputPriceData!E$15,CalculationsAndCharts!$A100+$A$11,IF($C$7,7,0),1,1) -> 85.43 | G100: =OFFSET(InputPriceData!F$15,CalculationsAndCharts!$A100+$A$11,IF($C$7,7,0),1,1) -> 85.82 | H100: 93.07 | I100: 85.25 | J100: 85.25 | K100: 92.01 | L100: 93.07 | M100: FALSE | O100: FALSE | P100: 85.25 | Q100: FALSE | S100: 85.25 | T100: FALSE | V100: TRUE | W100: 92.01 | X100: FALSE | AB100: 100.4
A101: 69 | B101: =OFFSET(InputPriceData!B$15,CalculationsAndCharts!$A101+$A$11,0,1,1) -> 2013-08-30 | C101: =OFFSET(InputPriceData!G$15,CalculationsAndCharts!$A101+$A$11,0,1,1) -> 7471300 | D101: =OFFSET(InputPriceData!C$15,CalculationsAndCharts!$A101+$A$11,IF($C$7,7,0),1,1) -> 86.18 | E101: =OFFSET(InputPriceData!D$15,CalculationsAndCharts!$A101+$A$11,IF($C$7,7,0),1,1) -> 86.18 | F101: =OFFSET(InputPriceData!E$15,CalculationsAndCharts!$A101+$A$11,IF($C$7,7,0),1,1) -> 85.25 | G101: =OFFSET(InputPriceData!F$15,CalculationsAndCharts!$A101+$A$11,IF($C$7,7,0),1,1) -> 85.81 | H101: 93.07 | I101: 85.28 | J101: 85.28 | K101: 92.05 | L101: 93.07 | M101: FALSE | O101: FALSE | P101: 85.28 | Q101: FALSE | S101: 85.28 | T101: FALSE | V101: TRUE | W101: 92.05 | X101: FALSE | AB101: 100.4
A102: 70 | B102: =OFFSET(InputPriceData!B$15,CalculationsAndCharts!$A102+$A$11,0,1,1) -> 2013-08-29 | C102: =OFFSET(InputPriceData!G$15,CalculationsAndCharts!$A102+$A$11,0,1,1) -> 5768800 | D102: =OFFSET(InputPriceData!C$15,CalculationsAndCharts!$A102+$A$11,IF($C$7,7,0),1,1) -> 85.81 | E102: =OFFSET(InputPriceData!D$15,CalculationsAndCharts!$A102+$A$11,IF($C$7,7,0),1,1) -> 86.54 | F102: =OFFSET(InputPriceData!E$15,CalculationsAndCharts!$A102+$A$11,IF($C$7,7,0),1,1) -> 85.39 | G102: =OFFSET(InputPriceData!F$15,CalculationsAndCharts!$A102+$A$11,IF($C$7,7,0),1,1) -> 85.97 | H102: 93.07 | I102: 85.28 | J102: 85.28 | K102: 93.02 | L102: 93.07 | M102: FALSE | O102: FALSE | P102: 85.28 | Q102: FALSE | S102: 85.28 | T102: FALSE | V102: TRUE | W102: 93.02 | X102: FALSE | AB102: 100.4
A103: 71 | B103: =OFFSET(InputPriceData!B$15,CalculationsAndCharts!$A103+$A$11,0,1,1) -> 2013-08-28 | C103: =OFFSET(InputPriceData!G$15,CalculationsAndCharts!$A103+$A$11,0,1,1) -> 8829200 | D103: =OFFSET(InputPriceData!C$15,CalculationsAndCharts!$A103+$A$11,IF($C$7,7,0),1,1) -> 85.76 | E103: =OFFSET(InputPriceData!D$15,CalculationsAndCharts!$A103+$A$11,IF($C$7,7,0),1,1) -> 86.31 | F103: =OFFSET(InputPriceData!E$15,CalculationsAndCharts!$A103+$A$11,IF($C$7,7,0),1,1) -> 85.28 | G103: =OFFSET(InputPriceData!F$15,CalculationsAndCharts!$A103+$A$11,IF($C$7,7,0),1,1) -> 85.93 | H103: 93.07 | I103: 85.36 | J103: 85.36 | K103: 93.02 | L103: 93.07 | M103: FALSE | O103: FALSE | P103: 85.36 | Q103: FALSE | S103: 85.36 | T103: FALSE | V103: TRUE | W103: 93.02 | X103: FALSE | AB103: 100.4
A104: 72 | B104: =OFFSET(InputPriceData!B$15,CalculationsAndCharts!$A104+$A$11,0,1,1) -> 2013-08-27 | C104: =OFFSET(InputPriceData!G$15,CalculationsAndCharts!$A104+$A$11,0,1,1) -> 9941200 | D104: =OFFSET(InputPriceData!C$15,CalculationsAndCharts!$A104+$A$11,IF($C$7,7,0),1,1) -> 86.36 | E104: =OFFSET(InputPriceData!D$15,CalculationsAndCharts!$A104+$A$11,IF($C$7,7,0),1,1) -> 86.47 | F104: =OFFSET(InputPriceData!E$15,CalculationsAndCharts!$A104+$A$11,IF($C$7,7,0),1,1) -> 85.36 | G104: =OFFSET(InputPriceData!F$15,CalculationsAndCharts!$A104+$A$11,IF($C$7,7,0),1,1) -> 85.57 | H104: 93.07 | I104: 86.61 | J104: 86.61 | K104: 93.02 | L104: 93.07 | M104: FALSE | O104: FALSE | P104: 86.61 | Q104: FALSE | S104: 86.61 | T104: FALSE | V104: TRUE | W104: 93.02 | X104: FALSE | AB104: 100.4
A105: 73 | B105: =OFFSET(InputPriceData!B$15,CalculationsAndCharts!$A105+$A$11,0,1,1) -> 2013-08-26 | C105: =OFFSET(InputPriceData!G$15,CalculationsAndCharts!$A105+$A$11,0,1,1) -> 6724500 | D105: =OFFSET(InputPriceData!C$15,CalculationsAndCharts!$A105+$A$11,IF($C$7,7,0),1,1) -> 87.74 | E105: =OFFSET(InputPriceData!D$15,CalculationsAndCharts!$A105+$A$11,IF($C$7,7,0),1,1) -> 87.86 | F105: =OFFSET(InputPriceData!E$15,CalculationsAndCharts!$A105+$A$11,IF($C$7,7,0),1,1) -> 86.78 | G105: =OFFSET(InputPriceData!F$15,CalculationsAndCharts!$A105+$A$11,IF($C$7,7,0),1,1) -> 86.92 | H105: 93.07 | I105: 86.61 | J105: 86.61 | K105: 93.02 | L105: 93.07 | M105: FALSE | O105: FALSE | P105: 86.61 | Q105: FALSE | S105: 86.61 | T105: FALSE | V105: TRUE | W105: 93.02 | X105: FALSE | AB105: 100.4
A106: 74 | B106: =OFFSET(InputPriceData!B$15,CalculationsAndCharts!$A106+$A$11,0,1,1) -> 2013-08-23 | C106: =OFFSET(InputPriceData!G$15,CalculationsAndCharts!$A106+$A$11,0,1,1) -> 7714900 | D106: =OFFSET(InputPriceData!C$15,CalculationsAndCharts!$A106+$A$11,IF($C$7,7,0),1,1) -> 87.32 | E106: =OFFSET(InputPriceData!D$15,CalculationsAndCharts!$A106+$A$11,IF($C$7,7,0),1,1) -> 87.83 | F106: =OFFSET(InputPriceData!E$15,CalculationsAndCharts!$A106+$A$11,IF($C$7,7,0),1,1) -> 86.61 | G106: =OFFSET(InputPriceData!F$15,CalculationsAndCharts!$A106+$A$11,IF($C$7,7,0),1,1) -> 87.8 | H106: 93.07 | I106: 86.85 | J106: 86.85 | K106: 93.03 | L106: 93.07 | M106: FALSE | O106: FALSE | P106: 86.85 | Q106: FALSE | S106: 86.85 | T106: FALSE | V106: TRUE | W106: 93.03 | X106: FALSE | AB106: 100.4
A107: 75 | B107: =OFFSET(InputPriceData!B$15,CalculationsAndCharts!$A107+$A$11,0,1,1) -> 2013-08-22 | C107: =OFFSET(InputPriceData!G$15,CalculationsAndCharts!$A107+$A$11,0,1,1) -> 7191900 | D107: =OFFSET(InputPriceData!C$15,CalculationsAndCharts!$A107+$A$11,IF($C$7,7,0),1,1) -> 87.48 | E107: =OFFSET(InputPriceData!D$15,CalculationsAndCharts!$A107+$A$11,IF($C$7,7,0),1,1) -> 87.75 | F107: =OFFSET(InputPriceData!E$15,CalculationsAndCharts!$A107+$A$11,IF($C$7,7,0),1,1) -> 86.85 | G107: =OFFSET(InputPriceData!F$15,CalculationsAndCharts!$A107+$A$11,IF($C$7,7,0),1,1) -> 86.99 | H107: 93.07 | I107: 87.4 | J107: 87.4 | K107: 93.04 | L107: 93.07 | M107: FALSE | O107: FALSE | P107: 87.4 | Q107: FALSE | S107: 87.4 | T107: FALSE | V107: TRUE | W107: 93.04 | X107: FALSE | AB107: 100.4
A108: 76 | B108: =OFFSET(InputPriceData!B$15,CalculationsAndCharts!$A108+$A$11,0,1,1) -> 2013-08-21 | C108: =OFFSET(InputPriceData!G$15,CalculationsAndCharts!$A108+$A$11,0,1,1) -> 7940700 | D108: =OFFSET(InputPriceData!C$15,CalculationsAndCharts!$A108+$A$11,IF($C$7,7,0),1,1) -> 88.18 | E108: =OFFSET(InputPriceData!D$15,CalculationsAndCharts!$A108+$A$11,IF($C$7,7,0),1,1) -> 88.34 | F108: =OFFSET(InputPriceData!E$15,CalculationsAndCharts!$A108+$A$11,IF($C$7,7,0),1,1) -> 87.4 | G108: =OFFSET(InputPriceData!F$15,CalculationsAndCharts!$A108+$A$11,IF($C$7,7,0),1,1) -> 87.52 | H108: 93.07 | I108: 87.5 | J108: 87.5 | K108: 93.07 | L108: 93.07 | M108: FALSE | O108: FALSE | P108: 87.5 | Q108: FALSE | S108: 87.5 | T108: FALSE | V108: TRUE | W108: 93.07 | X108: FALSE | AB108: 100.4
A109: 77 | B109: =OFFSET(InputPriceData!B$15,CalculationsAndCharts!$A109+$A$11,0,1,1) -> 2013-08-20 | C109: =OFFSET(InputPriceData!G$15,CalculationsAndCharts!$A109+$A$11,0,1,1) -> 8559200 | D109: =OFFSET(InputPriceData!C$15,CalculationsAndCharts!$A109+$A$11,IF($C$7,7,0),1,1) -> 89.25 | E109: =OFFSET(InputPriceData!D$15,CalculationsAndCharts!$A109+$A$11,IF($C$7,7,0),1,1) -> 90.33 | F109: =OFFSET(InputPriceData!E$15,CalculationsAndCharts!$A109+$A$11,IF($C$7,7,0),1,1) -> 88.44 | G109: =OFFSET(InputPriceData!F$15,CalculationsAndCharts!$A109+$A$11,IF($C$7,7,0),1,1) -> 88.44 | H109: 93.07 | I109: 87.5 | J109: 87.5 | K109: 93.07 | L109: 93.07 | M109: FALSE | O109: FALSE | P109: 87.5 | Q109: FALSE | S109: 87.5 | T109: FALSE | V109: TRUE | W109: 93.07 | X109: FALSE | AB109: 100.4
A110: 78 | B110: =OFFSET(InputPriceData!B$15,CalculationsAndCharts!$A110+$A$11,0,1,1) -> 2013-08-19 | C110: =OFFSET(InputPriceData!G$15,CalculationsAndCharts!$A110+$A$11,0,1,1) -> 8687000 | D110: =OFFSET(InputPriceData!C$15,CalculationsAndCharts!$A110+$A$11,IF($C$7,7,0),1,1) -> 88.18 | E110: =OFFSET(InputPriceData!D$15,CalculationsAndCharts!$A110+$A$11,IF($C$7,7,0),1,1) -> 89.94 | F110: =OFFSET(InputPriceData!E$15,CalculationsAndCharts!$A110+$A$11,IF($C$7,7,0),1,1) -> 88.07 | G110: =OFFSET(InputPriceData!F$15,CalculationsAndCharts!$A110+$A$11,IF($C$7,7,0),1,1) -> 89.15 | H110: 93.07 | I110: 87.5 | J110: 87.5 | K110: 93.07 | L110: 93.07 | M110: FALSE | O110: FALSE | P110: 87.5 | Q110: FALSE | S110: 87.5 | T110: FALSE | V110: TRUE | W110: 93.07 | X110: FALSE | AB110: 100.4
A111: 79 | B111: =OFFSET(InputPriceData!B$15,CalculationsAndCharts!$A111+$A$11,0,1,1) -> 2013-08-16 | C111: =OFFSET(InputPriceData!G$15,CalculationsAndCharts!$A111+$A$11,0,1,1) -> 14100700 | D111: =OFFSET(InputPriceData!C$15,CalculationsAndCharts!$A111+$A$11,IF($C$7,7,0),1,1) -> 87.85 | E111: =OFFSET(InputPriceData!D$15,CalculationsAndCharts!$A111+$A$11,IF($C$7,7,0),1,1) -> 88.51 | F111: =OFFSET(InputPriceData!E$15,CalculationsAndCharts!$A111+$A$11,IF($C$7,7,0),1,1) -> 87.5 | G111: =OFFSET(InputPriceData!F$15,CalculationsAndCharts!$A111+$A$11,IF($C$7,7,0),1,1) -> 88.09 | H111: 93.07 | I111: 87.81 | J111: 87.81 | K111: 93.07 | L111: 93.07 | M111: FALSE | O111: FALSE | P111: 87.81 | Q111: FALSE | S111: 87.81 | T111: TRUE | U111: 87.81 | V111: TRUE | W111: 93.07 | X111: FALSE | AB111: 100.4 | AE111: 87.81
A112: 80 | B112: =OFFSET(InputPriceData!B$15,CalculationsAndCharts!$A112+$A$11,0,1,1) -> 2013-08-15 | C112: =OFFSET(InputPriceData!G$15,CalculationsAndCharts!$A112+$A$11,0,1,1) -> 12010700 | D112: =OFFSET(InputPriceData!C$15,CalculationsAndCharts!$A112+$A$11,IF($C$7,7,0),1,1) -> 89.02 | E112: =OFFSET(InputPriceData!D$15,CalculationsAndCharts!$A112+$A$11,IF($C$7,7,0),1,1) -> 89.11 | F112: =OFFSET(InputPriceData!E$15,CalculationsAndCharts!$A112+$A$11,IF($C$7,7,0),1,1) -> 87.81 | G112: =OFFSET(InputPriceData!F$15,CalculationsAndCharts!$A112+$A$11,IF($C$7,7,0),1,1) -> 88.26 | H112: 93.07 | I112: 89.21 | J112: 87.72 | K112: 93.07 | L112: 93.07 | M112: FALSE | O112: FALSE | P112: 89.21 | Q112: FALSE | S112: 87.72 | T112: FALSE | V112: FALSE | W112: 93.07 | X112: FALSE
A113: 81 | B113: =OFFSET(InputPriceData!B$15,CalculationsAndCharts!$A113+$A$11,0,1,1) -> 2013-08-14 | C113: =OFFSET(InputPriceData!G$15,CalculationsAndCharts!$A113+$A$11,0,1,1) -> 12716800 | D113: =OFFSET(InputPriceData!C$15,CalculationsAndCharts!$A113+$A$11,IF($C$7,7,0),1,1) -> 91.46 | E113: =OFFSET(InputPriceData!D$15,CalculationsAndCharts!$A113+$A$11,IF($C$7,7,0),1,1) -> 91.62 | F113: =OFFSET(InputPriceData!E$15,CalculationsAndCharts!$A113+$A$11,IF($C$7,7,0),1,1) -> 89.21 | G113: =OFFSET(InputPriceData!F$15,CalculationsAndCharts!$A113+$A$11,IF($C$7,7,0),1,1) -> 89.4 | H113: 93.07 | I113: 90.34 | J113: 87.54 | K113: 93.07 | L113: 93.07 | M113: FALSE | O113: FALSE | P113: 90.34 | Q113: TRUE | R113: 90.34 | S113: 87.54 | T113: FALSE | V113: FALSE | W113: 93.07 | X113: FALSE | AD113: 90.34
A114: 82 | B114: =OFFSET(InputPriceData!B$15,CalculationsAndCharts!$A114+$A$11,0,1,1) -> 2013-08-13 | C114: =OFFSET(InputPriceData!G$15,CalculationsAndCharts!$A114+$A$11,0,1,1) -> 10099800 | D114: =OFFSET(InputPriceData!C$15,CalculationsAndCharts!$A114+$A$11,IF($C$7,7,0),1,1) -> 90.57 | E114: =OFFSET(InputPriceData!D$15,CalculationsAndCharts!$A114+$A$11,IF($C$7,7,0),1,1) -> 92.01 | F114: =OFFSET(InputPriceData!E$15,CalculationsAndCharts!$A114+$A$11,IF($C$7,7,0),1,1) -> 90.44 | G114: =OFFSET(InputPriceData!F$15,CalculationsAndCharts!$A114+$A$11,IF($C$7,7,0),1,1) -> 91.67 | H114: 93.07 | I114: 90.34 | J114: 87.09 | K114: 93.07 | L114: 93.07 | M114: FALSE | O114: TRUE | P114: 90.34 | Q114: FALSE | S114: 87.09 | T114: FALSE | V114: FALSE | W114: 93.07 | X114: FALSE | AA114: 100.4
A115: 83 | B115: =OFFSET(InputPriceData!B$15,CalculationsAndCharts!$A115+$A$11,0,1,1) -> 2013-08-12 | C115: =OFFSET(InputPriceData!G$15,CalculationsAndCharts!$A115+$A$11,0,1,1) -> 11012300 | D115: =OFFSET(InputPriceData!C$15,CalculationsAndCharts!$A115+$A$11,IF($C$7,7,0),1,1) -> 90.76 | E115: =OFFSET(InputPriceData!D$15,CalculationsAndCharts!$A115+$A$11,IF($C$7,7,0),1,1) -> 91.44 | F115: =OFFSET(InputPriceData!E$15,CalculationsAndCharts!$A115+$A$11,IF($C$7,7,0),1,1) -> 90.43 | G115: =OFFSET(InputPriceData!F$15,CalculationsAndCharts!$A115+$A$11,IF($C$7,7,0),1,1) -> 90.68 | H115: 93.07 | I115: 90.29 | J115: 86.71 | K115: 93.07 | L115: 93.07 | M115: FALSE | O115: TRUE | P115: 90.29 | Q115: FALSE | S115: 86.71 | T115: FALSE | V115: FALSE | W115: 93.07 | X115: FALSE | AA115: 100.4
A116: 84 | B116: =OFFSET(InputPriceData!B$15,CalculationsAndCharts!$A116+$A$11,0,1,1) -> 2013-08-09 | C116: =OFFSET(InputPriceData!G$15,CalculationsAndCharts!$A116+$A$11,0,1,1) -> 12135800 | D116: =OFFSET(InputPriceData!C$15,CalculationsAndCharts!$A116+$A$11,IF($C$7,7,0),1,1) -> 92.05 | E116: =OFFSET(InputPriceData!D$15,CalculationsAndCharts!$A116+$A$11,IF($C$7,7,0),1,1) -> 92.05 | F116: =OFFSET(InputPriceData!E$15,CalculationsAndCharts!$A116+$A$11,IF($C$7,7,0),1,1) -> 90.46 | G116: =OFFSET(InputPriceData!F$15,CalculationsAndCharts!$A116+$A$11,IF($C$7,7,0),1,1) -> 91.03 | H116: 93.07 | I116: 88.76 | J116: 85.67 | K116: 93.07 | L116: 93.07 | M116: FALSE | O116: TRUE | P116: 88.76 | Q116: FALSE | S116: 85.67 | T116: FALSE | V116: FALSE | W116: 93.07 | X116: FALSE | AA116: 100.4
A117: 85 | B117: =OFFSET(InputPriceData!B$15,CalculationsAndCharts!$A117+$A$11,0,1,1) -> 2013-08-08 | C117: =OFFSET(InputPriceData!G$15,CalculationsAndCharts!$A117+$A$11,0,1,1) -> 11090000 | D117: =OFFSET(InputPriceData!C$15,CalculationsAndCharts!$A117+$A$11,IF($C$7,7,0),1,1) -> 92.92 | E117: =OFFSET(InputPriceData!D$15,CalculationsAndCharts!$A117+$A$11,IF($C$7,7,0),1,1) -> 93.02 | F117: =OFFSET(InputPriceData!E$15,CalculationsAndCharts!$A117+$A$11,IF($C$7,7,0),1,1) -> 91.38 | G117: =OFFSET(InputPriceData!F$15,CalculationsAndCharts!$A117+$A$11,IF($C$7,7,0),1,1) -> 92 | H117: 93.07 | I117: 88.76 | J117: 84.86 | K117: 93.07 | L117: 93.07 | M117: FALSE | O117: TRUE | P117: 88.76 | Q117: FALSE | S117: 84.86 | T117: FALSE | V117: FALSE | W117: 93.07 | X117: FALSE | AA117: 100.4
A118: 86 | B118: =OFFSET(InputPriceData!B$15,CalculationsAndCharts!$A118+$A$11,0,1,1) -> 2013-08-07 | C118: =OFFSET(InputPriceData!G$15,CalculationsAndCharts!$A118+$A$11,0,1,1) -> 9056900 | D118: =OFFSET(InputPriceData!C$15,CalculationsAndCharts!$A118+$A$11,IF($C$7,7,0),1,1) -> 92.26 | E118: =OFFSET(InputPriceData!D$15,CalculationsAndCharts!$A118+$A$11,IF($C$7,7,0),1,1) -> 92.68 | F118: =OFFSET(InputPriceData!E$15,CalculationsAndCharts!$A118+$A$11,IF($C$7,7,0),1,1) -> 92.13 | G118: =OFFSET(InputPriceData!F$15,CalculationsAndCharts!$A118+$A$11,IF($C$7,7,0),1,1) -> 92.32 | H118: 93.07 | I118: 88.59 | J118: 84.86 | K118: 93.07 | L118: 93.07 | M118: FALSE | O118: TRUE | P118: 88.59 | Q118: FALSE | S118: 84.86 | T118: FALSE | V118: FALSE | W118: 93.07 | X118: FALSE | AA118: 100.4
A119: 87 | B119: =OFFSET(InputPriceData!B$15,CalculationsAndCharts!$A119+$A$11,0,1,1) -> 2013-08-06 | C119: =OFFSET(InputPriceData!G$15,CalculationsAndCharts!$A119+$A$11,0,1,1) -> 6415000 | D119: =OFFSET(InputPriceData!C$15,CalculationsAndCharts!$A119+$A$11,IF($C$7,7,0),1,1) -> 92.53 | E119: =OFFSET(InputPriceData!D$15,CalculationsAndCharts!$A119+$A$11,IF($C$7,7,0),1,1) -> 92.59 | F119: =OFFSET(InputPriceData!E$15,CalculationsAndCharts!$A119+$A$11,IF($C$7,7,0),1,1) -> 92.15 | G119: =OFFSET(InputPriceData!F$15,CalculationsAndCharts!$A119+$A$11,IF($C$7,7,0),1,1) -> 92.46 | H119: 93.07 | I119: 88.59 | J119: 84.28 | K119: 93.07 | L119: 93.07 | M119: FALSE | O119: TRUE | P119: 88.59 | Q119: FALSE | S119: 84.28 | T119: FALSE | V119: FALSE | W119: 93.07 | X119: FALSE | AA119: 100.4
A120: 88 | B120: =OFFSET(InputPriceData!B$15,CalculationsAndCharts!$A120+$A$11,0,1,1) -> 2013-08-05 | C120: =OFFSET(InputPriceData!G$15,CalculationsAndCharts!$A120+$A$11,0,1,1) -> 7192400 | D120: =OFFSET(InputPriceData!C$15,CalculationsAndCharts!$A120+$A$11,IF($C$7,7,0),1,1) -> 92.7 | E120: =OFFSET(InputPriceData!D$15,CalculationsAndCharts!$A120+$A$11,IF($C$7,7,0),1,1) -> 92.94 | F120: =OFFSET(InputPriceData!E$15,CalculationsAndCharts!$A120+$A$11,IF($C$7,7,0),1,1) -> 92.09 | G120: =OFFSET(InputPriceData!F$15,CalculationsAndCharts!$A120+$A$11,IF($C$7,7,0),1,1) -> 92.45 | H120: 93.07 | I120: 88.47 | J120: 84.28 | K120: 93.07 | L120: 93.07 | M120: FALSE | O120: TRUE | P120: 88.47 | Q120: FALSE | S120: 84.28 | T120: FALSE | V120: FALSE | W120: 93.07 | X120: FALSE | AA120: 100.4
A121: 89 | B121: =OFFSET(InputPriceData!B$15,CalculationsAndCharts!$A121+$A$11,0,1,1) -> 2013-08-02 | C121: =OFFSET(InputPriceData!G$15,CalculationsAndCharts!$A121+$A$11,0,1,1) -> 8503100 | D121: =OFFSET(InputPriceData!C$15,CalculationsAndCharts!$A121+$A$11,IF($C$7,7,0),1,1) -> 92.21 | E121: =OFFSET(InputPriceData!D$15,CalculationsAndCharts!$A121+$A$11,IF($C$7,7,0),1,1) -> 93.03 | F121: =OFFSET(InputPriceData!E$15,CalculationsAndCharts!$A121+$A$11,IF($C$7,7,0),1,1) -> 92.1 | G121: =OFFSET(InputPriceData!F$15,CalculationsAndCharts!$A121+$A$11,IF($C$7,7,0),1,1) -> 93.03 | H121: 93.07 | I121: 88.1 | J121: 84.28 | K121: 93.07 | L121: 93.07 | M121: FALSE | O121: TRUE | P121: 88.1 | Q121: FALSE | S121: 84.28 | T121: FALSE | V121: FALSE | W121: 93.07 | X121: FALSE | AA121: 100.4
A122: 90 | B122: =OFFSET(InputPriceData!B$15,CalculationsAndCharts!$A122+$A$11,0,1,1) -> 2013-08-01 | C122: =OFFSET(InputPriceData!G$15,CalculationsAndCharts!$A122+$A$11,0,1,1) -> 11098600 | D122: =OFFSET(InputPriceData!C$15,CalculationsAndCharts!$A122+$A$11,IF($C$7,7,0),1,1) -> 92.8 | E122: =OFFSET(InputPriceData!D$15,CalculationsAndCharts!$A122+$A$11,IF($C$7,7,0),1,1) -> 93.04 | F122: =OFFSET(InputPriceData!E$15,CalculationsAndCharts!$A122+$A$11,IF($C$7,7,0),1,1) -> 92.35 | G122: =OFFSET(InputPriceData!F$15,CalculationsAndCharts!$A122+$A$11,IF($C$7,7,0),1,1) -> 92.42 | H122: 93.07 | I122: 87.72 | J122: 84.28 | K122: 93.07 | L122: 93.07 | M122: FALSE | O122: TRUE | P122: 87.72 | Q122: FALSE | S122: 84.28 | T122: FALSE | V122: FALSE | W122: 93.07 | X122: FALSE | AA122: 100.4
A123: 91 | B123: =OFFSET(InputPriceData!B$15,CalculationsAndCharts!$A123+$A$11,0,1,1) -> 2013-07-31 | C123: =OFFSET(InputPriceData!G$15,CalculationsAndCharts!$A123+$A$11,0,1,1) -> 11365700 | D123: =OFFSET(InputPriceData!C$15,CalculationsAndCharts!$A123+$A$11,IF($C$7,7,0),1,1) -> 91.89 | E123: =OFFSET(InputPriceData!D$15,CalculationsAndCharts!$A123+$A$11,IF($C$7,7,0),1,1) -> 93.07 | F123: =OFFSET(InputPriceData!E$15,CalculationsAndCharts!$A123+$A$11,IF($C$7,7,0),1,1) -> 91.85 | G123: =OFFSET(InputPriceData!F$15,CalculationsAndCharts!$A123+$A$11,IF($C$7,7,0),1,1) -> 92.16 | H123: 92.62 | I123: 87.54 | J123: 83.32 | K123: 92.62 | L123: 92.62 | M123: FALSE | O123: TRUE | P123: 87.54 | Q123: FALSE | S123: 83.32 | T123: FALSE | V123: FALSE | W123: 92.62 | X123: FALSE | AA123: 100.4
A124: 92 | B124: =OFFSET(InputPriceData!B$15,CalculationsAndCharts!$A124+$A$11,0,1,1) -> 2013-07-30 | C124: =OFFSET(InputPriceData!G$15,CalculationsAndCharts!$A124+$A$11,0,1,1) -> 8863000 | D124: =OFFSET(InputPriceData!C$15,CalculationsAndCharts!$A124+$A$11,IF($C$7,7,0),1,1) -> 92.13 | E124: =OFFSET(InputPriceData!D$15,CalculationsAndCharts!$A124+$A$11,IF($C$7,7,0),1,1) -> 92.62 | F124: =OFFSET(InputPriceData!E$15,CalculationsAndCharts!$A124+$A$11,IF($C$7,7,0),1,1) -> 91.68 | G124: =OFFSET(InputPriceData!F$15,CalculationsAndCharts!$A124+$A$11,IF($C$7,7,0),1,1) -> 91.83 | H124: 92.05 | I124: 87.09 | J124: 81.63 | K124: 92.05 | L124: 92.05 | M124: FALSE | O124: TRUE | P124: 87.09 | Q124: FALSE | S124: 81.63 | T124: FALSE | V124: FALSE | W124: 92.05 | X124: FALSE | AA124: 100.4
A125: 93 | B125: =OFFSET(InputPriceData!B$15,CalculationsAndCharts!$A125+$A$11,0,1,1) -> 2013-07-29 | C125: =OFFSET(InputPriceData!G$15,CalculationsAndCharts!$A125+$A$11,0,1,1) -> 7925000 | D125: =OFFSET(InputPriceData!C$15,CalculationsAndCharts!$A125+$A$11,IF($C$7,7,0),1,1) -> 91.3 | E125: =OFFSET(InputPriceData!D$15,CalculationsAndCharts!$A125+$A$11,IF($C$7,7,0),1,1) -> 92.05 | F125: =OFFSET(InputPriceData!E$15,CalculationsAndCharts!$A125+$A$11,IF($C$7,7,0),1,1) -> 91.28 | G125: =OFFSET(InputPriceData!F$15,CalculationsAndCharts!$A125+$A$11,IF($C$7,7,0),1,1) -> 91.87 | H125: 91.6 | I125: 86.71 | J125: 81.32 | K125: 91.6 | L125: 91.6 | M125: FALSE | O125: TRUE | P125: 86.71 | Q125: FALSE | S125: 81.32 | T125: FALSE | V125: FALSE | W125: 91.6 | X125: FALSE | AA125: 100.4
A126: 94 | B126: =OFFSET(InputPriceData!B$15,CalculationsAndCharts!$A126+$A$11,0,1,1) -> 2013-07-26 | C126: =OFFSET(InputPriceData!G$15,CalculationsAndCharts!$A126+$A$11,0,1,1) -> 8663700 | D126: =OFFSET(InputPriceData!C$15,CalculationsAndCharts!$A126+$A$11,IF($C$7,7,0),1,1) -> 91 | E126: =OFFSET(InputPriceData!D$15,CalculationsAndCharts!$A126+$A$11,IF($C$7,7,0),1,1) -> 91.6 | F126: =OFFSET(InputPriceData!E$15,CalculationsAndCharts!$A126+$A$11,IF($C$7,7,0),1,1) -> 90.34 | G126: =OFFSET(InputPriceData!F$15,CalculationsAndCharts!$A126+$A$11,IF($C$7,7,0),1,1) -> 91.5 | H126: 91.52 | I126: 85.67 | J126: 80.94 | K126: 91.52 | L126: 91.52 | M126: FALSE | O126: TRUE | P126: 85.67 | Q126: FALSE | S126: 80.94 | T126: FALSE | V126: FALSE | W126: 91.52 | X126: FALSE | AA126: 100.4
A127: 95 | B127: =OFFSET(InputPriceData!B$15,CalculationsAndCharts!$A127+$A$11,0,1,1) -> 2013-07-25 | C127: =OFFSET(InputPriceData!G$15,CalculationsAndCharts!$A127+$A$11,0,1,1) -> 7368000 | D127: =OFFSET(InputPriceData!C$15,CalculationsAndCharts!$A127+$A$11,IF($C$7,7,0),1,1) -> 90.68 | E127: =OFFSET(InputPriceData!D$15,CalculationsAndCharts!$A127+$A$11,IF($C$7,7,0),1,1) -> 91.42 | F127: =OFFSET(InputPriceData!E$15,CalculationsAndCharts!$A127+$A$11,IF($C$7,7,0),1,1) -> 90.43 | G127: =OFFSET(InputPriceData!F$15,CalculationsAndCharts!$A127+$A$11,IF($C$7,7,0),1,1) -> 91.24 | H127: 91.52 | I127: 84.86 | J127: 80.94 | K127: 91.52 | L127: 91.52 | M127: FALSE | O127: TRUE | P127: 84.86 | Q127: FALSE | S127: 80.94 | T127: FALSE | V127: FALSE | W127: 91.52 | X127: FALSE | AA127: 100.4
A128: 96 | B128: =OFFSET(InputPriceData!B$15,CalculationsAndCharts!$A128+$A$11,0,1,1) -> 2013-07-24 | C128: =OFFSET(InputPriceData!G$15,CalculationsAndCharts!$A128+$A$11,0,1,1) -> 6846300 | D128: =OFFSET(InputPriceData!C$15,CalculationsAndCharts!$A128+$A$11,IF($C$7,7,0),1,1) -> 91.32 | E128: =OFFSET(InputPriceData!D$15,CalculationsAndCharts!$A128+$A$11,IF($C$7,7,0),1,1) -> 91.33 | F128: =OFFSET(InputPriceData!E$15,CalculationsAndCharts!$A128+$A$11,IF($C$7,7,0),1,1) -> 90.43 | G128: =OFFSET(InputPriceData!F$15,CalculationsAndCharts!$A128+$A$11,IF($C$7,7,0),1,1) -> 91.03 | H128: 91.52 | I128: 84.86 | J128: 80.94 | K128: 91.52 | L128: 91.52 | M128: FALSE | O128: TRUE | P128: 84.86 | Q128: FALSE | S128: 80.94 | T128: FALSE | V128: FALSE | W128: 91.52 | X128: FALSE | AA128: 100.4
A129: 97 | B129: =OFFSET(InputPriceData!B$15,CalculationsAndCharts!$A129+$A$11,0,1,1) -> 2013-07-23 | C129: =OFFSET(InputPriceData!G$15,CalculationsAndCharts!$A129+$A$11,0,1,1) -> 8467700 | D129: =OFFSET(InputPriceData!C$15,CalculationsAndCharts!$A129+$A$11,IF($C$7,7,0),1,1) -> 91.06 | E129: =OFFSET(InputPriceData!D$15,CalculationsAndCharts!$A129+$A$11,IF($C$7,7,0),1,1) -> 91.52 | F129: =OFFSET(InputPriceData!E$15,CalculationsAndCharts!$A129+$A$11,IF($C$7,7,0),1,1) -> 90.78 | G129: =OFFSET(InputPriceData!F$15,CalculationsAndCharts!$A129+$A$11,IF($C$7,7,0),1,1) -> 91.09 | H129: 91.23 | I129: 84.28 | J129: 80.94 | K129: 91.23 | L129: 91.23 | M129: FALSE | O129: TRUE | P129: 84.28 | Q129: FALSE | S129: 80.94 | T129: FALSE | V129: FALSE | W129: 91.23 | X129: FALSE | AA129: 100.4
A130: 98 | B130: =OFFSET(InputPriceData!B$15,CalculationsAndCharts!$A130+$A$11,0,1,1) -> 2013-07-22 | C130: =OFFSET(InputPriceData!G$15,CalculationsAndCharts!$A130+$A$11,0,1,1) -> 9916200 | D130: =OFFSET(InputPriceData!C$15,CalculationsAndCharts!$A130+$A$11,IF($C$7,7,0),1,1) -> 90.75 | E130: =OFFSET(InputPriceData!D$15,CalculationsAndCharts!$A130+$A$11,IF($C$7,7,0),1,1) -> 91.23 | F130: =OFFSET(InputPriceData!E$15,CalculationsAndCharts!$A130+$A$11,IF($C$7,7,0),1,1) -> 90.29 | G130: =OFFSET(InputPriceData!F$15,CalculationsAndCharts!$A130+$A$11,IF($C$7,7,0),1,1) -> 90.95 | H130: 90.95 | I130: 84.28 | J130: 80.94 | K130: 90.95 | L130: 90.95 | M130: FALSE | O130: TRUE | P130: 84.28 | Q130: FALSE | S130: 80.94 | T130: FALSE | V130: FALSE | W130: 90.95 | X130: FALSE | AA130: 100.4
A131: 99 | B131: =OFFSET(InputPriceData!B$15,CalculationsAndCharts!$A131+$A$11,0,1,1) -> 2013-07-19 | C131: =OFFSET(InputPriceData!G$15,CalculationsAndCharts!$A131+$A$11,0,1,1) -> 12506300 | D131: =OFFSET(InputPriceData!C$15,CalculationsAndCharts!$A131+$A$11,IF($C$7,7,0),1,1) -> 88.95 | E131: =OFFSET(InputPriceData!D$15,CalculationsAndCharts!$A131+$A$11,IF($C$7,7,0),1,1) -> 90.95 | F131: =OFFSET(InputPriceData!E$15,CalculationsAndCharts!$A131+$A$11,IF($C$7,7,0),1,1) -> 88.76 | G131: =OFFSET(InputPriceData!F$15,CalculationsAndCharts!$A131+$A$11,IF($C$7,7,0),1,1) -> 90.91 | H131: 90.34 | I131: 84.28 | J131: 80.94 | K131: 90.34 | L131: 90.34 | M131: FALSE | O131: TRUE | P131: 84.28 | Q131: FALSE | S131: 80.94 | T131: FALSE | V131: FALSE | W131: 90.34 | X131: FALSE | AA131: 100.4
A132: 100 | B132: =OFFSET(InputPriceData!B$15,CalculationsAndCharts!$A132+$A$11,0,1,1) -> 2013-07-18 | C132: =OFFSET(InputPriceData!G$15,CalculationsAndCharts!$A132+$A$11,0,1,1) -> 8329300 | D132: =OFFSET(InputPriceData!C$15,CalculationsAndCharts!$A132+$A$11,IF($C$7,7,0),1,1) -> 89.04 | E132: =OFFSET(InputPriceData!D$15,CalculationsAndCharts!$A132+$A$11,IF($C$7,7,0),1,1) -> 89.65 | F132: =OFFSET(InputPriceData!E$15,CalculationsAndCharts!$A132+$A$11,IF($C$7,7,0),1,1) -> 88.77 | G132: =OFFSET(InputPriceData!F$15,CalculationsAndCharts!$A132+$A$11,IF($C$7,7,0),1,1) -> 88.88 | H132: 90.34 | I132: 84.28 | J132: 80.94 | K132: 90.34 | L132: 90.34 | M132: FALSE | O132: TRUE | P132: 84.28 | Q132: FALSE | S132: 80.94 | T132: FALSE | V132: FALSE | W132: 90.34 | X132: FALSE | AA132: 100.4
A133: 101 | B133: =OFFSET(InputPriceData!B$15,CalculationsAndCharts!$A133+$A$11,0,1,1) -> 2013-07-17 | C133: =OFFSET(InputPriceData!G$15,CalculationsAndCharts!$A133+$A$11,0,1,1) -> 12832200 | D133: =OFFSET(InputPriceData!C$15,CalculationsAndCharts!$A133+$A$11,IF($C$7,7,0),1,1) -> 89.28 | E133: =OFFSET(InputPriceData!D$15,CalculationsAndCharts!$A133+$A$11,IF($C$7,7,0),1,1) -> 89.67 | F133: =OFFSET(InputPriceData!E$15,CalculationsAndCharts!$A133+$A$11,IF($C$7,7,0),1,1) -> 88.59 | G133: =OFFSET(InputPriceData!F$15,CalculationsAndCharts!$A133+$A$11,IF($C$7,7,0),1,1) -> 88.84 | H133: 90.34 | I133: 83.32 | J133: 80.94 | K133: 90.34 | L133: 90.34 | M133: FALSE | O133: TRUE | P133: 83.32 | Q133: FALSE | S133: 80.94 | T133: FALSE | V133: FALSE | W133: 90.34 | X133: FALSE | AA133: 100.4
A134: 102 | B134: =OFFSET(InputPriceData!B$15,CalculationsAndCharts!$A134+$A$11,0,1,1) -> 2013-07-16 | C134: =OFFSET(InputPriceData!G$15,CalculationsAndCharts!$A134+$A$11,0,1,1) -> 11409200 | D134: =OFFSET(InputPriceData!C$15,CalculationsAndCharts!$A134+$A$11,IF($C$7,7,0),1,1) -> 89.73 | E134: =OFFSET(InputPriceData!D$15,CalculationsAndCharts!$A134+$A$11,IF($C$7,7,0),1,1) -> 90.34 | F134: =OFFSET(InputPriceData!E$15,CalculationsAndCharts!$A134+$A$11,IF($C$7,7,0),1,1) -> 88.83 | G134: =OFFSET(InputPriceData!F$15,CalculationsAndCharts!$A134+$A$11,IF($C$7,7,0),1,1) -> 89.1 | H134: 89.5 | I134: 81.63 | J134: 80.94 | K134: 89.5 | L134: 89.5 | M134: FALSE | O134: TRUE | P134: 81.63 | Q134: FALSE | S134: 80.94 | T134: FALSE | V134: FALSE | W134: 89.5 | X134: FALSE | AA134: 100.4
A135: 103 | B135: =OFFSET(InputPriceData!B$15,CalculationsAndCharts!$A135+$A$11,0,1,1) -> 2013-07-15 | C135: =OFFSET(InputPriceData!G$15,CalculationsAndCharts!$A135+$A$11,0,1,1) -> 13343200 | D135: =OFFSET(InputPriceData!C$15,CalculationsAndCharts!$A135+$A$11,IF($C$7,7,0),1,1) -> 88.62 | E135: =OFFSET(InputPriceData!D$15,CalculationsAndCharts!$A135+$A$11,IF($C$7,7,0),1,1) -> 89.5 | F135: =OFFSET(InputPriceData!E$15,CalculationsAndCharts!$A135+$A$11,IF($C$7,7,0),1,1) -> 88.47 | G135: =OFFSET(InputPriceData!F$15,CalculationsAndCharts!$A135+$A$11,IF($C$7,7,0),1,1) -> 89.1 | H135: 88.7 | I135: 81.32 | J135: 80.94 | K135: 88.7 | L135: 88.7 | M135: FALSE | O135: TRUE | P135: 81.32 | Q135: FALSE | S135: 80.94 | T135: FALSE | V135: FALSE | W135: 88.7 | X135: FALSE | AA135: 100.4
A136: 104 | B136: =OFFSET(InputPriceData!B$15,CalculationsAndCharts!$A136+$A$11,0,1,1) -> 2013-07-12 | C136: =OFFSET(InputPriceData!G$15,CalculationsAndCharts!$A136+$A$11,0,1,1) -> 7590600 | D136: =OFFSET(InputPriceData!C$15,CalculationsAndCharts!$A136+$A$11,IF($C$7,7,0),1,1) -> 88.4 | E136: =OFFSET(InputPriceData!D$15,CalculationsAndCharts!$A136+$A$11,IF($C$7,7,0),1,1) -> 88.7 | F136: =OFFSET(InputPriceData!E$15,CalculationsAndCharts!$A136+$A$11,IF($C$7,7,0),1,1) -> 88.1 | G136: =OFFSET(InputPriceData!F$15,CalculationsAndCharts!$A136+$A$11,IF($C$7,7,0),1,1) -> 88.7 | H136: 88.64 | I136: 80.94 | J136: 80.94 | K136: 88.64 | L136: 88.64 | M136: FALSE | O136: TRUE | P136: 80.94 | Q136: FALSE | S136: 80.94 | T136: FALSE | V136: FALSE | W136: 88.64 | X136: FALSE | AA136: 100.4
A137: 105 | B137: =OFFSET(InputPriceData!B$15,CalculationsAndCharts!$A137+$A$11,0,1,1) -> 2013-07-11 | C137: =OFFSET(InputPriceData!G$15,CalculationsAndCharts!$A137+$A$11,0,1,1) -> 8941300 | D137: =OFFSET(InputPriceData!C$15,CalculationsAndCharts!$A137+$A$11,IF($C$7,7,0),1,1) -> 88.52 | E137: =OFFSET(InputPriceData!D$15,CalculationsAndCharts!$A137+$A$11,IF($C$7,7,0),1,1) -> 88.64 | F137: =OFFSET(InputPriceData!E$15,CalculationsAndCharts!$A137+$A$11,IF($C$7,7,0),1,1) -> 87.72 | G137: =OFFSET(InputPriceData!F$15,CalculationsAndCharts!$A137+$A$11,IF($C$7,7,0),1,1) -> 88.38 | H137: 88.2 | I137: 80.94 | J137: 80.94 | K137: 88.2 | L137: 88.2 | M137: FALSE | O137: TRUE | P137: 80.94 | Q137: FALSE | S137: 80.94 | T137: FALSE | V137: FALSE | W137: 88.2 | X137: FALSE | AA137: 100.4
A138: 106 | B138: =OFFSET(InputPriceData!B$15,CalculationsAndCharts!$A138+$A$11,0,1,1) -> 2013-07-10 | C138: =OFFSET(InputPriceData!G$15,CalculationsAndCharts!$A138+$A$11,0,1,1) -> 7067100 | D138: =OFFSET(InputPriceData!C$15,CalculationsAndCharts!$A138+$A$11,IF($C$7,7,0),1,1) -> 87.61 | E138: =OFFSET(InputPriceData!D$15,CalculationsAndCharts!$A138+$A$11,IF($C$7,7,0),1,1) -> 88.2 | F138: =OFFSET(InputPriceData!E$15,CalculationsAndCharts!$A138+$A$11,IF($C$7,7,0),1,1) -> 87.54 | G138: =OFFSET(InputPriceData!F$15,CalculationsAndCharts!$A138+$A$11,IF($C$7,7,0),1,1) -> 87.96 | H138: 87.8 | I138: 80.94 | J138: 80.94 | K138: 87.8 | L138: 87.8 | M138: FALSE | O138: TRUE | P138: 80.94 | Q138: FALSE | S138: 80.94 | T138: FALSE | V138: FALSE | W138: 87.8 | X138: FALSE | AA138: 100.4
A139: 107 | B139: =OFFSET(InputPriceData!B$15,CalculationsAndCharts!$A139+$A$11,0,1,1) -> 2013-07-09 | C139: =OFFSET(InputPriceData!G$15,CalculationsAndCharts!$A139+$A$11,0,1,1) -> 9348600 | D139: =OFFSET(InputPriceData!C$15,CalculationsAndCharts!$A139+$A$11,IF($C$7,7,0),1,1) -> 87.37 | E139: =OFFSET(InputPriceData!D$15,CalculationsAndCharts!$A139+$A$11,IF($C$7,7,0),1,1) -> 87.8 | F139: =OFFSET(InputPriceData!E$15,CalculationsAndCharts!$A139+$A$11,IF($C$7,7,0),1,1) -> 87.09 | G139: =OFFSET(InputPriceData!F$15,CalculationsAndCharts!$A139+$A$11,IF($C$7,7,0),1,1) -> 87.6 | H139: 87.71 | I139: 80.94 | J139: 80.94 | K139: 87.71 | L139: 87.71 | M139: FALSE | O139: TRUE | P139: 80.94 | Q139: FALSE | S139: 80.94 | T139: FALSE | V139: FALSE | W139: 87.71 | X139: FALSE | AA139: 100.4
A140: 108 | B140: =OFFSET(InputPriceData!B$15,CalculationsAndCharts!$A140+$A$11,0,1,1) -> 2013-07-08 | C140: =OFFSET(InputPriceData!G$15,CalculationsAndCharts!$A140+$A$11,0,1,1) -> 12051400 | D140: =OFFSET(InputPriceData!C$15,CalculationsAndCharts!$A140+$A$11,IF($C$7,7,0),1,1) -> 86.83 | E140: =OFFSET(InputPriceData!D$15,CalculationsAndCharts!$A140+$A$11,IF($C$7,7,0),1,1) -> 87.71 | F140: =OFFSET(InputPriceData!E$15,CalculationsAndCharts!$A140+$A$11,IF($C$7,7,0),1,1) -> 86.71 | G140: =OFFSET(InputPriceData!F$15,CalculationsAndCharts!$A140+$A$11,IF($C$7,7,0),1,1) -> 87.32 | H140: 86.62 | I140: 80.94 | J140: 80.94 | K140: 86.62 | L140: 86.62 | M140: FALSE | O140: TRUE | P140: 80.94 | Q140: FALSE | S140: 80.94 | T140: FALSE | V140: FALSE | W140: 86.62 | X140: FALSE | AA140: 100.4
A141: 109 | B141: =OFFSET(InputPriceData!B$15,CalculationsAndCharts!$A141+$A$11,0,1,1) -> 2013-07-05 | C141: =OFFSET(InputPriceData!G$15,CalculationsAndCharts!$A141+$A$11,0,1,1) -> 5403600 | D141: =OFFSET(InputPriceData!C$15,CalculationsAndCharts!$A141+$A$11,IF($C$7,7,0),1,1) -> 86.32 | E141: =OFFSET(InputPriceData!D$15,CalculationsAndCharts!$A141+$A$11,IF($C$7,7,0),1,1) -> 86.62 | F141: =OFFSET(InputPriceData!E$15,CalculationsAndCharts!$A141+$A$11,IF($C$7,7,0),1,1) -> 85.67 | G141: =OFFSET(InputPriceData!F$15,CalculationsAndCharts!$A141+$A$11,IF($C$7,7,0),1,1) -> 86.61 | H141: 86.55 | I141: 80.94 | J141: 80.94 | K141: 86.55 | L141: 86.55 | M141: TRUE | N141: 86.55 | O141: TRUE | P141: 80.94 | Q141: FALSE | S141: 80.94 | T141: FALSE | V141: FALSE | W141: 86.55 | X141: FALSE | AA141: 100.4 | AC141: 86.55
A142: 110 | B142: =OFFSET(InputPriceData!B$15,CalculationsAndCharts!$A142+$A$11,0,1,1) -> 2013-07-03 | C142: =OFFSET(InputPriceData!G$15,CalculationsAndCharts!$A142+$A$11,0,1,1) -> 3599900 | D142: =OFFSET(InputPriceData!C$15,CalculationsAndCharts!$A142+$A$11,IF($C$7,7,0),1,1) -> 85.29 | E142: =OFFSET(InputPriceData!D$15,CalculationsAndCharts!$A142+$A$11,IF($C$7,7,0),1,1) -> 85.79 | F142: =OFFSET(InputPriceData!E$15,CalculationsAndCharts!$A142+$A$11,IF($C$7,7,0),1,1) -> 84.86 | G142: =OFFSET(InputPriceData!F$15,CalculationsAndCharts!$A142+$A$11,IF($C$7,7,0),1,1) -> 85.53 | H142: 86.55 | I142: 80.94 | J142: 80.94 | K142: 86.55 | L142: 86.55 | M142: FALSE | O142: FALSE | P142: 80.94 | Q142: FALSE | S142: 80.94 | T142: FALSE | V142: FALSE | W142: 86.55 | X142: FALSE
A143: 111 | B143: =OFFSET(InputPriceData!B$15,CalculationsAndCharts!$A143+$A$11,0,1,1) -> 2013-07-02 | C143: =OFFSET(InputPriceData!G$15,CalculationsAndCharts!$A143+$A$11,0,1,1) -> 8572100 | D143: =OFFSET(InputPriceData!C$15,CalculationsAndCharts!$A143+$A$11,IF($C$7,7,0),1,1) -> 85.41 | E143: =OFFSET(InputPriceData!D$15,CalculationsAndCharts!$A143+$A$11,IF($C$7,7,0),1,1) -> 85.95 | F143: =OFFSET(InputPriceData!E$15,CalculationsAndCharts!$A143+$A$11,IF($C$7,7,0),1,1) -> 84.98 | G143: =OFFSET(InputPriceData!F$15,CalculationsAndCharts!$A143+$A$11,IF($C$7,7,0),1,1) -> 85.33 | H143: 87.02 | I143: 80.94 | J143: 80.94 | K143: 86.55 | L143: 87.02 | M143: FALSE | O143: FALSE | P143: 80.94 | Q143: FALSE | S143: 80.94 | T143: FALSE | V143: FALSE | W143: 86.55 | X143: FALSE
A144: 112 | B144: =OFFSET(InputPriceData!B$15,CalculationsAndCharts!$A144+$A$11,0,1,1) -> 2013-07-01 | C144: =OFFSET(InputPriceData!G$15,CalculationsAndCharts!$A144+$A$11,0,1,1) -> 9905200 | D144: =OFFSET(InputPriceData!C$15,CalculationsAndCharts!$A144+$A$11,IF($C$7,7,0),1,1) -> 84.49 | E144: =OFFSET(InputPriceData!D$15,CalculationsAndCharts!$A144+$A$11,IF($C$7,7,0),1,1) -> 86.39 | F144: =OFFSET(InputPriceData!E$15,CalculationsAndCharts!$A144+$A$11,IF($C$7,7,0),1,1) -> 84.28 | G144: =OFFSET(InputPriceData!F$15,CalculationsAndCharts!$A144+$A$11,IF($C$7,7,0),1,1) -> 85.39 | H144: 87.02 | I144: 80.94 | J144: 80.94 | K144: 86.55 | L144: 87.02 | M144: FALSE | O144: FALSE | P144: 80.94 | Q144: FALSE | S144: 80.94 | T144: FALSE | V144: FALSE | W144: 86.55 | X144: FALSE
A145: 113 | B145: =OFFSET(InputPriceData!B$15,CalculationsAndCharts!$A145+$A$11,0,1,1) -> 2013-06-28 | C145: =OFFSET(InputPriceData!G$15,CalculationsAndCharts!$A145+$A$11,0,1,1) -> 11896300 | D145: =OFFSET(InputPriceData!C$15,CalculationsAndCharts!$A145+$A$11,IF($C$7,7,0),1,1) -> 85.48 | E145: =OFFSET(InputPriceData!D$15,CalculationsAndCharts!$A145+$A$11,IF($C$7,7,0),1,1) -> 86.13 | F145: =OFFSET(InputPriceData!E$15,CalculationsAndCharts!$A145+$A$11,IF($C$7,7,0),1,1) -> 84.62 | G145: =OFFSET(InputPriceData!F$15,CalculationsAndCharts!$A145+$A$11,IF($C$7,7,0),1,1) -> 84.63 | H145: 87.02 | I145: 80.94 | J145: 80.94 | K145: 86.55 | L145: 87.02 | M145: FALSE | O145: FALSE | P145: 80.94 | Q145: FALSE | S145: 80.94 | T145: FALSE | V145: FALSE | W145: 86.55 | X145: FALSE
A146: 114 | B146: =OFFSET(InputPriceData!B$15,CalculationsAndCharts!$A146+$A$11,0,1,1) -> 2013-06-27 | C146: =OFFSET(InputPriceData!G$15,CalculationsAndCharts!$A146+$A$11,0,1,1) -> 8890300 | D146: =OFFSET(InputPriceData!C$15,CalculationsAndCharts!$A146+$A$11,IF($C$7,7,0),1,1) -> 86.27 | E146: =OFFSET(InputPriceData!D$15,CalculationsAndCharts!$A146+$A$11,IF($C$7,7,0),1,1) -> 86.55 | F146: =OFFSET(InputPriceData!E$15,CalculationsAndCharts!$A146+$A$11,IF($C$7,7,0),1,1) -> 85.24 | G146: =OFFSET(InputPriceData!F$15,CalculationsAndCharts!$A146+$A$11,IF($C$7,7,0),1,1) -> 85.46 | H146: 88.04 | I146: 80.94 | J146: 80.94 | K146: 86.07 | L146: 88.04 | M146: FALSE | O146: FALSE | P146: 80.94 | Q146: FALSE | S146: 80.94 | T146: FALSE | V146: FALSE | W146: 86.07 | X146: FALSE
A147: 115 | B147: =OFFSET(InputPriceData!B$15,CalculationsAndCharts!$A147+$A$11,0,1,1) -> 2013-06-26 | C147: =OFFSET(InputPriceData!G$15,CalculationsAndCharts!$A147+$A$11,0,1,1) -> 11966500 | D147: =OFFSET(InputPriceData!C$15,CalculationsAndCharts!$A147+$A$11,IF($C$7,7,0),1,1) -> 84.71 | E147: =OFFSET(InputPriceData!D$15,CalculationsAndCharts!$A147+$A$11,IF($C$7,7,0),1,1) -> 86.07 | F147: =OFFSET(InputPriceData!E$15,CalculationsAndCharts!$A147+$A$11,IF($C$7,7,0),1,1) -> 84.71 | G147: =OFFSET(InputPriceData!F$15,CalculationsAndCharts!$A147+$A$11,IF($C$7,7,0),1,1) -> 85.74 | H147: 88.04 | I147: 80.94 | J147: 80.94 | K147: 85.26 | L147: 88.04 | M147: FALSE | O147: FALSE | P147: 80.94 | Q147: FALSE | S147: 80.94 | T147: FALSE | V147: FALSE | W147: 85.26 | X147: TRUE | Y147: 85.26 | AF147: 85.26
A148: 116 | B148: =OFFSET(InputPriceData!B$15,CalculationsAndCharts!$A148+$A$11,0,1,1) -> 2013-06-25 | C148: =OFFSET(InputPriceData!G$15,CalculationsAndCharts!$A148+$A$11,0,1,1) -> 11239400 | D148: =OFFSET(InputPriceData!C$15,CalculationsAndCharts!$A148+$A$11,IF($C$7,7,0),1,1) -> 83.93 | E148: =OFFSET(InputPriceData!D$15,CalculationsAndCharts!$A148+$A$11,IF($C$7,7,0),1,1) -> 84.36 | F148: =OFFSET(InputPriceData!E$15,CalculationsAndCharts!$A148+$A$11,IF($C$7,7,0),1,1) -> 83.32 | G148: =OFFSET(InputPriceData!F$15,CalculationsAndCharts!$A148+$A$11,IF($C$7,7,0),1,1) -> 84.12 | H148: 88.04 | I148: 80.94 | J148: 80.94 | K148: 85.26 | L148: 88.04 | M148: FALSE | O148: FALSE | P148: 80.94 | Q148: FALSE | S148: 80.94 | T148: FALSE | V148: TRUE | W148: 85.26 | X148: FALSE | AB148: 100.4
A149: 117 | B149: =OFFSET(InputPriceData!B$15,CalculationsAndCharts!$A149+$A$11,0,1,1) -> 2013-06-24 | C149: =OFFSET(InputPriceData!G$15,CalculationsAndCharts!$A149+$A$11,0,1,1) -> 14777500 | D149: =OFFSET(InputPriceData!C$15,CalculationsAndCharts!$A149+$A$11,IF($C$7,7,0),1,1) -> 81.73 | E149: =OFFSET(InputPriceData!D$15,CalculationsAndCharts!$A149+$A$11,IF($C$7,7,0),1,1) -> 84.09 | F149: =OFFSET(InputPriceData!E$15,CalculationsAndCharts!$A149+$A$11,IF($C$7,7,0),1,1) -> 81.63 | G149: =OFFSET(InputPriceData!F$15,CalculationsAndCharts!$A149+$A$11,IF($C$7,7,0),1,1) -> 83.4 | H149: 88.04 | I149: 80.94 | J149: 80.94 | K149: 85.26 | L149: 88.04 | M149: FALSE | O149: FALSE | P149: 80.94 | Q149: FALSE | S149: 80.94 | T149: FALSE | V149: TRUE | W149: 85.26 | X149: FALSE | AB149: 100.4
A150: 118 | B150: =OFFSET(InputPriceData!B$15,CalculationsAndCharts!$A150+$A$11,0,1,1) -> 2013-06-21 | C150: =OFFSET(InputPriceData!G$15,CalculationsAndCharts!$A150+$A$11,0,1,1) -> 20715800 | D150: =OFFSET(InputPriceData!C$15,CalculationsAndCharts!$A150+$A$11,IF($C$7,7,0),1,1) -> 81.81 | E150: =OFFSET(InputPriceData!D$15,CalculationsAndCharts!$A150+$A$11,IF($C$7,7,0),1,1) -> 83.11 | F150: =OFFSET(InputPriceData!E$15,CalculationsAndCharts!$A150+$A$11,IF($C$7,7,0),1,1) -> 81.32 | G150: =OFFSET(InputPriceData!F$15,CalculationsAndCharts!$A150+$A$11,IF($C$7,7,0),1,1) -> 82.01 | H150: 88.04 | I150: 80.94 | J150: 80.94 | K150: 85.26 | L150: 88.04 | M150: FALSE | O150: FALSE | P150: 80.94 | Q150: FALSE | S150: 80.94 | T150: FALSE | V150: TRUE | W150: 85.26 | X150: FALSE | AB150: 100.4
A151: 119 | B151: =OFFSET(InputPriceData!B$15,CalculationsAndCharts!$A151+$A$11,0,1,1) -> 2013-06-20 | C151: =OFFSET(InputPriceData!G$15,CalculationsAndCharts!$A151+$A$11,0,1,1) -> 15172600 | D151: =OFFSET(InputPriceData!C$15,CalculationsAndCharts!$A151+$A$11,IF($C$7,7,0),1,1) -> 83 | E151: =OFFSET(InputPriceData!D$15,CalculationsAndCharts!$A151+$A$11,IF($C$7,7,0),1,1) -> 83.23 | F151: =OFFSET(InputPriceData!E$15,CalculationsAndCharts!$A151+$A$11,IF($C$7,7,0),1,1) -> 80.94 | G151: =OFFSET(InputPriceData!F$15,CalculationsAndCharts!$A151+$A$11,IF($C$7,7,0),1,1) -> 81.43 | H151: 88.04 | I151: 81.47 | J151: 81.47 | K151: 85.26 | L151: 88.04 | M151: FALSE | O151: FALSE | P151: 81.47 | Q151: FALSE | S151: 81.47 | T151: FALSE | V151: TRUE | W151: 85.26 | X151: FALSE | AB151: 100.4
A152: 120 | B152: =OFFSET(InputPriceData!B$15,CalculationsAndCharts!$A152+$A$11,0,1,1) -> 2013-06-19 | C152: =OFFSET(InputPriceData!G$15,CalculationsAndCharts!$A152+$A$11,0,1,1) -> 8288400 | D152: =OFFSET(InputPriceData!C$15,CalculationsAndCharts!$A152+$A$11,IF($C$7,7,0),1,1) -> 85.19 | E152: =OFFSET(InputPriceData!D$15,CalculationsAndCharts!$A152+$A$11,IF($C$7,7,0),1,1) -> 85.26 | F152: =OFFSET(InputPriceData!E$15,CalculationsAndCharts!$A152+$A$11,IF($C$7,7,0),1,1) -> 83.58 | G152: =OFFSET(InputPriceData!F$15,CalculationsAndCharts!$A152+$A$11,IF($C$7,7,0),1,1) -> 83.64 | H152: 88.04 | I152: 81.47 | J152: 81.47 | K152: 85.91 | L152: 88.04 | M152: FALSE | O152: FALSE | P152: 81.47 | Q152: FALSE | S152: 81.47 | T152: FALSE | V152: TRUE | W152: 85.91 | X152: FALSE | AB152: 100.4
A153: 121 | B153: =OFFSET(InputPriceData!B$15,CalculationsAndCharts!$A153+$A$11,0,1,1) -> 2013-06-18 | C153: =OFFSET(InputPriceData!G$15,CalculationsAndCharts!$A153+$A$11,0,1,1) -> 7233600 | D153: =OFFSET(InputPriceData!C$15,CalculationsAndCharts!$A153+$A$11,IF($C$7,7,0),1,1) -> 84.52 | E153: =OFFSET(InputPriceData!D$15,CalculationsAndCharts!$A153+$A$11,IF($C$7,7,0),1,1) -> 85.2 | F153: =OFFSET(InputPriceData!E$15,CalculationsAndCharts!$A153+$A$11,IF($C$7,7,0),1,1) -> 84.4 | G153: =OFFSET(InputPriceData!F$15,CalculationsAndCharts!$A153+$A$11,IF($C$7,7,0),1,1) -> 85.12 | H153: 88.04 | I153: 81.47 | J153: 81.47 | K153: 87.02 | L153: 88.04 | M153: FALSE | O153: FALSE | P153: 81.47 | Q153: FALSE | S153: 81.47 | T153: FALSE | V153: TRUE | W153: 87.02 | X153: FALSE | AB153: 100.4
A154: 122 | B154: =OFFSET(InputPriceData!B$15,CalculationsAndCharts!$A154+$A$11,0,1,1) -> 2013-06-17 | C154: =OFFSET(InputPriceData!G$15,CalculationsAndCharts!$A154+$A$11,0,1,1) -> 8429100 | D154: =OFFSET(InputPriceData!C$15,CalculationsAndCharts!$A154+$A$11,IF($C$7,7,0),1,1) -> 84.14 | E154: =OFFSET(InputPriceData!D$15,CalculationsAndCharts!$A154+$A$11,IF($C$7,7,0),1,1) -> 85.16 | F154: =OFFSET(InputPriceData!E$15,CalculationsAndCharts!$A154+$A$11,IF($C$7,7,0),1,1) -> 83.76 | G154: =OFFSET(InputPriceData!F$15,CalculationsAndCharts!$A154+$A$11,IF($C$7,7,0),1,1) -> 84.4 | H154: 88.04 | I154: 81.47 | J154: 81.47 | K154: 87.02 | L154: 88.04 | M154: FALSE | O154: FALSE | P154: 81.47 | Q154: FALSE | S154: 81.47 | T154: FALSE | V154: TRUE | W154: 87.02 | X154: FALSE | AB154: 100.4
A155: 123 | B155: =OFFSET(InputPriceData!B$15,CalculationsAndCharts!$A155+$A$11,0,1,1) -> 2013-06-14 | C155: =OFFSET(InputPriceData!G$15,CalculationsAndCharts!$A155+$A$11,0,1,1) -> 6357100 | D155: =OFFSET(InputPriceData!C$15,CalculationsAndCharts!$A155+$A$11,IF($C$7,7,0),1,1) -> 83.49 | E155: =OFFSET(InputPriceData!D$15,CalculationsAndCharts!$A155+$A$11,IF($C$7,7,0),1,1) -> 84.25 | F155: =OFFSET(InputPriceData!E$15,CalculationsAndCharts!$A155+$A$11,IF($C$7,7,0),1,1) -> 83.44 | G155: =OFFSET(InputPriceData!F$15,CalculationsAndCharts!$A155+$A$11,IF($C$7,7,0),1,1) -> 83.69 | H155: 88.04 | I155: 81.47 | J155: 81.47 | K155: 87.02 | L155: 88.04 | M155: FALSE | O155: FALSE | P155: 81.47 | Q155: FALSE | S155: 81.47 | T155: FALSE | V155: TRUE | W155: 87.02 | X155: FALSE | AB155: 100.4
A156: 124 | B156: =OFFSET(InputPriceData!B$15,CalculationsAndCharts!$A156+$A$11,0,1,1) -> 2013-06-13 | C156: =OFFSET(InputPriceData!G$15,CalculationsAndCharts!$A156+$A$11,0,1,1) -> 8570000 | D156: =OFFSET(InputPriceData!C$15,CalculationsAndCharts!$A156+$A$11,IF($C$7,7,0),1,1) -> 82.4 | E156: =OFFSET(InputPriceData!D$15,CalculationsAndCharts!$A156+$A$11,IF($C$7,7,0),1,1) -> 83.74 | F156: =OFFSET(InputPriceData!E$15,CalculationsAndCharts!$A156+$A$11,IF($C$7,7,0),1,1) -> 81.89 | G156: =OFFSET(InputPriceData!F$15,CalculationsAndCharts!$A156+$A$11,IF($C$7,7,0),1,1) -> 83.69 | H156: 88.04 | I156: 81.47 | J156: 81.47 | K156: 88.04 | L156: 88.04 | M156: FALSE | O156: FALSE | P156: 81.47 | Q156: FALSE | S156: 81.47 | T156: FALSE | V156: TRUE | W156: 88.04 | X156: FALSE | AB156: 100.4
A157: 125 | B157: =OFFSET(InputPriceData!B$15,CalculationsAndCharts!$A157+$A$11,0,1,1) -> 2013-06-12 | C157: =OFFSET(InputPriceData!G$15,CalculationsAndCharts!$A157+$A$11,0,1,1) -> 8413200 | D157: =OFFSET(InputPriceData!C$15,CalculationsAndCharts!$A157+$A$11,IF($C$7,7,0),1,1) -> 83.96 | E157: =OFFSET(InputPriceData!D$15,CalculationsAndCharts!$A157+$A$11,IF($C$7,7,0),1,1) -> 84.27 | F157: =OFFSET(InputPriceData!E$15,CalculationsAndCharts!$A157+$A$11,IF($C$7,7,0),1,1) -> 82.5 | G157: =OFFSET(InputPriceData!F$15,CalculationsAndCharts!$A157+$A$11,IF($C$7,7,0),1,1) -> 82.54 | H157: 88.04 | I157: 81.47 | J157: 81.47 | K157: 88.04 | L157: 88.04 | M157: FALSE | O157: FALSE | P157: 81.47 | Q157: FALSE | S157: 81.47 | T157: FALSE | V157: TRUE | W157: 88.04 | X157: FALSE | AB157: 100.4
A158: 126 | B158: =OFFSET(InputPriceData!B$15,CalculationsAndCharts!$A158+$A$11,0,1,1) -> 2013-06-11 | C158: =OFFSET(InputPriceData!G$15,CalculationsAndCharts!$A158+$A$11,0,1,1) -> 8967000 | D158: =OFFSET(InputPriceData!C$15,CalculationsAndCharts!$A158+$A$11,IF($C$7,7,0),1,1) -> 83.54 | E158: =OFFSET(InputPriceData!D$15,CalculationsAndCharts!$A158+$A$11,IF($C$7,7,0),1,1) -> 83.8 | F158: =OFFSET(InputPriceData!E$15,CalculationsAndCharts!$A158+$A$11,IF($C$7,7,0),1,1) -> 82.92 | G158: =OFFSET(InputPriceData!F$15,CalculationsAndCharts!$A158+$A$11,IF($C$7,7,0),1,1) -> 83.47 | H158: 88.04 | I158: 81.47 | J158: 81.47 | K158: 88.04 | L158: 88.04 | M158: FALSE | O158: FALSE | P158: 81.47 | Q158: FALSE | S158: 81.47 | T158: FALSE | V158: TRUE | W158: 88.04 | X158: FALSE | AB158: 100.4
A159: 127 | B159: =OFFSET(InputPriceData!B$15,CalculationsAndCharts!$A159+$A$11,0,1,1) -> 2013-06-10 | C159: =OFFSET(InputPriceData!G$15,CalculationsAndCharts!$A159+$A$11,0,1,1) -> 8477100 | D159: =OFFSET(InputPriceData!C$15,CalculationsAndCharts!$A159+$A$11,IF($C$7,7,0),1,1) -> 83.79 | E159: =OFFSET(InputPriceData!D$15,CalculationsAndCharts!$A159+$A$11,IF($C$7,7,0),1,1) -> 84.48 | F159: =OFFSET(InputPriceData!E$15,CalculationsAndCharts!$A159+$A$11,IF($C$7,7,0),1,1) -> 83.52 | G159: =OFFSET(InputPriceData!F$15,CalculationsAndCharts!$A159+$A$11,IF($C$7,7,0),1,1) -> 83.92 | H159: 88.04 | I159: 81.47 | J159: 81.47 | K159: 88.04 | L159: 88.04 | M159: FALSE | O159: FALSE | P159: 81.47 | Q159: FALSE | S159: 81.47 | T159: FALSE | V159: TRUE | W159: 88.04 | X159: FALSE | AB159: 100.4
A160: 128 | B160: =OFFSET(InputPriceData!B$15,CalculationsAndCharts!$A160+$A$11,0,1,1) -> 2013-06-07 | C160: =OFFSET(InputPriceData!G$15,CalculationsAndCharts!$A160+$A$11,0,1,1) -> 8907700 | D160: =OFFSET(InputPriceData!C$15,CalculationsAndCharts!$A160+$A$11,IF($C$7,7,0),1,1) -> 83.74 | E160: =OFFSET(InputPriceData!D$15,CalculationsAndCharts!$A160+$A$11,IF($C$7,7,0),1,1) -> 83.96 | F160: =OFFSET(InputPriceData!E$15,CalculationsAndCharts!$A160+$A$11,IF($C$7,7,0),1,1) -> 83.19 | G160: =OFFSET(InputPriceData!F$15,CalculationsAndCharts!$A160+$A$11,IF($C$7,7,0),1,1) -> 83.69 | H160: 88.04 | I160: 81.47 | J160: 81.47 | K160: 88.04 | L160: 88.04 | M160: FALSE | O160: FALSE | P160: 81.47 | Q160: FALSE | S160: 81.47 | T160: FALSE | V160: TRUE | W160: 88.04 | X160: FALSE | AB160: 100.4
A161: 129 | B161: =OFFSET(InputPriceData!B$15,CalculationsAndCharts!$A161+$A$11,0,1,1) -> 2013-06-06 | C161: =OFFSET(InputPriceData!G$15,CalculationsAndCharts!$A161+$A$11,0,1,1) -> 10671000 | D161: =OFFSET(InputPriceData!C$15,CalculationsAndCharts!$A161+$A$11,IF($C$7,7,0),1,1) -> 82.39 | E161: =OFFSET(InputPriceData!D$15,CalculationsAndCharts!$A161+$A$11,IF($C$7,7,0),1,1) -> 83.25 | F161: =OFFSET(InputPriceData!E$15,CalculationsAndCharts!$A161+$A$11,IF($C$7,7,0),1,1) -> 81.47 | G161: =OFFSET(InputPriceData!F$15,CalculationsAndCharts!$A161+$A$11,IF($C$7,7,0),1,1) -> 83.25 | H161: 88.04 | I161: =IF($S$9,P161,NA()) -> 82.17 | J161: =IF($S$11,S161,NA()) -> 82.06 | K161: =IF($S$11,W161,NA()) -> 88.04 | L161: =IF(A161>=$A$8,E161,MAX(OFFSET($E161,1,0,$B$16,1))) -> 88.04 | M161: =AND(E161>L161,NOT(O162)) -> FALSE | N161: =IF(M161,MAX(D161,L161),NA()) ->  | O161: FALSE | P161: =IF(A161>=$A$8,F161,MIN(OFFSET($F161,1,0,$B$17,1))) -> 82.17 | Q161: =AND(F161<P161,O162) -> FALSE | R161: =IF(Q161,MIN(D161,P161),NA()) ->  | S161: =IF(A161>=$A$8,F161,MIN(OFFSET($F161,1,0,$B$16,1))) -> 82.06 | T161: =AND(F161<S161,NOT(V162)) -> TRUE | U161: 82.06 | V161: TRUE | W161: =IF(A161>=$A$8,E161,MAX(OFFSET($E161,1,0,$B$17,1))) -> 88.04 | X161: FALSE | Y161: =IF(X161,MAX($D161,W161),NA()) ->  | Z161: =IF($A161=$E$25,Z$32,NA()) ->  | AA161: =IF($S$10,IF($A161>$A$8,NA(),IF(O161,AA$31,NA())),NA()) ->  | AB161: =IF($S$12,IF($A161>$A$8,NA(),IF(V161,AA$31,NA())),NA()) -> 100.4 | AC161: =IF(AND($S$10,M161),N161,NA()) ->  | AD161: =IF(AND($S$10,Q161),R161,NA()) ->  | AE161: =IF(AND($S$12,T161),U161,NA()) -> 82.06 | AF161: =IF(AND($S$12,X161),Y161,NA()) -> 
A162: 130 | B162: =OFFSET(InputPriceData!B$15,CalculationsAndCharts!$A162+$A$11,0,1,1) -> 2013-06-05 | C162: =OFFSET(InputPriceData!G$15,CalculationsAndCharts!$A162+$A$11,0,1,1) -> 9839100 | D162: =OFFSET(InputPriceData!C$15,CalculationsAndCharts!$A162+$A$11,IF($C$7,7,0),1,1) -> 82.71 | E162: =OFFSET(InputPriceData!D$15,CalculationsAndCharts!$A162+$A$11,IF($C$7,7,0),1,1) -> 83.78 | F162: =OFFSET(InputPriceData!E$15,CalculationsAndCharts!$A162+$A$11,IF($C$7,7,0),1,1) -> 82.28 | G162: =OFFSET(InputPriceData!F$15,CalculationsAndCharts!$A162+$A$11,IF($C$7,7,0),1,1) -> 82.48 | H162: =IF($S$9,L162,NA()) -> 88.04 | I162: 82.17 | J162: 82.06 | K162: 88.04 | L162: 88.04 | M162: FALSE | O162: =OR(AND(NOT(A162>=$A$8),M162,NOT(Q162)),AND(O163,NOT(Q162))) -> FALSE | P162: 82.17 | Q162: FALSE | S162: 82.06 | T162: FALSE | U162: =IF(T162,MIN($D162,S162),NA()) ->  | V162: =OR(AND(NOT($A162>=$A$8),T162,NOT(X162)),AND(V163,NOT(X162))) -> FALSE | W162: 88.04 | X162: =AND(E162>W162,V163) -> FALSE
A163: 131 | B163: =OFFSET(InputPriceData!B$15,CalculationsAndCharts!$A163+$A$11,0,1,1) -> 2013-06-04 | C163: =OFFSET(InputPriceData!G$15,CalculationsAndCharts!$A163+$A$11,0,1,1) -> 9972000 | D163: =OFFSET(InputPriceData!C$15,CalculationsAndCharts!$A163+$A$11,IF($C$7,7,0),1,1) -> 83.5 | E163: =OFFSET(InputPriceData!D$15,CalculationsAndCharts!$A163+$A$11,IF($C$7,7,0),1,1) -> 83.81 | F163: =OFFSET(InputPriceData!E$15,CalculationsAndCharts!$A163+$A$11,IF($C$7,7,0),1,1) -> 82.36 | G163: =OFFSET(InputPriceData!F$15,CalculationsAndCharts!$A163+$A$11,IF($C$7,7,0),1,1) -> 82.89 | H163: 88.04 | I163: 82.17 | J163: 82.06 | K163: 88.04 | L163: 88.04 | M163: FALSE | O163: FALSE | P163: 82.17 | Q163: FALSE | S163: 82.06 | T163: FALSE | V163: FALSE | W163: 88.04 | X163: FALSE
A164: 132 | B164: =OFFSET(InputPriceData!B$15,CalculationsAndCharts!$A164+$A$11,0,1,1) -> 2013-06-03 | C164: =OFFSET(InputPriceData!G$15,CalculationsAndCharts!$A164+$A$11,0,1,1) -> 11768500 | D164: =OFFSET(InputPriceData!C$15,CalculationsAndCharts!$A164+$A$11,IF($C$7,7,0),1,1) -> 83.07 | E164: =OFFSET(InputPriceData!D$15,CalculationsAndCharts!$A164+$A$11,IF($C$7,7,0),1,1) -> 83.49 | F164: =OFFSET(InputPriceData!E$15,CalculationsAndCharts!$A164+$A$11,IF($C$7,7,0),1,1) -> 82.17 | G164: =OFFSET(InputPriceData!F$15,CalculationsAndCharts!$A164+$A$11,IF($C$7,7,0),1,1) -> 83.49 | H164: 88.04 | I164: 82.97 | J164: 82.06 | K164: 88.04 | L164: 88.04 | M164: FALSE | O164: FALSE | P164: 82.97 | Q164: FALSE | S164: 82.06 | T164: FALSE | V164: FALSE | W164: 88.04 | X164: FALSE
A165: 133 | B165: =OFFSET(InputPriceData!B$15,CalculationsAndCharts!$A165+$A$11,0,1,1) -> 2013-05-31 | C165: =OFFSET(InputPriceData!G$15,CalculationsAndCharts!$A165+$A$11,0,1,1) -> 13302700 | D165: =OFFSET(InputPriceData!C$15,CalculationsAndCharts!$A165+$A$11,IF($C$7,7,0),1,1) -> 84.45 | E165: =OFFSET(InputPriceData!D$15,CalculationsAndCharts!$A165+$A$11,IF($C$7,7,0),1,1) -> 84.75 | F165: =OFFSET(InputPriceData!E$15,CalculationsAndCharts!$A165+$A$11,IF($C$7,7,0),1,1) -> 82.97 | G165: =OFFSET(InputPriceData!F$15,CalculationsAndCharts!$A165+$A$11,IF($C$7,7,0),1,1) -> 82.97 | H165: 88.04 | I165: 83.11 | J165: 82.06 | K165: 88.04 | L165: 88.04 | M165: FALSE | O165: FALSE | P165: 83.11 | Q165: TRUE | R165: 83.11 | S165: 82.06 | T165: FALSE | V165: FALSE | W165: 88.04 | X165: FALSE | AD165: 83.11
A166: 134 | B166: =OFFSET(InputPriceData!B$15,CalculationsAndCharts!$A166+$A$11,0,1,1) -> 2013-05-30 | C166: =OFFSET(InputPriceData!G$15,CalculationsAndCharts!$A166+$A$11,0,1,1) -> 7801200 | D166: =OFFSET(InputPriceData!C$15,CalculationsAndCharts!$A166+$A$11,IF($C$7,7,0),1,1) -> 84.48 | E166: =OFFSET(InputPriceData!D$15,CalculationsAndCharts!$A166+$A$11,IF($C$7,7,0),1,1) -> 85.08 | F166: =OFFSET(InputPriceData!E$15,CalculationsAndCharts!$A166+$A$11,IF($C$7,7,0),1,1) -> 84.45 | G166: =OFFSET(InputPriceData!F$15,CalculationsAndCharts!$A166+$A$11,IF($C$7,7,0),1,1) -> 84.76 | H166: 88.04 | I166: 83.08 | J166: 82.06 | K166: 88.04 | L166: 88.04 | M166: FALSE | O166: TRUE | P166: 83.08 | Q166: FALSE | S166: 82.06 | T166: FALSE | V166: FALSE | W166: 88.04 | X166: FALSE | AA166: 100.4
A167: 135 | B167: =OFFSET(InputPriceData!B$15,CalculationsAndCharts!$A167+$A$11,0,1,1) -> 2013-05-29 | C167: =OFFSET(InputPriceData!G$15,CalculationsAndCharts!$A167+$A$11,0,1,1) -> 11872100 | D167: =OFFSET(InputPriceData!C$15,CalculationsAndCharts!$A167+$A$11,IF($C$7,7,0),1,1) -> 85.83 | E167: =OFFSET(InputPriceData!D$15,CalculationsAndCharts!$A167+$A$11,IF($C$7,7,0),1,1) -> 85.91 | F167: =OFFSET(InputPriceData!E$15,CalculationsAndCharts!$A167+$A$11,IF($C$7,7,0),1,1) -> 83.92 | G167: =OFFSET(InputPriceData!F$15,CalculationsAndCharts!$A167+$A$11,IF($C$7,7,0),1,1) -> 84.42 | H167: 88.04 | I167: 82.79 | J167: 82.06 | K167: 88.04 | L167: 88.04 | M167: FALSE | O167: TRUE | P167: 82.79 | Q167: FALSE | S167: 82.06 | T167: FALSE | V167: FALSE | W167: 88.04 | X167: FALSE | AA167: 100.4
A168: 136 | B168: =OFFSET(InputPriceData!B$15,CalculationsAndCharts!$A168+$A$11,0,1,1) -> 2013-05-28 | C168: =OFFSET(InputPriceData!G$15,CalculationsAndCharts!$A168+$A$11,0,1,1) -> 8380200 | D168: =OFFSET(InputPriceData!C$15,CalculationsAndCharts!$A168+$A$11,IF($C$7,7,0),1,1) -> 86.28 | E168: =OFFSET(InputPriceData!D$15,CalculationsAndCharts!$A168+$A$11,IF($C$7,7,0),1,1) -> 87.02 | F168: =OFFSET(InputPriceData!E$15,CalculationsAndCharts!$A168+$A$11,IF($C$7,7,0),1,1) -> 86.01 | G168: =OFFSET(InputPriceData!F$15,CalculationsAndCharts!$A168+$A$11,IF($C$7,7,0),1,1) -> 86.35 | H168: 88.04 | I168: 82.71 | J168: 82.06 | K168: 88.04 | L168: 88.04 | M168: FALSE | O168: TRUE | P168: 82.71 | Q168: FALSE | S168: 82.06 | T168: FALSE | V168: FALSE | W168: 88.04 | X168: FALSE | AA168: 100.4
A169: 137 | B169: =OFFSET(InputPriceData!B$15,CalculationsAndCharts!$A169+$A$11,0,1,1) -> 2013-05-24 | C169: =OFFSET(InputPriceData!G$15,CalculationsAndCharts!$A169+$A$11,0,1,1) -> 10390100 | D169: =OFFSET(InputPriceData!C$15,CalculationsAndCharts!$A169+$A$11,IF($C$7,7,0),1,1) -> 85.55 | E169: =OFFSET(InputPriceData!D$15,CalculationsAndCharts!$A169+$A$11,IF($C$7,7,0),1,1) -> 85.78 | F169: =OFFSET(InputPriceData!E$15,CalculationsAndCharts!$A169+$A$11,IF($C$7,7,0),1,1) -> 85.24 | G169: =OFFSET(InputPriceData!F$15,CalculationsAndCharts!$A169+$A$11,IF($C$7,7,0),1,1) -> 85.57 | H169: 88.04 | I169: 82.71 | J169: 81.66 | K169: 88.04 | L169: 88.04 | M169: FALSE | O169: TRUE | P169: 82.71 | Q169: FALSE | S169: 81.66 | T169: FALSE | V169: FALSE | W169: 88.04 | X169: FALSE | AA169: 100.4
A170: 138 | B170: =OFFSET(InputPriceData!B$15,CalculationsAndCharts!$A170+$A$11,0,1,1) -> 2013-05-23 | C170: =OFFSET(InputPriceData!G$15,CalculationsAndCharts!$A170+$A$11,0,1,1) -> 14446900 | D170: =OFFSET(InputPriceData!C$15,CalculationsAndCharts!$A170+$A$11,IF($C$7,7,0),1,1) -> 85.86 | E170: =OFFSET(InputPriceData!D$15,CalculationsAndCharts!$A170+$A$11,IF($C$7,7,0),1,1) -> 86.71 | F170: =OFFSET(InputPriceData!E$15,CalculationsAndCharts!$A170+$A$11,IF($C$7,7,0),1,1) -> 85.75 | G170: =OFFSET(InputPriceData!F$15,CalculationsAndCharts!$A170+$A$11,IF($C$7,7,0),1,1) -> 85.96 | H170: 88.04 | I170: 82.34 | J170: 81.22 | K170: 88.04 | L170: 88.04 | M170: FALSE | O170: TRUE | P170: 82.34 | Q170: FALSE | S170: 81.22 | T170: FALSE | V170: FALSE | W170: 88.04 | X170: FALSE | AA170: 100.4
A171: 139 | B171: =OFFSET(InputPriceData!B$15,CalculationsAndCharts!$A171+$A$11,0,1,1) -> 2013-05-22 | C171: =OFFSET(InputPriceData!G$15,CalculationsAndCharts!$A171+$A$11,0,1,1) -> 13825900 | D171: =OFFSET(InputPriceData!C$15,CalculationsAndCharts!$A171+$A$11,IF($C$7,7,0),1,1) -> 86.77 | E171: =OFFSET(InputPriceData!D$15,CalculationsAndCharts!$A171+$A$11,IF($C$7,7,0),1,1) -> 88.04 | F171: =OFFSET(InputPriceData!E$15,CalculationsAndCharts!$A171+$A$11,IF($C$7,7,0),1,1) -> 86.29 | G171: =OFFSET(InputPriceData!F$15,CalculationsAndCharts!$A171+$A$11,IF($C$7,7,0),1,1) -> 86.54 | H171: 86.72 | I171: 82.06 | J171: 81.22 | K171: 86.72 | L171: 86.72 | M171: FALSE | O171: TRUE | P171: 82.06 | Q171: FALSE | S171: 81.22 | T171: FALSE | V171: FALSE | W171: 86.72 | X171: FALSE | AA171: 100.4
A172: 140 | B172: =OFFSET(InputPriceData!B$15,CalculationsAndCharts!$A172+$A$11,0,1,1) -> 2013-05-21 | C172: =OFFSET(InputPriceData!G$15,CalculationsAndCharts!$A172+$A$11,0,1,1) -> 10099600 | D172: =OFFSET(InputPriceData!C$15,CalculationsAndCharts!$A172+$A$11,IF($C$7,7,0),1,1) -> 86.03 | E172: =OFFSET(InputPriceData!D$15,CalculationsAndCharts!$A172+$A$11,IF($C$7,7,0),1,1) -> 86.72 | F172: =OFFSET(InputPriceData!E$15,CalculationsAndCharts!$A172+$A$11,IF($C$7,7,0),1,1) -> 85.89 | G172: =OFFSET(InputPriceData!F$15,CalculationsAndCharts!$A172+$A$11,IF($C$7,7,0),1,1) -> 86.67 | H172: 86.29 | I172: 82.06 | J172: 80.29 | K172: 86.29 | L172: 86.29 | M172: FALSE | O172: TRUE | P172: 82.06 | Q172: FALSE | S172: 80.29 | T172: FALSE | V172: FALSE | W172: 86.29 | X172: FALSE | AA172: 100.4
A173: 141 | B173: =OFFSET(InputPriceData!B$15,CalculationsAndCharts!$A173+$A$11,0,1,1) -> 2013-05-20 | C173: =OFFSET(InputPriceData!G$15,CalculationsAndCharts!$A173+$A$11,0,1,1) -> 7235800 | D173: =OFFSET(InputPriceData!C$15,CalculationsAndCharts!$A173+$A$11,IF($C$7,7,0),1,1) -> 86.19 | E173: =OFFSET(InputPriceData!D$15,CalculationsAndCharts!$A173+$A$11,IF($C$7,7,0),1,1) -> 86.29 | F173: =OFFSET(InputPriceData!E$15,CalculationsAndCharts!$A173+$A$11,IF($C$7,7,0),1,1) -> 85.9 | G173: =OFFSET(InputPriceData!F$15,CalculationsAndCharts!$A173+$A$11,IF($C$7,7,0),1,1) -> 86.1 | H173: 86.29 | I173: 82.06 | J173: 79.94 | K173: 86.29 | L173: 86.29 | M173: FALSE | O173: TRUE | P173: 82.06 | Q173: FALSE | S173: 79.94 | T173: FALSE | V173: FALSE | W173: 86.29 | X173: FALSE | AA173: 100.4
A174: 142 | B174: =OFFSET(InputPriceData!B$15,CalculationsAndCharts!$A174+$A$11,0,1,1) -> 2013-05-17 | C174: =OFFSET(InputPriceData!G$15,CalculationsAndCharts!$A174+$A$11,0,1,1) -> 11437700 | D174: =OFFSET(InputPriceData!C$15,CalculationsAndCharts!$A174+$A$11,IF($C$7,7,0),1,1) -> 85.57 | E174: =OFFSET(InputPriceData!D$15,CalculationsAndCharts!$A174+$A$11,IF($C$7,7,0),1,1) -> 86.29 | F174: =OFFSET(InputPriceData!E$15,CalculationsAndCharts!$A174+$A$11,IF($C$7,7,0),1,1) -> 85.51 | G174: =OFFSET(InputPriceData!F$15,CalculationsAndCharts!$A174+$A$11,IF($C$7,7,0),1,1) -> 86.18 | H174: 85.97 | I174: 82.06 | J174: 79.94 | K174: 85.97 | L174: 85.97 | M174: FALSE | O174: TRUE | P174: 82.06 | Q174: FALSE | S174: 79.94 | T174: FALSE | V174: FALSE | W174: 85.97 | X174: FALSE | AA174: 100.4
A175: 143 | B175: =OFFSET(InputPriceData!B$15,CalculationsAndCharts!$A175+$A$11,0,1,1) -> 2013-05-16 | C175: =OFFSET(InputPriceData!G$15,CalculationsAndCharts!$A175+$A$11,0,1,1) -> 9441900 | D175: =OFFSET(InputPriceData!C$15,CalculationsAndCharts!$A175+$A$11,IF($C$7,7,0),1,1) -> 85.43 | E175: =OFFSET(InputPriceData!D$15,CalculationsAndCharts!$A175+$A$11,IF($C$7,7,0),1,1) -> 85.86 | F175: =OFFSET(InputPriceData!E$15,CalculationsAndCharts!$A175+$A$11,IF($C$7,7,0),1,1) -> 85.17 | G175: =OFFSET(InputPriceData!F$15,CalculationsAndCharts!$A175+$A$11,IF($C$7,7,0),1,1) -> 85.55 | H175: 85.97 | I175: 82.06 | J175: 79.94 | K175: 85.97 | L175: 85.97 | M175: FALSE | O175: TRUE | P175: 82.06 | Q175: FALSE | S175: 79.94 | T175: FALSE | V175: FALSE | W175: 85.97 | X175: FALSE | AA175: 100.4
A176: 144 | B176: =OFFSET(InputPriceData!B$15,CalculationsAndCharts!$A176+$A$11,0,1,1) -> 2013-05-15 | C176: =OFFSET(InputPriceData!G$15,CalculationsAndCharts!$A176+$A$11,0,1,1) -> 13444400 | D176: =OFFSET(InputPriceData!C$15,CalculationsAndCharts!$A176+$A$11,IF($C$7,7,0),1,1) -> 85.06 | E176: =OFFSET(InputPriceData!D$15,CalculationsAndCharts!$A176+$A$11,IF($C$7,7,0),1,1) -> 85.97 | F176: =OFFSET(InputPriceData!E$15,CalculationsAndCharts!$A176+$A$11,IF($C$7,7,0),1,1) -> 85.06 | G176: =OFFSET(InputPriceData!F$15,CalculationsAndCharts!$A176+$A$11,IF($C$7,7,0),1,1) -> 85.74 | H176: 85.19 | I176: 82.06 | J176: 79.94 | K176: 85.19 | L176: 85.19 | M176: FALSE | O176: TRUE | P176: 82.06 | Q176: FALSE | S176: 79.94 | T176: FALSE | V176: FALSE | W176: 85.19 | X176: FALSE | AA176: 100.4
A177: 145 | B177: =OFFSET(InputPriceData!B$15,CalculationsAndCharts!$A177+$A$11,0,1,1) -> 2013-05-14 | C177: =OFFSET(InputPriceData!G$15,CalculationsAndCharts!$A177+$A$11,0,1,1) -> 10360700 | D177: =OFFSET(InputPriceData!C$15,CalculationsAndCharts!$A177+$A$11,IF($C$7,7,0),1,1) -> 83.9 | E177: =OFFSET(InputPriceData!D$15,CalculationsAndCharts!$A177+$A$11,IF($C$7,7,0),1,1) -> 85.19 | F177: =OFFSET(InputPriceData!E$15,CalculationsAndCharts!$A177+$A$11,IF($C$7,7,0),1,1) -> 83.9 | G177: =OFFSET(InputPriceData!F$15,CalculationsAndCharts!$A177+$A$11,IF($C$7,7,0),1,1) -> 85.08 | H177: 84.21 | I177: 82.06 | J177: 79.48 | K177: 84.21 | L177: 84.21 | M177: FALSE | O177: TRUE | P177: 82.06 | Q177: FALSE | S177: 79.48 | T177: FALSE | V177: FALSE | W177: 84.21 | X177: FALSE | AA177: 100.4
A178: 146 | B178: =OFFSET(InputPriceData!B$15,CalculationsAndCharts!$A178+$A$11,0,1,1) -> 2013-05-13 | C178: =OFFSET(InputPriceData!G$15,CalculationsAndCharts!$A178+$A$11,0,1,1) -> 6631500 | D178: =OFFSET(InputPriceData!C$15,CalculationsAndCharts!$A178+$A$11,IF($C$7,7,0),1,1) -> 83.71 | E178: =OFFSET(InputPriceData!D$15,CalculationsAndCharts!$A178+$A$11,IF($C$7,7,0),1,1) -> 84.21 | F178: =OFFSET(InputPriceData!E$15,CalculationsAndCharts!$A178+$A$11,IF($C$7,7,0),1,1) -> 83.59 | G178: =OFFSET(InputPriceData!F$15,CalculationsAndCharts!$A178+$A$11,IF($C$7,7,0),1,1) -> 83.99 | H178: 84.12 | I178: 82.06 | J178: 78.57 | K178: 84.12 | L178: 84.12 | M178: FALSE | O178: TRUE | P178: 82.06 | Q178: FALSE | S178: 78.57 | T178: FALSE | V178: FALSE | W178: 84.12 | X178: FALSE | AA178: 100.4
A179: 147 | B179: =OFFSET(InputPriceData!B$15,CalculationsAndCharts!$A179+$A$11,0,1,1) -> 2013-05-10 | C179: =OFFSET(InputPriceData!G$15,CalculationsAndCharts!$A179+$A$11,0,1,1) -> 7594800 | D179: =OFFSET(InputPriceData!C$15,CalculationsAndCharts!$A179+$A$11,IF($C$7,7,0),1,1) -> 83.44 | E179: =OFFSET(InputPriceData!D$15,CalculationsAndCharts!$A179+$A$11,IF($C$7,7,0),1,1) -> 83.9 | F179: =OFFSET(InputPriceData!E$15,CalculationsAndCharts!$A179+$A$11,IF($C$7,7,0),1,1) -> 83.33 | G179: =OFFSET(InputPriceData!F$15,CalculationsAndCharts!$A179+$A$11,IF($C$7,7,0),1,1) -> 83.9 | H179: 84.12 | I179: 81.66 | J179: 78.57 | K179: 84.12 | L179: 84.12 | M179: FALSE | O179: TRUE | P179: 81.66 | Q179: FALSE | S179: 78.57 | T179: FALSE | V179: FALSE | W179: 84.12 | X179: FALSE | AA179: 100.4
A180: 148 | B180: =OFFSET(InputPriceData!B$15,CalculationsAndCharts!$A180+$A$11,0,1,1) -> 2013-05-09 | C180: =OFFSET(InputPriceData!G$15,CalculationsAndCharts!$A180+$A$11,0,1,1) -> 8342000 | D180: =OFFSET(InputPriceData!C$15,CalculationsAndCharts!$A180+$A$11,IF($C$7,7,0),1,1) -> 83.59 | E180: =OFFSET(InputPriceData!D$15,CalculationsAndCharts!$A180+$A$11,IF($C$7,7,0),1,1) -> 83.83 | F180: =OFFSET(InputPriceData!E$15,CalculationsAndCharts!$A180+$A$11,IF($C$7,7,0),1,1) -> 83.11 | G180: =OFFSET(InputPriceData!F$15,CalculationsAndCharts!$A180+$A$11,IF($C$7,7,0),1,1) -> 83.3 | H180: 84.12 | I180: 81.22 | J180: 78.57 | K180: 84.12 | L180: 84.12 | M180: FALSE | O180: TRUE | P180: 81.22 | Q180: FALSE | S180: 78.57 | T180: FALSE | V180: FALSE | W180: 84.12 | X180: FALSE | AA180: 100.4
A181: 149 | B181: =OFFSET(InputPriceData!B$15,CalculationsAndCharts!$A181+$A$11,0,1,1) -> 2013-05-08 | C181: =OFFSET(InputPriceData!G$15,CalculationsAndCharts!$A181+$A$11,0,1,1) -> 8044600 | D181: =OFFSET(InputPriceData!C$15,CalculationsAndCharts!$A181+$A$11,IF($C$7,7,0),1,1) -> 83.62 | E181: =OFFSET(InputPriceData!D$15,CalculationsAndCharts!$A181+$A$11,IF($C$7,7,0),1,1) -> 83.74 | F181: =OFFSET(InputPriceData!E$15,CalculationsAndCharts!$A181+$A$11,IF($C$7,7,0),1,1) -> 83.08 | G181: =OFFSET(InputPriceData!F$15,CalculationsAndCharts!$A181+$A$11,IF($C$7,7,0),1,1) -> 83.6 | H181: 84.12 | I181: 81.22 | J181: 78.57 | K181: 84.12 | L181: 84.12 | M181: FALSE | O181: TRUE | P181: 81.22 | Q181: FALSE | S181: 78.57 | T181: FALSE | V181: FALSE | W181: 84.12 | X181: FALSE | AA181: 100.4
A182: 150 | B182: =OFFSET(InputPriceData!B$15,CalculationsAndCharts!$A182+$A$11,0,1,1) -> 2013-05-07 | C182: =OFFSET(InputPriceData!G$15,CalculationsAndCharts!$A182+$A$11,0,1,1) -> 9061800 | D182: =OFFSET(InputPriceData!C$15,CalculationsAndCharts!$A182+$A$11,IF($C$7,7,0),1,1) -> 83.02 | E182: =OFFSET(InputPriceData!D$15,CalculationsAndCharts!$A182+$A$11,IF($C$7,7,0),1,1) -> 83.71 | F182: =OFFSET(InputPriceData!E$15,CalculationsAndCharts!$A182+$A$11,IF($C$7,7,0),1,1) -> 82.79 | G182: =OFFSET(InputPriceData!F$15,CalculationsAndCharts!$A182+$A$11,IF($C$7,7,0),1,1) -> 83.67 | H182: 84.12 | I182: 80.29 | J182: 78.57 | K182: 84.12 | L182: 84.12 | M182: FALSE | O182: TRUE | P182: 80.29 | Q182: FALSE | S182: 78.57 | T182: FALSE | V182: FALSE | W182: 84.12 | X182: FALSE | AA182: 100.4
A183: 151 | B183: =OFFSET(InputPriceData!B$15,CalculationsAndCharts!$A183+$A$11,0,1,1) -> 2013-05-06 | C183: =OFFSET(InputPriceData!G$15,CalculationsAndCharts!$A183+$A$11,0,1,1) -> 8815600 | D183: =OFFSET(InputPriceData!C$15,CalculationsAndCharts!$A183+$A$11,IF($C$7,7,0),1,1) -> 83.92 | E183: =OFFSET(InputPriceData!D$15,CalculationsAndCharts!$A183+$A$11,IF($C$7,7,0),1,1) -> 83.92 | F183: =OFFSET(InputPriceData!E$15,CalculationsAndCharts!$A183+$A$11,IF($C$7,7,0),1,1) -> 82.71 | G183: =OFFSET(InputPriceData!F$15,CalculationsAndCharts!$A183+$A$11,IF($C$7,7,0),1,1) -> 82.84 | H183: 84.12 | I183: 79.94 | J183: 78.57 | K183: 84.12 | L183: 84.12 | M183: FALSE | O183: TRUE | P183: 79.94 | Q183: FALSE | S183: 78.57 | T183: FALSE | V183: FALSE | W183: 84.12 | X183: FALSE | AA183: 100.4
A184: 152 | B184: =OFFSET(InputPriceData!B$15,CalculationsAndCharts!$A184+$A$11,0,1,1) -> 2013-05-03 | C184: =OFFSET(InputPriceData!G$15,CalculationsAndCharts!$A184+$A$11,0,1,1) -> 9213800 | D184: =OFFSET(InputPriceData!C$15,CalculationsAndCharts!$A184+$A$11,IF($C$7,7,0),1,1) -> 83.72 | E184: =OFFSET(InputPriceData!D$15,CalculationsAndCharts!$A184+$A$11,IF($C$7,7,0),1,1) -> 84.12 | F184: =OFFSET(InputPriceData!E$15,CalculationsAndCharts!$A184+$A$11,IF($C$7,7,0),1,1) -> 83.6 | G184: =OFFSET(InputPriceData!F$15,CalculationsAndCharts!$A184+$A$11,IF($C$7,7,0),1,1) -> 83.89 | H184: 84.02 | I184: 79.94 | J184: 78.57 | K184: 84.02 | L184: 84.02 | M184: FALSE | O184: TRUE | P184: 79.94 | Q184: FALSE | S184: 78.57 | T184: FALSE | V184: FALSE | W184: 84.02 | X184: FALSE | AA184: 100.4
A185: 153 | B185: =OFFSET(InputPriceData!B$15,CalculationsAndCharts!$A185+$A$11,0,1,1) -> 2013-05-02 | C185: =OFFSET(InputPriceData!G$15,CalculationsAndCharts!$A185+$A$11,0,1,1) -> 8668900 | D185: =OFFSET(InputPriceData!C$15,CalculationsAndCharts!$A185+$A$11,IF($C$7,7,0),1,1) -> 82.61 | E185: =OFFSET(InputPriceData!D$15,CalculationsAndCharts!$A185+$A$11,IF($C$7,7,0),1,1) -> 83.36 | F185: =OFFSET(InputPriceData!E$15,CalculationsAndCharts!$A185+$A$11,IF($C$7,7,0),1,1) -> 82.34 | G185: =OFFSET(InputPriceData!F$15,CalculationsAndCharts!$A185+$A$11,IF($C$7,7,0),1,1) -> 83.31 | H185: 84.02 | I185: 79.94 | J185: 78.53 | K185: 84.02 | L185: 84.02 | M185: FALSE | O185: TRUE | P185: 79.94 | Q185: FALSE | S185: 78.53 | T185: FALSE | V185: FALSE | W185: 84.02 | X185: FALSE | AA185: 100.4
A186: 154 | B186: =OFFSET(InputPriceData!B$15,CalculationsAndCharts!$A186+$A$11,0,1,1) -> 2013-05-01 | C186: =OFFSET(InputPriceData!G$15,CalculationsAndCharts!$A186+$A$11,0,1,1) -> 12312100 | D186: =OFFSET(InputPriceData!C$15,CalculationsAndCharts!$A186+$A$11,IF($C$7,7,0),1,1) -> 82.66 | E186: =OFFSET(InputPriceData!D$15,CalculationsAndCharts!$A186+$A$11,IF($C$7,7,0),1,1) -> 83.28 | F186: =OFFSET(InputPriceData!E$15,CalculationsAndCharts!$A186+$A$11,IF($C$7,7,0),1,1) -> 82.06 | G186: =OFFSET(InputPriceData!F$15,CalculationsAndCharts!$A186+$A$11,IF($C$7,7,0),1,1) -> 82.4 | H186: 84.02 | I186: 79.94 | J186: 78.11 | K186: 84.02 | L186: 84.02 | M186: FALSE | O186: TRUE | P186: 79.94 | Q186: FALSE | S186: 78.11 | T186: FALSE | V186: FALSE | W186: 84.02 | X186: FALSE | AA186: 100.4
A187: 155 | B187: =OFFSET(InputPriceData!B$15,CalculationsAndCharts!$A187+$A$11,0,1,1) -> 2013-04-30 | C187: =OFFSET(InputPriceData!G$15,CalculationsAndCharts!$A187+$A$11,0,1,1) -> 12099600 | D187: =OFFSET(InputPriceData!C$15,CalculationsAndCharts!$A187+$A$11,IF($C$7,7,0),1,1) -> 83.54 | E187: =OFFSET(InputPriceData!D$15,CalculationsAndCharts!$A187+$A$11,IF($C$7,7,0),1,1) -> 83.84 | F187: =OFFSET(InputPriceData!E$15,CalculationsAndCharts!$A187+$A$11,IF($C$7,7,0),1,1) -> 83.05 | G187: =OFFSET(InputPriceData!F$15,CalculationsAndCharts!$A187+$A$11,IF($C$7,7,0),1,1) -> 83.38 | H187: 84.02 | I187: 79.48 | J187: 77.74 | K187: 84.02 | L187: 84.02 | M187: FALSE | O187: TRUE | P187: 79.48 | Q187: FALSE | S187: 77.74 | T187: FALSE | V187: FALSE | W187: 84.02 | X187: FALSE | AA187: 100.4
A188: 156 | B188: =OFFSET(InputPriceData!B$15,CalculationsAndCharts!$A188+$A$11,0,1,1) -> 2013-04-29 | C188: =OFFSET(InputPriceData!G$15,CalculationsAndCharts!$A188+$A$11,0,1,1) -> 8038000 | D188: =OFFSET(InputPriceData!C$15,CalculationsAndCharts!$A188+$A$11,IF($C$7,7,0),1,1) -> 83.17 | E188: =OFFSET(InputPriceData!D$15,CalculationsAndCharts!$A188+$A$11,IF($C$7,7,0),1,1) -> 84.02 | F188: =OFFSET(InputPriceData!E$15,CalculationsAndCharts!$A188+$A$11,IF($C$7,7,0),1,1) -> 83.06 | G188: =OFFSET(InputPriceData!F$15,CalculationsAndCharts!$A188+$A$11,IF($C$7,7,0),1,1) -> 83.72 | H188: 83.88 | I188: 78.57 | J188: 77.31 | K188: 83.88 | L188: 83.88 | M188: FALSE | O188: TRUE | P188: 78.57 | Q188: FALSE | S188: 77.31 | T188: FALSE | V188: FALSE | W188: 83.88 | X188: FALSE | AA188: 100.4
A189: 157 | B189: =OFFSET(InputPriceData!B$15,CalculationsAndCharts!$A189+$A$11,0,1,1) -> 2013-04-26 | C189: =OFFSET(InputPriceData!G$15,CalculationsAndCharts!$A189+$A$11,0,1,1) -> 6784700 | D189: =OFFSET(InputPriceData!C$15,CalculationsAndCharts!$A189+$A$11,IF($C$7,7,0),1,1) -> 83.45 | E189: =OFFSET(InputPriceData!D$15,CalculationsAndCharts!$A189+$A$11,IF($C$7,7,0),1,1) -> 83.63 | F189: =OFFSET(InputPriceData!E$15,CalculationsAndCharts!$A189+$A$11,IF($C$7,7,0),1,1) -> 82.97 | G189: =OFFSET(InputPriceData!F$15,CalculationsAndCharts!$A189+$A$11,IF($C$7,7,0),1,1) -> 83.27 | H189: 83.88 | I189: 78.57 | J189: 77.06 | K189: 83.88 | L189: 83.88 | M189: FALSE | O189: TRUE | P189: 78.57 | Q189: FALSE | S189: 77.06 | T189: FALSE | V189: FALSE | W189: 83.88 | X189: FALSE | AA189: 100.4
A190: 158 | B190: =OFFSET(InputPriceData!B$15,CalculationsAndCharts!$A190+$A$11,0,1,1) -> 2013-04-25 | C190: =OFFSET(InputPriceData!G$15,CalculationsAndCharts!$A190+$A$11,0,1,1) -> 8689400 | D190: =OFFSET(InputPriceData!C$15,CalculationsAndCharts!$A190+$A$11,IF($C$7,7,0),1,1) -> 82.7 | E190: =OFFSET(InputPriceData!D$15,CalculationsAndCharts!$A190+$A$11,IF($C$7,7,0),1,1) -> 83.59 | F190: =OFFSET(InputPriceData!E$15,CalculationsAndCharts!$A190+$A$11,IF($C$7,7,0),1,1) -> 82.51 | G190: =OFFSET(InputPriceData!F$15,CalculationsAndCharts!$A190+$A$11,IF($C$7,7,0),1,1) -> 83.37 | H190: 83.88 | I190: 78.57 | J190: 77.06 | K190: 83.88 | L190: 83.88 | M190: FALSE | O190: TRUE | P190: 78.57 | Q190: FALSE | S190: 77.06 | T190: FALSE | V190: FALSE | W190: 83.88 | X190: FALSE | AA190: 100.4
A191: 159 | B191: =OFFSET(InputPriceData!B$15,CalculationsAndCharts!$A191+$A$11,0,1,1) -> 2013-04-24 | C191: =OFFSET(InputPriceData!G$15,CalculationsAndCharts!$A191+$A$11,0,1,1) -> 9480600 | D191: =OFFSET(InputPriceData!C$15,CalculationsAndCharts!$A191+$A$11,IF($C$7,7,0),1,1) -> 83.82 | E191: =OFFSET(InputPriceData!D$15,CalculationsAndCharts!$A191+$A$11,IF($C$7,7,0),1,1) -> 83.88 | F191: =OFFSET(InputPriceData!E$15,CalculationsAndCharts!$A191+$A$11,IF($C$7,7,0),1,1) -> 82.45 | G191: =OFFSET(InputPriceData!F$15,CalculationsAndCharts!$A191+$A$11,IF($C$7,7,0),1,1) -> 82.56 | H191: 83.81 | I191: 78.57 | J191: 76.8 | K191: 83.81 | L191: 83.81 | M191: FALSE | O191: TRUE | P191: 78.57 | Q191: FALSE | S191: 76.8 | T191: FALSE | V191: FALSE | W191: 83.81 | X191: FALSE | AA191: 100.4
A192: 160 | B192: =OFFSET(InputPriceData!B$15,CalculationsAndCharts!$A192+$A$11,0,1,1) -> 2013-04-23 | C192: =OFFSET(InputPriceData!G$15,CalculationsAndCharts!$A192+$A$11,0,1,1) -> 8982100 | D192: =OFFSET(InputPriceData!C$15,CalculationsAndCharts!$A192+$A$11,IF($C$7,7,0),1,1) -> 83.14 | E192: =OFFSET(InputPriceData!D$15,CalculationsAndCharts!$A192+$A$11,IF($C$7,7,0),1,1) -> 83.81 | F192: =OFFSET(InputPriceData!E$15,CalculationsAndCharts!$A192+$A$11,IF($C$7,7,0),1,1) -> 82.17 | G192: =OFFSET(InputPriceData!F$15,CalculationsAndCharts!$A192+$A$11,IF($C$7,7,0),1,1) -> 83.59 | H192: 83.09 | I192: 78.57 | J192: 76.8 | K192: 83.09 | L192: 83.09 | M192: FALSE | O192: TRUE | P192: 78.57 | Q192: FALSE | S192: 76.8 | T192: FALSE | V192: FALSE | W192: 83.09 | X192: FALSE | AA192: 100.4
A193: 161 | B193: =OFFSET(InputPriceData!B$15,CalculationsAndCharts!$A193+$A$11,0,1,1) -> 2013-04-22 | C193: =OFFSET(InputPriceData!G$15,CalculationsAndCharts!$A193+$A$11,0,1,1) -> 6989900 | D193: =OFFSET(InputPriceData!C$15,CalculationsAndCharts!$A193+$A$11,IF($C$7,7,0),1,1) -> 82.76 | E193: =OFFSET(InputPriceData!D$15,CalculationsAndCharts!$A193+$A$11,IF($C$7,7,0),1,1) -> 83.09 | F193: =OFFSET(InputPriceData!E$15,CalculationsAndCharts!$A193+$A$11,IF($C$7,7,0),1,1) -> 82.37 | G193: =OFFSET(InputPriceData!F$15,CalculationsAndCharts!$A193+$A$11,IF($C$7,7,0),1,1) -> 82.99 | H193: 82.74 | I193: 78.57 | J193: 76.8 | K193: 82.74 | L193: 82.74 | M193: FALSE | O193: TRUE | P193: 78.57 | Q193: FALSE | S193: 76.8 | T193: FALSE | V193: FALSE | W193: 82.74 | X193: FALSE | AA193: 100.4
A194: 162 | B194: =OFFSET(InputPriceData!B$15,CalculationsAndCharts!$A194+$A$11,0,1,1) -> 2013-04-19 | C194: =OFFSET(InputPriceData!G$15,CalculationsAndCharts!$A194+$A$11,0,1,1) -> 10787600 | D194: =OFFSET(InputPriceData!C$15,CalculationsAndCharts!$A194+$A$11,IF($C$7,7,0),1,1) -> 81.7 | E194: =OFFSET(InputPriceData!D$15,CalculationsAndCharts!$A194+$A$11,IF($C$7,7,0),1,1) -> 82.74 | F194: =OFFSET(InputPriceData!E$15,CalculationsAndCharts!$A194+$A$11,IF($C$7,7,0),1,1) -> 81.66 | G194: =OFFSET(InputPriceData!F$15,CalculationsAndCharts!$A194+$A$11,IF($C$7,7,0),1,1) -> 82.66 | H194: 82.6 | I194: 78.57 | J194: 76.78 | K194: 82.6 | L194: 82.6 | M194: FALSE | O194: TRUE | P194: 78.57 | Q194: FALSE | S194: 76.78 | T194: FALSE | V194: FALSE | W194: 82.6 | X194: FALSE | AA194: 100.4
A195: 163 | B195: =OFFSET(InputPriceData!B$15,CalculationsAndCharts!$A195+$A$11,0,1,1) -> 2013-04-18 | C195: =OFFSET(InputPriceData!G$15,CalculationsAndCharts!$A195+$A$11,0,1,1) -> 9921500 | D195: =OFFSET(InputPriceData!C$15,CalculationsAndCharts!$A195+$A$11,IF($C$7,7,0),1,1) -> 82.13 | E195: =OFFSET(InputPriceData!D$15,CalculationsAndCharts!$A195+$A$11,IF($C$7,7,0),1,1) -> 82.47 | F195: =OFFSET(InputPriceData!E$15,CalculationsAndCharts!$A195+$A$11,IF($C$7,7,0),1,1) -> 81.22 | G195: =OFFSET(InputPriceData!F$15,CalculationsAndCharts!$A195+$A$11,IF($C$7,7,0),1,1) -> 81.37 | H195: 82.6 | I195: 78.53 | J195: 76.5 | K195: 82.6 | L195: 82.6 | M195: FALSE | O195: TRUE | P195: 78.53 | Q195: FALSE | S195: 76.5 | T195: FALSE | V195: FALSE | W195: 82.6 | X195: FALSE | AA195: 100.4
A196: 164 | B196: =OFFSET(InputPriceData!B$15,CalculationsAndCharts!$A196+$A$11,0,1,1) -> 2013-04-17 | C196: =OFFSET(InputPriceData!G$15,CalculationsAndCharts!$A196+$A$11,0,1,1) -> 13693300 | D196: =OFFSET(InputPriceData!C$15,CalculationsAndCharts!$A196+$A$11,IF($C$7,7,0),1,1) -> 81.55 | E196: =OFFSET(InputPriceData!D$15,CalculationsAndCharts!$A196+$A$11,IF($C$7,7,0),1,1) -> 82.6 | F196: =OFFSET(InputPriceData!E$15,CalculationsAndCharts!$A196+$A$11,IF($C$7,7,0),1,1) -> 81.48 | G196: =OFFSET(InputPriceData!F$15,CalculationsAndCharts!$A196+$A$11,IF($C$7,7,0),1,1) -> 82.08 | H196: 81.73 | I196: 78.11 | J196: 76.5 | K196: 81.73 | L196: 81.73 | M196: FALSE | O196: TRUE | P196: 78.11 | Q196: FALSE | S196: 76.5 | T196: FALSE | V196: FALSE | W196: 81.73 | X196: FALSE | AA196: 100.4
A197: 165 | B197: =OFFSET(InputPriceData!B$15,CalculationsAndCharts!$A197+$A$11,0,1,1) -> 2013-04-16 | C197: =OFFSET(InputPriceData!G$15,CalculationsAndCharts!$A197+$A$11,0,1,1) -> 12620000 | D197: =OFFSET(InputPriceData!C$15,CalculationsAndCharts!$A197+$A$11,IF($C$7,7,0),1,1) -> 80.54 | E197: =OFFSET(InputPriceData!D$15,CalculationsAndCharts!$A197+$A$11,IF($C$7,7,0),1,1) -> 81.73 | F197: =OFFSET(InputPriceData!E$15,CalculationsAndCharts!$A197+$A$11,IF($C$7,7,0),1,1) -> 80.29 | G197: =OFFSET(InputPriceData!F$15,CalculationsAndCharts!$A197+$A$11,IF($C$7,7,0),1,1) -> 81.63 | H197: 81.29 | I197: 77.74 | J197: 76.15 | K197: 81.29 | L197: 81.29 | M197: FALSE | O197: TRUE | P197: 77.74 | Q197: FALSE | S197: 76.15 | T197: FALSE | V197: FALSE | W197: 81.29 | X197: FALSE | AA197: 100.4
A198: 166 | B198: =OFFSET(InputPriceData!B$15,CalculationsAndCharts!$A198+$A$11,0,1,1) -> 2013-04-15 | C198: =OFFSET(InputPriceData!G$15,CalculationsAndCharts!$A198+$A$11,0,1,1) -> 12385800 | D198: =OFFSET(InputPriceData!C$15,CalculationsAndCharts!$A198+$A$11,IF($C$7,7,0),1,1) -> 80.93 | E198: =OFFSET(InputPriceData!D$15,CalculationsAndCharts!$A198+$A$11,IF($C$7,7,0),1,1) -> 81.29 | F198: =OFFSET(InputPriceData!E$15,CalculationsAndCharts!$A198+$A$11,IF($C$7,7,0),1,1) -> 79.94 | G198: =OFFSET(InputPriceData!F$15,CalculationsAndCharts!$A198+$A$11,IF($C$7,7,0),1,1) -> 79.94 | H198: 81.16 | I198: 77.31 | J198: 76.01 | K198: 81.16 | L198: 81.16 | M198: FALSE | O198: TRUE | P198: 77.31 | Q198: FALSE | S198: 76.01 | T198: FALSE | V198: FALSE | W198: 81.16 | X198: FALSE | AA198: 100.4
A199: 167 | B199: =OFFSET(InputPriceData!B$15,CalculationsAndCharts!$A199+$A$11,0,1,1) -> 2013-04-12 | C199: =OFFSET(InputPriceData!G$15,CalculationsAndCharts!$A199+$A$11,0,1,1) -> 6987000 | D199: =OFFSET(InputPriceData!C$15,CalculationsAndCharts!$A199+$A$11,IF($C$7,7,0),1,1) -> 80.46 | E199: =OFFSET(InputPriceData!D$15,CalculationsAndCharts!$A199+$A$11,IF($C$7,7,0),1,1) -> 80.94 | F199: =OFFSET(InputPriceData!E$15,CalculationsAndCharts!$A199+$A$11,IF($C$7,7,0),1,1) -> 80.38 | G199: =OFFSET(InputPriceData!F$15,CalculationsAndCharts!$A199+$A$11,IF($C$7,7,0),1,1) -> 80.94 | H199: 81.16 | I199: 77.06 | J199: 75.9 | K199: 81.16 | L199: 81.16 | M199: FALSE | O199: TRUE | P199: 77.06 | Q199: FALSE | S199: 75.9 | T199: FALSE | V199: FALSE | W199: 81.16 | X199: FALSE | AA199: 100.4
A200: 168 | B200: =OFFSET(InputPriceData!B$15,CalculationsAndCharts!$A200+$A$11,0,1,1) -> 2013-04-11 | C200: =OFFSET(InputPriceData!G$15,CalculationsAndCharts!$A200+$A$11,0,1,1) -> 9882700 | D200: =OFFSET(InputPriceData!C$15,CalculationsAndCharts!$A200+$A$11,IF($C$7,7,0),1,1) -> 80.35 | E200: =OFFSET(InputPriceData!D$15,CalculationsAndCharts!$A200+$A$11,IF($C$7,7,0),1,1) -> 81.16 | F200: =OFFSET(InputPriceData!E$15,CalculationsAndCharts!$A200+$A$11,IF($C$7,7,0),1,1) -> 80.3 | G200: =OFFSET(InputPriceData!F$15,CalculationsAndCharts!$A200+$A$11,IF($C$7,7,0),1,1) -> 80.53 | H200: 81.15 | I200: 77.06 | J200: 75.54 | K200: 81.15 | L200: 81.15 | M200: FALSE | O200: TRUE | P200: 77.06 | Q200: FALSE | S200: 75.54 | T200: FALSE | V200: FALSE | W200: 81.15 | X200: FALSE | AA200: 100.4
... 673 more rows

Sheet Transaction Summary
B1: Transaction Summary (using trade size of 1 share)
C2: =CalculationsAndCharts!$A$12 -> 800 | D2: Logically Available Bars on the "CalculationsAndCharts" tab constitute a
D3: ="Transaction reporting period extending from " & TEXT(OFFSET(CalculationsAndCharts!$B$32,CalculationsAndCharts!$A$8,0,1,1),"mm/dd/yyyy") & " to "& TEXT(CalculationsAndCharts!$B$33,"mm/dd/yyyy") -> Transaction reporting period extending from 08/06/2010 to 12/06/2013
B4: Summary for LONG trades | K4: Summary for SHORT trades
B5: =COUNT(OFFSET(B15,0,0,C2,1)) -> 15 | C5: LONG trades opened in this time period | K5: =COUNT(OFFSET(K15,0,0,$C$2,1)) -> 13 | L5: Short trades opened in this time period
B6: =COUNTIF(OFFSET(H15,0,0,B5,1),">0") -> 5 | C6: Winners | D6: Biggest Win | E6: =MAX(OFFSET(H15,0,0,B5,1)) -> 13.61 | H6: Sum of Gains | I6: =SUMIF(OFFSET(H15,0,0,B5,1),">0") -> 28.77 | K6: =COUNTIF(OFFSET(Q15,0,0,K5,1),">0") -> 2 | L6: Winners | M6: Biggest Win | N6: =MAX(OFFSET(Q15,0,0,K5,1)) -> 1.08 | Q6: Sum of Gains | R6: =SUMIF(OFFSET(Q15,0,0,K5,1),">0") -> 1.09
B7: =COUNTIF(OFFSET(H15,0,0,B5,1),"<0") -> 10 | C7: Losers | D7: Biggest Loss | E7: =MIN(OFFSET(H15,0,0,B5,1)) -> -3.42 | H7: Sum of Losses | I7: =SUMIF(OFFSET(H15,0,0,B5,1),"<0") -> -13.35 | K7: =COUNTIF(OFFSET(Q15,0,0,K5,1),"<0") -> 11 | L7: Losers | M7: Biggest Loss | N7: =MIN(OFFSET(Q15,0,0,K5,1)) -> -3.72 | Q7: Sum of Losses | R7: =SUMIF(OFFSET(Q15,0,0,K5,1),"<0") -> -19.06
H8: NET change for Period | I8: =SUM(OFFSET(H15,0,0,B5,1)) -> 15.42 | Q8: NET change for Period | R8: =SUM(OFFSET(Q15,0,0,K5,1)) -> -17.97
H10: Largest Negative Account Balance | I10: =MIN(OFFSET(I15,0,0,B5,1)) -> -5.49 | Q10: Largest Negative Account Balance | R10: =MIN(OFFSET(R15,0,0,K5,1)) -> -17.97
E12: =MATCH(TRUE,OFFSET(CalculationsAndCharts!$Q$33,0,0,'Transaction Summary'!C2,1),0) -> 81 | F12: =IF($E$12>$B$15,"Open Trade Marked to Current Bar Open","") -> Open Trade Marked to Current Bar Open | N12: =MATCH(TRUE,OFFSET(CalculationsAndCharts!X33,0,0,'Transaction Summary'!$C$2,1),0) -> 39 | O12: =IF($N$12>$K$15,"Open Trade Marked to Current Bar Open","") -> 
C13: Enter Long | F13: Exit Long | H13: Trade Result | I13: Running Balance | L13: Enter Short | O13: Exit Short | Q13: Trade Result | R13: Running Balance
B14: Rel Row | C14: Date | D14: $ | E14: Rel Row | F14: Date | G14: $ | K14: Rel Row | L14: Date | M14: $ | N14: Rel Row | O14: Date | P14: $
B15: =MATCH(TRUE,OFFSET(CalculationsAndCharts!$M$33,0,0,'Transaction Summary'!$C$2,1),0) -> 38 | C15: =OFFSET(CalculationsAndCharts!$B$32,'Transaction Summary'!B15,0,1,1) -> 2013-10-15 | D15: =OFFSET(CalculationsAndCharts!$N$32,'Transaction Summary'!B15,0,1,1) -> 90.09 | E15: =IF($E$12>$B$15,"OPEN",$E$12) -> OPEN | F15: =IF($E$12>$B$15,CalculationsAndCharts!B33,OFFSET(CalculationsAndCharts!$B$32,'Transaction Summary'!E15,0,1,1)) -> 2013-12-06 | G15: =IF($E$12>$B$15,CalculationsAndCharts!D33,OFFSET(CalculationsAndCharts!$R$32,'Transaction Summary'!E15,0,1,1)) -> 93.6 | H15: =G15-D15 -> 3.51 | I15: =H15+IF(ISNA(I16),0,I16) -> 15.42 | K15: =MATCH(TRUE,OFFSET(CalculationsAndCharts!$T$33,0,0,'Transaction Summary'!$C$2,1),0) -> 43 | L15: =OFFSET(CalculationsAndCharts!$B$32,'Transaction Summary'!K15,0,1,1) -> 2013-10-08 | M15: =OFFSET(CalculationsAndCharts!$U$32,'Transaction Summary'!K15,0,1,1) -> 85.41 | N15: =IF($N$12>$K$15,"OPEN",$N$12) -> 39 | O15: =IF($N$12>$K$15,CalculationsAndCharts!B33,OFFSET(CalculationsAndCharts!$B$32,'Transaction Summary'!N15,0,1,1)) -> 2013-10-14 | P15: =IF($N$12>$K$15,CalculationsAndCharts!D33,OFFSET(CalculationsAndCharts!$Y$32,'Transaction Summary'!N15,0,1,1)) -> 89.13 | Q15: =M15-P15 -> -3.72 | R15: =Q15+IF(ISNA(R16),0,R16) -> -17.97
B16: =IFERROR(MATCH(TRUE,OFFSET(CalculationsAndCharts!$M$33,B15,0,'Transaction Summary'!$C$2-B15,1),0)+B15,"") -> 109 | C16: =IFERROR(OFFSET(CalculationsAndCharts!$B$32,'Transaction Summary'!B16,0,1,1),"") -> 2013-07-05 | D16: =IFERROR(OFFSET(CalculationsAndCharts!$N$32,'Transaction Summary'!B16,0,1,1),"") -> 86.55 | E16: =IFERROR(IF($E$12>$B$15,$E$12,(MATCH(TRUE,OFFSET(CalculationsAndCharts!$Q$33,E15,0,'Transaction Summary'!$C$2-E15,1),0)+E15)),"") -> 81 | F16: =IFERROR(OFFSET(CalculationsAndCharts!$B$32,'Transaction Summary'!E16,0,1,1),"") -> 2013-08-14 | G16: =IFERROR(OFFSET(CalculationsAndCharts!$R$32,'Transaction Summary'!E16,0,1,1),"") -> 90.34 | H16: =IFERROR(G16-D16,"") -> 3.79 | I16: =IFERROR(H16+IF(""=I17,0,I17),"") -> 11.91 | K16: =IFERROR(MATCH(TRUE,OFFSET(CalculationsAndCharts!$T$33,K15,0,'Transaction Summary'!$C$2-K15,1),0)+K15,"") -> 79 | L16: =IFERROR(OFFSET(CalculationsAndCharts!$B$32,'Transaction Summary'!K16,0,1,1),"") -> 2013-08-16 | M16: =IFERROR(OFFSET(CalculationsAndCharts!$U$32,'Transaction Summary'!K16,0,1,1),"") -> 87.81 | N16: =IFERROR(IF($N$12>$K$15,$N$12,MATCH(TRUE,OFFSET(CalculationsAndCharts!$X$33,N15,0,'Transaction Summary'!$C$2-N15,1),0)+N15),"") -> 61 | O16: =IFERROR(OFFSET(CalculationsAndCharts!$B$32,'Transaction Summary'!N16,0,1,1),"") -> 2013-09-12 | P16: =IFERROR(OFFSET(CalculationsAndCharts!$Y$32,'Transaction Summary'!N16,0,1,1),"") -> 88.68 | Q16: =IFERROR(M16-P16,"") -> -0.87 | R16: =IFERROR(Q16+IF(""=R17,0,R17),"") -> -14.25
B17: =IFERROR(MATCH(TRUE,OFFSET(CalculationsAndCharts!$M$33,B16,0,'Transaction Summary'!$C$2-B16,1),0)+B16,"") -> 234 | C17: =IFERROR(OFFSET(CalculationsAndCharts!$B$32,'Transaction Summary'!B17,0,1,1),"") -> 2013-01-04 | D17: =IFERROR(OFFSET(CalculationsAndCharts!$N$32,'Transaction Summary'!B17,0,1,1),"") -> 69.5 | E17: =IF(B17="","",IFERROR((MATCH(TRUE,OFFSET(CalculationsAndCharts!$Q$33,E16,0,'Transaction Summary'!$C$2-E16,1),0)+E16),"")) -> 133 | F17: =IFERROR(OFFSET(CalculationsAndCharts!$B$32,'Transaction Summary'!E17,0,1,1),"") -> 2013-05-31 | G17: =IFERROR(OFFSET(CalculationsAndCharts!$R$32,'Transaction Summary'!E17,0,1,1),"") -> 83.11 | H17: =IFERROR(G17-D17,"") -> 13.61 | I17: =IFERROR(H17+IF(""=I18,0,I18),"") -> 8.12 | K17: =IFERROR(MATCH(TRUE,OFFSET(CalculationsAndCharts!$T$33,K16,0,'Transaction Summary'!$C$2-K16,1),0)+K16,"") -> 129 | L17: =IFERROR(OFFSET(CalculationsAndCharts!$B$32,'Transaction Summary'!K17,0,1,1),"") -> 2013-06-06 | M17: =IFERROR(OFFSET(CalculationsAndCharts!$U$32,'Transaction Summary'!K17,0,1,1),"") -> 82.06 | N17: =IF(K17="","",IFERROR(MATCH(TRUE,OFFSET(CalculationsAndCharts!$X$33,N16,0,'Transaction Summary'!$C$2-N16,1),0)+N16,"")) -> 115 | O17: =IFERROR(OFFSET(CalculationsAndCharts!$B$32,'Transaction Summary'!N17,0,1,1),"") -> 2013-06-26 | P17: =IFERROR(OFFSET(CalculationsAndCharts!$D$32,'Transaction Summary'!N17,0,1,1),"") -> 84.71 | Q17: -2.65 | R17: -13.38
B18: =IFERROR(MATCH(TRUE,OFFSET(CalculationsAndCharts!$M$33,B17,0,'Transaction Summary'!$C$2-B17,1),0)+B17,"") -> 250 | C18: =IFERROR(OFFSET(CalculationsAndCharts!$B$32,'Transaction Summary'!B18,0,1,1),"") -> 2012-12-11 | D18: =IFERROR(OFFSET(CalculationsAndCharts!$N$32,'Transaction Summary'!B18,0,1,1),"") -> 68.9 | E18: =IF(B18="","",IFERROR((MATCH(TRUE,OFFSET(CalculationsAndCharts!$Q$33,E17,0,'Transaction Summary'!$C$2-E17,1),0)+E17),"")) -> 238 | F18: =IFERROR(OFFSET(CalculationsAndCharts!$B$32,'Transaction Summary'!E18,0,1,1),"") -> 2012-12-28 | G18: =IFERROR(OFFSET(CalculationsAndCharts!$R$32,'Transaction Summary'!E18,0,1,1),"") -> 67.74 | H18: -1.16 | I18: -5.49 | K18: =IFERROR(MATCH(TRUE,OFFSET(CalculationsAndCharts!$T$33,K17,0,'Transaction Summary'!$C$2-K17,1),0)+K17,"") -> 319 | L18: =IFERROR(OFFSET(CalculationsAndCharts!$B$32,'Transaction Summary'!K18,0,1,1),"") -> 2012-08-30 | M18: =IFERROR(OFFSET(CalculationsAndCharts!$U$32,'Transaction Summary'!K18,0,1,1),"") -> 64.36 | N18: =IF(K18="","",IFERROR(MATCH(TRUE,OFFSET(CalculationsAndCharts!$X$33,N17,0,'Transaction Summary'!$C$2-N17,1),0)+N17,"")) -> 313 | O18: =IFERROR(OFFSET(CalculationsAndCharts!$B$32,'Transaction Summary'!N18,0,1,1),"") -> 2012-09-10 | P18: =IFERROR(OFFSET(CalculationsAndCharts!$D$32,'Transaction Summary'!N18,0,1,1),"") -> 65.41 | Q18: -1.05 | R18: -10.73
B19: =IFERROR(MATCH(TRUE,OFFSET(CalculationsAndCharts!$M$33,B18,0,'Transaction Summary'!$C$2-B18,1),0)+B18,"") -> 287 | C19: =IFERROR(OFFSET(CalculationsAndCharts!$B$32,'Transaction Summary'!B19,0,1,1),"") -> 2012-10-16 | D19: =IFERROR(OFFSET(CalculationsAndCharts!$N$32,'Transaction Summary'!B19,0,1,1),"") -> 67.09 | E19: =IF(B19="","",IFERROR((MATCH(TRUE,OFFSET(CalculationsAndCharts!$Q$33,E18,0,'Transaction Summary'!$C$2-E18,1),0)+E18),"")) -> 271 | F19: =IFERROR(OFFSET(CalculationsAndCharts!$B$32,'Transaction Summary'!E19,0,1,1),"") -> 2012-11-09 | G19: =IFERROR(OFFSET(CalculationsAndCharts!$R$32,'Transaction Summary'!E19,0,1,1),"") -> 66.91 | H19: -0.18 | I19: -4.33 | K19: =IFERROR(MATCH(TRUE,OFFSET(CalculationsAndCharts!$T$33,K18,0,'Transaction Summary'!$C$2-K18,1),0)+K18,"") -> 384 | L19: =IFERROR(OFFSET(CalculationsAndCharts!$B$32,'Transaction Summary'!K19,0,1,1),"") -> 2012-05-30 | M19: =IFERROR(OFFSET(CalculationsAndCharts!$U$32,'Transaction Summary'!K19,0,1,1),"") -> 59.37 | N19: =IF(K19="","",IFERROR(MATCH(TRUE,OFFSET(CalculationsAndCharts!$X$33,N18,0,'Transaction Summary'!$C$2-N18,1),0)+N18,"")) -> 374 | O19: =IFERROR(OFFSET(CalculationsAndCharts!$B$32,'Transaction Summary'!N19,0,1,1),"") -> 2012-06-13 | P19: =IFERROR(OFFSET(CalculationsAndCharts!$D$32,'Transaction Summary'!N19,0,1,1),"") -> 61.24 | Q19: -1.87 | R19: -9.68
B20: =IFERROR(MATCH(TRUE,OFFSET(CalculationsAndCharts!$M$33,B19,0,'Transaction Summary'!$C$2-B19,1),0)+B19,"") -> 310 | C20: =IFERROR(OFFSET(CalculationsAndCharts!$B$32,'Transaction Summary'!B20,0,1,1),"") -> 2012-09-13 | D20: =IFERROR(OFFSET(CalculationsAndCharts!$N$32,'Transaction Summary'!B20,0,1,1),"") -> 65.95 | E20: =IF(B20="","",IFERROR((MATCH(TRUE,OFFSET(CalculationsAndCharts!$Q$33,E19,0,'Transaction Summary'!$C$2-E19,1),0)+E19),"")) -> 291 | F20: =IFERROR(OFFSET(CalculationsAndCharts!$B$32,'Transaction Summary'!E20,0,1,1),"") -> 2012-10-10 | G20: =IFERROR(OFFSET(CalculationsAndCharts!$R$32,'Transaction Summary'!E20,0,1,1),"") -> 65.51 | H20: -0.44 | I20: -4.15 | K20: =IFERROR(MATCH(TRUE,OFFSET(CalculationsAndCharts!$T$33,K19,0,'Transaction Summary'!$C$2-K19,1),0)+K19,"") -> 418 | L20: =IFERROR(OFFSET(CalculationsAndCharts!$B$32,'Transaction Summary'!K20,0,1,1),"") -> 2012-04-11 | M20: =IFERROR(OFFSET(CalculationsAndCharts!$U$32,'Transaction Summary'!K20,0,1,1),"") -> 60.54 | N20: =IF(K20="","",IFERROR(MATCH(TRUE,OFFSET(CalculationsAndCharts!$X$33,N19,0,'Transaction Summary'!$C$2-N19,1),0)+N19,"")) -> 405 | O20: =IFERROR(OFFSET(CalculationsAndCharts!$B$32,'Transaction Summary'!N20,0,1,1),"") -> 2012-04-30 | P20: =IFERROR(OFFSET(CalculationsAndCharts!$D$32,'Transaction Summary'!N20,0,1,1),"") -> 61.22 | Q20: -0.68 | R20: -7.81
B21: =IFERROR(MATCH(TRUE,OFFSET(CalculationsAndCharts!$M$33,B20,0,'Transaction Summary'!$C$2-B20,1),0)+B20,"") -> 340 | C21: =IFERROR(OFFSET(CalculationsAndCharts!$B$32,'Transaction Summary'!B21,0,1,1),"") -> 2012-08-01 | D21: =IFERROR(OFFSET(CalculationsAndCharts!$N$32,'Transaction Summary'!B21,0,1,1),"") -> 66.45 | E21: =IF(B21="","",IFERROR((MATCH(TRUE,OFFSET(CalculationsAndCharts!$Q$33,E20,0,'Transaction Summary'!$C$2-E20,1),0)+E20),"")) -> 328 | F21: =IFERROR(OFFSET(CalculationsAndCharts!$B$32,'Transaction Summary'!E21,0,1,1),"") -> 2012-08-17 | G21: =IFERROR(OFFSET(CalculationsAndCharts!$R$32,'Transaction Summary'!E21,0,1,1),"") -> 64.85 | H21: -1.6 | I21: -3.71 | K21: =IFERROR(MATCH(TRUE,OFFSET(CalculationsAndCharts!$T$33,K20,0,'Transaction Summary'!$C$2-K20,1),0)+K20,"") -> 459 | L21: =IFERROR(OFFSET(CalculationsAndCharts!$B$32,'Transaction Summary'!K21,0,1,1),"") -> 2012-02-10 | M21: =IFERROR(OFFSET(CalculationsAndCharts!$U$32,'Transaction Summary'!K21,0,1,1),"") -> 60.21 | N21: =IF(K21="","",IFERROR(MATCH(TRUE,OFFSET(CalculationsAndCharts!$X$33,N20,0,'Transaction Summary'!$C$2-N20,1),0)+N20,"")) -> 435 | O21: =IFERROR(OFFSET(CalculationsAndCharts!$B$32,'Transaction Summary'!N21,0,1,1),"") -> 2012-03-16 | P21: =IFERROR(OFFSET(CalculationsAndCharts!$D$32,'Transaction Summary'!N21,0,1,1),"") -> 61.56 | Q21: -1.35 | R21: -7.13
B22: =IFERROR(MATCH(TRUE,OFFSET(CalculationsAndCharts!$M$33,B21,0,'Transaction Summary'!$C$2-B21,1),0)+B21,"") -> 374 | C22: =IFERROR(OFFSET(CalculationsAndCharts!$B$32,'Transaction Summary'!B22,0,1,1),"") -> 2012-06-13 | D22: =IFERROR(OFFSET(CalculationsAndCharts!$N$32,'Transaction Summary'!B22,0,1,1),"") -> 61.36 | E22: =IF(B22="","",IFERROR((MATCH(TRUE,OFFSET(CalculationsAndCharts!$Q$33,E21,0,'Transaction Summary'!$C$2-E21,1),0)+E21),"")) -> 346 | F22: =IFERROR(OFFSET(CalculationsAndCharts!$B$32,'Transaction Summary'!E22,0,1,1),"") -> 2012-07-24 | G22: =IFERROR(OFFSET(CalculationsAndCharts!$R$32,'Transaction Summary'!E22,0,1,1),"") -> 64.2 | H22: 2.84 | I22: -2.11 | K22: =IFERROR(MATCH(TRUE,OFFSET(CalculationsAndCharts!$T$33,K21,0,'Transaction Summary'!$C$2-K21,1),0)+K21,"") -> 512 | L22: =IFERROR(OFFSET(CalculationsAndCharts!$B$32,'Transaction Summary'!K22,0,1,1),"") -> 2011-11-23 | M22: =IFERROR(OFFSET(CalculationsAndCharts!$U$32,'Transaction Summary'!K22,0,1,1),"") -> 57.64 | N22: =IF(K22="","",IFERROR(MATCH(TRUE,OFFSET(CalculationsAndCharts!$X$33,N21,0,'Transaction Summary'!$C$2-N21,1),0)+N21,"")) -> 507 | O22: =IFERROR(OFFSET(CalculationsAndCharts!$B$32,'Transaction Summary'!N22,0,1,1),"") -> 2011-12-01 | P22: =IFERROR(OFFSET(CalculationsAndCharts!$D$32,'Transaction Summary'!N22,0,1,1),"") -> 60.54 | Q22: -2.9 | R22: -5.78
B23: =IFERROR(MATCH(TRUE,OFFSET(CalculationsAndCharts!$M$33,B22,0,'Transaction Summary'!$C$2-B22,1),0)+B22,"") -> 428 | C23: =IFERROR(OFFSET(CalculationsAndCharts!$B$32,'Transaction Summary'!B23,0,1,1),"") -> 2012-03-27 | D23: =IFERROR(OFFSET(CalculationsAndCharts!$N$32,'Transaction Summary'!B23,0,1,1),"") -> 61.82 | E23: =IF(B23="","",IFERROR((MATCH(TRUE,OFFSET(CalculationsAndCharts!$Q$33,E22,0,'Transaction Summary'!$C$2-E22,1),0)+E22),"")) -> 419 | F23: =IFERROR(OFFSET(CalculationsAndCharts!$B$32,'Transaction Summary'!E23,0,1,1),"") -> 2012-04-10 | G23: =IFERROR(OFFSET(CalculationsAndCharts!$R$32,'Transaction Summary'!E23,0,1,1),"") -> 60.78 | H23: -1.04 | I23: -4.95 | K23: =IFERROR(MATCH(TRUE,OFFSET(CalculationsAndCharts!$T$33,K22,0,'Transaction Summary'!$C$2-K22,1),0)+K22,"") -> 556 | L23: =IFERROR(OFFSET(CalculationsAndCharts!$B$32,'Transaction Summary'!K23,0,1,1),"") -> 2011-09-22 | M23: =IFERROR(OFFSET(CalculationsAndCharts!$U$32,'Transaction Summary'!K23,0,1,1),"") -> 57 | N23: =IF(K23="","",IFERROR(MATCH(TRUE,OFFSET(CalculationsAndCharts!$X$33,N22,0,'Transaction Summary'!$C$2-N22,1),0)+N22,"")) -> 539 | O23: =IFERROR(OFFSET(CalculationsAndCharts!$B$32,'Transaction Summary'!N23,0,1,1),"") -> 2011-10-17 | P23: =IFERROR(OFFSET(CalculationsAndCharts!$D$32,'Transaction Summary'!N23,0,1,1),"") -> 59.72 | Q23: -2.72 | R23: -2.88
B24: =IFERROR(MATCH(TRUE,OFFSET(CalculationsAndCharts!$M$33,B23,0,'Transaction Summary'!$C$2-B23,1),0)+B23,"") -> 493 | C24: =IFERROR(OFFSET(CalculationsAndCharts!$B$32,'Transaction Summary'!B24,0,1,1),"") -> 2011-12-21 | D24: =IFERROR(OFFSET(CalculationsAndCharts!$N$32,'Transaction Summary'!B24,0,1,1),"") -> 60.79 | E24: =IF(B24="","",IFERROR((MATCH(TRUE,OFFSET(CalculationsAndCharts!$Q$33,E23,0,'Transaction Summary'!$C$2-E23,1),0)+E23),"")) -> 478 | F24: =IFERROR(OFFSET(CalculationsAndCharts!$B$32,'Transaction Summary'!E24,0,1,1),"") -> 2012-01-13 | G24: =IFERROR(OFFSET(CalculationsAndCharts!$R$32,'Transaction Summary'!E24,0,1,1),"") -> 60.28 | H24: -0.51 | I24: -3.91 | K24: =IFERROR(MATCH(TRUE,OFFSET(CalculationsAndCharts!$T$33,K23,0,'Transaction Summary'!$C$2-K23,1),0)+K23,"") -> 594 | L24: =IFERROR(OFFSET(CalculationsAndCharts!$B$32,'Transaction Summary'!K24,0,1,1),"") -> 2011-07-29 | M24: =IFERROR(OFFSET(CalculationsAndCharts!$U$32,'Transaction Summary'!K24,0,1,1),"") -> 59.46 | N24: =IF(K24="","",IFERROR(MATCH(TRUE,OFFSET(CalculationsAndCharts!$X$33,N23,0,'Transaction Summary'!$C$2-N23,1),0)+N23,"")) -> 577 | O24: =IFERROR(OFFSET(CalculationsAndCharts!$B$32,'Transaction Summary'!N24,0,1,1),"") -> 2011-08-23 | P24: =IFERROR(OFFSET(CalculationsAndCharts!$D$32,'Transaction Summary'!N24,0,1,1),"") -> 58.38 | Q24: 1.08 | R24: -0.16
B25: =IFERROR(MATCH(TRUE,OFFSET(CalculationsAndCharts!$M$33,B24,0,'Transaction Summary'!$C$2-B24,1),0)+B24,"") -> 531 | C25: =IFERROR(OFFSET(CalculationsAndCharts!$B$32,'Transaction Summary'!B25,0,1,1),"") -> 2011-10-27 | D25: =IFERROR(OFFSET(CalculationsAndCharts!$N$32,'Transaction Summary'!B25,0,1,1),"") -> 60.27 | E25: =IF(B25="","",IFERROR((MATCH(TRUE,OFFSET(CalculationsAndCharts!$Q$33,E24,0,'Transaction Summary'!$C$2-E24,1),0)+E24),"")) -> 514 | F25: =IFERROR(OFFSET(CalculationsAndCharts!$B$32,'Transaction Summary'!E25,0,1,1),"") -> 2011-11-21 | G25: =IFERROR(OFFSET(CalculationsAndCharts!$R$32,'Transaction Summary'!E25,0,1,1),"") -> 58.51 | H25: -1.76 | I25: -3.4 | K25: =IFERROR(MATCH(TRUE,OFFSET(CalculationsAndCharts!$T$33,K24,0,'Transaction Summary'!$C$2-K24,1),0)+K24,"") -> 691 | L25: =IFERROR(OFFSET(CalculationsAndCharts!$B$32,'Transaction Summary'!K25,0,1,1),"") -> 2011-03-11 | M25: =IFERROR(OFFSET(CalculationsAndCharts!$U$32,'Transaction Summary'!K25,0,1,1),"") -> 53.98 | N25: =IF(K25="","",IFERROR(MATCH(TRUE,OFFSET(CalculationsAndCharts!$X$33,N24,0,'Transaction Summary'!$C$2-N24,1),0)+N24,"")) -> 675 | O25: =IFERROR(OFFSET(CalculationsAndCharts!$B$32,'Transaction Summary'!N25,0,1,1),"") -> 2011-04-04 | P25: =IFERROR(OFFSET(CalculationsAndCharts!$D$32,'Transaction Summary'!N25,0,1,1),"") -> 54.22 | Q25: -0.24 | R25: -1.24
B26: =IFERROR(MATCH(TRUE,OFFSET(CalculationsAndCharts!$M$33,B25,0,'Transaction Summary'!$C$2-B25,1),0)+B25,"") -> 573 | C26: =IFERROR(OFFSET(CalculationsAndCharts!$B$32,'Transaction Summary'!B26,0,1,1),"") -> 2011-08-29 | D26: =IFERROR(OFFSET(CalculationsAndCharts!$N$32,'Transaction Summary'!B26,0,1,1),"") -> 61.06 | E26: =IF(B26="","",IFERROR((MATCH(TRUE,OFFSET(CalculationsAndCharts!$Q$33,E25,0,'Transaction Summary'!$C$2-E25,1),0)+E25),"")) -> 556 | F26: =IFERROR(OFFSET(CalculationsAndCharts!$B$32,'Transaction Summary'!E26,0,1,1),"") -> 2011-09-22 | G26: =IFERROR(OFFSET(CalculationsAndCharts!$R$32,'Transaction Summary'!E26,0,1,1),"") -> 57.64 | H26: -3.42 | I26: -1.64 | K26: =IFERROR(MATCH(TRUE,OFFSET(CalculationsAndCharts!$T$33,K25,0,'Transaction Summary'!$C$2-K25,1),0)+K25,"") -> 723 | L26: =IFERROR(OFFSET(CalculationsAndCharts!$B$32,'Transaction Summary'!K26,0,1,1),"") -> 2011-01-25 | M26: =IFERROR(OFFSET(CalculationsAndCharts!$U$32,'Transaction Summary'!K26,0,1,1),"") -> 54.99 | N26: =IF(K26="","",IFERROR(MATCH(TRUE,OFFSET(CalculationsAndCharts!$X$33,N25,0,'Transaction Summary'!$C$2-N25,1),0)+N25,"")) -> 705 | O26: =IFERROR(OFFSET(CalculationsAndCharts!$B$32,'Transaction Summary'!N26,0,1,1),"") -> 2011-02-18 | P26: =IFERROR(OFFSET(CalculationsAndCharts!$D$32,'Transaction Summary'!N26,0,1,1),"") -> 54.98 | Q26: 0.01 | R26: -1
B27: =IFERROR(MATCH(TRUE,OFFSET(CalculationsAndCharts!$M$33,B26,0,'Transaction Summary'!$C$2-B26,1),0)+B26,"") -> 613 | C27: =IFERROR(OFFSET(CalculationsAndCharts!$B$32,'Transaction Summary'!B27,0,1,1),"") -> 2011-07-01 | D27: =IFERROR(OFFSET(CalculationsAndCharts!$N$32,'Transaction Summary'!B27,0,1,1),"") -> 61.91 | E27: =IF(B27="","",IFERROR((MATCH(TRUE,OFFSET(CalculationsAndCharts!$Q$33,E26,0,'Transaction Summary'!$C$2-E26,1),0)+E26),"")) -> 598 | F27: =IFERROR(OFFSET(CalculationsAndCharts!$B$32,'Transaction Summary'!E27,0,1,1),"") -> 2011-07-25 | G27: =IFERROR(OFFSET(CalculationsAndCharts!$R$32,'Transaction Summary'!E27,0,1,1),"") -> 60.71 | H27: -1.2 | I27: 1.78 | K27: =IFERROR(MATCH(TRUE,OFFSET(CalculationsAndCharts!$T$33,K26,0,'Transaction Summary'!$C$2-K26,1),0)+K26,"") -> 762 | L27: =IFERROR(OFFSET(CalculationsAndCharts!$B$32,'Transaction Summary'!K27,0,1,1),"") -> 2010-11-29 | M27: =IFERROR(OFFSET(CalculationsAndCharts!$U$32,'Transaction Summary'!K27,0,1,1),"") -> 55.82 | N27: =IF(K27="","",IFERROR(MATCH(TRUE,OFFSET(CalculationsAndCharts!$X$33,N26,0,'Transaction Summary'!$C$2-N26,1),0)+N26,"")) -> 750 | O27: =IFERROR(OFFSET(CalculationsAndCharts!$B$32,'Transaction Summary'!N27,0,1,1),"") -> 2010-12-15 | P27: =IFERROR(OFFSET(CalculationsAndCharts!$D$32,'Transaction Summary'!N27,0,1,1),"") -> 56.83 | Q27: -1.01 | R27: -1.01
B28: =IFERROR(MATCH(TRUE,OFFSET(CalculationsAndCharts!$M$33,B27,0,'Transaction Summary'!$C$2-B27,1),0)+B27,"") -> 666 | C28: =IFERROR(OFFSET(CalculationsAndCharts!$B$32,'Transaction Summary'!B28,0,1,1),"") -> 2011-04-15 | D28: =IFERROR(OFFSET(CalculationsAndCharts!$N$32,'Transaction Summary'!B28,0,1,1),"") -> 54.89 | E28: =IF(B28="","",IFERROR((MATCH(TRUE,OFFSET(CalculationsAndCharts!$Q$33,E27,0,'Transaction Summary'!$C$2-E27,1),0)+E27),"")) -> 619 | F28: =IFERROR(OFFSET(CalculationsAndCharts!$B$32,'Transaction Summary'!E28,0,1,1),"") -> 2011-06-23 | G28: =IFERROR(OFFSET(CalculationsAndCharts!$R$32,'Transaction Summary'!E28,0,1,1),"") -> 59.91 | H28: 5.02 | I28: 2.98 | K28: =IFERROR(MATCH(TRUE,OFFSET(CalculationsAndCharts!$T$33,K27,0,'Transaction Summary'!$C$2-K27,1),0)+K27,"") ->  | L28: =IFERROR(OFFSET(CalculationsAndCharts!$B$32,'Transaction Summary'!K28,0,1,1),"") ->  | M28: =IFERROR(OFFSET(CalculationsAndCharts!$U$32,'Transaction Summary'!K28,0,1,1),"") ->  | N28: =IF(K28="","",IFERROR(MATCH(TRUE,OFFSET(CalculationsAndCharts!$X$33,N27,0,'Transaction Summary'!$C$2-N27,1),0)+N27,"")) ->  | O28: =IFERROR(OFFSET(CalculationsAndCharts!$B$32,'Transaction Summary'!N28,0,1,1),"") ->  | P28: =IFERROR(OFFSET(CalculationsAndCharts!$D$32,'Transaction Summary'!N28,0,1,1),"") -> 
B29: =IFERROR(MATCH(TRUE,OFFSET(CalculationsAndCharts!$M$33,B28,0,'Transaction Summary'!$C$2-B28,1),0)+B28,"") -> 738 | C29: =IFERROR(OFFSET(CalculationsAndCharts!$B$32,'Transaction Summary'!B29,0,1,1),"") -> 2011-01-03 | D29: =IFERROR(OFFSET(CalculationsAndCharts!$N$32,'Transaction Summary'!B29,0,1,1),"") -> 57.03 | E29: =IF(B29="","",IFERROR((MATCH(TRUE,OFFSET(CalculationsAndCharts!$Q$33,E28,0,'Transaction Summary'!$C$2-E28,1),0)+E28),"")) -> 723 | F29: =IFERROR(OFFSET(CalculationsAndCharts!$B$32,'Transaction Summary'!E29,0,1,1),"") -> 2011-01-25 | G29: =IFERROR(OFFSET(CalculationsAndCharts!$R$32,'Transaction Summary'!E29,0,1,1),"") -> 54.99 | H29: -2.04 | I29: -2.04 | K29: =IFERROR(MATCH(TRUE,OFFSET(CalculationsAndCharts!$T$33,K28,0,'Transaction Summary'!$C$2-K28,1),0)+K28,"") ->  | L29: =IFERROR(OFFSET(CalculationsAndCharts!$B$32,'Transaction Summary'!K29,0,1,1),"") ->  | M29: =IFERROR(OFFSET(CalculationsAndCharts!$U$32,'Transaction Summary'!K29,0,1,1),"") ->  | N29: =IF(K29="","",IFERROR(MATCH(TRUE,OFFSET(CalculationsAndCharts!$X$33,N28,0,'Transaction Summary'!$C$2-N28,1),0)+N28,"")) ->  | O29: =IFERROR(OFFSET(CalculationsAndCharts!$B$32,'Transaction Summary'!N29,0,1,1),"") ->  | P29: =IFERROR(OFFSET(CalculationsAndCharts!$D$32,'Transaction Summary'!N29,0,1,1),"") -> 
B30: =IFERROR(MATCH(TRUE,OFFSET(CalculationsAndCharts!$M$33,B29,0,'Transaction Summary'!$C$2-B29,1),0)+B29,"") ->  | C30: =IFERROR(OFFSET(CalculationsAndCharts!$B$32,'Transaction Summary'!B30,0,1,1),"") ->  | D30: =IFERROR(OFFSET(CalculationsAndCharts!$N$32,'Transaction Summary'!B30,0,1,1),"") ->  | E30: =IF(B30="","",IFERROR((MATCH(TRUE,OFFSET(CalculationsAndCharts!$Q$33,E29,0,'Transaction Summary'!$C$2-E29,1),0)+E29),"")) ->  | F30: =IFERROR(OFFSET(CalculationsAndCharts!$B$32,'Transaction Summary'!E30,0,1,1),"") ->  | G30: =IFERROR(OFFSET(CalculationsAndCharts!$R$32,'Transaction Summary'!E30,0,1,1),"") ->  | K30: =IFERROR(MATCH(TRUE,OFFSET(CalculationsAndCharts!$T$33,K29,0,'Transaction Summary'!$C$2-K29,1),0)+K29,"") ->  | L30: =IFERROR(OFFSET(CalculationsAndCharts!$B$32,'Transaction Summary'!K30,0,1,1),"") ->  | M30: =IFERROR(OFFSET(CalculationsAndCharts!$U$32,'Transaction Summary'!K30,0,1,1),"") ->  | N30: =IF(K30="","",IFERROR(MATCH(TRUE,OFFSET(CalculationsAndCharts!$X$33,N29,0,'Transaction Summary'!$C$2-N29,1),0)+N29,"")) ->  | O30: =IFERROR(OFFSET(CalculationsAndCharts!$B$32,'Transaction Summary'!N30,0,1,1),"") ->  | P30: =IFERROR(OFFSET(CalculationsAndCharts!$D$32,'Transaction Summary'!N30,0,1,1),"") -> 
B31: =IFERROR(MATCH(TRUE,OFFSET(CalculationsAndCharts!$M$33,B30,0,'Transaction Summary'!$C$2-B30,1),0)+B30,"") ->  | C31: =IFERROR(OFFSET(CalculationsAndCharts!$B$32,'Transaction Summary'!B31,0,1,1),"") ->  | D31: =IFERROR(OFFSET(CalculationsAndCharts!$N$32,'Transaction Summary'!B31,0,1,1),"") ->  | E31: =IF(B31="","",IFERROR((MATCH(TRUE,OFFSET(CalculationsAndCharts!$Q$33,E30,0,'Transaction Summary'!$C$2-E30,1),0)+E30),"")) ->  | F31: =IFERROR(OFFSET(CalculationsAndCharts!$B$32,'Transaction Summary'!E31,0,1,1),"") ->  | G31: =IFERROR(OFFSET(CalculationsAndCharts!$R$32,'Transaction Summary'!E31,0,1,1),"") ->  | K31: =IFERROR(MATCH(TRUE,OFFSET(CalculationsAndCharts!$T$33,K30,0,'Transaction Summary'!$C$2-K30,1),0)+K30,"") ->  | L31: =IFERROR(OFFSET(CalculationsAndCharts!$B$32,'Transaction Summary'!K31,0,1,1),"") ->  | M31: =IFERROR(OFFSET(CalculationsAndCharts!$U$32,'Transaction Summary'!K31,0,1,1),"") ->  | N31: =IF(K31="","",IFERROR(MATCH(TRUE,OFFSET(CalculationsAndCharts!$X$33,N30,0,'Transaction Summary'!$C$2-N30,1),0)+N30,"")) ->  | O31: =IFERROR(OFFSET(CalculationsAndCharts!$B$32,'Transaction Summary'!N31,0,1,1),"") ->  | P31: =IFERROR(OFFSET(CalculationsAndCharts!$D$32,'Transaction Summary'!N31,0,1,1),"") -> 
B32: =IFERROR(MATCH(TRUE,OFFSET(CalculationsAndCharts!$M$33,B31,0,'Transaction Summary'!$C$2-B31,1),0)+B31,"") ->  | C32: =IFERROR(OFFSET(CalculationsAndCharts!$B$32,'Transaction Summary'!B32,0,1,1),"") ->  | D32: =IFERROR(OFFSET(CalculationsAndCharts!$N$32,'Transaction Summary'!B32,0,1,1),"") ->  | E32: =IF(B32="","",IFERROR((MATCH(TRUE,OFFSET(CalculationsAndCharts!$Q$33,E31,0,'Transaction Summary'!$C$2-E31,1),0)+E31),"")) ->  | F32: =IFERROR(OFFSET(CalculationsAndCharts!$B$32,'Transaction Summary'!E32,0,1,1),"") ->  | G32: =IFERROR(OFFSET(CalculationsAndCharts!$R$32,'Transaction Summary'!E32,0,1,1),"") ->  | K32: =IFERROR(MATCH(TRUE,OFFSET(CalculationsAndCharts!$T$33,K31,0,'Transaction Summary'!$C$2-K31,1),0)+K31,"") ->  | L32: =IFERROR(OFFSET(CalculationsAndCharts!$B$32,'Transaction Summary'!K32,0,1,1),"") ->  | M32: =IFERROR(OFFSET(CalculationsAndCharts!$U$32,'Transaction Summary'!K32,0,1,1),"") ->  | N32: =IF(K32="","",IFERROR(MATCH(TRUE,OFFSET(CalculationsAndCharts!$X$33,N31,0,'Transaction Summary'!$C$2-N31,1),0)+N31,"")) ->  | O32: =IFERROR(OFFSET(CalculationsAndCharts!$B$32,'Transaction Summary'!N32,0,1,1),"") ->  | P32: =IFERROR(OFFSET(CalculationsAndCharts!$D$32,'Transaction Summary'!N32,0,1,1),"") -> 
B33: =IFERROR(MATCH(TRUE,OFFSET(CalculationsAndCharts!$M$33,B32,0,'Transaction Summary'!$C$2-B32,1),0)+B32,"") ->  | C33: =IFERROR(OFFSET(CalculationsAndCharts!$B$32,'Transaction Summary'!B33,0,1,1),"") ->  | D33: =IFERROR(OFFSET(CalculationsAndCharts!$N$32,'Transaction Summary'!B33,0,1,1),"") ->  | E33: =IF(B33="","",IFERROR((MATCH(TRUE,OFFSET(CalculationsAndCharts!$Q$33,E32,0,'Transaction Summary'!$C$2-E32,1),0)+E32),"")) ->  | F33: =IFERROR(OFFSET(CalculationsAndCharts!$B$32,'Transaction Summary'!E33,0,1,1),"") ->  | G33: =IFERROR(OFFSET(CalculationsAndCharts!$R$32,'Transaction Summary'!E33,0,1,1),"") ->  | K33: =IFERROR(MATCH(TRUE,OFFSET(CalculationsAndCharts!$T$33,K32,0,'Transaction Summary'!$C$2-K32,1),0)+K32,"") ->  | L33: =IFERROR(OFFSET(CalculationsAndCharts!$B$32,'Transaction Summary'!K33,0,1,1),"") ->  | M33: =IFERROR(OFFSET(CalculationsAndCharts!$U$32,'Transaction Summary'!K33,0,1,1),"") ->  | N33: =IF(K33="","",IFERROR(MATCH(TRUE,OFFSET(CalculationsAndCharts!$X$33,N32,0,'Transaction Summary'!$C$2-N32,1),0)+N32,"")) ->  | O33: =IFERROR(OFFSET(CalculationsAndCharts!$B$32,'Transaction Summary'!N33,0,1,1),"") ->  | P33: =IFERROR(OFFSET(CalculationsAndCharts!$D$32,'Transaction Summary'!N33,0,1,1),"") -> 
B34: =IFERROR(MATCH(TRUE,OFFSET(CalculationsAndCharts!$M$33,B33,0,'Transaction Summary'!$C$2-B33,1),0)+B33,"") ->  | C34: =IFERROR(OFFSET(CalculationsAndCharts!$B$32,'Transaction Summary'!B34,0,1,1),"") ->  | D34: =IFERROR(OFFSET(CalculationsAndCharts!$N$32,'Transaction Summary'!B34,0,1,1),"") ->  | E34: =IF(B34="","",IFERROR((MATCH(TRUE,OFFSET(CalculationsAndCharts!$Q$33,E33,0,'Transaction Summary'!$C$2-E33,1),0)+E33),"")) ->  | F34: =IFERROR(OFFSET(CalculationsAndCharts!$B$32,'Transaction Summary'!E34,0,1,1),"") ->  | G34: =IFERROR(OFFSET(CalculationsAndCharts!$R$32,'Transaction Summary'!E34,0,1,1),"") ->  | K34: =IFERROR(MATCH(TRUE,OFFSET(CalculationsAndCharts!$T$33,K33,0,'Transaction Summary'!$C$2-K33,1),0)+K33,"") ->  | L34: =IFERROR(OFFSET(CalculationsAndCharts!$B$32,'Transaction Summary'!K34,0,1,1),"") ->  | M34: =IFERROR(OFFSET(CalculationsAndCharts!$U$32,'Transaction Summary'!K34,0,1,1),"") ->  | N34: =IF(K34="","",IFERROR(MATCH(TRUE,OFFSET(CalculationsAndCharts!$X$33,N33,0,'Transaction Summary'!$C$2-N33,1),0)+N33,"")) ->  | O34: =IFERROR(OFFSET(CalculationsAndCharts!$B$32,'Transaction Summary'!N34,0,1,1),"") ->  | P34: =IFERROR(OFFSET(CalculationsAndCharts!$D$32,'Transaction Summary'!N34,0,1,1),"") ->  | Q34: =IFERROR(M34-P34,"") ->  | R34: =IFERROR(Q34+IF(""=R35,0,R35),"") -> 
B35: =IFERROR(MATCH(TRUE,OFFSET(CalculationsAndCharts!$M$33,B34,0,'Transaction Summary'!$C$2-B34,1),0)+B34,"") ->  | C35: =IFERROR(OFFSET(CalculationsAndCharts!$B$32,'Transaction Summary'!B35,0,1,1),"") ->  | D35: =IFERROR(OFFSET(CalculationsAndCharts!$N$32,'Transaction Summary'!B35,0,1,1),"") ->  | E35: =IF(B35="","",IFERROR((MATCH(TRUE,OFFSET(CalculationsAndCharts!$Q$33,E34,0,'Transaction Summary'!$C$2-E34,1),0)+E34),"")) ->  | F35: =IFERROR(OFFSET(CalculationsAndCharts!$B$32,'Transaction Summary'!E35,0,1,1),"") ->  | G35: =IFERROR(OFFSET(CalculationsAndCharts!$R$32,'Transaction Summary'!E35,0,1,1),"") ->  | K35: =IFERROR(MATCH(TRUE,OFFSET(CalculationsAndCharts!$T$33,K34,0,'Transaction Summary'!$C$2-K34,1),0)+K34,"") ->  | L35: =IFERROR(OFFSET(CalculationsAndCharts!$B$32,'Transaction Summary'!K35,0,1,1),"") ->  | M35: =IFERROR(OFFSET(CalculationsAndCharts!$U$32,'Transaction Summary'!K35,0,1,1),"") ->  | N35: =IF(K35="","",IFERROR(MATCH(TRUE,OFFSET(CalculationsAndCharts!$X$33,N34,0,'Transaction Summary'!$C$2-N34,1),0)+N34,"")) ->  | O35: =IFERROR(OFFSET(CalculationsAndCharts!$B$32,'Transaction Summary'!N35,0,1,1),"") ->  | P35: =IFERROR(OFFSET(CalculationsAndCharts!$D$32,'Transaction Summary'!N35,0,1,1),"") ->  | Q35: =IFERROR(M35-P35,"") ->  | R35: =IFERROR(Q35+IF(""=R36,0,R36),"") -> 
B36: =IFERROR(MATCH(TRUE,OFFSET(CalculationsAndCharts!$M$33,B35,0,'Transaction Summary'!$C$2-B35,1),0)+B35,"") ->  | C36: =IFERROR(OFFSET(CalculationsAndCharts!$B$32,'Transaction Summary'!B36,0,1,1),"") ->  | D36: =IFERROR(OFFSET(CalculationsAndCharts!$N$32,'Transaction Summary'!B36,0,1,1),"") ->  | E36: =IF(B36="","",IFERROR((MATCH(TRUE,OFFSET(CalculationsAndCharts!$Q$33,E35,0,'Transaction Summary'!$C$2-E35,1),0)+E35),"")) ->  | F36: =IFERROR(OFFSET(CalculationsAndCharts!$B$32,'Transaction Summary'!E36,0,1,1),"") ->  | G36: =IFERROR(OFFSET(CalculationsAndCharts!$R$32,'Transaction Summary'!E36,0,1,1),"") ->  | K36: =IFERROR(MATCH(TRUE,OFFSET(CalculationsAndCharts!$T$33,K35,0,'Transaction Summary'!$C$2-K35,1),0)+K35,"") ->  | L36: =IFERROR(OFFSET(CalculationsAndCharts!$B$32,'Transaction Summary'!K36,0,1,1),"") ->  | M36: =IFERROR(OFFSET(CalculationsAndCharts!$U$32,'Transaction Summary'!K36,0,1,1),"") ->  | N36: =IF(K36="","",IFERROR(MATCH(TRUE,OFFSET(CalculationsAndCharts!$X$33,N35,0,'Transaction Summary'!$C$2-N35,1),0)+N35,"")) ->  | O36: =IFERROR(OFFSET(CalculationsAndCharts!$B$32,'Transaction Summary'!N36,0,1,1),"") ->  | P36: =IFERROR(OFFSET(CalculationsAndCharts!$D$32,'Transaction Summary'!N36,0,1,1),"") -> 
B37: =IFERROR(MATCH(TRUE,OFFSET(CalculationsAndCharts!$M$33,B36,0,'Transaction Summary'!$C$2-B36,1),0)+B36,"") ->  | C37: =IFERROR(OFFSET(CalculationsAndCharts!$B$32,'Transaction Summary'!B37,0,1,1),"") ->  | D37: =IFERROR(OFFSET(CalculationsAndCharts!$N$32,'Transaction Summary'!B37,0,1,1),"") ->  | E37: =IF(B37="","",IFERROR((MATCH(TRUE,OFFSET(CalculationsAndCharts!$Q$33,E36,0,'Transaction Summary'!$C$2-E36,1),0)+E36),"")) ->  | F37: =IFERROR(OFFSET(CalculationsAndCharts!$B$32,'Transaction Summary'!E37,0,1,1),"") ->  | G37: =IFERROR(OFFSET(CalculationsAndCharts!$R$32,'Transaction Summary'!E37,0,1,1),"") ->  | K37: =IFERROR(MATCH(TRUE,OFFSET(CalculationsAndCharts!$T$33,K36,0,'Transaction Summary'!$C$2-K36,1),0)+K36,"") ->  | L37: =IFERROR(OFFSET(CalculationsAndCharts!$B$32,'Transaction Summary'!K37,0,1,1),"") ->  | M37: =IFERROR(OFFSET(CalculationsAndCharts!$U$32,'Transaction Summary'!K37,0,1,1),"") ->  | N37: =IF(K37="","",IFERROR(MATCH(TRUE,OFFSET(CalculationsAndCharts!$X$33,N36,0,'Transaction Summary'!$C$2-N36,1),0)+N36,"")) ->  | O37: =IFERROR(OFFSET(CalculationsAndCharts!$B$32,'Transaction Summary'!N37,0,1,1),"") ->  | P37: =IFERROR(OFFSET(CalculationsAndCharts!$D$32,'Transaction Summary'!N37,0,1,1),"") -> 
B38: =IFERROR(MATCH(TRUE,OFFSET(CalculationsAndCharts!$M$33,B37,0,'Transaction Summary'!$C$2-B37,1),0)+B37,"") ->  | C38: =IFERROR(OFFSET(CalculationsAndCharts!$B$32,'Transaction Summary'!B38,0,1,1),"") ->  | D38: =IFERROR(OFFSET(CalculationsAndCharts!$N$32,'Transaction Summary'!B38,0,1,1),"") ->  | E38: =IF(B38="","",IFERROR((MATCH(TRUE,OFFSET(CalculationsAndCharts!$Q$33,E37,0,'Transaction Summary'!$C$2-E37,1),0)+E37),"")) ->  | F38: =IFERROR(OFFSET(CalculationsAndCharts!$B$32,'Transaction Summary'!E38,0,1,1),"") ->  | G38: =IFERROR(OFFSET(CalculationsAndCharts!$R$32,'Transaction Summary'!E38,0,1,1),"") ->  | K38: =IFERROR(MATCH(TRUE,OFFSET(CalculationsAndCharts!$T$33,K37,0,'Transaction Summary'!$C$2-K37,1),0)+K37,"") ->  | L38: =IFERROR(OFFSET(CalculationsAndCharts!$B$32,'Transaction Summary'!K38,0,1,1),"") ->  | M38: =IFERROR(OFFSET(CalculationsAndCharts!$U$32,'Transaction Summary'!K38,0,1,1),"") ->  | N38: =IF(K38="","",IFERROR(MATCH(TRUE,OFFSET(CalculationsAndCharts!$X$33,N37,0,'Transaction Summary'!$C$2-N37,1),0)+N37,"")) ->  | O38: =IFERROR(OFFSET(CalculationsAndCharts!$B$32,'Transaction Summary'!N38,0,1,1),"") ->  | P38: =IFERROR(OFFSET(CalculationsAndCharts!$D$32,'Transaction Summary'!N38,0,1,1),"") -> 
B39: =IFERROR(MATCH(TRUE,OFFSET(CalculationsAndCharts!$M$33,B38,0,'Transaction Summary'!$C$2-B38,1),0)+B38,"") ->  | C39: =IFERROR(OFFSET(CalculationsAndCharts!$B$32,'Transaction Summary'!B39,0,1,1),"") ->  | D39: =IFERROR(OFFSET(CalculationsAndCharts!$N$32,'Transaction Summary'!B39,0,1,1),"") ->  | E39: =IF(B39="","",IFERROR((MATCH(TRUE,OFFSET(CalculationsAndCharts!$Q$33,E38,0,'Transaction Summary'!$C$2-E38,1),0)+E38),"")) ->  | F39: =IFERROR(OFFSET(CalculationsAndCharts!$B$32,'Transaction Summary'!E39,0,1,1),"") ->  | G39: =IFERROR(OFFSET(CalculationsAndCharts!$R$32,'Transaction Summary'!E39,0,1,1),"") ->  | K39: =IFERROR(MATCH(TRUE,OFFSET(CalculationsAndCharts!$T$33,K38,0,'Transaction Summary'!$C$2-K38,1),0)+K38,"") ->  | L39: =IFERROR(OFFSET(CalculationsAndCharts!$B$32,'Transaction Summary'!K39,0,1,1),"") ->  | M39: =IFERROR(OFFSET(CalculationsAndCharts!$U$32,'Transaction Summary'!K39,0,1,1),"") ->  | N39: =IF(K39="","",IFERROR(MATCH(TRUE,OFFSET(CalculationsAndCharts!$X$33,N38,0,'Transaction Summary'!$C$2-N38,1),0)+N38,"")) ->  | O39: =IFERROR(OFFSET(CalculationsAndCharts!$B$32,'Transaction Summary'!N39,0,1,1),"") ->  | P39: =IFERROR(OFFSET(CalculationsAndCharts!$D$32,'Transaction Summary'!N39,0,1,1),"") -> 
B40: =IFERROR(MATCH(TRUE,OFFSET(CalculationsAndCharts!$M$33,B39,0,'Transaction Summary'!$C$2-B39,1),0)+B39,"") ->  | C40: =IFERROR(OFFSET(CalculationsAndCharts!$B$32,'Transaction Summary'!B40,0,1,1),"") ->  | D40: =IFERROR(OFFSET(CalculationsAndCharts!$N$32,'Transaction Summary'!B40,0,1,1),"") ->  | E40: =IF(B40="","",IFERROR((MATCH(TRUE,OFFSET(CalculationsAndCharts!$Q$33,E39,0,'Transaction Summary'!$C$2-E39,1),0)+E39),"")) ->  | F40: =IFERROR(OFFSET(CalculationsAndCharts!$B$32,'Transaction Summary'!E40,0,1,1),"") ->  | G40: =IFERROR(OFFSET(CalculationsAndCharts!$R$32,'Transaction Summary'!E40,0,1,1),"") ->  | K40: =IFERROR(MATCH(TRUE,OFFSET(CalculationsAndCharts!$T$33,K39,0,'Transaction Summary'!$C$2-K39,1),0)+K39,"") ->  | L40: =IFERROR(OFFSET(CalculationsAndCharts!$B$32,'Transaction Summary'!K40,0,1,1),"") ->  | M40: =IFERROR(OFFSET(CalculationsAndCharts!$U$32,'Transaction Summary'!K40,0,1,1),"") ->  | N40: =IF(K40="","",IFERROR(MATCH(TRUE,OFFSET(CalculationsAndCharts!$X$33,N39,0,'Transaction Summary'!$C$2-N39,1),0)+N39,"")) ->  | O40: =IFERROR(OFFSET(CalculationsAndCharts!$B$32,'Transaction Summary'!N40,0,1,1),"") ->  | P40: =IFERROR(OFFSET(CalculationsAndCharts!$D$32,'Transaction Summary'!N40,0,1,1),"") -> 
B41: =IFERROR(MATCH(TRUE,OFFSET(CalculationsAndCharts!$M$33,B40,0,'Transaction Summary'!$C$2-B40,1),0)+B40,"") ->  | C41: =IFERROR(OFFSET(CalculationsAndCharts!$B$32,'Transaction Summary'!B41,0,1,1),"") ->  | D41: =IFERROR(OFFSET(CalculationsAndCharts!$N$32,'Transaction Summary'!B41,0,1,1),"") ->  | E41: =IF(B41="","",IFERROR((MATCH(TRUE,OFFSET(CalculationsAndCharts!$Q$33,E40,0,'Transaction Summary'!$C$2-E40,1),0)+E40),"")) ->  | F41: =IFERROR(OFFSET(CalculationsAndCharts!$B$32,'Transaction Summary'!E41,0,1,1),"") ->  | G41: =IFERROR(OFFSET(CalculationsAndCharts!$R$32,'Transaction Summary'!E41,0,1,1),"") ->  | K41: =IFERROR(MATCH(TRUE,OFFSET(CalculationsAndCharts!$T$33,K40,0,'Transaction Summary'!$C$2-K40,1),0)+K40,"") ->  | L41: =IFERROR(OFFSET(CalculationsAndCharts!$B$32,'Transaction Summary'!K41,0,1,1),"") ->  | M41: =IFERROR(OFFSET(CalculationsAndCharts!$U$32,'Transaction Summary'!K41,0,1,1),"") ->  | N41: =IF(K41="","",IFERROR(MATCH(TRUE,OFFSET(CalculationsAndCharts!$X$33,N40,0,'Transaction Summary'!$C$2-N40,1),0)+N40,"")) ->  | O41: =IFERROR(OFFSET(CalculationsAndCharts!$B$32,'Transaction Summary'!N41,0,1,1),"") ->  | P41: =IFERROR(OFFSET(CalculationsAndCharts!$D$32,'Transaction Summary'!N41,0,1,1),"") -> 
B42: =IFERROR(MATCH(TRUE,OFFSET(CalculationsAndCharts!$M$33,B41,0,'Transaction Summary'!$C$2-B41,1),0)+B41,"") ->  | C42: =IFERROR(OFFSET(CalculationsAndCharts!$B$32,'Transaction Summary'!B42,0,1,1),"") ->  | D42: =IFERROR(OFFSET(CalculationsAndCharts!$N$32,'Transaction Summary'!B42,0,1,1),"") ->  | E42: =IF(B42="","",IFERROR((MATCH(TRUE,OFFSET(CalculationsAndCharts!$Q$33,E41,0,'Transaction Summary'!$C$2-E41,1),0)+E41),"")) ->  | F42: =IFERROR(OFFSET(CalculationsAndCharts!$B$32,'Transaction Summary'!E42,0,1,1),"") ->  | G42: =IFERROR(OFFSET(CalculationsAndCharts!$R$32,'Transaction Summary'!E42,0,1,1),"") ->  | K42: =IFERROR(MATCH(TRUE,OFFSET(CalculationsAndCharts!$T$33,K41,0,'Transaction Summary'!$C$2-K41,1),0)+K41,"") ->  | L42: =IFERROR(OFFSET(CalculationsAndCharts!$B$32,'Transaction Summary'!K42,0,1,1),"") ->  | M42: =IFERROR(OFFSET(CalculationsAndCharts!$U$32,'Transaction Summary'!K42,0,1,1),"") ->  | N42: =IF(K42="","",IFERROR(MATCH(TRUE,OFFSET(CalculationsAndCharts!$X$33,N41,0,'Transaction Summary'!$C$2-N41,1),0)+N41,"")) ->  | O42: =IFERROR(OFFSET(CalculationsAndCharts!$B$32,'Transaction Summary'!N42,0,1,1),"") ->  | P42: =IFERROR(OFFSET(CalculationsAndCharts!$D$32,'Transaction Summary'!N42,0,1,1),"") -> 
B43: =IFERROR(MATCH(TRUE,OFFSET(CalculationsAndCharts!$M$33,B42,0,'Transaction Summary'!$C$2-B42,1),0)+B42,"") ->  | C43: =IFERROR(OFFSET(CalculationsAndCharts!$B$32,'Transaction Summary'!B43,0,1,1),"") ->  | D43: =IFERROR(OFFSET(CalculationsAndCharts!$N$32,'Transaction Summary'!B43,0,1,1),"") ->  | E43: =IF(B43="","",IFERROR((MATCH(TRUE,OFFSET(CalculationsAndCharts!$Q$33,E42,0,'Transaction Summary'!$C$2-E42,1),0)+E42),"")) ->  | F43: =IFERROR(OFFSET(CalculationsAndCharts!$B$32,'Transaction Summary'!E43,0,1,1),"") ->  | G43: =IFERROR(OFFSET(CalculationsAndCharts!$R$32,'Transaction Summary'!E43,0,1,1),"") ->  | K43: =IFERROR(MATCH(TRUE,OFFSET(CalculationsAndCharts!$T$33,K42,0,'Transaction Summary'!$C$2-K42,1),0)+K42,"") ->  | L43: =IFERROR(OFFSET(CalculationsAndCharts!$B$32,'Transaction Summary'!K43,0,1,1),"") ->  | M43: =IFERROR(OFFSET(CalculationsAndCharts!$U$32,'Transaction Summary'!K43,0,1,1),"") ->  | N43: =IF(K43="","",IFERROR(MATCH(TRUE,OFFSET(CalculationsAndCharts!$X$33,N42,0,'Transaction Summary'!$C$2-N42,1),0)+N42,"")) ->  | O43: =IFERROR(OFFSET(CalculationsAndCharts!$B$32,'Transaction Summary'!N43,0,1,1),"") ->  | P43: =IFERROR(OFFSET(CalculationsAndCharts!$D$32,'Transaction Summary'!N43,0,1,1),"") -> 
B44: =IFERROR(MATCH(TRUE,OFFSET(CalculationsAndCharts!$M$33,B43,0,'Transaction Summary'!$C$2-B43,1),0)+B43,"") ->  | C44: =IFERROR(OFFSET(CalculationsAndCharts!$B$32,'Transaction Summary'!B44,0,1,1),"") ->  | D44: =IFERROR(OFFSET(CalculationsAndCharts!$N$32,'Transaction Summary'!B44,0,1,1),"") ->  | E44: =IF(B44="","",IFERROR((MATCH(TRUE,OFFSET(CalculationsAndCharts!$Q$33,E43,0,'Transaction Summary'!$C$2-E43,1),0)+E43),"")) ->  | F44: =IFERROR(OFFSET(CalculationsAndCharts!$B$32,'Transaction Summary'!E44,0,1,1),"") ->  | G44: =IFERROR(OFFSET(CalculationsAndCharts!$R$32,'Transaction Summary'!E44,0,1,1),"") ->  | K44: =IFERROR(MATCH(TRUE,OFFSET(CalculationsAndCharts!$T$33,K43,0,'Transaction Summary'!$C$2-K43,1),0)+K43,"") ->  | L44: =IFERROR(OFFSET(CalculationsAndCharts!$B$32,'Transaction Summary'!K44,0,1,1),"") ->  | M44: =IFERROR(OFFSET(CalculationsAndCharts!$U$32,'Transaction Summary'!K44,0,1,1),"") ->  | N44: =IF(K44="","",IFERROR(MATCH(TRUE,OFFSET(CalculationsAndCharts!$X$33,N43,0,'Transaction Summary'!$C$2-N43,1),0)+N43,"")) ->  | O44: =IFERROR(OFFSET(CalculationsAndCharts!$B$32,'Transaction Summary'!N44,0,1,1),"") ->  | P44: =IFERROR(OFFSET(CalculationsAndCharts!$D$32,'Transaction Summary'!N44,0,1,1),"") -> 
B45: =IFERROR(MATCH(TRUE,OFFSET(CalculationsAndCharts!$M$33,B44,0,'Transaction Summary'!$C$2-B44,1),0)+B44,"") ->  | C45: =IFERROR(OFFSET(CalculationsAndCharts!$B$32,'Transaction Summary'!B45,0,1,1),"") ->  | D45: =IFERROR(OFFSET(CalculationsAndCharts!$N$32,'Transaction Summary'!B45,0,1,1),"") ->  | E45: =IF(B45="","",IFERROR((MATCH(TRUE,OFFSET(CalculationsAndCharts!$Q$33,E44,0,'Transaction Summary'!$C$2-E44,1),0)+E44),"")) ->  | F45: =IFERROR(OFFSET(CalculationsAndCharts!$B$32,'Transaction Summary'!E45,0,1,1),"") ->  | G45: =IFERROR(OFFSET(CalculationsAndCharts!$R$32,'Transaction Summary'!E45,0,1,1),"") ->  | K45: =IFERROR(MATCH(TRUE,OFFSET(CalculationsAndCharts!$T$33,K44,0,'Transaction Summary'!$C$2-K44,1),0)+K44,"") ->  | L45: =IFERROR(OFFSET(CalculationsAndCharts!$B$32,'Transaction Summary'!K45,0,1,1),"") ->  | M45: =IFERROR(OFFSET(CalculationsAndCharts!$U$32,'Transaction Summary'!K45,0,1,1),"") ->  | N45: =IF(K45="","",IFERROR(MATCH(TRUE,OFFSET(CalculationsAndCharts!$X$33,N44,0,'Transaction Summary'!$C$2-N44,1),0)+N44,"")) ->  | O45: =IFERROR(OFFSET(CalculationsAndCharts!$B$32,'Transaction Summary'!N45,0,1,1),"") ->  | P45: =IFERROR(OFFSET(CalculationsAndCharts!$D$32,'Transaction Summary'!N45,0,1,1),"") -> 
B46: =IFERROR(MATCH(TRUE,OFFSET(CalculationsAndCharts!$M$33,B45,0,'Transaction Summary'!$C$2-B45,1),0)+B45,"") ->  | C46: =IFERROR(OFFSET(CalculationsAndCharts!$B$32,'Transaction Summary'!B46,0,1,1),"") ->  | D46: =IFERROR(OFFSET(CalculationsAndCharts!$N$32,'Transaction Summary'!B46,0,1,1),"") ->  | E46: =IF(B46="","",IFERROR((MATCH(TRUE,OFFSET(CalculationsAndCharts!$Q$33,E45,0,'Transaction Summary'!$C$2-E45,1),0)+E45),"")) ->  | F46: =IFERROR(OFFSET(CalculationsAndCharts!$B$32,'Transaction Summary'!E46,0,1,1),"") ->  | G46: =IFERROR(OFFSET(CalculationsAndCharts!$R$32,'Transaction Summary'!E46,0,1,1),"") ->  | K46: =IFERROR(MATCH(TRUE,OFFSET(CalculationsAndCharts!$T$33,K45,0,'Transaction Summary'!$C$2-K45,1),0)+K45,"") ->  | L46: =IFERROR(OFFSET(CalculationsAndCharts!$B$32,'Transaction Summary'!K46,0,1,1),"") ->  | M46: =IFERROR(OFFSET(CalculationsAndCharts!$U$32,'Transaction Summary'!K46,0,1,1),"") ->  | N46: =IF(K46="","",IFERROR(MATCH(TRUE,OFFSET(CalculationsAndCharts!$X$33,N45,0,'Transaction Summary'!$C$2-N45,1),0)+N45,"")) ->  | O46: =IFERROR(OFFSET(CalculationsAndCharts!$B$32,'Transaction Summary'!N46,0,1,1),"") ->  | P46: =IFERROR(OFFSET(CalculationsAndCharts!$D$32,'Transaction Summary'!N46,0,1,1),"") -> 
B47: =IFERROR(MATCH(TRUE,OFFSET(CalculationsAndCharts!$M$33,B46,0,'Transaction Summary'!$C$2-B46,1),0)+B46,"") ->  | C47: =IFERROR(OFFSET(CalculationsAndCharts!$B$32,'Transaction Summary'!B47,0,1,1),"") ->  | D47: =IFERROR(OFFSET(CalculationsAndCharts!$N$32,'Transaction Summary'!B47,0,1,1),"") ->  | E47: =IF(B47="","",IFERROR((MATCH(TRUE,OFFSET(CalculationsAndCharts!$Q$33,E46,0,'Transaction Summary'!$C$2-E46,1),0)+E46),"")) ->  | F47: =IFERROR(OFFSET(CalculationsAndCharts!$B$32,'Transaction Summary'!E47,0,1,1),"") ->  | G47: =IFERROR(OFFSET(CalculationsAndCharts!$R$32,'Transaction Summary'!E47,0,1,1),"") ->  | K47: =IFERROR(MATCH(TRUE,OFFSET(CalculationsAndCharts!$T$33,K46,0,'Transaction Summary'!$C$2-K46,1),0)+K46,"") ->  | L47: =IFERROR(OFFSET(CalculationsAndCharts!$B$32,'Transaction Summary'!K47,0,1,1),"") ->  | M47: =IFERROR(OFFSET(CalculationsAndCharts!$U$32,'Transaction Summary'!K47,0,1,1),"") ->  | N47: =IF(K47="","",IFERROR(MATCH(TRUE,OFFSET(CalculationsAndCharts!$X$33,N46,0,'Transaction Summary'!$C$2-N46,1),0)+N46,"")) ->  | O47: =IFERROR(OFFSET(CalculationsAndCharts!$B$32,'Transaction Summary'!N47,0,1,1),"") ->  | P47: =IFERROR(OFFSET(CalculationsAndCharts!$D$32,'Transaction Summary'!N47,0,1,1),"") -> 
B48: =IFERROR(MATCH(TRUE,OFFSET(CalculationsAndCharts!$M$33,B47,0,'Transaction Summary'!$C$2-B47,1),0)+B47,"") ->  | C48: =IFERROR(OFFSET(CalculationsAndCharts!$B$32,'Transaction Summary'!B48,0,1,1),"") ->  | D48: =IFERROR(OFFSET(CalculationsAndCharts!$N$32,'Transaction Summary'!B48,0,1,1),"") ->  | E48: =IF(B48="","",IFERROR((MATCH(TRUE,OFFSET(CalculationsAndCharts!$Q$33,E47,0,'Transaction Summary'!$C$2-E47,1),0)+E47),"")) ->  | F48: =IFERROR(OFFSET(CalculationsAndCharts!$B$32,'Transaction Summary'!E48,0,1,1),"") ->  | G48: =IFERROR(OFFSET(CalculationsAndCharts!$R$32,'Transaction Summary'!E48,0,1,1),"") ->  | K48: =IFERROR(MATCH(TRUE,OFFSET(CalculationsAndCharts!$T$33,K47,0,'Transaction Summary'!$C$2-K47,1),0)+K47,"") ->  | L48: =IFERROR(OFFSET(CalculationsAndCharts!$B$32,'Transaction Summary'!K48,0,1,1),"") ->  | M48: =IFERROR(OFFSET(CalculationsAndCharts!$U$32,'Transaction Summary'!K48,0,1,1),"") ->  | N48: =IF(K48="","",IFERROR(MATCH(TRUE,OFFSET(CalculationsAndCharts!$X$33,N47,0,'Transaction Summary'!$C$2-N47,1),0)+N47,"")) ->  | O48: =IFERROR(OFFSET(CalculationsAndCharts!$B$32,'Transaction Summary'!N48,0,1,1),"") ->  | P48: =IFERROR(OFFSET(CalculationsAndCharts!$D$32,'Transaction Summary'!N48,0,1,1),"") -> 
B49: =IFERROR(MATCH(TRUE,OFFSET(CalculationsAndCharts!$M$33,B48,0,'Transaction Summary'!$C$2-B48,1),0)+B48,"") ->  | C49: =IFERROR(OFFSET(CalculationsAndCharts!$B$32,'Transaction Summary'!B49,0,1,1),"") ->  | D49: =IFERROR(OFFSET(CalculationsAndCharts!$N$32,'Transaction Summary'!B49,0,1,1),"") ->  | E49: =IF(B49="","",IFERROR((MATCH(TRUE,OFFSET(CalculationsAndCharts!$Q$33,E48,0,'Transaction Summary'!$C$2-E48,1),0)+E48),"")) ->  | F49: =IFERROR(OFFSET(CalculationsAndCharts!$B$32,'Transaction Summary'!E49,0,1,1),"") ->  | G49: =IFERROR(OFFSET(CalculationsAndCharts!$R$32,'Transaction Summary'!E49,0,1,1),"") ->  | K49: =IFERROR(MATCH(TRUE,OFFSET(CalculationsAndCharts!$T$33,K48,0,'Transaction Summary'!$C$2-K48,1),0)+K48,"") ->  | L49: =IFERROR(OFFSET(CalculationsAndCharts!$B$32,'Transaction Summary'!K49,0,1,1),"") ->  | M49: =IFERROR(OFFSET(CalculationsAndCharts!$U$32,'Transaction Summary'!K49,0,1,1),"") ->  | N49: =IF(K49="","",IFERROR(MATCH(TRUE,OFFSET(CalculationsAndCharts!$X$33,N48,0,'Transaction Summary'!$C$2-N48,1),0)+N48,"")) ->  | O49: =IFERROR(OFFSET(CalculationsAndCharts!$B$32,'Transaction Summary'!N49,0,1,1),"") ->  | P49: =IFERROR(OFFSET(CalculationsAndCharts!$D$32,'Transaction Summary'!N49,0,1,1),"") -> 
B50: =IFERROR(MATCH(TRUE,OFFSET(CalculationsAndCharts!$M$33,B49,0,'Transaction Summary'!$C$2-B49,1),0)+B49,"") ->  | C50: =IFERROR(OFFSET(CalculationsAndCharts!$B$32,'Transaction Summary'!B50,0,1,1),"") ->  | D50: =IFERROR(OFFSET(CalculationsAndCharts!$N$32,'Transaction Summary'!B50,0,1,1),"") ->  | E50: =IF(B50="","",IFERROR((MATCH(TRUE,OFFSET(CalculationsAndCharts!$Q$33,E49,0,'Transaction Summary'!$C$2-E49,1),0)+E49),"")) ->  | F50: =IFERROR(OFFSET(CalculationsAndCharts!$B$32,'Transaction Summary'!E50,0,1,1),"") ->  | G50: =IFERROR(OFFSET(CalculationsAndCharts!$R$32,'Transaction Summary'!E50,0,1,1),"") ->  | K50: =IFERROR(MATCH(TRUE,OFFSET(CalculationsAndCharts!$T$33,K49,0,'Transaction Summary'!$C$2-K49,1),0)+K49,"") ->  | L50: =IFERROR(OFFSET(CalculationsAndCharts!$B$32,'Transaction Summary'!K50,0,1,1),"") ->  | M50: =IFERROR(OFFSET(CalculationsAndCharts!$U$32,'Transaction Summary'!K50,0,1,1),"") ->  | N50: =IF(K50="","",IFERROR(MATCH(TRUE,OFFSET(CalculationsAndCharts!$X$33,N49,0,'Transaction Summary'!$C$2-N49,1),0)+N49,"")) ->  | O50: =IFERROR(OFFSET(CalculationsAndCharts!$B$32,'Transaction Summary'!N50,0,1,1),"") ->  | P50: =IFERROR(OFFSET(CalculationsAndCharts!$D$32,'Transaction Summary'!N50,0,1,1),"") -> 
B51: =IFERROR(MATCH(TRUE,OFFSET(CalculationsAndCharts!$M$33,B50,0,'Transaction Summary'!$C$2-B50,1),0)+B50,"") ->  | C51: =IFERROR(OFFSET(CalculationsAndCharts!$B$32,'Transaction Summary'!B51,0,1,1),"") ->  | D51: =IFERROR(OFFSET(CalculationsAndCharts!$N$32,'Transaction Summary'!B51,0,1,1),"") ->  | E51: =IF(B51="","",IFERROR((MATCH(TRUE,OFFSET(CalculationsAndCharts!$Q$33,E50,0,'Transaction Summary'!$C$2-E50,1),0)+E50),"")) ->  | F51: =IFERROR(OFFSET(CalculationsAndCharts!$B$32,'Transaction Summary'!E51,0,1,1),"") ->  | G51: =IFERROR(OFFSET(CalculationsAndCharts!$R$32,'Transaction Summary'!E51,0,1,1),"") ->  | K51: =IFERROR(MATCH(TRUE,OFFSET(CalculationsAndCharts!$T$33,K50,0,'Transaction Summary'!$C$2-K50,1),0)+K50,"") ->  | L51: =IFERROR(OFFSET(CalculationsAndCharts!$B$32,'Transaction Summary'!K51,0,1,1),"") ->  | M51: =IFERROR(OFFSET(CalculationsAndCharts!$U$32,'Transaction Summary'!K51,0,1,1),"") ->  | N51: =IF(K51="","",IFERROR(MATCH(TRUE,OFFSET(CalculationsAndCharts!$X$33,N50,0,'Transaction Summary'!$C$2-N50,1),0)+N50,"")) ->  | O51: =IFERROR(OFFSET(CalculationsAndCharts!$B$32,'Transaction Summary'!N51,0,1,1),"") ->  | P51: =IFERROR(OFFSET(CalculationsAndCharts!$D$32,'Transaction Summary'!N51,0,1,1),"") -> 
B52: =IFERROR(MATCH(TRUE,OFFSET(CalculationsAndCharts!$M$33,B51,0,'Transaction Summary'!$C$2-B51,1),0)+B51,"") ->  | C52: =IFERROR(OFFSET(CalculationsAndCharts!$B$32,'Transaction Summary'!B52,0,1,1),"") ->  | D52: =IFERROR(OFFSET(CalculationsAndCharts!$N$32,'Transaction Summary'!B52,0,1,1),"") ->  | E52: =IF(B52="","",IFERROR((MATCH(TRUE,OFFSET(CalculationsAndCharts!$Q$33,E51,0,'Transaction Summary'!$C$2-E51,1),0)+E51),"")) ->  | F52: =IFERROR(OFFSET(CalculationsAndCharts!$B$32,'Transaction Summary'!E52,0,1,1),"") ->  | G52: =IFERROR(OFFSET(CalculationsAndCharts!$R$32,'Transaction Summary'!E52,0,1,1),"") ->  | K52: =IFERROR(MATCH(TRUE,OFFSET(CalculationsAndCharts!$T$33,K51,0,'Transaction Summary'!$C$2-K51,1),0)+K51,"") ->  | L52: =IFERROR(OFFSET(CalculationsAndCharts!$B$32,'Transaction Summary'!K52,0,1,1),"") ->  | M52: =IFERROR(OFFSET(CalculationsAndCharts!$U$32,'Transaction Summary'!K52,0,1,1),"") ->  | N52: =IF(K52="","",IFERROR(MATCH(TRUE,OFFSET(CalculationsAndCharts!$X$33,N51,0,'Transaction Summary'!$C$2-N51,1),0)+N51,"")) ->  | O52: =IFERROR(OFFSET(CalculationsAndCharts!$B$32,'Transaction Summary'!N52,0,1,1),"") ->  | P52: =IFERROR(OFFSET(CalculationsAndCharts!$D$32,'Transaction Summary'!N52,0,1,1),"") -> 
B53: =IFERROR(MATCH(TRUE,OFFSET(CalculationsAndCharts!$M$33,B52,0,'Transaction Summary'!$C$2-B52,1),0)+B52,"") ->  | C53: =IFERROR(OFFSET(CalculationsAndCharts!$B$32,'Transaction Summary'!B53,0,1,1),"") ->  | D53: =IFERROR(OFFSET(CalculationsAndCharts!$N$32,'Transaction Summary'!B53,0,1,1),"") ->  | E53: =IF(B53="","",IFERROR((MATCH(TRUE,OFFSET(CalculationsAndCharts!$Q$33,E52,0,'Transaction Summary'!$C$2-E52,1),0)+E52),"")) ->  | F53: =IFERROR(OFFSET(CalculationsAndCharts!$B$32,'Transaction Summary'!E53,0,1,1),"") ->  | G53: =IFERROR(OFFSET(CalculationsAndCharts!$R$32,'Transaction Summary'!E53,0,1,1),"") ->  | K53: =IFERROR(MATCH(TRUE,OFFSET(CalculationsAndCharts!$T$33,K52,0,'Transaction Summary'!$C$2-K52,1),0)+K52,"") ->  | L53: =IFERROR(OFFSET(CalculationsAndCharts!$B$32,'Transaction Summary'!K53,0,1,1),"") ->  | M53: =IFERROR(OFFSET(CalculationsAndCharts!$U$32,'Transaction Summary'!K53,0,1,1),"") ->  | N53: =IF(K53="","",IFERROR(MATCH(TRUE,OFFSET(CalculationsAndCharts!$X$33,N52,0,'Transaction Summary'!$C$2-N52,1),0)+N52,"")) ->  | O53: =IFERROR(OFFSET(CalculationsAndCharts!$B$32,'Transaction Summary'!N53,0,1,1),"") ->  | P53: =IFERROR(OFFSET(CalculationsAndCharts!$D$32,'Transaction Summary'!N53,0,1,1),"") -> 
B54: =IFERROR(MATCH(TRUE,OFFSET(CalculationsAndCharts!$M$33,B53,0,'Transaction Summary'!$C$2-B53,1),0)+B53,"") ->  | C54: =IFERROR(OFFSET(CalculationsAndCharts!$B$32,'Transaction Summary'!B54,0,1,1),"") ->  | D54: =IFERROR(OFFSET(CalculationsAndCharts!$N$32,'Transaction Summary'!B54,0,1,1),"") ->  | E54: =IF(B54="","",IFERROR((MATCH(TRUE,OFFSET(CalculationsAndCharts!$Q$33,E53,0,'Transaction Summary'!$C$2-E53,1),0)+E53),"")) ->  | F54: =IFERROR(OFFSET(CalculationsAndCharts!$B$32,'Transaction Summary'!E54,0,1,1),"") ->  | G54: =IFERROR(OFFSET(CalculationsAndCharts!$R$32,'Transaction Summary'!E54,0,1,1),"") ->  | K54: =IFERROR(MATCH(TRUE,OFFSET(CalculationsAndCharts!$T$33,K53,0,'Transaction Summary'!$C$2-K53,1),0)+K53,"") ->  | L54: =IFERROR(OFFSET(CalculationsAndCharts!$B$32,'Transaction Summary'!K54,0,1,1),"") ->  | M54: =IFERROR(OFFSET(CalculationsAndCharts!$U$32,'Transaction Summary'!K54,0,1,1),"") ->  | N54: =IF(K54="","",IFERROR(MATCH(TRUE,OFFSET(CalculationsAndCharts!$X$33,N53,0,'Transaction Summary'!$C$2-N53,1),0)+N53,"")) ->  | O54: =IFERROR(OFFSET(CalculationsAndCharts!$B$32,'Transaction Summary'!N54,0,1,1),"") ->  | P54: =IFERROR(OFFSET(CalculationsAndCharts!$D$32,'Transaction Summary'!N54,0,1,1),"") -> 
B55: =IFERROR(MATCH(TRUE,OFFSET(CalculationsAndCharts!$M$33,B54,0,'Transaction Summary'!$C$2-B54,1),0)+B54,"") ->  | C55: =IFERROR(OFFSET(CalculationsAndCharts!$B$32,'Transaction Summary'!B55,0,1,1),"") ->  | D55: =IFERROR(OFFSET(CalculationsAndCharts!$N$32,'Transaction Summary'!B55,0,1,1),"") ->  | E55: =IF(B55="","",IFERROR((MATCH(TRUE,OFFSET(CalculationsAndCharts!$Q$33,E54,0,'Transaction Summary'!$C$2-E54,1),0)+E54),"")) ->  | F55: =IFERROR(OFFSET(CalculationsAndCharts!$B$32,'Transaction Summary'!E55,0,1,1),"") ->  | G55: =IFERROR(OFFSET(CalculationsAndCharts!$R$32,'Transaction Summary'!E55,0,1,1),"") ->  | K55: =IFERROR(MATCH(TRUE,OFFSET(CalculationsAndCharts!$T$33,K54,0,'Transaction Summary'!$C$2-K54,1),0)+K54,"") ->  | L55: =IFERROR(OFFSET(CalculationsAndCharts!$B$32,'Transaction Summary'!K55,0,1,1),"") ->  | M55: =IFERROR(OFFSET(CalculationsAndCharts!$U$32,'Transaction Summary'!K55,0,1,1),"") ->  | N55: =IF(K55="","",IFERROR(MATCH(TRUE,OFFSET(CalculationsAndCharts!$X$33,N54,0,'Transaction Summary'!$C$2-N54,1),0)+N54,"")) ->  | O55: =IFERROR(OFFSET(CalculationsAndCharts!$B$32,'Transaction Summary'!N55,0,1,1),"") ->  | P55: =IFERROR(OFFSET(CalculationsAndCharts!$D$32,'Transaction Summary'!N55,0,1,1),"") -> 
B56: =IFERROR(MATCH(TRUE,OFFSET(CalculationsAndCharts!$M$33,B55,0,'Transaction Summary'!$C$2-B55,1),0)+B55,"") ->  | C56: =IFERROR(OFFSET(CalculationsAndCharts!$B$32,'Transaction Summary'!B56,0,1,1),"") ->  | D56: =IFERROR(OFFSET(CalculationsAndCharts!$N$32,'Transaction Summary'!B56,0,1,1),"") ->  | E56: =IF(B56="","",IFERROR((MATCH(TRUE,OFFSET(CalculationsAndCharts!$Q$33,E55,0,'Transaction Summary'!$C$2-E55,1),0)+E55),"")) ->  | F56: =IFERROR(OFFSET(CalculationsAndCharts!$B$32,'Transaction Summary'!E56,0,1,1),"") ->  | G56: =IFERROR(OFFSET(CalculationsAndCharts!$R$32,'Transaction Summary'!E56,0,1,1),"") ->  | K56: =IFERROR(MATCH(TRUE,OFFSET(CalculationsAndCharts!$T$33,K55,0,'Transaction Summary'!$C$2-K55,1),0)+K55,"") ->  | L56: =IFERROR(OFFSET(CalculationsAndCharts!$B$32,'Transaction Summary'!K56,0,1,1),"") ->  | M56: =IFERROR(OFFSET(CalculationsAndCharts!$U$32,'Transaction Summary'!K56,0,1,1),"") ->  | N56: =IF(K56="","",IFERROR(MATCH(TRUE,OFFSET(CalculationsAndCharts!$X$33,N55,0,'Transaction Summary'!$C$2-N55,1),0)+N55,"")) ->  | O56: =IFERROR(OFFSET(CalculationsAndCharts!$B$32,'Transaction Summary'!N56,0,1,1),"") ->  | P56: =IFERROR(OFFSET(CalculationsAndCharts!$D$32,'Transaction Summary'!N56,0,1,1),"") -> 
B57: =IFERROR(MATCH(TRUE,OFFSET(CalculationsAndCharts!$M$33,B56,0,'Transaction Summary'!$C$2-B56,1),0)+B56,"") ->  | C57: =IFERROR(OFFSET(CalculationsAndCharts!$B$32,'Transaction Summary'!B57,0,1,1),"") ->  | D57: =IFERROR(OFFSET(CalculationsAndCharts!$N$32,'Transaction Summary'!B57,0,1,1),"") ->  | E57: =IF(B57="","",IFERROR((MATCH(TRUE,OFFSET(CalculationsAndCharts!$Q$33,E56,0,'Transaction Summary'!$C$2-E56,1),0)+E56),"")) ->  | F57: =IFERROR(OFFSET(CalculationsAndCharts!$B$32,'Transaction Summary'!E57,0,1,1),"") ->  | G57: =IFERROR(OFFSET(CalculationsAndCharts!$R$32,'Transaction Summary'!E57,0,1,1),"") ->  | K57: =IFERROR(MATCH(TRUE,OFFSET(CalculationsAndCharts!$T$33,K56,0,'Transaction Summary'!$C$2-K56,1),0)+K56,"") ->  | L57: =IFERROR(OFFSET(CalculationsAndCharts!$B$32,'Transaction Summary'!K57,0,1,1),"") ->  | M57: =IFERROR(OFFSET(CalculationsAndCharts!$U$32,'Transaction Summary'!K57,0,1,1),"") ->  | N57: =IF(K57="","",IFERROR(MATCH(TRUE,OFFSET(CalculationsAndCharts!$X$33,N56,0,'Transaction Summary'!$C$2-N56,1),0)+N56,"")) ->  | O57: =IFERROR(OFFSET(CalculationsAndCharts!$B$32,'Transaction Summary'!N57,0,1,1),"") ->  | P57: =IFERROR(OFFSET(CalculationsAndCharts!$D$32,'Transaction Summary'!N57,0,1,1),"") -> 
B58: =IFERROR(MATCH(TRUE,OFFSET(CalculationsAndCharts!$M$33,B57,0,'Transaction Summary'!$C$2-B57,1),0)+B57,"") ->  | C58: =IFERROR(OFFSET(CalculationsAndCharts!$B$32,'Transaction Summary'!B58,0,1,1),"") ->  | D58: =IFERROR(OFFSET(CalculationsAndCharts!$N$32,'Transaction Summary'!B58,0,1,1),"") ->  | E58: =IF(B58="","",IFERROR((MATCH(TRUE,OFFSET(CalculationsAndCharts!$Q$33,E57,0,'Transaction Summary'!$C$2-E57,1),0)+E57),"")) ->  | F58: =IFERROR(OFFSET(CalculationsAndCharts!$B$32,'Transaction Summary'!E58,0,1,1),"") ->  | G58: =IFERROR(OFFSET(CalculationsAndCharts!$R$32,'Transaction Summary'!E58,0,1,1),"") ->  | K58: =IFERROR(MATCH(TRUE,OFFSET(CalculationsAndCharts!$T$33,K57,0,'Transaction Summary'!$C$2-K57,1),0)+K57,"") ->  | L58: =IFERROR(OFFSET(CalculationsAndCharts!$B$32,'Transaction Summary'!K58,0,1,1),"") ->  | M58: =IFERROR(OFFSET(CalculationsAndCharts!$U$32,'Transaction Summary'!K58,0,1,1),"") ->  | N58: =IF(K58="","",IFERROR(MATCH(TRUE,OFFSET(CalculationsAndCharts!$X$33,N57,0,'Transaction Summary'!$C$2-N57,1),0)+N57,"")) ->  | O58: =IFERROR(OFFSET(CalculationsAndCharts!$B$32,'Transaction Summary'!N58,0,1,1),"") ->  | P58: =IFERROR(OFFSET(CalculationsAndCharts!$D$32,'Transaction Summary'!N58,0,1,1),"") -> 
B59: =IFERROR(MATCH(TRUE,OFFSET(CalculationsAndCharts!$M$33,B58,0,'Transaction Summary'!$C$2-B58,1),0)+B58,"") ->  | C59: =IFERROR(OFFSET(CalculationsAndCharts!$B$32,'Transaction Summary'!B59,0,1,1),"") ->  | D59: =IFERROR(OFFSET(CalculationsAndCharts!$N$32,'Transaction Summary'!B59,0,1,1),"") ->  | E59: =IF(B59="","",IFERROR((MATCH(TRUE,OFFSET(CalculationsAndCharts!$Q$33,E58,0,'Transaction Summary'!$C$2-E58,1),0)+E58),"")) ->  | F59: =IFERROR(OFFSET(CalculationsAndCharts!$B$32,'Transaction Summary'!E59,0,1,1),"") ->  | G59: =IFERROR(OFFSET(CalculationsAndCharts!$R$32,'Transaction Summary'!E59,0,1,1),"") ->  | K59: =IFERROR(MATCH(TRUE,OFFSET(CalculationsAndCharts!$T$33,K58,0,'Transaction Summary'!$C$2-K58,1),0)+K58,"") ->  | L59: =IFERROR(OFFSET(CalculationsAndCharts!$B$32,'Transaction Summary'!K59,0,1,1),"") ->  | M59: =IFERROR(OFFSET(CalculationsAndCharts!$U$32,'Transaction Summary'!K59,0,1,1),"") ->  | N59: =IF(K59="","",IFERROR(MATCH(TRUE,OFFSET(CalculationsAndCharts!$X$33,N58,0,'Transaction Summary'!$C$2-N58,1),0)+N58,"")) ->  | O59: =IFERROR(OFFSET(CalculationsAndCharts!$B$32,'Transaction Summary'!N59,0,1,1),"") ->  | P59: =IFERROR(OFFSET(CalculationsAndCharts!$D$32,'Transaction Summary'!N59,0,1,1),"") -> 
B60: =IFERROR(MATCH(TRUE,OFFSET(CalculationsAndCharts!$M$33,B59,0,'Transaction Summary'!$C$2-B59,1),0)+B59,"") ->  | C60: =IFERROR(OFFSET(CalculationsAndCharts!$B$32,'Transaction Summary'!B60,0,1,1),"") ->  | D60: =IFERROR(OFFSET(CalculationsAndCharts!$N$32,'Transaction Summary'!B60,0,1,1),"") ->  | E60: =IF(B60="","",IFERROR((MATCH(TRUE,OFFSET(CalculationsAndCharts!$Q$33,E59,0,'Transaction Summary'!$C$2-E59,1),0)+E59),"")) ->  | F60: =IFERROR(OFFSET(CalculationsAndCharts!$B$32,'Transaction Summary'!E60,0,1,1),"") ->  | G60: =IFERROR(OFFSET(CalculationsAndCharts!$R$32,'Transaction Summary'!E60,0,1,1),"") ->  | K60: =IFERROR(MATCH(TRUE,OFFSET(CalculationsAndCharts!$T$33,K59,0,'Transaction Summary'!$C$2-K59,1),0)+K59,"") ->  | L60: =IFERROR(OFFSET(CalculationsAndCharts!$B$32,'Transaction Summary'!K60,0,1,1),"") ->  | M60: =IFERROR(OFFSET(CalculationsAndCharts!$U$32,'Transaction Summary'!K60,0,1,1),"") ->  | N60: =IF(K60="","",IFERROR(MATCH(TRUE,OFFSET(CalculationsAndCharts!$X$33,N59,0,'Transaction Summary'!$C$2-N59,1),0)+N59,"")) ->  | O60: =IFERROR(OFFSET(CalculationsAndCharts!$B$32,'Transaction Summary'!N60,0,1,1),"") ->  | P60: =IFERROR(OFFSET(CalculationsAndCharts!$D$32,'Transaction Summary'!N60,0,1,1),"") -> 
B61: =IFERROR(MATCH(TRUE,OFFSET(CalculationsAndCharts!$M$33,B60,0,'Transaction Summary'!$C$2-B60,1),0)+B60,"") ->  | C61: =IFERROR(OFFSET(CalculationsAndCharts!$B$32,'Transaction Summary'!B61,0,1,1),"") ->  | D61: =IFERROR(OFFSET(CalculationsAndCharts!$N$32,'Transaction Summary'!B61,0,1,1),"") ->  | E61: =IF(B61="","",IFERROR((MATCH(TRUE,OFFSET(CalculationsAndCharts!$Q$33,E60,0,'Transaction Summary'!$C$2-E60,1),0)+E60),"")) ->  | F61: =IFERROR(OFFSET(CalculationsAndCharts!$B$32,'Transaction Summary'!E61,0,1,1),"") ->  | G61: =IFERROR(OFFSET(CalculationsAndCharts!$R$32,'Transaction Summary'!E61,0,1,1),"") ->  | K61: =IFERROR(MATCH(TRUE,OFFSET(CalculationsAndCharts!$T$33,K60,0,'Transaction Summary'!$C$2-K60,1),0)+K60,"") ->  | L61: =IFERROR(OFFSET(CalculationsAndCharts!$B$32,'Transaction Summary'!K61,0,1,1),"") ->  | M61: =IFERROR(OFFSET(CalculationsAndCharts!$U$32,'Transaction Summary'!K61,0,1,1),"") ->  | N61: =IF(K61="","",IFERROR(MATCH(TRUE,OFFSET(CalculationsAndCharts!$X$33,N60,0,'Transaction Summary'!$C$2-N60,1),0)+N60,"")) ->  | O61: =IFERROR(OFFSET(CalculationsAndCharts!$B$32,'Transaction Summary'!N61,0,1,1),"") ->  | P61: =IFERROR(OFFSET(CalculationsAndCharts!$D$32,'Transaction Summary'!N61,0,1,1),"") -> 
B62: =IFERROR(MATCH(TRUE,OFFSET(CalculationsAndCharts!$M$33,B61,0,'Transaction Summary'!$C$2-B61,1),0)+B61,"") ->  | C62: =IFERROR(OFFSET(CalculationsAndCharts!$B$32,'Transaction Summary'!B62,0,1,1),"") ->  | D62: =IFERROR(OFFSET(CalculationsAndCharts!$N$32,'Transaction Summary'!B62,0,1,1),"") ->  | E62: =IF(B62="","",IFERROR((MATCH(TRUE,OFFSET(CalculationsAndCharts!$Q$33,E61,0,'Transaction Summary'!$C$2-E61,1),0)+E61),"")) ->  | F62: =IFERROR(OFFSET(CalculationsAndCharts!$B$32,'Transaction Summary'!E62,0,1,1),"") ->  | G62: =IFERROR(OFFSET(CalculationsAndCharts!$R$32,'Transaction Summary'!E62,0,1,1),"") ->  | K62: =IFERROR(MATCH(TRUE,OFFSET(CalculationsAndCharts!$T$33,K61,0,'Transaction Summary'!$C$2-K61,1),0)+K61,"") ->  | L62: =IFERROR(OFFSET(CalculationsAndCharts!$B$32,'Transaction Summary'!K62,0,1,1),"") ->  | M62: =IFERROR(OFFSET(CalculationsAndCharts!$U$32,'Transaction Summary'!K62,0,1,1),"") ->  | N62: =IF(K62="","",IFERROR(MATCH(TRUE,OFFSET(CalculationsAndCharts!$X$33,N61,0,'Transaction Summary'!$C$2-N61,1),0)+N61,"")) ->  | O62: =IFERROR(OFFSET(CalculationsAndCharts!$B$32,'Transaction Summary'!N62,0,1,1),"") ->  | P62: =IFERROR(OFFSET(CalculationsAndCharts!$D$32,'Transaction Summary'!N62,0,1,1),"") -> 
B63: =IFERROR(MATCH(TRUE,OFFSET(CalculationsAndCharts!$M$33,B62,0,'Transaction Summary'!$C$2-B62,1),0)+B62,"") ->  | C63: =IFERROR(OFFSET(CalculationsAndCharts!$B$32,'Transaction Summary'!B63,0,1,1),"") ->  | D63: =IFERROR(OFFSET(CalculationsAndCharts!$N$32,'Transaction Summary'!B63,0,1,1),"") ->  | E63: =IF(B63="","",IFERROR((MATCH(TRUE,OFFSET(CalculationsAndCharts!$Q$33,E62,0,'Transaction Summary'!$C$2-E62,1),0)+E62),"")) ->  | F63: =IFERROR(OFFSET(CalculationsAndCharts!$B$32,'Transaction Summary'!E63,0,1,1),"") ->  | G63: =IFERROR(OFFSET(CalculationsAndCharts!$R$32,'Transaction Summary'!E63,0,1,1),"") ->  | K63: =IFERROR(MATCH(TRUE,OFFSET(CalculationsAndCharts!$T$33,K62,0,'Transaction Summary'!$C$2-K62,1),0)+K62,"") ->  | L63: =IFERROR(OFFSET(CalculationsAndCharts!$B$32,'Transaction Summary'!K63,0,1,1),"") ->  | M63: =IFERROR(OFFSET(CalculationsAndCharts!$U$32,'Transaction Summary'!K63,0,1,1),"") ->  | N63: =IF(K63="","",IFERROR(MATCH(TRUE,OFFSET(CalculationsAndCharts!$X$33,N62,0,'Transaction Summary'!$C$2-N62,1),0)+N62,"")) ->  | O63: =IFERROR(OFFSET(CalculationsAndCharts!$B$32,'Transaction Summary'!N63,0,1,1),"") ->  | P63: =IFERROR(OFFSET(CalculationsAndCharts!$D$32,'Transaction Summary'!N63,0,1,1),"") -> 
B64: =IFERROR(MATCH(TRUE,OFFSET(CalculationsAndCharts!$M$33,B63,0,'Transaction Summary'!$C$2-B63,1),0)+B63,"") ->  | C64: =IFERROR(OFFSET(CalculationsAndCharts!$B$32,'Transaction Summary'!B64,0,1,1),"") ->  | D64: =IFERROR(OFFSET(CalculationsAndCharts!$N$32,'Transaction Summary'!B64,0,1,1),"") ->  | E64: =IF(B64="","",IFERROR((MATCH(TRUE,OFFSET(CalculationsAndCharts!$Q$33,E63,0,'Transaction Summary'!$C$2-E63,1),0)+E63),"")) ->  | F64: =IFERROR(OFFSET(CalculationsAndCharts!$B$32,'Transaction Summary'!E64,0,1,1),"") ->  | G64: =IFERROR(OFFSET(CalculationsAndCharts!$R$32,'Transaction Summary'!E64,0,1,1),"") ->  | K64: =IFERROR(MATCH(TRUE,OFFSET(CalculationsAndCharts!$T$33,K63,0,'Transaction Summary'!$C$2-K63,1),0)+K63,"") ->  | L64: =IFERROR(OFFSET(CalculationsAndCharts!$B$32,'Transaction Summary'!K64,0,1,1),"") ->  | M64: =IFERROR(OFFSET(CalculationsAndCharts!$U$32,'Transaction Summary'!K64,0,1,1),"") ->  | N64: =IF(K64="","",IFERROR(MATCH(TRUE,OFFSET(CalculationsAndCharts!$X$33,N63,0,'Transaction Summary'!$C$2-N63,1),0)+N63,"")) ->  | O64: =IFERROR(OFFSET(CalculationsAndCharts!$B$32,'Transaction Summary'!N64,0,1,1),"") ->  | P64: =IFERROR(OFFSET(CalculationsAndCharts!$D$32,'Transaction Summary'!N64,0,1,1),"") -> 
B65: =IFERROR(MATCH(TRUE,OFFSET(CalculationsAndCharts!$M$33,B64,0,'Transaction Summary'!$C$2-B64,1),0)+B64,"") ->  | C65: =IFERROR(OFFSET(CalculationsAndCharts!$B$32,'Transaction Summary'!B65,0,1,1),"") ->  | D65: =IFERROR(OFFSET(CalculationsAndCharts!$N$32,'Transaction Summary'!B65,0,1,1),"") ->  | E65: =IF(B65="","",IFERROR((MATCH(TRUE,OFFSET(CalculationsAndCharts!$Q$33,E64,0,'Transaction Summary'!$C$2-E64,1),0)+E64),"")) ->  | F65: =IFERROR(OFFSET(CalculationsAndCharts!$B$32,'Transaction Summary'!E65,0,1,1),"") ->  | G65: =IFERROR(OFFSET(CalculationsAndCharts!$R$32,'Transaction Summary'!E65,0,1,1),"") ->  | K65: =IFERROR(MATCH(TRUE,OFFSET(CalculationsAndCharts!$T$33,K64,0,'Transaction Summary'!$C$2-K64,1),0)+K64,"") ->  | L65: =IFERROR(OFFSET(CalculationsAndCharts!$B$32,'Transaction Summary'!K65,0,1,1),"") ->  | M65: =IFERROR(OFFSET(CalculationsAndCharts!$U$32,'Transaction Summary'!K65,0,1,1),"") ->  | N65: =IF(K65="","",IFERROR(MATCH(TRUE,OFFSET(CalculationsAndCharts!$X$33,N64,0,'Transaction Summary'!$C$2-N64,1),0)+N64,"")) ->  | O65: =IFERROR(OFFSET(CalculationsAndCharts!$B$32,'Transaction Summary'!N65,0,1,1),"") ->  | P65: =IFERROR(OFFSET(CalculationsAndCharts!$D$32,'Transaction Summary'!N65,0,1,1),"") -> 
B66: =IFERROR(MATCH(TRUE,OFFSET(CalculationsAndCharts!$M$33,B65,0,'Transaction Summary'!$C$2-B65,1),0)+B65,"") ->  | C66: =IFERROR(OFFSET(CalculationsAndCharts!$B$32,'Transaction Summary'!B66,0,1,1),"") ->  | D66: =IFERROR(OFFSET(CalculationsAndCharts!$N$32,'Transaction Summary'!B66,0,1,1),"") ->  | E66: =IF(B66="","",IFERROR((MATCH(TRUE,OFFSET(CalculationsAndCharts!$Q$33,E65,0,'Transaction Summary'!$C$2-E65,1),0)+E65),"")) ->  | F66: =IFERROR(OFFSET(CalculationsAndCharts!$B$32,'Transaction Summary'!E66,0,1,1),"") ->  | G66: =IFERROR(OFFSET(CalculationsAndCharts!$R$32,'Transaction Summary'!E66,0,1,1),"") ->  | K66: =IFERROR(MATCH(TRUE,OFFSET(CalculationsAndCharts!$T$33,K65,0,'Transaction Summary'!$C$2-K65,1),0)+K65,"") ->  | L66: =IFERROR(OFFSET(CalculationsAndCharts!$B$32,'Transaction Summary'!K66,0,1,1),"") ->  | M66: =IFERROR(OFFSET(CalculationsAndCharts!$U$32,'Transaction Summary'!K66,0,1,1),"") ->  | N66: =IF(K66="","",IFERROR(MATCH(TRUE,OFFSET(CalculationsAndCharts!$X$33,N65,0,'Transaction Summary'!$C$2-N65,1),0)+N65,"")) ->  | O66: =IFERROR(OFFSET(CalculationsAndCharts!$B$32,'Transaction Summary'!N66,0,1,1),"") ->  | P66: =IFERROR(OFFSET(CalculationsAndCharts!$D$32,'Transaction Summary'!N66,0,1,1),"") -> 
B67: =IFERROR(MATCH(TRUE,OFFSET(CalculationsAndCharts!$M$33,B66,0,'Transaction Summary'!$C$2-B66,1),0)+B66,"") ->  | C67: =IFERROR(OFFSET(CalculationsAndCharts!$B$32,'Transaction Summary'!B67,0,1,1),"") ->  | D67: =IFERROR(OFFSET(CalculationsAndCharts!$N$32,'Transaction Summary'!B67,0,1,1),"") ->  | E67: =IF(B67="","",IFERROR((MATCH(TRUE,OFFSET(CalculationsAndCharts!$Q$33,E66,0,'Transaction Summary'!$C$2-E66,1),0)+E66),"")) ->  | F67: =IFERROR(OFFSET(CalculationsAndCharts!$B$32,'Transaction Summary'!E67,0,1,1),"") ->  | G67: =IFERROR(OFFSET(CalculationsAndCharts!$R$32,'Transaction Summary'!E67,0,1,1),"") ->  | K67: =IFERROR(MATCH(TRUE,OFFSET(CalculationsAndCharts!$T$33,K66,0,'Transaction Summary'!$C$2-K66,1),0)+K66,"") ->  | L67: =IFERROR(OFFSET(CalculationsAndCharts!$B$32,'Transaction Summary'!K67,0,1,1),"") ->  | M67: =IFERROR(OFFSET(CalculationsAndCharts!$U$32,'Transaction Summary'!K67,0,1,1),"") ->  | N67: =IF(K67="","",IFERROR(MATCH(TRUE,OFFSET(CalculationsAndCharts!$X$33,N66,0,'Transaction Summary'!$C$2-N66,1),0)+N66,"")) ->  | O67: =IFERROR(OFFSET(CalculationsAndCharts!$B$32,'Transaction Summary'!N67,0,1,1),"") ->  | P67: =IFERROR(OFFSET(CalculationsAndCharts!$D$32,'Transaction Summary'!N67,0,1,1),"") -> 
B68: =IFERROR(MATCH(TRUE,OFFSET(CalculationsAndCharts!$M$33,B67,0,'Transaction Summary'!$C$2-B67,1),0)+B67,"") ->  | C68: =IFERROR(OFFSET(CalculationsAndCharts!$B$32,'Transaction Summary'!B68,0,1,1),"") ->  | D68: =IFERROR(OFFSET(CalculationsAndCharts!$N$32,'Transaction Summary'!B68,0,1,1),"") ->  | E68: =IF(B68="","",IFERROR((MATCH(TRUE,OFFSET(CalculationsAndCharts!$Q$33,E67,0,'Transaction Summary'!$C$2-E67,1),0)+E67),"")) ->  | F68: =IFERROR(OFFSET(CalculationsAndCharts!$B$32,'Transaction Summary'!E68,0,1,1),"") ->  | G68: =IFERROR(OFFSET(CalculationsAndCharts!$R$32,'Transaction Summary'!E68,0,1,1),"") ->  | K68: =IFERROR(MATCH(TRUE,OFFSET(CalculationsAndCharts!$T$33,K67,0,'Transaction Summary'!$C$2-K67,1),0)+K67,"") ->  | L68: =IFERROR(OFFSET(CalculationsAndCharts!$B$32,'Transaction Summary'!K68,0,1,1),"") ->  | M68: =IFERROR(OFFSET(CalculationsAndCharts!$U$32,'Transaction Summary'!K68,0,1,1),"") ->  | N68: =IF(K68="","",IFERROR(MATCH(TRUE,OFFSET(CalculationsAndCharts!$X$33,N67,0,'Transaction Summary'!$C$2-N67,1),0)+N67,"")) ->  | O68: =IFERROR(OFFSET(CalculationsAndCharts!$B$32,'Transaction Summary'!N68,0,1,1),"") ->  | P68: =IFERROR(OFFSET(CalculationsAndCharts!$D$32,'Transaction Summary'!N68,0,1,1),"") -> 
B69: =IFERROR(MATCH(TRUE,OFFSET(CalculationsAndCharts!$M$33,B68,0,'Transaction Summary'!$C$2-B68,1),0)+B68,"") ->  | C69: =IFERROR(OFFSET(CalculationsAndCharts!$B$32,'Transaction Summary'!B69,0,1,1),"") ->  | D69: =IFERROR(OFFSET(CalculationsAndCharts!$N$32,'Transaction Summary'!B69,0,1,1),"") ->  | E69: =IF(B69="","",IFERROR((MATCH(TRUE,OFFSET(CalculationsAndCharts!$Q$33,E68,0,'Transaction Summary'!$C$2-E68,1),0)+E68),"")) ->  | F69: =IFERROR(OFFSET(CalculationsAndCharts!$B$32,'Transaction Summary'!E69,0,1,1),"") ->  | G69: =IFERROR(OFFSET(CalculationsAndCharts!$R$32,'Transaction Summary'!E69,0,1,1),"") ->  | K69: =IFERROR(MATCH(TRUE,OFFSET(CalculationsAndCharts!$T$33,K68,0,'Transaction Summary'!$C$2-K68,1),0)+K68,"") ->  | L69: =IFERROR(OFFSET(CalculationsAndCharts!$B$32,'Transaction Summary'!K69,0,1,1),"") ->  | M69: =IFERROR(OFFSET(CalculationsAndCharts!$U$32,'Transaction Summary'!K69,0,1,1),"") ->  | N69: =IF(K69="","",IFERROR(MATCH(TRUE,OFFSET(CalculationsAndCharts!$X$33,N68,0,'Transaction Summary'!$C$2-N68,1),0)+N68,"")) ->  | O69: =IFERROR(OFFSET(CalculationsAndCharts!$B$32,'Transaction Summary'!N69,0,1,1),"") ->  | P69: =IFERROR(OFFSET(CalculationsAndCharts!$D$32,'Transaction Summary'!N69,0,1,1),"") -> 
B70: =IFERROR(MATCH(TRUE,OFFSET(CalculationsAndCharts!$M$33,B69,0,'Transaction Summary'!$C$2-B69,1),0)+B69,"") ->  | C70: =IFERROR(OFFSET(CalculationsAndCharts!$B$32,'Transaction Summary'!B70,0,1,1),"") ->  | D70: =IFERROR(OFFSET(CalculationsAndCharts!$N$32,'Transaction Summary'!B70,0,1,1),"") ->  | E70: =IF(B70="","",IFERROR((MATCH(TRUE,OFFSET(CalculationsAndCharts!$Q$33,E69,0,'Transaction Summary'!$C$2-E69,1),0)+E69),"")) ->  | F70: =IFERROR(OFFSET(CalculationsAndCharts!$B$32,'Transaction Summary'!E70,0,1,1),"") ->  | G70: =IFERROR(OFFSET(CalculationsAndCharts!$R$32,'Transaction Summary'!E70,0,1,1),"") ->  | K70: =IFERROR(MATCH(TRUE,OFFSET(CalculationsAndCharts!$T$33,K69,0,'Transaction Summary'!$C$2-K69,1),0)+K69,"") ->  | L70: =IFERROR(OFFSET(CalculationsAndCharts!$B$32,'Transaction Summary'!K70,0,1,1),"") ->  | M70: =IFERROR(OFFSET(CalculationsAndCharts!$U$32,'Transaction Summary'!K70,0,1,1),"") ->  | N70: =IF(K70="","",IFERROR(MATCH(TRUE,OFFSET(CalculationsAndCharts!$X$33,N69,0,'Transaction Summary'!$C$2-N69,1),0)+N69,"")) ->  | O70: =IFERROR(OFFSET(CalculationsAndCharts!$B$32,'Transaction Summary'!N70,0,1,1),"") ->  | P70: =IFERROR(OFFSET(CalculationsAndCharts!$D$32,'Transaction Summary'!N70,0,1,1),"") -> 
B71: =IFERROR(MATCH(TRUE,OFFSET(CalculationsAndCharts!$M$33,B70,0,'Transaction Summary'!$C$2-B70,1),0)+B70,"") ->  | C71: =IFERROR(OFFSET(CalculationsAndCharts!$B$32,'Transaction Summary'!B71,0,1,1),"") ->  | D71: =IFERROR(OFFSET(CalculationsAndCharts!$N$32,'Transaction Summary'!B71,0,1,1),"") ->  | E71: =IF(B71="","",IFERROR((MATCH(TRUE,OFFSET(CalculationsAndCharts!$Q$33,E70,0,'Transaction Summary'!$C$2-E70,1),0)+E70),"")) ->  | F71: =IFERROR(OFFSET(CalculationsAndCharts!$B$32,'Transaction Summary'!E71,0,1,1),"") ->  | G71: =IFERROR(OFFSET(CalculationsAndCharts!$R$32,'Transaction Summary'!E71,0,1,1),"") ->  | K71: =IFERROR(MATCH(TRUE,OFFSET(CalculationsAndCharts!$T$33,K70,0,'Transaction Summary'!$C$2-K70,1),0)+K70,"") ->  | L71: =IFERROR(OFFSET(CalculationsAndCharts!$B$32,'Transaction Summary'!K71,0,1,1),"") ->  | M71: =IFERROR(OFFSET(CalculationsAndCharts!$U$32,'Transaction Summary'!K71,0,1,1),"") ->  | N71: =IF(K71="","",IFERROR(MATCH(TRUE,OFFSET(CalculationsAndCharts!$X$33,N70,0,'Transaction Summary'!$C$2-N70,1),0)+N70,"")) ->  | O71: =IFERROR(OFFSET(CalculationsAndCharts!$B$32,'Transaction Summary'!N71,0,1,1),"") ->  | P71: =IFERROR(OFFSET(CalculationsAndCharts!$D$32,'Transaction Summary'!N71,0,1,1),"") -> 
B72: =IFERROR(MATCH(TRUE,OFFSET(CalculationsAndCharts!$M$33,B71,0,'Transaction Summary'!$C$2-B71,1),0)+B71,"") ->  | C72: =IFERROR(OFFSET(CalculationsAndCharts!$B$32,'Transaction Summary'!B72,0,1,1),"") ->  | D72: =IFERROR(OFFSET(CalculationsAndCharts!$N$32,'Transaction Summary'!B72,0,1,1),"") ->  | E72: =IF(B72="","",IFERROR((MATCH(TRUE,OFFSET(CalculationsAndCharts!$Q$33,E71,0,'Transaction Summary'!$C$2-E71,1),0)+E71),"")) ->  | F72: =IFERROR(OFFSET(CalculationsAndCharts!$B$32,'Transaction Summary'!E72,0,1,1),"") ->  | G72: =IFERROR(OFFSET(CalculationsAndCharts!$R$32,'Transaction Summary'!E72,0,1,1),"") ->  | K72: =IFERROR(MATCH(TRUE,OFFSET(CalculationsAndCharts!$T$33,K71,0,'Transaction Summary'!$C$2-K71,1),0)+K71,"") ->  | L72: =IFERROR(OFFSET(CalculationsAndCharts!$B$32,'Transaction Summary'!K72,0,1,1),"") ->  | M72: =IFERROR(OFFSET(CalculationsAndCharts!$U$32,'Transaction Summary'!K72,0,1,1),"") ->  | N72: =IF(K72="","",IFERROR(MATCH(TRUE,OFFSET(CalculationsAndCharts!$X$33,N71,0,'Transaction Summary'!$C$2-N71,1),0)+N71,"")) ->  | O72: =IFERROR(OFFSET(CalculationsAndCharts!$B$32,'Transaction Summary'!N72,0,1,1),"") ->  | P72: =IFERROR(OFFSET(CalculationsAndCharts!$D$32,'Transaction Summary'!N72,0,1,1),"") -> 
B73: =IFERROR(MATCH(TRUE,OFFSET(CalculationsAndCharts!$M$33,B72,0,'Transaction Summary'!$C$2-B72,1),0)+B72,"") ->  | C73: =IFERROR(OFFSET(CalculationsAndCharts!$B$32,'Transaction Summary'!B73,0,1,1),"") ->  | D73: =IFERROR(OFFSET(CalculationsAndCharts!$N$32,'Transaction Summary'!B73,0,1,1),"") ->  | E73: =IF(B73="","",IFERROR((MATCH(TRUE,OFFSET(CalculationsAndCharts!$Q$33,E72,0,'Transaction Summary'!$C$2-E72,1),0)+E72),"")) ->  | F73: =IFERROR(OFFSET(CalculationsAndCharts!$B$32,'Transaction Summary'!E73,0,1,1),"") ->  | G73: =IFERROR(OFFSET(CalculationsAndCharts!$R$32,'Transaction Summary'!E73,0,1,1),"") ->  | K73: =IFERROR(MATCH(TRUE,OFFSET(CalculationsAndCharts!$T$33,K72,0,'Transaction Summary'!$C$2-K72,1),0)+K72,"") ->  | L73: =IFERROR(OFFSET(CalculationsAndCharts!$B$32,'Transaction Summary'!K73,0,1,1),"") ->  | M73: =IFERROR(OFFSET(CalculationsAndCharts!$U$32,'Transaction Summary'!K73,0,1,1),"") ->  | N73: =IF(K73="","",IFERROR(MATCH(TRUE,OFFSET(CalculationsAndCharts!$X$33,N72,0,'Transaction Summary'!$C$2-N72,1),0)+N72,"")) ->  | O73: =IFERROR(OFFSET(CalculationsAndCharts!$B$32,'Transaction Summary'!N73,0,1,1),"") ->  | P73: =IFERROR(OFFSET(CalculationsAndCharts!$D$32,'Transaction Summary'!N73,0,1,1),"") -> 
B74: =IFERROR(MATCH(TRUE,OFFSET(CalculationsAndCharts!$M$33,B73,0,'Transaction Summary'!$C$2-B73,1),0)+B73,"") ->  | C74: =IFERROR(OFFSET(CalculationsAndCharts!$B$32,'Transaction Summary'!B74,0,1,1),"") ->  | D74: =IFERROR(OFFSET(CalculationsAndCharts!$N$32,'Transaction Summary'!B74,0,1,1),"") ->  | E74: =IF(B74="","",IFERROR((MATCH(TRUE,OFFSET(CalculationsAndCharts!$Q$33,E73,0,'Transaction Summary'!$C$2-E73,1),0)+E73),"")) ->  | F74: =IFERROR(OFFSET(CalculationsAndCharts!$B$32,'Transaction Summary'!E74,0,1,1),"") ->  | G74: =IFERROR(OFFSET(CalculationsAndCharts!$R$32,'Transaction Summary'!E74,0,1,1),"") ->  | K74: =IFERROR(MATCH(TRUE,OFFSET(CalculationsAndCharts!$T$33,K73,0,'Transaction Summary'!$C$2-K73,1),0)+K73,"") ->  | L74: =IFERROR(OFFSET(CalculationsAndCharts!$B$32,'Transaction Summary'!K74,0,1,1),"") ->  | M74: =IFERROR(OFFSET(CalculationsAndCharts!$U$32,'Transaction Summary'!K74,0,1,1),"") ->  | N74: =IF(K74="","",IFERROR(MATCH(TRUE,OFFSET(CalculationsAndCharts!$X$33,N73,0,'Transaction Summary'!$C$2-N73,1),0)+N73,"")) ->  | O74: =IFERROR(OFFSET(CalculationsAndCharts!$B$32,'Transaction Summary'!N74,0,1,1),"") ->  | P74: =IFERROR(OFFSET(CalculationsAndCharts!$D$32,'Transaction Summary'!N74,0,1,1),"") -> 
B75: =IFERROR(MATCH(TRUE,OFFSET(CalculationsAndCharts!$M$33,B74,0,'Transaction Summary'!$C$2-B74,1),0)+B74,"") ->  | C75: =IFERROR(OFFSET(CalculationsAndCharts!$B$32,'Transaction Summary'!B75,0,1,1),"") ->  | D75: =IFERROR(OFFSET(CalculationsAndCharts!$N$32,'Transaction Summary'!B75,0,1,1),"") ->  | E75: =IF(B75="","",IFERROR((MATCH(TRUE,OFFSET(CalculationsAndCharts!$Q$33,E74,0,'Transaction Summary'!$C$2-E74,1),0)+E74),"")) ->  | F75: =IFERROR(OFFSET(CalculationsAndCharts!$B$32,'Transaction Summary'!E75,0,1,1),"") ->  | G75: =IFERROR(OFFSET(CalculationsAndCharts!$R$32,'Transaction Summary'!E75,0,1,1),"") ->  | K75: =IFERROR(MATCH(TRUE,OFFSET(CalculationsAndCharts!$T$33,K74,0,'Transaction Summary'!$C$2-K74,1),0)+K74,"") ->  | L75: =IFERROR(OFFSET(CalculationsAndCharts!$B$32,'Transaction Summary'!K75,0,1,1),"") ->  | M75: =IFERROR(OFFSET(CalculationsAndCharts!$U$32,'Transaction Summary'!K75,0,1,1),"") ->  | N75: =IF(K75="","",IFERROR(MATCH(TRUE,OFFSET(CalculationsAndCharts!$X$33,N74,0,'Transaction Summary'!$C$2-N74,1),0)+N74,"")) ->  | O75: =IFERROR(OFFSET(CalculationsAndCharts!$B$32,'Transaction Summary'!N75,0,1,1),"") ->  | P75: =IFERROR(OFFSET(CalculationsAndCharts!$D$32,'Transaction Summary'!N75,0,1,1),"") -> 
B76: =IFERROR(MATCH(TRUE,OFFSET(CalculationsAndCharts!$M$33,B75,0,'Transaction Summary'!$C$2-B75,1),0)+B75,"") ->  | C76: =IFERROR(OFFSET(CalculationsAndCharts!$B$32,'Transaction Summary'!B76,0,1,1),"") ->  | D76: =IFERROR(OFFSET(CalculationsAndCharts!$N$32,'Transaction Summary'!B76,0,1,1),"") ->  | E76: =IF(B76="","",IFERROR((MATCH(TRUE,OFFSET(CalculationsAndCharts!$Q$33,E75,0,'Transaction Summary'!$C$2-E75,1),0)+E75),"")) ->  | F76: =IFERROR(OFFSET(CalculationsAndCharts!$B$32,'Transaction Summary'!E76,0,1,1),"") ->  | G76: =IFERROR(OFFSET(CalculationsAndCharts!$R$32,'Transaction Summary'!E76,0,1,1),"") ->  | K76: =IFERROR(MATCH(TRUE,OFFSET(CalculationsAndCharts!$T$33,K75,0,'Transaction Summary'!$C$2-K75,1),0)+K75,"") ->  | L76: =IFERROR(OFFSET(CalculationsAndCharts!$B$32,'Transaction Summary'!K76,0,1,1),"") ->  | M76: =IFERROR(OFFSET(CalculationsAndCharts!$U$32,'Transaction Summary'!K76,0,1,1),"") ->  | N76: =IF(K76="","",IFERROR(MATCH(TRUE,OFFSET(CalculationsAndCharts!$X$33,N75,0,'Transaction Summary'!$C$2-N75,1),0)+N75,"")) ->  | O76: =IFERROR(OFFSET(CalculationsAndCharts!$B$32,'Transaction Summary'!N76,0,1,1),"") ->  | P76: =IFERROR(OFFSET(CalculationsAndCharts!$D$32,'Transaction Summary'!N76,0,1,1),"") -> 
B77: =IFERROR(MATCH(TRUE,OFFSET(CalculationsAndCharts!$M$33,B76,0,'Transaction Summary'!$C$2-B76,1),0)+B76,"") ->  | C77: =IFERROR(OFFSET(CalculationsAndCharts!$B$32,'Transaction Summary'!B77,0,1,1),"") ->  | D77: =IFERROR(OFFSET(CalculationsAndCharts!$N$32,'Transaction Summary'!B77,0,1,1),"") ->  | E77: =IF(B77="","",IFERROR((MATCH(TRUE,OFFSET(CalculationsAndCharts!$Q$33,E76,0,'Transaction Summary'!$C$2-E76,1),0)+E76),"")) ->  | F77: =IFERROR(OFFSET(CalculationsAndCharts!$B$32,'Transaction Summary'!E77,0,1,1),"") ->  | G77: =IFERROR(OFFSET(CalculationsAndCharts!$R$32,'Transaction Summary'!E77,0,1,1),"") ->  | K77: =IFERROR(MATCH(TRUE,OFFSET(CalculationsAndCharts!$T$33,K76,0,'Transaction Summary'!$C$2-K76,1),0)+K76,"") ->  | L77: =IFERROR(OFFSET(CalculationsAndCharts!$B$32,'Transaction Summary'!K77,0,1,1),"") ->  | M77: =IFERROR(OFFSET(CalculationsAndCharts!$U$32,'Transaction Summary'!K77,0,1,1),"") ->  | N77: =IF(K77="","",IFERROR(MATCH(TRUE,OFFSET(CalculationsAndCharts!$X$33,N76,0,'Transaction Summary'!$C$2-N76,1),0)+N76,"")) ->  | O77: =IFERROR(OFFSET(CalculationsAndCharts!$B$32,'Transaction Summary'!N77,0,1,1),"") ->  | P77: =IFERROR(OFFSET(CalculationsAndCharts!$D$32,'Transaction Summary'!N77,0,1,1),"") -> 
B78: =IFERROR(MATCH(TRUE,OFFSET(CalculationsAndCharts!$M$33,B77,0,'Transaction Summary'!$C$2-B77,1),0)+B77,"") ->  | C78: =IFERROR(OFFSET(CalculationsAndCharts!$B$32,'Transaction Summary'!B78,0,1,1),"") ->  | D78: =IFERROR(OFFSET(CalculationsAndCharts!$N$32,'Transaction Summary'!B78,0,1,1),"") ->  | E78: =IF(B78="","",IFERROR((MATCH(TRUE,OFFSET(CalculationsAndCharts!$Q$33,E77,0,'Transaction Summary'!$C$2-E77,1),0)+E77),"")) ->  | F78: =IFERROR(OFFSET(CalculationsAndCharts!$B$32,'Transaction Summary'!E78,0,1,1),"") ->  | G78: =IFERROR(OFFSET(CalculationsAndCharts!$R$32,'Transaction Summary'!E78,0,1,1),"") ->  | K78: =IFERROR(MATCH(TRUE,OFFSET(CalculationsAndCharts!$T$33,K77,0,'Transaction Summary'!$C$2-K77,1),0)+K77,"") ->  | L78: =IFERROR(OFFSET(CalculationsAndCharts!$B$32,'Transaction Summary'!K78,0,1,1),"") ->  | M78: =IFERROR(OFFSET(CalculationsAndCharts!$U$32,'Transaction Summary'!K78,0,1,1),"") ->  | N78: =IF(K78="","",IFERROR(MATCH(TRUE,OFFSET(CalculationsAndCharts!$X$33,N77,0,'Transaction Summary'!$C$2-N77,1),0)+N77,"")) ->  | O78: =IFERROR(OFFSET(CalculationsAndCharts!$B$32,'Transaction Summary'!N78,0,1,1),"") ->  | P78: =IFERROR(OFFSET(CalculationsAndCharts!$D$32,'Transaction Summary'!N78,0,1,1),"") -> 
B79: =IFERROR(MATCH(TRUE,OFFSET(CalculationsAndCharts!$M$33,B78,0,'Transaction Summary'!$C$2-B78,1),0)+B78,"") ->  | C79: =IFERROR(OFFSET(CalculationsAndCharts!$B$32,'Transaction Summary'!B79,0,1,1),"") ->  | D79: =IFERROR(OFFSET(CalculationsAndCharts!$N$32,'Transaction Summary'!B79,0,1,1),"") ->  | E79: =IF(B79="","",IFERROR((MATCH(TRUE,OFFSET(CalculationsAndCharts!$Q$33,E78,0,'Transaction Summary'!$C$2-E78,1),0)+E78),"")) ->  | F79: =IFERROR(OFFSET(CalculationsAndCharts!$B$32,'Transaction Summary'!E79,0,1,1),"") ->  | G79: =IFERROR(OFFSET(CalculationsAndCharts!$R$32,'Transaction Summary'!E79,0,1,1),"") ->  | K79: =IFERROR(MATCH(TRUE,OFFSET(CalculationsAndCharts!$T$33,K78,0,'Transaction Summary'!$C$2-K78,1),0)+K78,"") ->  | L79: =IFERROR(OFFSET(CalculationsAndCharts!$B$32,'Transaction Summary'!K79,0,1,1),"") ->  | M79: =IFERROR(OFFSET(CalculationsAndCharts!$U$32,'Transaction Summary'!K79,0,1,1),"") ->  | N79: =IF(K79="","",IFERROR(MATCH(TRUE,OFFSET(CalculationsAndCharts!$X$33,N78,0,'Transaction Summary'!$C$2-N78,1),0)+N78,"")) ->  | O79: =IFERROR(OFFSET(CalculationsAndCharts!$B$32,'Transaction Summary'!N79,0,1,1),"") ->  | P79: =IFERROR(OFFSET(CalculationsAndCharts!$D$32,'Transaction Summary'!N79,0,1,1),"") -> 
B80: =IFERROR(MATCH(TRUE,OFFSET(CalculationsAndCharts!$M$33,B79,0,'Transaction Summary'!$C$2-B79,1),0)+B79,"") ->  | C80: =IFERROR(OFFSET(CalculationsAndCharts!$B$32,'Transaction Summary'!B80,0,1,1),"") ->  | D80: =IFERROR(OFFSET(CalculationsAndCharts!$N$32,'Transaction Summary'!B80,0,1,1),"") ->  | E80: =IF(B80="","",IFERROR((MATCH(TRUE,OFFSET(CalculationsAndCharts!$Q$33,E79,0,'Transaction Summary'!$C$2-E79,1),0)+E79),"")) ->  | F80: =IFERROR(OFFSET(CalculationsAndCharts!$B$32,'Transaction Summary'!E80,0,1,1),"") ->  | G80: =IFERROR(OFFSET(CalculationsAndCharts!$R$32,'Transaction Summary'!E80,0,1,1),"") ->  | K80: =IFERROR(MATCH(TRUE,OFFSET(CalculationsAndCharts!$T$33,K79,0,'Transaction Summary'!$C$2-K79,1),0)+K79,"") ->  | L80: =IFERROR(OFFSET(CalculationsAndCharts!$B$32,'Transaction Summary'!K80,0,1,1),"") ->  | M80: =IFERROR(OFFSET(CalculationsAndCharts!$U$32,'Transaction Summary'!K80,0,1,1),"") ->  | N80: =IF(K80="","",IFERROR(MATCH(TRUE,OFFSET(CalculationsAndCharts!$X$33,N79,0,'Transaction Summary'!$C$2-N79,1),0)+N79,"")) ->  | O80: =IFERROR(OFFSET(CalculationsAndCharts!$B$32,'Transaction Summary'!N80,0,1,1),"") ->  | P80: =IFERROR(OFFSET(CalculationsAndCharts!$D$32,'Transaction Summary'!N80,0,1,1),"") -> 
B81: =IFERROR(MATCH(TRUE,OFFSET(CalculationsAndCharts!$M$33,B80,0,'Transaction Summary'!$C$2-B80,1),0)+B80,"") ->  | C81: =IFERROR(OFFSET(CalculationsAndCharts!$B$32,'Transaction Summary'!B81,0,1,1),"") ->  | D81: =IFERROR(OFFSET(CalculationsAndCharts!$N$32,'Transaction Summary'!B81,0,1,1),"") ->  | E81: =IF(B81="","",IFERROR((MATCH(TRUE,OFFSET(CalculationsAndCharts!$Q$33,E80,0,'Transaction Summary'!$C$2-E80,1),0)+E80),"")) ->  | F81: =IFERROR(OFFSET(CalculationsAndCharts!$B$32,'Transaction Summary'!E81,0,1,1),"") ->  | G81: =IFERROR(OFFSET(CalculationsAndCharts!$R$32,'Transaction Summary'!E81,0,1,1),"") ->  | H81: =IFERROR(G81-D81,"") ->  | I81: =IFERROR(H81+IF(""=I82,0,I82),"") ->  | K81: =IFERROR(MATCH(TRUE,OFFSET(CalculationsAndCharts!$T$33,K80,0,'Transaction Summary'!$C$2-K80,1),0)+K80,"") ->  | L81: =IFERROR(OFFSET(CalculationsAndCharts!$B$32,'Transaction Summary'!K81,0,1,1),"") ->  | M81: =IFERROR(OFFSET(CalculationsAndCharts!$U$32,'Transaction Summary'!K81,0,1,1),"") ->  | N81: =IF(K81="","",IFERROR(MATCH(TRUE,OFFSET(CalculationsAndCharts!$X$33,N80,0,'Transaction Summary'!$C$2-N80,1),0)+N80,"")) ->  | O81: =IFERROR(OFFSET(CalculationsAndCharts!$B$32,'Transaction Summary'!N81,0,1,1),"") ->  | P81: =IFERROR(OFFSET(CalculationsAndCharts!$D$32,'Transaction Summary'!N81,0,1,1),"") -> 
B82: =IFERROR(MATCH(TRUE,OFFSET(CalculationsAndCharts!$M$33,B81,0,'Transaction Summary'!$C$2-B81,1),0)+B81,"") ->  | C82: =IFERROR(OFFSET(CalculationsAndCharts!$B$32,'Transaction Summary'!B82,0,1,1),"") ->  | D82: =IFERROR(OFFSET(CalculationsAndCharts!$N$32,'Transaction Summary'!B82,0,1,1),"") ->  | E82: =IF(B82="","",IFERROR((MATCH(TRUE,OFFSET(CalculationsAndCharts!$Q$33,E81,0,'Transaction Summary'!$C$2-E81,1),0)+E81),"")) ->  | F82: =IFERROR(OFFSET(CalculationsAndCharts!$B$32,'Transaction Summary'!E82,0,1,1),"") ->  | G82: =IFERROR(OFFSET(CalculationsAndCharts!$R$32,'Transaction Summary'!E82,0,1,1),"") ->  | K82: =IFERROR(MATCH(TRUE,OFFSET(CalculationsAndCharts!$T$33,K81,0,'Transaction Summary'!$C$2-K81,1),0)+K81,"") ->  | L82: =IFERROR(OFFSET(CalculationsAndCharts!$B$32,'Transaction Summary'!K82,0,1,1),"") ->  | M82: =IFERROR(OFFSET(CalculationsAndCharts!$U$32,'Transaction Summary'!K82,0,1,1),"") ->  | N82: =IF(K82="","",IFERROR(MATCH(TRUE,OFFSET(CalculationsAndCharts!$X$33,N81,0,'Transaction Summary'!$C$2-N81,1),0)+N81,"")) ->  | O82: =IFERROR(OFFSET(CalculationsAndCharts!$B$32,'Transaction Summary'!N82,0,1,1),"") ->  | P82: =IFERROR(OFFSET(CalculationsAndCharts!$D$32,'Transaction Summary'!N82,0,1,1),"") -> 
B83: =IFERROR(MATCH(TRUE,OFFSET(CalculationsAndCharts!$M$33,B82,0,'Transaction Summary'!$C$2-B82,1),0)+B82,"") ->  | C83: =IFERROR(OFFSET(CalculationsAndCharts!$B$32,'Transaction Summary'!B83,0,1,1),"") ->  | D83: =IFERROR(OFFSET(CalculationsAndCharts!$N$32,'Transaction Summary'!B83,0,1,1),"") ->  | E83: =IF(B83="","",IFERROR((MATCH(TRUE,OFFSET(CalculationsAndCharts!$Q$33,E82,0,'Transaction Summary'!$C$2-E82,1),0)+E82),"")) ->  | F83: =IFERROR(OFFSET(CalculationsAndCharts!$B$32,'Transaction Summary'!E83,0,1,1),"") ->  | G83: =IFERROR(OFFSET(CalculationsAndCharts!$R$32,'Transaction Summary'!E83,0,1,1),"") ->  | K83: =IFERROR(MATCH(TRUE,OFFSET(CalculationsAndCharts!$T$33,K82,0,'Transaction Summary'!$C$2-K82,1),0)+K82,"") ->  | L83: =IFERROR(OFFSET(CalculationsAndCharts!$B$32,'Transaction Summary'!K83,0,1,1),"") ->  | M83: =IFERROR(OFFSET(CalculationsAndCharts!$U$32,'Transaction Summary'!K83,0,1,1),"") ->  | N83: =IF(K83="","",IFERROR(MATCH(TRUE,OFFSET(CalculationsAndCharts!$X$33,N82,0,'Transaction Summary'!$C$2-N82,1),0)+N82,"")) ->  | O83: =IFERROR(OFFSET(CalculationsAndCharts!$B$32,'Transaction Summary'!N83,0,1,1),"") ->  | P83: =IFERROR(OFFSET(CalculationsAndCharts!$D$32,'Transaction Summary'!N83,0,1,1),"") -> 
B84: =IFERROR(MATCH(TRUE,OFFSET(CalculationsAndCharts!$M$33,B83,0,'Transaction Summary'!$C$2-B83,1),0)+B83,"") ->  | C84: =IFERROR(OFFSET(CalculationsAndCharts!$B$32,'Transaction Summary'!B84,0,1,1),"") ->  | D84: =IFERROR(OFFSET(CalculationsAndCharts!$N$32,'Transaction Summary'!B84,0,1,1),"") ->  | E84: =IF(B84="","",IFERROR((MATCH(TRUE,OFFSET(CalculationsAndCharts!$Q$33,E83,0,'Transaction Summary'!$C$2-E83,1),0)+E83),"")) ->  | F84: =IFERROR(OFFSET(CalculationsAndCharts!$B$32,'Transaction Summary'!E84,0,1,1),"") ->  | G84: =IFERROR(OFFSET(CalculationsAndCharts!$R$32,'Transaction Summary'!E84,0,1,1),"") ->  | K84: =IFERROR(MATCH(TRUE,OFFSET(CalculationsAndCharts!$T$33,K83,0,'Transaction Summary'!$C$2-K83,1),0)+K83,"") ->  | L84: =IFERROR(OFFSET(CalculationsAndCharts!$B$32,'Transaction Summary'!K84,0,1,1),"") ->  | M84: =IFERROR(OFFSET(CalculationsAndCharts!$U$32,'Transaction Summary'!K84,0,1,1),"") ->  | N84: =IF(K84="","",IFERROR(MATCH(TRUE,OFFSET(CalculationsAndCharts!$X$33,N83,0,'Transaction Summary'!$C$2-N83,1),0)+N83,"")) ->  | O84: =IFERROR(OFFSET(CalculationsAndCharts!$B$32,'Transaction Summary'!N84,0,1,1),"") ->  | P84: =IFERROR(OFFSET(CalculationsAndCharts!$D$32,'Transaction Summary'!N84,0,1,1),"") -> 
B85: =IFERROR(MATCH(TRUE,OFFSET(CalculationsAndCharts!$M$33,B84,0,'Transaction Summary'!$C$2-B84,1),0)+B84,"") ->  | C85: =IFERROR(OFFSET(CalculationsAndCharts!$B$32,'Transaction Summary'!B85,0,1,1),"") ->  | D85: =IFERROR(OFFSET(CalculationsAndCharts!$N$32,'Transaction Summary'!B85,0,1,1),"") ->  | E85: =IF(B85="","",IFERROR((MATCH(TRUE,OFFSET(CalculationsAndCharts!$Q$33,E84,0,'Transaction Summary'!$C$2-E84,1),0)+E84),"")) ->  | F85: =IFERROR(OFFSET(CalculationsAndCharts!$B$32,'Transaction Summary'!E85,0,1,1),"") ->  | G85: =IFERROR(OFFSET(CalculationsAndCharts!$R$32,'Transaction Summary'!E85,0,1,1),"") ->  | K85: =IFERROR(MATCH(TRUE,OFFSET(CalculationsAndCharts!$T$33,K84,0,'Transaction Summary'!$C$2-K84,1),0)+K84,"") ->  | L85: =IFERROR(OFFSET(CalculationsAndCharts!$B$32,'Transaction Summary'!K85,0,1,1),"") ->  | M85: =IFERROR(OFFSET(CalculationsAndCharts!$U$32,'Transaction Summary'!K85,0,1,1),"") ->  | N85: =IF(K85="","",IFERROR(MATCH(TRUE,OFFSET(CalculationsAndCharts!$X$33,N84,0,'Transaction Summary'!$C$2-N84,1),0)+N84,"")) ->  | O85: =IFERROR(OFFSET(CalculationsAndCharts!$B$32,'Transaction Summary'!N85,0,1,1),"") ->  | P85: =IFERROR(OFFSET(CalculationsAndCharts!$D$32,'Transaction Summary'!N85,0,1,1),"") -> 
B86: =IFERROR(MATCH(TRUE,OFFSET(CalculationsAndCharts!$M$33,B85,0,'Transaction Summary'!$C$2-B85,1),0)+B85,"") ->  | C86: =IFERROR(OFFSET(CalculationsAndCharts!$B$32,'Transaction Summary'!B86,0,1,1),"") ->  | D86: =IFERROR(OFFSET(CalculationsAndCharts!$N$32,'Transaction Summary'!B86,0,1,1),"") ->  | E86: =IF(B86="","",IFERROR((MATCH(TRUE,OFFSET(CalculationsAndCharts!$Q$33,E85,0,'Transaction Summary'!$C$2-E85,1),0)+E85),"")) ->  | F86: =IFERROR(OFFSET(CalculationsAndCharts!$B$32,'Transaction Summary'!E86,0,1,1),"") ->  | G86: =IFERROR(OFFSET(CalculationsAndCharts!$R$32,'Transaction Summary'!E86,0,1,1),"") ->  | K86: =IFERROR(MATCH(TRUE,OFFSET(CalculationsAndCharts!$T$33,K85,0,'Transaction Summary'!$C$2-K85,1),0)+K85,"") ->  | L86: =IFERROR(OFFSET(CalculationsAndCharts!$B$32,'Transaction Summary'!K86,0,1,1),"") ->  | M86: =IFERROR(OFFSET(CalculationsAndCharts!$U$32,'Transaction Summary'!K86,0,1,1),"") ->  | N86: =IF(K86="","",IFERROR(MATCH(TRUE,OFFSET(CalculationsAndCharts!$X$33,N85,0,'Transaction Summary'!$C$2-N85,1),0)+N85,"")) ->  | O86: =IFERROR(OFFSET(CalculationsAndCharts!$B$32,'Transaction Summary'!N86,0,1,1),"") ->  | P86: =IFERROR(OFFSET(CalculationsAndCharts!$D$32,'Transaction Summary'!N86,0,1,1),"") -> 
B87: =IFERROR(MATCH(TRUE,OFFSET(CalculationsAndCharts!$M$33,B86,0,'Transaction Summary'!$C$2-B86,1),0)+B86,"") ->  | C87: =IFERROR(OFFSET(CalculationsAndCharts!$B$32,'Transaction Summary'!B87,0,1,1),"") ->  | D87: =IFERROR(OFFSET(CalculationsAndCharts!$N$32,'Transaction Summary'!B87,0,1,1),"") ->  | E87: =IF(B87="","",IFERROR((MATCH(TRUE,OFFSET(CalculationsAndCharts!$Q$33,E86,0,'Transaction Summary'!$C$2-E86,1),0)+E86),"")) ->  | F87: =IFERROR(OFFSET(CalculationsAndCharts!$B$32,'Transaction Summary'!E87,0,1,1),"") ->  | G87: =IFERROR(OFFSET(CalculationsAndCharts!$R$32,'Transaction Summary'!E87,0,1,1),"") ->  | K87: =IFERROR(MATCH(TRUE,OFFSET(CalculationsAndCharts!$T$33,K86,0,'Transaction Summary'!$C$2-K86,1),0)+K86,"") ->  | L87: =IFERROR(OFFSET(CalculationsAndCharts!$B$32,'Transaction Summary'!K87,0,1,1),"") ->  | M87: =IFERROR(OFFSET(CalculationsAndCharts!$U$32,'Transaction Summary'!K87,0,1,1),"") ->  | N87: =IF(K87="","",IFERROR(MATCH(TRUE,OFFSET(CalculationsAndCharts!$X$33,N86,0,'Transaction Summary'!$C$2-N86,1),0)+N86,"")) ->  | O87: =IFERROR(OFFSET(CalculationsAndCharts!$B$32,'Transaction Summary'!N87,0,1,1),"") ->  | P87: =IFERROR(OFFSET(CalculationsAndCharts!$D$32,'Transaction Summary'!N87,0,1,1),"") -> 
B88: =IFERROR(MATCH(TRUE,OFFSET(CalculationsAndCharts!$M$33,B87,0,'Transaction Summary'!$C$2-B87,1),0)+B87,"") ->  | C88: =IFERROR(OFFSET(CalculationsAndCharts!$B$32,'Transaction Summary'!B88,0,1,1),"") ->  | D88: =IFERROR(OFFSET(CalculationsAndCharts!$N$32,'Transaction Summary'!B88,0,1,1),"") ->  | E88: =IF(B88="","",IFERROR((MATCH(TRUE,OFFSET(CalculationsAndCharts!$Q$33,E87,0,'Transaction Summary'!$C$2-E87,1),0)+E87),"")) ->  | F88: =IFERROR(OFFSET(CalculationsAndCharts!$B$32,'Transaction Summary'!E88,0,1,1),"") ->  | G88: =IFERROR(OFFSET(CalculationsAndCharts!$R$32,'Transaction Summary'!E88,0,1,1),"") ->  | K88: =IFERROR(MATCH(TRUE,OFFSET(CalculationsAndCharts!$T$33,K87,0,'Transaction Summary'!$C$2-K87,1),0)+K87,"") ->  | L88: =IFERROR(OFFSET(CalculationsAndCharts!$B$32,'Transaction Summary'!K88,0,1,1),"") ->  | M88: =IFERROR(OFFSET(CalculationsAndCharts!$U$32,'Transaction Summary'!K88,0,1,1),"") ->  | N88: =IF(K88="","",IFERROR(MATCH(TRUE,OFFSET(CalculationsAndCharts!$X$33,N87,0,'Transaction Summary'!$C$2-N87,1),0)+N87,"")) ->  | O88: =IFERROR(OFFSET(CalculationsAndCharts!$B$32,'Transaction Summary'!N88,0,1,1),"") ->  | P88: =IFERROR(OFFSET(CalculationsAndCharts!$D$32,'Transaction Summary'!N88,0,1,1),"") -> 
B89: =IFERROR(MATCH(TRUE,OFFSET(CalculationsAndCharts!$M$33,B88,0,'Transaction Summary'!$C$2-B88,1),0)+B88,"") ->  | C89: =IFERROR(OFFSET(CalculationsAndCharts!$B$32,'Transaction Summary'!B89,0,1,1),"") ->  | D89: =IFERROR(OFFSET(CalculationsAndCharts!$N$32,'Transaction Summary'!B89,0,1,1),"") ->  | E89: =IF(B89="","",IFERROR((MATCH(TRUE,OFFSET(CalculationsAndCharts!$Q$33,E88,0,'Transaction Summary'!$C$2-E88,1),0)+E88),"")) ->  | F89: =IFERROR(OFFSET(CalculationsAndCharts!$B$32,'Transaction Summary'!E89,0,1,1),"") ->  | G89: =IFERROR(OFFSET(CalculationsAndCharts!$R$32,'Transaction Summary'!E89,0,1,1),"") ->  | K89: =IFERROR(MATCH(TRUE,OFFSET(CalculationsAndCharts!$T$33,K88,0,'Transaction Summary'!$C$2-K88,1),0)+K88,"") ->  | L89: =IFERROR(OFFSET(CalculationsAndCharts!$B$32,'Transaction Summary'!K89,0,1,1),"") ->  | M89: =IFERROR(OFFSET(CalculationsAndCharts!$U$32,'Transaction Summary'!K89,0,1,1),"") ->  | N89: =IF(K89="","",IFERROR(MATCH(TRUE,OFFSET(CalculationsAndCharts!$X$33,N88,0,'Transaction Summary'!$C$2-N88,1),0)+N88,"")) ->  | O89: =IFERROR(OFFSET(CalculationsAndCharts!$B$32,'Transaction Summary'!N89,0,1,1),"") ->  | P89: =IFERROR(OFFSET(CalculationsAndCharts!$D$32,'Transaction Summary'!N89,0,1,1),"") -> 
B90: =IFERROR(MATCH(TRUE,OFFSET(CalculationsAndCharts!$M$33,B89,0,'Transaction Summary'!$C$2-B89,1),0)+B89,"") ->  | C90: =IFERROR(OFFSET(CalculationsAndCharts!$B$32,'Transaction Summary'!B90,0,1,1),"") ->  | D90: =IFERROR(OFFSET(CalculationsAndCharts!$N$32,'Transaction Summary'!B90,0,1,1),"") ->  | E90: =IF(B90="","",IFERROR((MATCH(TRUE,OFFSET(CalculationsAndCharts!$Q$33,E89,0,'Transaction Summary'!$C$2-E89,1),0)+E89),"")) ->  | F90: =IFERROR(OFFSET(CalculationsAndCharts!$B$32,'Transaction Summary'!E90,0,1,1),"") ->  | G90: =IFERROR(OFFSET(CalculationsAndCharts!$R$32,'Transaction Summary'!E90,0,1,1),"") ->  | K90: =IFERROR(MATCH(TRUE,OFFSET(CalculationsAndCharts!$T$33,K89,0,'Transaction Summary'!$C$2-K89,1),0)+K89,"") ->  | L90: =IFERROR(OFFSET(CalculationsAndCharts!$B$32,'Transaction Summary'!K90,0,1,1),"") ->  | M90: =IFERROR(OFFSET(CalculationsAndCharts!$U$32,'Transaction Summary'!K90,0,1,1),"") ->  | N90: =IF(K90="","",IFERROR(MATCH(TRUE,OFFSET(CalculationsAndCharts!$X$33,N89,0,'Transaction Summary'!$C$2-N89,1),0)+N89,"")) ->  | O90: =IFERROR(OFFSET(CalculationsAndCharts!$B$32,'Transaction Summary'!N90,0,1,1),"") ->  | P90: =IFERROR(OFFSET(CalculationsAndCharts!$D$32,'Transaction Summary'!N90,0,1,1),"") -> 
B91: =IFERROR(MATCH(TRUE,OFFSET(CalculationsAndCharts!$M$33,B90,0,'Transaction Summary'!$C$2-B90,1),0)+B90,"") ->  | C91: =IFERROR(OFFSET(CalculationsAndCharts!$B$32,'Transaction Summary'!B91,0,1,1),"") ->  | D91: =IFERROR(OFFSET(CalculationsAndCharts!$N$32,'Transaction Summary'!B91,0,1,1),"") ->  | E91: =IF(B91="","",IFERROR((MATCH(TRUE,OFFSET(CalculationsAndCharts!$Q$33,E90,0,'Transaction Summary'!$C$2-E90,1),0)+E90),"")) ->  | F91: =IFERROR(OFFSET(CalculationsAndCharts!$B$32,'Transaction Summary'!E91,0,1,1),"") ->  | G91: =IFERROR(OFFSET(CalculationsAndCharts!$R$32,'Transaction Summary'!E91,0,1,1),"") ->  | K91: =IFERROR(MATCH(TRUE,OFFSET(CalculationsAndCharts!$T$33,K90,0,'Transaction Summary'!$C$2-K90,1),0)+K90,"") ->  | L91: =IFERROR(OFFSET(CalculationsAndCharts!$B$32,'Transaction Summary'!K91,0,1,1),"") ->  | M91: =IFERROR(OFFSET(CalculationsAndCharts!$U$32,'Transaction Summary'!K91,0,1,1),"") ->  | N91: =IF(K91="","",IFERROR(MATCH(TRUE,OFFSET(CalculationsAndCharts!$X$33,N90,0,'Transaction Summary'!$C$2-N90,1),0)+N90,"")) ->  | O91: =IFERROR(OFFSET(CalculationsAndCharts!$B$32,'Transaction Summary'!N91,0,1,1),"") ->  | P91: =IFERROR(OFFSET(CalculationsAndCharts!$D$32,'Transaction Summary'!N91,0,1,1),"") -> 
B92: =IFERROR(MATCH(TRUE,OFFSET(CalculationsAndCharts!$M$33,B91,0,'Transaction Summary'!$C$2-B91,1),0)+B91,"") ->  | C92: =IFERROR(OFFSET(CalculationsAndCharts!$B$32,'Transaction Summary'!B92,0,1,1),"") ->  | D92: =IFERROR(OFFSET(CalculationsAndCharts!$N$32,'Transaction Summary'!B92,0,1,1),"") ->  | E92: =IF(B92="","",IFERROR((MATCH(TRUE,OFFSET(CalculationsAndCharts!$Q$33,E91,0,'Transaction Summary'!$C$2-E91,1),0)+E91),"")) ->  | F92: =IFERROR(OFFSET(CalculationsAndCharts!$B$32,'Transaction Summary'!E92,0,1,1),"") ->  | G92: =IFERROR(OFFSET(CalculationsAndCharts!$R$32,'Transaction Summary'!E92,0,1,1),"") ->  | K92: =IFERROR(MATCH(TRUE,OFFSET(CalculationsAndCharts!$T$33,K91,0,'Transaction Summary'!$C$2-K91,1),0)+K91,"") ->  | L92: =IFERROR(OFFSET(CalculationsAndCharts!$B$32,'Transaction Summary'!K92,0,1,1),"") ->  | M92: =IFERROR(OFFSET(CalculationsAndCharts!$U$32,'Transaction Summary'!K92,0,1,1),"") ->  | N92: =IF(K92="","",IFERROR(MATCH(TRUE,OFFSET(CalculationsAndCharts!$X$33,N91,0,'Transaction Summary'!$C$2-N91,1),0)+N91,"")) ->  | O92: =IFERROR(OFFSET(CalculationsAndCharts!$B$32,'Transaction Summary'!N92,0,1,1),"") ->  | P92: =IFERROR(OFFSET(CalculationsAndCharts!$D$32,'Transaction Summary'!N92,0,1,1),"") -> 
B93: =IFERROR(MATCH(TRUE,OFFSET(CalculationsAndCharts!$M$33,B92,0,'Transaction Summary'!$C$2-B92,1),0)+B92,"") ->  | C93: =IFERROR(OFFSET(CalculationsAndCharts!$B$32,'Transaction Summary'!B93,0,1,1),"") ->  | D93: =IFERROR(OFFSET(CalculationsAndCharts!$N$32,'Transaction Summary'!B93,0,1,1),"") ->  | E93: =IF(B93="","",IFERROR((MATCH(TRUE,OFFSET(CalculationsAndCharts!$Q$33,E92,0,'Transaction Summary'!$C$2-E92,1),0)+E92),"")) ->  | F93: =IFERROR(OFFSET(CalculationsAndCharts!$B$32,'Transaction Summary'!E93,0,1,1),"") ->  | G93: =IFERROR(OFFSET(CalculationsAndCharts!$R$32,'Transaction Summary'!E93,0,1,1),"") ->  | K93: =IFERROR(MATCH(TRUE,OFFSET(CalculationsAndCharts!$T$33,K92,0,'Transaction Summary'!$C$2-K92,1),0)+K92,"") ->  | L93: =IFERROR(OFFSET(CalculationsAndCharts!$B$32,'Transaction Summary'!K93,0,1,1),"") ->  | M93: =IFERROR(OFFSET(CalculationsAndCharts!$U$32,'Transaction Summary'!K93,0,1,1),"") ->  | N93: =IF(K93="","",IFERROR(MATCH(TRUE,OFFSET(CalculationsAndCharts!$X$33,N92,0,'Transaction Summary'!$C$2-N92,1),0)+N92,"")) ->  | O93: =IFERROR(OFFSET(CalculationsAndCharts!$B$32,'Transaction Summary'!N93,0,1,1),"") ->  | P93: =IFERROR(OFFSET(CalculationsAndCharts!$D$32,'Transaction Summary'!N93,0,1,1),"") -> 
B94: =IFERROR(MATCH(TRUE,OFFSET(CalculationsAndCharts!$M$33,B93,0,'Transaction Summary'!$C$2-B93,1),0)+B93,"") ->  | C94: =IFERROR(OFFSET(CalculationsAndCharts!$B$32,'Transaction Summary'!B94,0,1,1),"") ->  | D94: =IFERROR(OFFSET(CalculationsAndCharts!$N$32,'Transaction Summary'!B94,0,1,1),"") ->  | E94: =IF(B94="","",IFERROR((MATCH(TRUE,OFFSET(CalculationsAndCharts!$Q$33,E93,0,'Transaction Summary'!$C$2-E93,1),0)+E93),"")) ->  | F94: =IFERROR(OFFSET(CalculationsAndCharts!$B$32,'Transaction Summary'!E94,0,1,1),"") ->  | G94: =IFERROR(OFFSET(CalculationsAndCharts!$R$32,'Transaction Summary'!E94,0,1,1),"") ->  | K94: =IFERROR(MATCH(TRUE,OFFSET(CalculationsAndCharts!$T$33,K93,0,'Transaction Summary'!$C$2-K93,1),0)+K93,"") ->  | L94: =IFERROR(OFFSET(CalculationsAndCharts!$B$32,'Transaction Summary'!K94,0,1,1),"") ->  | M94: =IFERROR(OFFSET(CalculationsAndCharts!$U$32,'Transaction Summary'!K94,0,1,1),"") ->  | N94: =IF(K94="","",IFERROR(MATCH(TRUE,OFFSET(CalculationsAndCharts!$X$33,N93,0,'Transaction Summary'!$C$2-N93,1),0)+N93,"")) ->  | O94: =IFERROR(OFFSET(CalculationsAndCharts!$B$32,'Transaction Summary'!N94,0,1,1),"") ->  | P94: =IFERROR(OFFSET(CalculationsAndCharts!$D$32,'Transaction Summary'!N94,0,1,1),"") -> 
B95: =IFERROR(MATCH(TRUE,OFFSET(CalculationsAndCharts!$M$33,B94,0,'Transaction Summary'!$C$2-B94,1),0)+B94,"") ->  | C95: =IFERROR(OFFSET(CalculationsAndCharts!$B$32,'Transaction Summary'!B95,0,1,1),"") ->  | D95: =IFERROR(OFFSET(CalculationsAndCharts!$N$32,'Transaction Summary'!B95,0,1,1),"") ->  | E95: =IF(B95="","",IFERROR((MATCH(TRUE,OFFSET(CalculationsAndCharts!$Q$33,E94,0,'Transaction Summary'!$C$2-E94,1),0)+E94),"")) ->  | F95: =IFERROR(OFFSET(CalculationsAndCharts!$B$32,'Transaction Summary'!E95,0,1,1),"") ->  | G95: =IFERROR(OFFSET(CalculationsAndCharts!$R$32,'Transaction Summary'!E95,0,1,1),"") ->  | K95: =IFERROR(MATCH(TRUE,OFFSET(CalculationsAndCharts!$T$33,K94,0,'Transaction Summary'!$C$2-K94,1),0)+K94,"") ->  | L95: =IFERROR(OFFSET(CalculationsAndCharts!$B$32,'Transaction Summary'!K95,0,1,1),"") ->  | M95: =IFERROR(OFFSET(CalculationsAndCharts!$U$32,'Transaction Summary'!K95,0,1,1),"") ->  | N95: =IF(K95="","",IFERROR(MATCH(TRUE,OFFSET(CalculationsAndCharts!$X$33,N94,0,'Transaction Summary'!$C$2-N94,1),0)+N94,"")) ->  | O95: =IFERROR(OFFSET(CalculationsAndCharts!$B$32,'Transaction Summary'!N95,0,1,1),"") ->  | P95: =IFERROR(OFFSET(CalculationsAndCharts!$D$32,'Transaction Summary'!N95,0,1,1),"") -> 
B96: =IFERROR(MATCH(TRUE,OFFSET(CalculationsAndCharts!$M$33,B95,0,'Transaction Summary'!$C$2-B95,1),0)+B95,"") ->  | C96: =IFERROR(OFFSET(CalculationsAndCharts!$B$32,'Transaction Summary'!B96,0,1,1),"") ->  | D96: =IFERROR(OFFSET(CalculationsAndCharts!$N$32,'Transaction Summary'!B96,0,1,1),"") ->  | E96: =IF(B96="","",IFERROR((MATCH(TRUE,OFFSET(CalculationsAndCharts!$Q$33,E95,0,'Transaction Summary'!$C$2-E95,1),0)+E95),"")) ->  | F96: =IFERROR(OFFSET(CalculationsAndCharts!$B$32,'Transaction Summary'!E96,0,1,1),"") ->  | G96: =IFERROR(OFFSET(CalculationsAndCharts!$R$32,'Transaction Summary'!E96,0,1,1),"") ->  | K96: =IFERROR(MATCH(TRUE,OFFSET(CalculationsAndCharts!$T$33,K95,0,'Transaction Summary'!$C$2-K95,1),0)+K95,"") ->  | L96: =IFERROR(OFFSET(CalculationsAndCharts!$B$32,'Transaction Summary'!K96,0,1,1),"") ->  | M96: =IFERROR(OFFSET(CalculationsAndCharts!$U$32,'Transaction Summary'!K96,0,1,1),"") ->  | N96: =IF(K96="","",IFERROR(MATCH(TRUE,OFFSET(CalculationsAndCharts!$X$33,N95,0,'Transaction Summary'!$C$2-N95,1),0)+N95,"")) ->  | O96: =IFERROR(OFFSET(CalculationsAndCharts!$B$32,'Transaction Summary'!N96,0,1,1),"") ->  | P96: =IFERROR(OFFSET(CalculationsAndCharts!$D$32,'Transaction Summary'!N96,0,1,1),"") -> 
B97: =IFERROR(MATCH(TRUE,OFFSET(CalculationsAndCharts!$M$33,B96,0,'Transaction Summary'!$C$2-B96,1),0)+B96,"") ->  | C97: =IFERROR(OFFSET(CalculationsAndCharts!$B$32,'Transaction Summary'!B97,0,1,1),"") ->  | D97: =IFERROR(OFFSET(CalculationsAndCharts!$N$32,'Transaction Summary'!B97,0,1,1),"") ->  | E97: =IF(B97="","",IFERROR((MATCH(TRUE,OFFSET(CalculationsAndCharts!$Q$33,E96,0,'Transaction Summary'!$C$2-E96,1),0)+E96),"")) ->  | F97: =IFERROR(OFFSET(CalculationsAndCharts!$B$32,'Transaction Summary'!E97,0,1,1),"") ->  | G97: =IFERROR(OFFSET(CalculationsAndCharts!$R$32,'Transaction Summary'!E97,0,1,1),"") ->  | K97: =IFERROR(MATCH(TRUE,OFFSET(CalculationsAndCharts!$T$33,K96,0,'Transaction Summary'!$C$2-K96,1),0)+K96,"") ->  | L97: =IFERROR(OFFSET(CalculationsAndCharts!$B$32,'Transaction Summary'!K97,0,1,1),"") ->  | M97: =IFERROR(OFFSET(CalculationsAndCharts!$U$32,'Transaction Summary'!K97,0,1,1),"") ->  | N97: =IF(K97="","",IFERROR(MATCH(TRUE,OFFSET(CalculationsAndCharts!$X$33,N96,0,'Transaction Summary'!$C$2-N96,1),0)+N96,"")) ->  | O97: =IFERROR(OFFSET(CalculationsAndCharts!$B$32,'Transaction Summary'!N97,0,1,1),"") ->  | P97: =IFERROR(OFFSET(CalculationsAndCharts!$D$32,'Transaction Summary'!N97,0,1,1),"") -> 
B98: =IFERROR(MATCH(TRUE,OFFSET(CalculationsAndCharts!$M$33,B97,0,'Transaction Summary'!$C$2-B97,1),0)+B97,"") ->  | C98: =IFERROR(OFFSET(CalculationsAndCharts!$B$32,'Transaction Summary'!B98,0,1,1),"") ->  | D98: =IFERROR(OFFSET(CalculationsAndCharts!$N$32,'Transaction Summary'!B98,0,1,1),"") ->  | E98: =IF(B98="","",IFERROR((MATCH(TRUE,OFFSET(CalculationsAndCharts!$Q$33,E97,0,'Transaction Summary'!$C$2-E97,1),0)+E97),"")) ->  | F98: =IFERROR(OFFSET(CalculationsAndCharts!$B$32,'Transaction Summary'!E98,0,1,1),"") ->  | G98: =IFERROR(OFFSET(CalculationsAndCharts!$R$32,'Transaction Summary'!E98,0,1,1),"") ->  | K98: =IFERROR(MATCH(TRUE,OFFSET(CalculationsAndCharts!$T$33,K97,0,'Transaction Summary'!$C$2-K97,1),0)+K97,"") ->  | L98: =IFERROR(OFFSET(CalculationsAndCharts!$B$32,'Transaction Summary'!K98,0,1,1),"") ->  | M98: =IFERROR(OFFSET(CalculationsAndCharts!$U$32,'Transaction Summary'!K98,0,1,1),"") ->  | N98: =IF(K98="","",IFERROR(MATCH(TRUE,OFFSET(CalculationsAndCharts!$X$33,N97,0,'Transaction Summary'!$C$2-N97,1),0)+N97,"")) ->  | O98: =IFERROR(OFFSET(CalculationsAndCharts!$B$32,'Transaction Summary'!N98,0,1,1),"") ->  | P98: =IFERROR(OFFSET(CalculationsAndCharts!$D$32,'Transaction Summary'!N98,0,1,1),"") -> 
B99: =IFERROR(MATCH(TRUE,OFFSET(CalculationsAndCharts!$M$33,B98,0,'Transaction Summary'!$C$2-B98,1),0)+B98,"") ->  | C99: =IFERROR(OFFSET(CalculationsAndCharts!$B$32,'Transaction Summary'!B99,0,1,1),"") ->  | D99: =IFERROR(OFFSET(CalculationsAndCharts!$N$32,'Transaction Summary'!B99,0,1,1),"") ->  | E99: =IF(B99="","",IFERROR((MATCH(TRUE,OFFSET(CalculationsAndCharts!$Q$33,E98,0,'Transaction Summary'!$C$2-E98,1),0)+E98),"")) ->  | F99: =IFERROR(OFFSET(CalculationsAndCharts!$B$32,'Transaction Summary'!E99,0,1,1),"") ->  | G99: =IFERROR(OFFSET(CalculationsAndCharts!$R$32,'Transaction Summary'!E99,0,1,1),"") ->  | K99: =IFERROR(MATCH(TRUE,OFFSET(CalculationsAndCharts!$T$33,K98,0,'Transaction Summary'!$C$2-K98,1),0)+K98,"") ->  | L99: =IFERROR(OFFSET(CalculationsAndCharts!$B$32,'Transaction Summary'!K99,0,1,1),"") ->  | M99: =IFERROR(OFFSET(CalculationsAndCharts!$U$32,'Transaction Summary'!K99,0,1,1),"") ->  | N99: =IF(K99="","",IFERROR(MATCH(TRUE,OFFSET(CalculationsAndCharts!$X$33,N98,0,'Transaction Summary'!$C$2-N98,1),0)+N98,"")) ->  | O99: =IFERROR(OFFSET(CalculationsAndCharts!$B$32,'Transaction Summary'!N99,0,1,1),"") ->  | P99: =IFERROR(OFFSET(CalculationsAndCharts!$D$32,'Transaction Summary'!N99,0,1,1),"") ->  | Q99: =IFERROR(M99-P99,"") ->  | R99: =IFERROR(Q99+IF(""=R100,0,R100),"") -> 
B100: =IFERROR(MATCH(TRUE,OFFSET(CalculationsAndCharts!$M$33,B99,0,'Transaction Summary'!$C$2-B99,1),0)+B99,"") ->  | C100: =IFERROR(OFFSET(CalculationsAndCharts!$B$32,'Transaction Summary'!B100,0,1,1),"") ->  | D100: =IFERROR(OFFSET(CalculationsAndCharts!$N$32,'Transaction Summary'!B100,0,1,1),"") ->  | E100: =IF(B100="","",IFERROR((MATCH(TRUE,OFFSET(CalculationsAndCharts!$Q$33,E99,0,'Transaction Summary'!$C$2-E99,1),0)+E99),"")) ->  | F100: =IFERROR(OFFSET(CalculationsAndCharts!$B$32,'Transaction Summary'!E100,0,1,1),"") ->  | G100: =IFERROR(OFFSET(CalculationsAndCharts!$R$32,'Transaction Summary'!E100,0,1,1),"") ->  | K100: =IFERROR(MATCH(TRUE,OFFSET(CalculationsAndCharts!$T$33,K99,0,'Transaction Summary'!$C$2-K99,1),0)+K99,"") ->  | L100: =IFERROR(OFFSET(CalculationsAndCharts!$B$32,'Transaction Summary'!K100,0,1,1),"") ->  | M100: =IFERROR(OFFSET(CalculationsAndCharts!$U$32,'Transaction Summary'!K100,0,1,1),"") ->  | N100: =IF(K100="","",IFERROR(MATCH(TRUE,OFFSET(CalculationsAndCharts!$X$33,N99,0,'Transaction Summary'!$C$2-N99,1),0)+N99,"")) ->  | O100: =IFERROR(OFFSET(CalculationsAndCharts!$B$32,'Transaction Summary'!N100,0,1,1),"") ->  | P100: =IFERROR(OFFSET(CalculationsAndCharts!$D$32,'Transaction Summary'!N100,0,1,1),"") -> 
B101: =IFERROR(MATCH(TRUE,OFFSET(CalculationsAndCharts!$M$33,B100,0,'Transaction Summary'!$C$2-B100,1),0)+B100,"") ->  | C101: =IFERROR(OFFSET(CalculationsAndCharts!$B$32,'Transaction Summary'!B101,0,1,1),"") ->  | D101: =IFERROR(OFFSET(CalculationsAndCharts!$N$32,'Transaction Summary'!B101,0,1,1),"") ->  | E101: =IF(B101="","",IFERROR((MATCH(TRUE,OFFSET(CalculationsAndCharts!$Q$33,E100,0,'Transaction Summary'!$C$2-E100,1),0)+E100),"")) ->  | F101: =IFERROR(OFFSET(CalculationsAndCharts!$B$32,'Transaction Summary'!E101,0,1,1),"") ->  | G101: =IFERROR(OFFSET(CalculationsAndCharts!$R$32,'Transaction Summary'!E101,0,1,1),"") ->  | K101: =IFERROR(MATCH(TRUE,OFFSET(CalculationsAndCharts!$T$33,K100,0,'Transaction Summary'!$C$2-K100,1),0)+K100,"") ->  | L101: =IFERROR(OFFSET(CalculationsAndCharts!$B$32,'Transaction Summary'!K101,0,1,1),"") ->  | M101: =IFERROR(OFFSET(CalculationsAndCharts!$U$32,'Transaction Summary'!K101,0,1,1),"") ->  | N101: =IF(K101="","",IFERROR(MATCH(TRUE,OFFSET(CalculationsAndCharts!$X$33,N100,0,'Transaction Summary'!$C$2-N100,1),0)+N100,"")) ->  | O101: =IFERROR(OFFSET(CalculationsAndCharts!$B$32,'Transaction Summary'!N101,0,1,1),"") ->  | P101: =IFERROR(OFFSET(CalculationsAndCharts!$D$32,'Transaction Summary'!N101,0,1,1),"") -> 
B102: =IFERROR(MATCH(TRUE,OFFSET(CalculationsAndCharts!$M$33,B101,0,'Transaction Summary'!$C$2-B101,1),0)+B101,"") ->  | C102: =IFERROR(OFFSET(CalculationsAndCharts!$B$32,'Transaction Summary'!B102,0,1,1),"") ->  | D102: =IFERROR(OFFSET(CalculationsAndCharts!$N$32,'Transaction Summary'!B102,0,1,1),"") ->  | E102: =IF(B102="","",IFERROR((MATCH(TRUE,OFFSET(CalculationsAndCharts!$Q$33,E101,0,'Transaction Summary'!$C$2-E101,1),0)+E101),"")) ->  | F102: =IFERROR(OFFSET(CalculationsAndCharts!$B$32,'Transaction Summary'!E102,0,1,1),"") ->  | G102: =IFERROR(OFFSET(CalculationsAndCharts!$R$32,'Transaction Summary'!E102,0,1,1),"") ->  | K102: =IFERROR(MATCH(TRUE,OFFSET(CalculationsAndCharts!$T$33,K101,0,'Transaction Summary'!$C$2-K101,1),0)+K101,"") ->  | L102: =IFERROR(OFFSET(CalculationsAndCharts!$B$32,'Transaction Summary'!K102,0,1,1),"") ->  | M102: =IFERROR(OFFSET(CalculationsAndCharts!$U$32,'Transaction Summary'!K102,0,1,1),"") ->  | N102: =IF(K102="","",IFERROR(MATCH(TRUE,OFFSET(CalculationsAndCharts!$X$33,N101,0,'Transaction Summary'!$C$2-N101,1),0)+N101,"")) ->  | O102: =IFERROR(OFFSET(CalculationsAndCharts!$B$32,'Transaction Summary'!N102,0,1,1),"") ->  | P102: =IFERROR(OFFSET(CalculationsAndCharts!$D$32,'Transaction Summary'!N102,0,1,1),"") -> 
B103: =IFERROR(MATCH(TRUE,OFFSET(CalculationsAndCharts!$M$33,B102,0,'Transaction Summary'!$C$2-B102,1),0)+B102,"") ->  | C103: =IFERROR(OFFSET(CalculationsAndCharts!$B$32,'Transaction Summary'!B103,0,1,1),"") ->  | D103: =IFERROR(OFFSET(CalculationsAndCharts!$N$32,'Transaction Summary'!B103,0,1,1),"") ->  | E103: =IF(B103="","",IFERROR((MATCH(TRUE,OFFSET(CalculationsAndCharts!$Q$33,E102,0,'Transaction Summary'!$C$2-E102,1),0)+E102),"")) ->  | F103: =IFERROR(OFFSET(CalculationsAndCharts!$B$32,'Transaction Summary'!E103,0,1,1),"") ->  | G103: =IFERROR(OFFSET(CalculationsAndCharts!$R$32,'Transaction Summary'!E103,0,1,1),"") ->  | K103: =IFERROR(MATCH(TRUE,OFFSET(CalculationsAndCharts!$T$33,K102,0,'Transaction Summary'!$C$2-K102,1),0)+K102,"") ->  | L103: =IFERROR(OFFSET(CalculationsAndCharts!$B$32,'Transaction Summary'!K103,0,1,1),"") ->  | M103: =IFERROR(OFFSET(CalculationsAndCharts!$U$32,'Transaction Summary'!K103,0,1,1),"") ->  | N103: =IF(K103="","",IFERROR(MATCH(TRUE,OFFSET(CalculationsAndCharts!$X$33,N102,0,'Transaction Summary'!$C$2-N102,1),0)+N102,"")) ->  | O103: =IFERROR(OFFSET(CalculationsAndCharts!$B$32,'Transaction Summary'!N103,0,1,1),"") ->  | P103: =IFERROR(OFFSET(CalculationsAndCharts!$D$32,'Transaction Summary'!N103,0,1,1),"") -> 
B104: =IFERROR(MATCH(TRUE,OFFSET(CalculationsAndCharts!$M$33,B103,0,'Transaction Summary'!$C$2-B103,1),0)+B103,"") ->  | C104: =IFERROR(OFFSET(CalculationsAndCharts!$B$32,'Transaction Summary'!B104,0,1,1),"") ->  | D104: =IFERROR(OFFSET(CalculationsAndCharts!$N$32,'Transaction Summary'!B104,0,1,1),"") ->  | E104: =IF(B104="","",IFERROR((MATCH(TRUE,OFFSET(CalculationsAndCharts!$Q$33,E103,0,'Transaction Summary'!$C$2-E103,1),0)+E103),"")) ->  | F104: =IFERROR(OFFSET(CalculationsAndCharts!$B$32,'Transaction Summary'!E104,0,1,1),"") ->  | G104: =IFERROR(OFFSET(CalculationsAndCharts!$R$32,'Transaction Summary'!E104,0,1,1),"") ->  | K104: =IFERROR(MATCH(TRUE,OFFSET(CalculationsAndCharts!$T$33,K103,0,'Transaction Summary'!$C$2-K103,1),0)+K103,"") ->  | L104: =IFERROR(OFFSET(CalculationsAndCharts!$B$32,'Transaction Summary'!K104,0,1,1),"") ->  | M104: =IFERROR(OFFSET(CalculationsAndCharts!$U$32,'Transaction Summary'!K104,0,1,1),"") ->  | N104: =IF(K104="","",IFERROR(MATCH(TRUE,OFFSET(CalculationsAndCharts!$X$33,N103,0,'Transaction Summary'!$C$2-N103,1),0)+N103,"")) ->  | O104: =IFERROR(OFFSET(CalculationsAndCharts!$B$32,'Transaction Summary'!N104,0,1,1),"") ->  | P104: =IFERROR(OFFSET(CalculationsAndCharts!$D$32,'Transaction Summary'!N104,0,1,1),"") -> 
B105: =IFERROR(MATCH(TRUE,OFFSET(CalculationsAndCharts!$M$33,B104,0,'Transaction Summary'!$C$2-B104,1),0)+B104,"") ->  | C105: =IFERROR(OFFSET(CalculationsAndCharts!$B$32,'Transaction Summary'!B105,0,1,1),"") ->  | D105: =IFERROR(OFFSET(CalculationsAndCharts!$N$32,'Transaction Summary'!B105,0,1,1),"") ->  | E105: =IF(B105="","",IFERROR((MATCH(TRUE,OFFSET(CalculationsAndCharts!$Q$33,E104,0,'Transaction Summary'!$C$2-E104,1),0)+E104),"")) ->  | F105: =IFERROR(OFFSET(CalculationsAndCharts!$B$32,'Transaction Summary'!E105,0,1,1),"") ->  | G105: =IFERROR(OFFSET(CalculationsAndCharts!$R$32,'Transaction Summary'!E105,0,1,1),"") ->  | K105: =IFERROR(MATCH(TRUE,OFFSET(CalculationsAndCharts!$T$33,K104,0,'Transaction Summary'!$C$2-K104,1),0)+K104,"") ->  | L105: =IFERROR(OFFSET(CalculationsAndCharts!$B$32,'Transaction Summary'!K105,0,1,1),"") ->  | M105: =IFERROR(OFFSET(CalculationsAndCharts!$U$32,'Transaction Summary'!K105,0,1,1),"") ->  | N105: =IF(K105="","",IFERROR(MATCH(TRUE,OFFSET(CalculationsAndCharts!$X$33,N104,0,'Transaction Summary'!$C$2-N104,1),0)+N104,"")) ->  | O105: =IFERROR(OFFSET(CalculationsAndCharts!$B$32,'Transaction Summary'!N105,0,1,1),"") ->  | P105: =IFERROR(OFFSET(CalculationsAndCharts!$D$32,'Transaction Summary'!N105,0,1,1),"") -> 
B106: =IFERROR(MATCH(TRUE,OFFSET(CalculationsAndCharts!$M$33,B105,0,'Transaction Summary'!$C$2-B105,1),0)+B105,"") ->  | C106: =IFERROR(OFFSET(CalculationsAndCharts!$B$32,'Transaction Summary'!B106,0,1,1),"") ->  | D106: =IFERROR(OFFSET(CalculationsAndCharts!$N$32,'Transaction Summary'!B106,0,1,1),"") ->  | E106: =IF(B106="","",IFERROR((MATCH(TRUE,OFFSET(CalculationsAndCharts!$Q$33,E105,0,'Transaction Summary'!$C$2-E105,1),0)+E105),"")) ->  | F106: =IFERROR(OFFSET(CalculationsAndCharts!$B$32,'Transaction Summary'!E106,0,1,1),"") ->  | G106: =IFERROR(OFFSET(CalculationsAndCharts!$R$32,'Transaction Summary'!E106,0,1,1),"") ->  | K106: =IFERROR(MATCH(TRUE,OFFSET(CalculationsAndCharts!$T$33,K105,0,'Transaction Summary'!$C$2-K105,1),0)+K105,"") ->  | L106: =IFERROR(OFFSET(CalculationsAndCharts!$B$32,'Transaction Summary'!K106,0,1,1),"") ->  | M106: =IFERROR(OFFSET(CalculationsAndCharts!$U$32,'Transaction Summary'!K106,0,1,1),"") ->  | N106: =IF(K106="","",IFERROR(MATCH(TRUE,OFFSET(CalculationsAndCharts!$X$33,N105,0,'Transaction Summary'!$C$2-N105,1),0)+N105,"")) ->  | O106: =IFERROR(OFFSET(CalculationsAndCharts!$B$32,'Transaction Summary'!N106,0,1,1),"") ->  | P106: =IFERROR(OFFSET(CalculationsAndCharts!$D$32,'Transaction Summary'!N106,0,1,1),"") -> 
B107: =IFERROR(MATCH(TRUE,OFFSET(CalculationsAndCharts!$M$33,B106,0,'Transaction Summary'!$C$2-B106,1),0)+B106,"") ->  | C107: =IFERROR(OFFSET(CalculationsAndCharts!$B$32,'Transaction Summary'!B107,0,1,1),"") ->  | D107: =IFERROR(OFFSET(CalculationsAndCharts!$N$32,'Transaction Summary'!B107,0,1,1),"") ->  | E107: =IF(B107="","",IFERROR((MATCH(TRUE,OFFSET(CalculationsAndCharts!$Q$33,E106,0,'Transaction Summary'!$C$2-E106,1),0)+E106),"")) ->  | F107: =IFERROR(OFFSET(CalculationsAndCharts!$B$32,'Transaction Summary'!E107,0,1,1),"") ->  | G107: =IFERROR(OFFSET(CalculationsAndCharts!$R$32,'Transaction Summary'!E107,0,1,1),"") ->  | K107: =IFERROR(MATCH(TRUE,OFFSET(CalculationsAndCharts!$T$33,K106,0,'Transaction Summary'!$C$2-K106,1),0)+K106,"") ->  | L107: =IFERROR(OFFSET(CalculationsAndCharts!$B$32,'Transaction Summary'!K107,0,1,1),"") ->  | M107: =IFERROR(OFFSET(CalculationsAndCharts!$U$32,'Transaction Summary'!K107,0,1,1),"") ->  | N107: =IF(K107="","",IFERROR(MATCH(TRUE,OFFSET(CalculationsAndCharts!$X$33,N106,0,'Transaction Summary'!$C$2-N106,1),0)+N106,"")) ->  | O107: =IFERROR(OFFSET(CalculationsAndCharts!$B$32,'Transaction Summary'!N107,0,1,1),"") ->  | P107: =IFERROR(OFFSET(CalculationsAndCharts!$D$32,'Transaction Summary'!N107,0,1,1),"") -> 
